Workbook

Sheet Zest0
B1: Biznes
B2: Branża odbiorcy Rodzaj działalności . | C2: 1. Wszystkie sektory lub sektor nieistotny | D2: 2. Administracja państwowa, w tym służby mundurowe | E2: 3. Bankowość, ubezpieczenia, inne usługi finansowe | F2: 4. Budownictwo | G2: 5. Dostawy elektryczności, gazu, ciepła i wody | H2: 6. Edukacja | I2: 7. Gospodarstwa domowe | J2: 8. Handel | K2: 9. Media | L2: 10. Produkcja przemysłowa | M2: 11. Rolnictwo | N2: 12. Służba zdrowia | O2: 13. Telekomunikacja, IT | P2: 14. Transport | Q2: 15. Usługi | R2: 16. Inni odbiorcy końcowi | S2: Łącznie
B3: A. Produkcja sprzętu IT | S3: =SUM(D3:R3) -> 0 | T3: =S3/$S$27 -> 
B4: B. Produkcja sprzętu telekomunikacyjnego | S4: =SUM(D4:R4) -> 0 | T4: =S4/$S$27 -> 
B5: C. Produkcja oprogramowania, w tym na zamówienie | S5: 0
B6: D. Instalacje sprzętu | S6: 0
B7: E. Integracja systemów IT | S7: 0
B8: F. Wdrożenia oprogramowania | S8: 0
B9: G. Projektowanie, budowa i instalacje sieci IT | S9: 0
B10: H. Szkolenia IT | S10: 0
B11: I. Doradztwo IT | S11: 0
B12: J. Outsourcing IT, wyłączając przetwarzanie danych | S12: 0
B13: K. Outsourcing przetwarzania danych | S13: 0
B14: L. Usługi serwisowe IT | S14: 0
B15: M. Inne usługi IT | S15: 0
B16: N. Instalacje i uruchamianie central telekomunikacyjnych | S16: 0
B17: O. Projektowanie, budowa, uruchamianie i utrzymanie sieci telekom. | S17: 0
B18: P. Usługi operatorskie TV kablowych | S18: 0
B19: Q. Usługi operatorskie transmisji danych | S19: 0
B20: R. Usługi internetowe (dostępowe ISP) | S20: 0
B21: S. Outsourcing telekomunikacyjny | S21: 0
B22: T. Usługi serwisowe telekomunikacyjne | S22: 0
B23: U Inne usługi telekomunikacyjne | S23: 0
B24: V. Dystrybucja IT (sprzedaż do dalszej odsprzedaży) | S24: 0
B25: W. Dystrybucja telekomunikacyjna (sprzedaż do dalszej odsprzedaży) | S25: 0
B26: X. Sprzedaż IT i telekomunikacyjna (do klienta końcowego) | S26: 0
B27: Łącznie | D27: =SUM(D3:D26) -> 0 | E27: =SUM(E3:E26) -> 0 | F27: 0 | G27: 0 | H27: 0 | I27: 0 | J27: 0 | K27: 0 | L27: 0 | M27: 0 | N27: 0 | O27: 0 | P27: 0 | Q27: 0 | R27: 0 | S27: =SUM(S3:S26) -> 0
D28: =D27/$S$27 ->  | E28: =E27/$S$27 -> 

Sheet Dane0
C1: =COUNTIF(E1:FL1,"0") -> 0 | D1: =COUNTIF(E1:FL1,"<>") -> 164 | E1: =COUNTIF(E3:E166,"<>") -> 1 | F1: 3 | G1: 7 | H1: 2 | I1: 5 | J1: 2 | K1: 13 | L1: 1 | M1: 2 | N1: 2 | O1: 5 | P1: 1 | Q1: 4 | R1: 3 | S1: 6 | T1: 2 | U1: 11 | V1: 1 | W1: 1 | X1: 9 | Y1: 13 | Z1: 8 | AA1: 2 | AB1: 18 | AC1: 1 | AD1: 8 | AE1: 7 | AF1: 6 | AG1: 2 | AH1: 7 | AI1: 26 | AJ1: 5 | AK1: =COUNTIF(AK3:AK166,"<>") -> 7 | AL1: 4 | AM1: 1 | AN1: 3 | AO1: 1 | AP1: 6 | AQ1: 1 | AR1: 1 | AS1: 1 | AT1: 1 | AU1: 7 | AV1: 2 | AW1: 2 | AX1: 1 | AY1: 7 | AZ1: 1 | BA1: 1 | BB1: 1 | BC1: 1 | BD1: 2 | BE1: 6 | BF1: 1 | BG1: 6 | BH1: 4 | BI1: 2 | BJ1: 1 | BK1: 8 | BL1: 1 | BM1: 1 | BN1: 1 | BO1: 2 | BP1: 2 | BQ1: =COUNTIF(BQ3:BQ166,"<>") -> 7 | BR1: 2 | BS1: 3 | BT1: 6 | BU1: 5 | BV1: 6 | BW1: 4 | BX1: 1 | BY1: 9 | BZ1: 1 | CA1: 3 | CB1: 1 | CC1: 1 | CD1: 2 | CE1: 13 | CF1: 1 | CG1: 3 | CH1: 4 | CI1: 1 | CJ1: 9 | CK1: 1 | CL1: 1 | CM1: 1 | CN1: 5 | CO1: 1 | CP1: 9 | CQ1: 12 | CR1: 11 | CS1: 2 | CT1: 2 | CU1: 13 | CV1: 12 | CW1: =COUNTIF(CW3:CW166,"<>") -> 5 | CX1: 6 | CY1: 1 | CZ1: 7 | DA1: 13 | DB1: 1 | DC1: 2 | DD1: 3 | DE1: 3 | DF1: 1 | DG1: 1 | DH1: 1 | DI1: 4 | DJ1: 3 | DK1: 1 | DL1: 1 | DM1: 2 | DN1: 1 | DO1: 3 | DP1: 1 | DQ1: 2 | DR1: 1 | DS1: 4 | DT1: 1 | DU1: 1 | DV1: 5 | DW1: 1 | DX1: 9 | DY1: 9 | DZ1: 2 | EA1: 2 | EB1: 2 | EC1: =COUNTIF(EC3:EC166,"<>") -> 1 | ED1: 6 | EE1: 1 | EF1: 1 | EG1: 1 | EH1: 2 | EI1: 3 | EJ1: 3 | EK1: 2 | EL1: 2 | EM1: 1 | EN1: 1 | EO1: 1 | EP1: =COUNTIF(EP3:EP166,"<>") -> 7 | EQ1: 1 | ER1: 1 | ES1: 2 | ET1: 2 | EU1: 1 | EV1: 1 | EW1: 4 | EX1: 1 | EY1: 1 | EZ1: 1 | FA1: 1 | FB1: 1 | FC1: 2 | FD1: 1 | FE1: 9 | FF1: 1 | FG1: 1 | FH1: 19 | FI1: 1 | FJ1: 16 | FK1: 2 | FL1: 1
A2: lp | D2: =COUNTIF(D3:D166,"<>") -> 164 | E2: A2, | F2: A5, | G2: A6, | H2: A9, | I2: A10, | J2: A12, | K2: A13, | L2: A14, | M2: A15, | N2: A16, | O2: B1, | P2: B2, | Q2: B6, | R2: B9, | S2: B10, | T2: B12, | U2: B13, | V2: B14, | W2: B16, | X2: C1, | Y2: C2, | Z2: C3, | AA2: C5, | AB2: C6, | AC2: C7, | AD2: C8, | AE2: C9, | AF2: C10, | AG2: C11, | AH2: C12, | AI2: C13, | AJ2: C14, | AK2: C15, | AL2: C16, | AM2: D1, | AN2: D2, | AO2: D5, | AP2: D6, | AQ2: D7, | AR2: D10, | AS2: D11, | AT2: D12, | AU2: D13, | AV2: E1, | AW2: E2, | AX2: E5, | AY2: E6, | AZ2: E7, | BA2: E8, | BB2: E10, | BC2: E11, | BD2: E12, | BE2: E13, | BF2: E15, | BG2: F1, | BH2: F2, | BI2: F3, | BJ2: F5, | BK2: F6, | BL2: F7, | BM2: F8, | BN2: F10, | BO2: F11, | BP2: F12, | BQ2: F13, | BR2: F14, | BS2: F15, | BT2: F16, | BU2: G1, | BV2: G2, | BW2: G3, | BX2: G5, | BY2: G6, | BZ2: G7, | CA2: G9, | CB2: G10, | CC2: G11, | CD2: G12, | CE2: G13, | CF2: G14, | CG2: G15, | CH2: H1, | CI2: H2, | CJ2: H6, | CK2: H7, | CL2: H10, | CM2: H12, | CN2: H13, | CO2: H15, | CP2: I1, | CQ2: I2, | CR2: I3, | CS2: I4, | CT2: I5, | CU2: I6, | CV2: I8, | CW2: I9, | CX2: I10, | CY2: I11, | CZ2: I12, | DA2: I13, | DB2: I14, | DC2: I15, | DD2: J2, | DE2: J3, | DF2: J5, | DG2: J6, | DH2: J10, | DI2: J13, | DJ2: K1, | DK2: K2, | DL2: K3, | DM2: K6, | DN2: K10, | DO2: K13, | DP2: K15, | DQ2: L6, | DR2: L13, | DS2: M1, | DT2: M2, | DU2: M3, | DV2: M6, | DW2: M12, | DX2: M13, | DY2: M15, | DZ2: O1, | EA2: O2, | EB2: O6, | EC2: O12, | ED2: O13, | EE2: O14, | EF2: O15, | EG2: P1, | EH2: P13, | EI2: Q1, | EJ2: Q2, | EK2: Q5, | EL2: Q6, | EM2: Q7, | EN2: Q11, | EO2: Q12, | EP2: Q13, | EQ2: Q14, | ER2: Q15, | ES2: R1, | ET2: R2, | EU2: R6, | EV2: R11, | EW2: R13, | EX2: R16, | EY2: S13, | EZ2: T1, | FA2: T6, | FB2: T13, | FC2: U1, | FD2: U2, | FE2: U6, | FF2: U10, | FG2: U11, | FH2: U12, | FI2: U13, | FJ2: U15, | FK2: U16, | FL2: V1,
A3: 1 | B3: Politechnika Poznańska | C3: Adaptacyjne i predykcyjne systemy sterowania z elementami inteligencji maszynowej | D3: =COUNTIF(E3:FL3,"<>") -> 3 | AA3: C5, | AF3: C10, | AI3: C13,
A4: 2 | B4: Politechnika Poznańska | C4: Agorytmy optymalizacji kombinatorycznej | D4: 1 | CH4: H1,
A5: 3 | B5: Politechnika Poznańska | C5: Algorytmy bioinformatyczne | D5: 2 | CU5: I6, | CZ5: I12,
A6: 4 | B6: Politechnika Poznańska | C6: Algorytmy i metody inżynierii wiedzy | D6: 1 | AB6: C6,
A7: 5 | B7: Politechnika Poznańska | C7: Algorytmy i metody komputerowego wyszukiwania informacji muzycznej. | D7: 2 | AD7: C8, | AE7: C9,
A8: 6 | B8: Politechnika Poznańska | C8: Algorytmy planowania przepływu pakietów oraz sterowania w elektronicznych i optycznych systemach komutacji | D8: 2 | FH8: U12, | FJ8: U15,
A9: 8 | B9: Politechnika Poznańska | C9: Aplikacje dla systemów mobilnych | D9: 1 | AI9: C13,
A10: 9 | B10: Politechnika Poznańska | C10: Automatyczna synteza liniowych generatorów testów i kompaktów odpowiedzi testowych w środowisku ścieżek sterująco- obserwacyjnych | D10: 2 | FH10: U12, | FK10: U16,
A11: 10 | B11: Politechnika Poznańska | C11: Automatyczna weryfikacja prototypowych układów ASIC z wykorzystaniem rekonfigurowalnej platformy sprzętowo-programowej | D11: 4 | F11: A5, | G11: A6, | I11: A10, | K11: A13,
A12: 11 | B12: Politechnika Poznańska | C12: Automatyzacja projektowania obwodów CMOS | D12: 2 | I12: A10, | K12: A13,
A13: 12 | B13: Politechnika Poznańska | C13: Badania czujników i układów elektronicznych w niskich temperaturach | D13: 2 | DV13: M6, | FE13: U6,
A14: 13 | B14: Politechnika Poznańska | C14: Badanie własności struktur sterowania z wykorzystaniem sterowników mikroprocesorowych | D14: 2 | K14: A13, | U14: B13,
A15: 14 | B15: Politechnika Poznańska | C15: Bezpieczeństwo usług internetowych – analiza i implementacja technologii internetowych w budowie platform komunikacji użytkowników | D15: 1 | CP15: I1,
A16: 15 | B16: Politechnika Poznańska | C16: BIOPTRAIN - szkolenie w zakresie algorytmów optymalizacyjnych w bioinformatyce | D16: 2 | CU16: I6, | CZ16: I12,
A17: 17 | B17: Politechnika Poznańska | C17: CALIBRE - Co-ordination Action for Libre Software Engineering for Open Development Platforms for Software and Services | D17: 2 | AB17: C6, | AI17: C13,
A18: 18 | B18: Politechnika Poznańska | C18: COGEU (ICT- 248560) – „Kognitywne systemy radiowe zapewniające efektywne wykorzystanie częstotliwości telewizyjnych na obszarze Unii Europejskiej” (Cognitive radio systems for efficient sharing of TV white spaces in European context) | D18: 2 | FH18: U12, | FJ18: U15,
A19: 19 | B19: Politechnika Poznańska | C19: COMPUVAC - racjonalizacja projektowania i standaryzacja oceny nowych szczepionek genetycznych | D19: 3 | CU19: I6, | CX19: I10, | CZ19: I12,
A20: 20 | B20: Politechnika Poznańska | C20: COST IC0902 – „Technologie radia kognitywnego dla współdziałania i kompatybilności sieci komunikacji bezprzewodowej” (Cognitive Radio and Networking for Cooperative Coexistence of Heterogeneous Wireless Networks), | D20: 4 | DX20: M13, | DY20: M15, | FH20: U12, | FJ20: U15,
A21: 21 | B21: Politechnika Poznańska | C21: Czynniki innowacji w projektowaniu systemów informatycznch | D21: 1 | CP21: I1,
A22: 22 | B22: Politechnika Poznańska | C22: DSPBLEND Master Studies in DSP based on Blended learning Approach | D22: 1 | FE22: U6,
A23: 23 | B23: Politechnika Poznańska | C23: Efektywna replikacja i odtwarzanie stanu usług w rozproszonych systemach mobilnych | D23: 2 | CQ23: I2, | CV23: I8,
A24: 24 | B24: Politechnika Poznańska | C24: Embedded Deterministic System Level Test with Low Power Dissipation | D24: 2 | FH24: U12, | FJ24: U15,
A25: 25 | B25: Politechnika Poznańska | C25: e-Photon/One+ Optical Networks: Towards Bandwidth Manageability and Cost Efficiency | D25: 1 | FE25: U6,
A26: 26 | B26: Politechnika Poznańska | C26: Ewolucyjne systemy uczące sie w środowiskach rzeczywistych i wirtualnych | D26: 2 | CU26: I6, | CZ26: I12,
A27: 27 | B27: Politechnika Poznańska | C27: FP6 WINNER I / WiNNER II - Wireless World Initiative New Radio | D27: 3 | FE27: U6, | FH27: U12, | FJ27: U15,
A28: 29 | B28: Politechnika Poznańska | C28: Generowanie testów i szacowanie pracochłonnosci na podstawie przypadków użycia | D28: 1 | X28: C1,
A29: 30 | B29: Politechnika Poznańska | C29: Implementacja indeksów do analizy wyników eksploracji danych | D29: 3 | CR29: I3, | CV29: I8, | CW29: I9,
A30: 31 | B30: Politechnika Poznańska | C30: Implementacja schematu i struktury wymiarów w magazynie danych | D30: 2 | CR30: I3, | CV30: I8,
A31: 32 | B31: Politechnika Poznańska | C31: Indeksowanie danych sekwencyjnych | D31: 2 | Y31: C2, | Z31: C3,
A32: 33 | B32: Politechnika Poznańska | C32: InMoST: Wielkopolska sieć współpracy w zakresie innowacyjnych metod wytwarzania oprogramowania | D32: 2 | AB32: C6, | AI32: C13,
A33: 34 | B33: Politechnika Poznańska | C33: Inteligentne systemy wspomagania decyzji oparte na wiedzy odkrytej z danych | D33: 2 | CV33: I8, | CW33: I9,
A34: 35 | B34: Politechnika Poznańska | C34: Komputerowo zintegrowane zarządzanie | D34: 2 | CQ34: I2, | CX34: I10,
A35: 36 | B35: Politechnika Poznańska | C35: Konstrukcja i analiza algorytmów dokładnych i heurystycznych dla problemów rozdziału zasobów z regularnymi i nieregularnymi miarami optymalności | D35: =COUNTIF(E35:FL35,"<>") -> 1 | CX35: I10,
A36: 37 | B36: Politechnika Poznańska | C36: Kooperacyjne systemy informatyczne | D36: 1 | CP36: I1,
A37: 38 | B37: Politechnika Poznańska | C37: Leonardo da Vinci LLP - ELefANTS- E-Learning for Acquiring New Types of Skills | D37: 6 | DV37: M6, | DX37: M13, | DY37: M15, | FE37: U6, | FH37: U12, | FJ37: U15,
A38: 39 | B38: Politechnika Poznańska | C38: Leonardo da Vinci LLP - Train2Cert - Vocational Training for Certyfication in ICT | D38: 2 | DX38: M13, | DY38: M15,
A39: 40 | B39: Politechnika Poznańska | C39: Leonardo da Vinci LLP InCert - International Certificates of Excellence in Selected Areas of ICT | D39: 3 | DV39: M6, | DX39: M13, | DY39: M15,
A40: 41 | B40: Politechnika Poznańska | C40: Leonardo da Vinci LLP- IntEleCT - Internationalisation of Electronic Communications Training | D40: 3 | FE40: U6, | FH40: U12, | FJ40: U15,
A41: 42 | B41: Politechnika Poznańska | C41: METAFUNCTIONS - system analizy publikacji naukowych oraz ekstrakcji informacji dla potrzeb genomiki | D41: 2 | CU41: I6, | CZ41: I12,
A42: 43 | B42: Politechnika Poznańska | C42: Metody analizy kosztów związanych z przechowywaniem danych w systemach informatycznych | D42: 6 | CQ42: I2, | CR42: I3, | CT42: I5, | CV42: I8, | CW42: I9, | DB42: I14,
A43: 44 | B43: Politechnika Poznańska | C43: Metody i algorytmy przetwarzania mobilnego w sieciocentrycznych systemach wsparcia pracy operacyjnej Policji | D43: 2 | Y43: C2, | CQ43: I2,
A44: 45 | B44: Politechnika Poznańska | C44: Metody i narzędzia akwizycji wiedzy | D44: 8 | Y44: C2, | Z44: C3, | AB44: C6, | AD44: C8, | AE44: C9, | AG44: C11, | AH44: C12, | AK44: C15,
A45: 46 | B45: Politechnika Poznańska | C45: Metody transmisji , odbioru i zabezpieczenia informacji w systemach telekomunikacyjnych i układach elektronicznych | D45: 2 | FH45: U12, | FJ45: U15,
A46: 47 | B46: Politechnika Poznańska | C46: Metody wizji komputerowej w automatyce i robotyce | D46: 1 | AF46: C10,
A47: 48 | B47: Politechnika Poznańska | C47: Metody zarządzania współbieżnym dostępem do baz danych dokumentów XML | D47: 2 | X47: C1, | AD47: C8,
A48: 49 | B48: Politechnika Poznańska | C48: Metrologia i monitorowanie | D48: 1 | FH48: U12,
A49: 50 | B49: Politechnika Poznańska | C49: Model laboratoryjny światłowodowego systemu transmisyjnego z koherentnym ultragęstym zwielokrotnieniem falowym (CoUWDM) oraz wielofalowym źródłem optycznych częstotliwości nośnych | D49: 1 | FE49: U6,
A50: 51 | B50: Politechnika Poznańska | C50: Model matematyczny predykcji czasów przejazdów w sieci drogowej | D50: 2 | AD50: C8, | AJ50: C14,
A51: 53 | B51: Politechnika Poznańska | C51: Narzędzia automatycznego projektowania obwodów z przełączanymi prądami | D51: 2 | I51: A10, | K51: A13,
A52: 55 | B52: Politechnika Poznańska | C52: NEWCOM++ - The FP7 NoE in Wireless Communications! | D52: 2 | DV52: M6, | FE52: U6,
A53: 56 | B53: Politechnika Poznańska | C53: Niezawodna transmisja danych przy użyciu połączeń bezpośrednich w sieciach z translacją adresów | D53: 1 | U53: B13,
A54: 57 | B54: Politechnika Poznańska | C54: Nowa generacja języków dostępu do danych dla inteligentnego raportowania i analizy danych biznesowych | D54: 2 | CQ54: I2, | CV54: I8,
A55: 58 | B55: Politechnika Poznańska | C55: Nowe architektury optycznych pól komutacyjnych, ich ocena i porównanie. | D55: 2 | FH55: U12, | FJ55: U15,
A56: 60 | B56: Politechnika Poznańska | C56: Nowe metody przetwarzania sygnałów w systemach radiokomunikacji ruchomej | D56: 1 | CP56: I1,
A57: 61 | B57: Politechnika Poznańska | C57: Ocena systemu elektronicznej archiwizacji dokumentów pod względem funkcjonalnym i ekonomicznym | D57: 1 | DF57: J5,
A58: 62 | B58: Politechnika Poznańska | C58: Ochrona danych i zabezpieczeń systemów informatycznych | D58: 6 | Y58: C2, | Z58: C3, | AI58: C13, | CQ58: I2, | CR58: I3, | DA58: I13,
A59: 63 | B59: Politechnika Poznańska | C59: Opracowanie i analiza modeli sterowania złożonymi obiektami w budynkach inteligentnych i w otaczającej je infrastrukturze | D59: 1 | CS59: I4,
A60: 64 | B60: Politechnika Poznańska | C60: Opracowanie i analiza obliczeniowa algorytmów szeregowania i planowania produkcji | D60: 1 | CS60: I4,
A61: 65 | B61: Politechnika Poznańska | C61: Optymalizacja dostępu do danych w wielowersyjnych magazynach danych | D61: 2 | AD61: C8, | CV61: I8,
A62: 66 | B62: Politechnika Poznańska | C62: Optymalizacja efektywności ruchowej w systemach zintegrowanych sieci stacjonarnych i ruchomych. | D62: 2 | FH62: U12, | FJ62: U15,
A63: 67 | B63: Politechnika Poznańska | C63: Optymalizacja przetwarzania zapytań eksploracyjnych | D63: 2 | CR63: I3, | CV63: I8,
A64: 68 | B64: Politechnika Poznańska | C64: Optymalizacja układów sterowania i identyfikacji | D64: 4 | I64: A10, | K64: A13, | S64: B10, | U64: B13,
A65: 69 | B65: Politechnika Poznańska | C65: Podsystemy synchronizacji systemów telekomunikacyjnych i metody bezpiecznej transmisji | D65: 1 | FC65: U1,
A66: 70 | B66: Politechnika Poznańska | C66: Pomiary wybranych parametrów systemów pomiarowych z transmisją danych przez sieć telefonii komórkowej GSM | D66: 2 | FH66: U12, | FJ66: U15,
A67: 71 | B67: Politechnika Poznańska | C67: Problemy szeregowania zadań - nowe modele, podejscia algorytmiczne, ocena złożoności | D67: =COUNTIF(E67:FL67,"<>") -> 1 | AF67: C10,
A68: 72 | B68: Politechnika Poznańska | C68: Programowanie systemów pomiarowych w językach wysokiego poziomu | D68: 2 | FH68: U12, | FJ68: U15,
A69: 73 | B69: Politechnika Poznańska | C69: Projektowanie szyfrów blokowych i rozwój szacunkowych metod oceny ich jakości | D69: 1 | AI69: C13,
A70: 74 | B70: Politechnika Poznańska | C70: Przetwarzanie i zabezpieczenie sygnałów dla efektywnego wykorzystania mediów transmisyjnych | D70: 1 | DS70: M1,
A71: 76 | B71: Politechnika Poznańska | C71: Rozproszone usługi WWW o podwyższonej niezawodności | D71: 2 | AB71: C6, | AD71: C8,
A72: 77 | B72: Politechnika Poznańska | C72: Rozwijanie układów ASIC i DESP oraz metod i algorytmów przetwarzania sygnałów dla nowoczesnych usług telekomunikacyjnych | D72: 2 | S72: B10, | U72: B13,
A73: 78 | B73: Politechnika Poznańska | C73: Rozwój metod analizy danych | D73: 3 | CQ73: I2, | CR73: I3, | CV73: I8,
A74: 79 | B74: Politechnika Poznańska | C74: Rozwój metod analizy propagacji i przetwarzania sygnałów oraz zagadnienia kompatybilności elektromagnetycznej | D74: 1 | DY74: M15,
A75: 80 | B75: Politechnika Poznańska | C75: Rozwój metod i narzędzi optymalizacji jedno i wielokryterialnej | D75: 1 | CP75: I1,
A76: 81 | B76: Politechnika Poznańska | C76: Rozwój metod optymalizacji wielokryterialnej | D76: 1 | CP76: I1,
A77: 82 | B77: Politechnika Poznańska | C77: Rozwój metod przetwarzania obrazów, dźwięku, komunikacji multimedialnej i mikroelektroniki. | D77: 2 | FH77: U12, | FJ77: U15,
A78: 83 | B78: Politechnika Poznańska | C78: Rozwój technologii sieciowych w systemach informatycznych | D78: 1 | DA78: I13,
A79: 84 | B79: Politechnika Poznańska | C79: Rozwój teorii iteronów automatów | D79: 1 | X79: C1,
A80: 86 | B80: Politechnika Poznańska | C80: Sieci i systemy informacyjne dla wirtualnej organizacji działań | D80: 2 | CQ80: I2, | CR80: I3,
A81: 87 | B81: Politechnika Poznańska | C81: Sieciocentryczne, mobilne systemy wsparcia dla pracy operacyjnej Policji | D81: 1 | Y81: C2,
A82: 88 | B82: Politechnika Poznańska | C82: Sterowanie impulsowe i symulacja cyfrowa, podstawy komputerowej analizy obrazów | D82: 4 | AB82: C6, | AF82: C10, | AI82: C13, | AL82: C16,
A83: 89 | B83: Politechnika Poznańska | C83: Struktura, analiza i projektowania nowoczesnych systemów komuntacyjnych i sieci | D83: 2 | ED83: O13, | EF83: O15,
A84: 90 | B84: Politechnika Poznańska | C84: Symulacja cyfrowa zjawisk elektromagnetycznych | D84: 3 | F84: A5, | G84: A6, | K84: A13,
A85: 91 | B85: Politechnika Poznańska | C85: Symulacja natężenia ruchu ciężarówek na drodze dojazdowej do zakładu VWP | D85: 2 | AF85: C10, | AJ85: C14,
A86: 92 | B86: Politechnika Poznańska | C86: Synteza algorytmów sterowania ruchem ulicznym | D86: 1 | CX86: I10,
A87: 94 | B87: Politechnika Poznańska | C87: System projektowania układów i symulacji zjawisk elektromagnetycznych | D87: 2 | F87: A5, | G87: A6,
A88: 95 | B88: Politechnika Poznańska | C88: System rejestracji, podglądu i analizy wyników eksperymentu | D88: 3 | Q88: B6, | S88: B10, | W88: B16,
A89: 96 | B89: Politechnika Poznańska | C89: Systemy i aplikacje semantyczne w informatyce i telekomunikacji | D89: 2 | AI89: C13, | DA89: I13,
A90: 97 | B90: Politechnika Poznańska | C90: Systemy sterowania układów elektromechanicznych | D90: 4 | I90: A10, | K90: A13, | S90: B10, | U90: B13,
A91: 98 | B91: Politechnika Poznańska | C91: Systemy sterowania w zastosowaniach naukowo – technicznych | D91: 2 | CU91: I6, | CX91: I10,
A92: 99 | B92: Politechnika Poznańska | C92: Systemy w czipie dla przetwarzania sygnałów mieszanych | D92: 1 | K92: A13,
A93: 100 | B93: Politechnika Poznańska | C93: Systemy wspomagania decyzji na podstawie wiedzy odkrytej z danych alfanumerycznych, tekstowych, obrazowych | D93: 2 | CW93: I9, | CZ93: I12,
A94: 101 | B94: Politechnika Poznańska | C94: Szerokopasmowe elektroniczne i optyczne routery IP | D94: 1 | FJ94: U15,
A95: 102 | B95: Politechnika Poznańska | C95: Sztuczne życie | D95: 2 | CU95: I6, | CZ95: I12,
A96: 103 | B96: Politechnika Poznańska | C96: Technologia wielodostęou w systemach światłowodowych | D96: 1 | FJ96: U15,
A97: 104 | B97: Politechnika Poznańska | C97: Technologie i rozwiązania e-gospodarki | D97: 2 | CR97: I3, | CV97: I8,
A98: 105 | B98: Politechnika Poznańska | C98: Telecommunication Advanced Networks for GMES Operations | D98: 2 | CQ98: I2, | CY98: I11,
A99: 107 | B99: Politechnika Poznańska | C99: Teoria i algorytmy wielowymiarowego przetwarzania sygnałów | D99: =COUNTIF(E99:FL99,"<>") -> 1 | DO99: K13,
A100: 108 | B100: Politechnika Poznańska | C100: Uczenie maszynowe i odkrywanie wiedzy | D100: 2 | CU100: I6, | CV100: I8,
A101: 109 | B101: Politechnika Poznańska | C101: Uogólnione, inteligentne metody cyfrowej filtracji i separacji sygnałów | D101: 3 | Q101: B6, | S101: B10, | U101: B13,
A102: 110 | B102: Politechnika Poznańska | C102: URANUS (IST- 027960) – „Uniwersalna koncepcja łącza radiowego dla efektywnego dostępu zorientowanego na użytkownika” (Universal Radio-Link Platform For Efficient User-Centric Access) | D102: 1 | DX102: M13,
A103: 111 | B103: Politechnika Poznańska | C103: Usługi w sieciach telekomunikacyjnych , projektowanie , charakterystyki, metody ocen | D103: 2 | CE103: G13, | CG103: G15,
A104: 112 | B104: Politechnika Poznańska | C104: Uwidocznienie i modelowanie informacji zawartej w syganałach. | D104: 2 | EP104: Q13, | ER104: Q15,
A105: 113 | B105: Politechnika Poznańska | C105: Wielofalowe źródło optyczne o stabilnych odstępach częstotliwości nośnych | D105: 3 | DA105: I13, | DX105: M13, | DY105: M15,
A106: 114 | B106: Politechnika Poznańska | C106: Wielokryterialne metody zarządzania zasobami w gridach | D106: 1 | AI106: C13,
A107: 115 | B107: Politechnika Poznańska | C107: Wpływ mechanizmów kryptograficznych na wydajność przetwarzania danych w systemach informatycznych | D107: 2 | CR107: I3, | DA107: I13,
A108: 116 | B108: Politechnika Poznańska | C108: Współpraca w ramach Sieci Doskonałości BONE (Cooperation Within Network of Excellence BONE) | D108: 5 | BQ108: F13, | CE108: G13, | CG108: G15, | DA108: I13, | FH108: U12,
A109: 117 | B109: Politechnika Poznańska | C109: Wykorzystanie informacji uzyskiwania w trakcie realizacji szybkich transfomracji ortogonalnych | D109: 1 | FH109: U12,
A110: 118 | B110: Politechnika Poznańska | C110: Wykorzystanie zjawiska magnetostrykcji w pomiarach kwantowania przewodności | D110: 2 | DX110: M13, | DY110: M15,
A111: 119 | B111: Politechnika Poznańska | C111: Wymiarowanie pojemności ruchowej radiowej sieci dostępowej 2G/3G/4G | D111: 3 | BW111: G3, | CE111: G13, | CG111: G15,
A112: 120 | B112: Politechnika Poznańska | C112: Zaawansowane metody oceny jakości sygnałów synchronizacji | D112: 5 | O112: B1, | R112: B9, | U112: B13, | EZ112: T1, | FC112: U1,
A113: 121 | B113: Politechnika Poznańska | C113: Zagadnienia jakości oprogramowania | D113: 1 | CQ113: I2,
A114: 122 | B114: Politechnika Poznańska | C114: Zarządzanie przedsięwzięciami programistycznymi | D114: 3 | Y114: C2, | Z114: C3, | AH114: C12,
A115: 123 | B115: Politechnika Poznańska | C115: Zarządzanie sieciami komputerowymi | D115: 1 | DA115: I13,
A116: 124 | B116: Politechnika Poznańska | C116: Zarządzanie zasobami w systemach informatycznych i produkcyjnych | D116: 3 | AF116: C10, | AI116: C13, | AJ116: C14,
A117: 125 | B117: Politechnika Poznańska | C117: Zasady tworzenia specyfikacji wymagań dla systemów informatycznych | D117: 1 | CP117: I1,
A118: 126 | B118: Politechnika Poznańska | C118: Zastosowanie ontologii do modelowania wiedzy w procesie odkrywania wiedzy. | D118: 3 | CR118: I3, | CV118: I8, | CW118: I9,
A119: 127 | B119: PCSS | C119: ACCESS IT | D119: 2 | CJ119: H6, | CU119: I6,
A120: 129 | B120: PCSS | C120: BalticGrid | D120: 3 | X120: C1, | BU120: G1, | CH120: H1,
A121: 131 | B121: PCSS | C121: Budowa sieci nauczania na rzecz środowiska oraz ochrona pachnicy dębowej na obszarze wytypowanym do sieci Natura 2000 PLH 300001 Biedrusko | D121: 5 | AP121: D6, | AY121: E6, | BK121: F6, | BY121: G6, | CJ121: H6,
A122: 132 | B122: PCSS | C122: Common Network Information Service | D122: 1 | AI122: C13,
A123: 134 | B123: PCSS | C123: DORII – Deployment of Remote Instrumentation Infrastructure | D123: 3 | BK123: F6, | BO123: F11, | BT123: F16,
A124: 135 | B124: PCSS | C124: EGEE, EGEE-II, EGEE-III | D124: 8 | AP124: D6, | AY124: E6, | BK124: F6, | BY124: G6, | CJ124: H6, | CP124: I1, | DJ124: K1, | EI124: Q1,
A125: 137 | B125: PCSS | C125: EMANICS | D125: 3 | AI125: C13, | BQ125: F13, | CN125: H13,
A126: 139 | B126: PCSS | C126: EUFORIA – EU for ITER Applications | D126: 1 | BT126: F16,
A127: 140 | B127: PCSS | C127: EuropeanaLocal | D127: 2 | CJ127: H6, | CU127: I6,
A128: 141 | B128: PCSS | C128: FBC (Federacja Bibliotek Cyfrowych) | D128: 1 | AY128: E6,
A129: 142 | B129: PCSS | C129: FEDERICA (Federated E-infrastructure Dedicated to European Researchers Innovating in Computing network Architectures) | D129: 12 | G129: A6, | H129: A9, | K129: A13, | Q129: B6, | R129: B9, | U129: B13, | AB129: C6, | AE129: C9, | AI129: C13, | BG129: F1, | BU129: G1, | CH129: H1,
A130: 143 | B130: PCSS | C130: GÉANT3 | D130: 12 | G130: A6, | H130: A9, | J130: A12, | K130: A13, | Q130: B6, | R130: B9, | T130: B12, | U130: B13, | AB130: C6, | AE130: C9, | AH130: C12, | AI130: C13,
A131: 145 | B131: PCSS | C131: HDVIPER - High Definition Videoconferencing over IP EnviRonment | D131: =COUNTIF(E131:FL131,"<>") -> 30 | AB131: C6, | AC131: C7, | AH131: C12, | AI131: C13, | AP131: D6, | AQ131: D7, | AT131: D12, | AU131: D13, | AY131: E6, | AZ131: E7, | BD131: E12, | BE131: E13, | BK131: F6, | BL131: F7, | BP131: F12, | BQ131: F13, | BY131: G6, | BZ131: G7, | CD131: G12, | CE131: G13, | CJ131: H6, | CK131: H7, | CN131: H13, | EL131: Q6, | EM131: Q7, | EP131: Q13, | FE131: U6, | FF131: U10, | FG131: U11, | FH131: U12,
A132: 147 | B132: PCSS | C132: Interactive European Grid – int.eu.grid | D132: 1 | BT132: F16,
A133: 148 | B133: PCSS | C133: Miejska Sieć Komputerowa POZMAN | D133: 2 | EI133: Q1, | ES133: R1,
A134: 149 | B134: PCSS | C134: Migrating Desktop | D134: 1 | BT134: F16,
A135: 150 | B135: PCSS | C135: PHOSPHORUS | D135: 7 | O135: B1, | AV135: E1, | BU135: G1, | DJ135: K1, | DS135: M1, | DZ135: O1, | EI135: Q1,
A136: 151 | B136: PCSS | C136: PIONIER Polski Internet Optyczny - Konsorcjum Akademickich Sieci Komputerowych i Centrów Komputerów Dużej Mocy | D136: 24 | Y136: C2, | AB136: C6, | AI136: C13, | AN136: D2, | AP136: D6, | AU136: D13, | BV136: G2, | BY136: G6, | CE136: G13, | CI136: H2, | CJ136: H6, | CN136: H13, | CQ136: I2, | CU136: I6, | DA136: I13, | EA136: O2, | EB136: O6, | ED136: O13, | EJ136: Q2, | EL136: Q6, | EP136: Q13, | ET136: R2, | EU136: R6, | EW136: R13,
A137: 152 | B137: PCSS | C137: Platforma Obsługi Nauki PLATON – Etap I: Kontener usług wspólnych – usługa U2 eduroam | D137: 3 | AM137: D1, | BU137: G1, | DZ137: O1,
A138: 153 | B138: PCSS | C138: Polski Portal Edukacyjny Interkl@sa | D138: 2 | AY138: E6, | CJ138: H6,
A139: 154 | B139: PCSS | C139: Porta Optica Study | D139: 14 | AP139: D6, | AU139: D13, | AY139: E6, | BE139: E13, | BY139: G6, | CE139: G13, | CU139: I6, | DA139: I13, | DQ139: L6, | DR139: L13, | EB139: O6, | ED139: O13, | FA139: T6, | FB139: T13,
A140: 155 | B140: PCSS | C140: PRACE - Partnership for Advanced Computing In Europe (Partnerstwo dla zaawansowanych obliczeń w Europie) | D140: 9 | AB140: C6, | BH140: F2, | BI140: F3, | BK140: F6, | CJ140: H6, | DK140: K2, | DL140: K3, | DM140: K6, | DQ140: L6,
A141: 156 | B141: PCSS | C141: Projekt Nr 6T11 2003 C/06098 "Clusterix – Krajowy Klaster Linuxowy (National CLUSTER of LinuX Systems)" | D141: 25 | AP141: D6, | AR141: D10, | AU141: D13, | AY141: E6, | BB141: E10, | BE141: E13, | BK141: F6, | BN141: F10, | BQ141: F13, | BY141: G6, | CB141: G10, | CE141: G13, | CJ141: H6, | CL141: H10, | CM141: H12, | CN141: H13, | CU141: I6, | CX141: I10, | DA141: I13, | DG141: J6, | DH141: J10, | DI141: J13, | DM141: K6, | DN141: K10, | DO141: K13,
A142: 158 | B142: PCSS | C142: The BalticGrid Second Phase (BalticGrid-II) | D142: 3 | X142: C1, | BU142: G1, | CH142: H1,
A143: 159 | B143: PCSS | C143: Zarządzanie informacją i wiedzą w usługach o podwyższonym poziomie bezpieczeństwa (projekt w ramach PPBW) | D143: 5 | X143: C1, | AV143: E1, | BG143: F1, | EG143: P1, | FL143: V1,
A144: 160 | B144: ITTI | C144: Infrastruktura dla heterogenicznych, odpornych, bezpiecznych, złożonych, ściśle inter-operujących sieci | D144: 15 | Y144: C2, | Z144: C3, | AA144: C5, | AD144: C8, | AI144: C13, | AN144: D2, | AU144: D13, | CQ144: I2, | CR144: I3, | CT144: I5, | DA144: I13, | EH144: P13, | EK144: Q5, | EP144: Q13, | EW144: R13,
A145: 161 | B145: ITTI | C145: N4C: Sieci dla społeczności w obszarach trudno dostępnych pod względem telekomunikacyjnym: architektura, środowiska testowe i innowacyjne struktury współdziałania (ang. Networking for Communications Challenged Communities: Architecture, Test Beds and Inno | D145: 29 | K145: A13, | U145: B13, | AI145: C13, | AN145: D2, | AO145: D5, | AS145: D11, | AU145: D13, | AW145: E2, | AX145: E5, | BC145: E11, | BE145: E13, | BH145: F2, | BJ145: F5, | BO145: F11, | BQ145: F13, | BV145: G2, | BX145: G5, | CC145: G11, | CE145: G13, | DA145: I13, | EJ145: Q2, | EK145: Q5, | EN145: Q11, | EO145: Q12, | EP145: Q13, | ET145: R2, | EV145: R11, | EW145: R13, | EX145: R16,
A146: 162 | B146: ITTI | C146: Zaprojektowanie i wszechstronne wdrożenie niebinarnej komunikacji bezprzewodowej oparte na innowacyjnych kodach LDPC | D146: 15 | S146: B10, | U146: B13, | AU146: D13, | CE146: G13, | CN146: H13, | CO146: H15, | DC146: I15, | ED146: O13, | EH146: P13, | EP146: Q13, | ES146: R1, | EY146: S13, | FD146: U2, | FH146: U12, | FJ146: U15,
A147: 163 | B147: Uczelniane Centrum Innowacji i Transferu Technologii UAM | C147: Cognitive Environmentally Aware and Self-Adaptive Robust NETwork | D147: 14 | O147: B1, | Y147: C2, | Z147: C3, | AB147: C6, | AE147: C9, | AI147: C13, | BV147: G2, | BW147: G3, | BY147: G6, | CA147: G9, | CE147: G13, | DD147: J2, | DE147: J3, | DI147: J13,
A148: 164 | B148: Uczelniane Centrum Innowacji i Transferu Technologii UAM | C148: System tłumaczenia automatycznego opracowany na potrzeby poprawy bezpieczeństwa publicznego | D148: 14 | O148: B1, | Y148: C2, | Z148: C3, | AB148: C6, | AE148: C9, | AI148: C13, | BV148: G2, | BW148: G3, | BY148: G6, | CA148: G9, | CE148: G13, | DD148: J2, | DE148: J3, | DI148: J13,
A149: 165 | B149: Uczelniane Centrum Innowacji i Transferu Technologii UAM | C149: Technologie przetwarzania tekstu polskiego zorientowane na potrzeby bezpieczeństwa publicznego | D149: 14 | O149: B1, | Y149: C2, | Z149: C3, | AB149: C6, | AE149: C9, | AI149: C13, | BV149: G2, | BW149: G3, | BY149: G6, | CA149: G9, | CE149: G13, | DD149: J2, | DE149: J3, | DI149: J13,
A150: 166 | B150: Uniwersytet Przyrodniczy | C150: Rozproszony system ekspertowy wspomagający doradztwo w zakresie ochrony plantacji roślin uprawnych | D150: 2 | AB150: C6, | AG150: C11,
A151: 167 | B151: Wyższa Szkoła Bankowa w Poznaniu | C151: Wzrost Wartości Organizacji Poprzez Efektywną Realizację Strategii | D151: 1 | BG151: F1,
A152: 168 | B152: Instytut Logistyki i Magazynowania | C152: TRACEBACK – Integrated system for a reliable traceability of food supply chains | D152: 12 | AD152: C8, | AH152: C12, | AJ152: C14, | AK152: C15, | BA152: E8, | BD152: E12, | BG152: E14, | BH152: E15, | BM152: F8, | BP152: F12, | BR152: F14, | BS152: F15,
A153: 169 | B153: Uniwersytete Artystyczny, Poznań | C153: Współpraca w zakresie realizacji oprogramowania ułatwiającego przenoszenie danych ze skanera 3D w pliki formatu CAD | D153: 12 | G153: A6, | K153: A13, | M153: A15, | N153: A16, | AB153: C6, | AI153: C13, | AK153: C15, | AL153: C16, | BK153: F6, | BQ153: F13, | BS153: F15, | BT153: F16,
A154: 169 | B154: Uniwersytete Artystyczny, Poznań | C154: Współpraca UA Poznań w zakresie przygotowania nowego oprogramowania do kreślenia 3D | D154: 12 | G154: A6, | K154: A13, | M154: A15, | N154: A16, | AB154: C6, | AI154: C13, | AK154: C15, | AL154: C16, | BK154: F6, | BQ154: F13, | BS154: F15, | BT154: F16,
A155: 170 | B155: Uniwersytet Ekonomiczny w Poznaniu - Katedra Informatyki Ekonomicznej | C155: SUPER - Semantics Utilised for Process management within and between EnteRprises) | D155: 2 | X155: C1, | CP155: I1,
A156: 171 | B156: Uniwersytet Ekonomiczny w Poznaniu - Katedra Informatyki Ekonomicznej | C156: TOWL - Time-determined Ontology based information system for real time stock market analysis | D156: 2 | BI156: F3, | DU156: M3,
A157: 172 | B157: Uniwersytet Ekonomiczny w Poznaniu - Katedra Informatyki Ekonomicznej | C157: ASG - Adaptive Services Grid | D157: 12 | AI157: C13, | AK157: C15, | BE157: E13, | BF157: E15, | DA157: I13, | DC157: I15, | DO157: K13, | DP157: K15, | DX157: M13, | DY157: M15, | FI157: U13, | FK157: U16,
A158: 173 | B158: Uniwersytet Ekonomiczny w Poznaniu - Katedra Informatyki Ekonomicznej | C158: ExtraSpec - Zastosowanie zaawansowanych metod ekstrakcji danych na potrzeby wyszukiwania ekspertów | D158: 2 | DJ158: K1, | DS158: M1,
A159: 174 | B159: Uniwersytet Ekonomiczny w Poznaniu - Katedra Informatyki Ekonomicznej | C159: Platforma integracyjna jako metodyka tworzenia rozwiązań dla instytucji samorządowych | D159: 10 | Y159: C2, | AB159: C6, | AH159: C12, | AI159: C13, | AL159: C16, | DT159: M2, | DV159: M6, | DW159: M12, | DX159: M13, | DY159: M15,
A160: 175 | B160: Uniwersytet Ekonomiczny w Poznaniu - Katedra Informatyki Ekonomicznej | C160: Insemtives - Incentives for Semantics | D160: 1 | DS160: M1,
A161: 176 | B161: Telcordia Poland | C161: EFIPSANS - Exposing the Features in IP version six protocols that can be exploited/extended for the purposes of designing/building Autonomic Networks and Services | D161: 5 | AI161: C13, | BE161: E13, | CE161: G13, | ED161: O13, | EW161: R13,
A162: 177 | B162: Telcordia Poland | C162: COMPAS - Compliance-driven Models, Languages, and Architectures for Services | D162: 3 | X162: C1, | AK162: C15, | BG162: F1,
A163: 178 | B163: Telcordia Poland | C163: CarMesh - Ubiquitous Mesh Networking for Integrated Telematic Services in Metropolitan Areas | D163: =COUNTIF(E163:FL163,"<>") -> 7 | L163: A14, | V163: B14, | AJ163: C14, | BR163: F14, | CF163: G14, | EE163: O14, | EQ163: Q14,
A164: 179 | B164: Telcordia Poland | C164: E-SPONDER: A holistic approach towards the first responder of the future | D164: =COUNTIF(E164:FL164,"<>") -> 8 | E164: A2, | P164: B2, | Y164: C2, | AW164: E2, | BH164: F2, | BV164: G2, | EA164: O2, | EJ164: Q2,
A165: 180 | B165: Telcordia Poland | C165: COST project - Data Traffic Monitoring and Analysis: theory, techniques, tools and applications for Future Networks | D165: =COUNTIF(E165:FL165,"<>") -> 7 | J165: A12, | T165: B12, | AH165: C12, | CD165: G12, | EC165: O12, | ED165: O13, | EP165: Q13,
A166: 181 | B166: Telcordia Poland | C166: INDENICA - Engineering Virtual Domain-Specific Service Platforms | D166: =COUNTIF(E166:FL166,"<>") -> 3 | X166: C1, | AK166: C15, | BG166: F1,
A172: 7 | B172: Politechnika Poznańska | C172: Analiza porównawcza Taryf Telekomunikacyjnych | D172: 0
A173: 16 | B173: Politechnika Poznańska | C173: BONE- Bulding the Future Optical Network in Europe ( FP7 ) | D173: 0
A174: 28 | B174: Politechnika Poznańska | C174: GALAPAGOS GALileo-bAsed Seamless and Robust Positioning Applications for Logistics Optimization Processes | D174: 0
A175: 52 | B175: Politechnika Poznańska | C175: Modelowanie procesów sterowania złożonymi obiektami w budynku inteligentnym i w otaczającej infrastrukturze | D175: 0
A176: 54 | B176: Politechnika Poznańska | C176: NEWCOM (Network of Excellence in Wireless COMmunications | D176: 0
A177: 59 | B177: Politechnika Poznańska | C177: Nowe metody eksploracji złożonych typów danych | D177: 0
A178: 75 | B178: Politechnika Poznańska | C178: Rozgłoszeniowe pola komutacyjne typu log2(N, m, p). nieblokowalne w szerokim sensie | D178: 0
A179: 85 | B179: Politechnika Poznańska | C179: Sieci bezprzewodowe - metody wielodostępu , transmisja, zabezpieczenie przed błędami | D179: 0
A180: 93 | B180: Politechnika Poznańska | C180: System miar na bazie podstawowych stałych fizycznych | D180: 0
A181: 106 | B181: Politechnika Poznańska | C181: TEMPUS LLP - Master studies in DSP based on blended learning approach | D181: 0
A182: 128 | B182: PCSS | C182: ACGT - Advancing Clinico-Genomic Clinical Trials on Cancer | D182: 0
A183: 130 | B183: PCSS | C183: BREIN (Business objective driven reliable and intelligent grids for real business) | D183: 0
A184: 133 | B184: PCSS | C184: dLibra | D184: 0
A185: 136 | B185: PCSS | C185: Eksperymenty Biznesowe w Gridach (BeinGRID) | D185: 0
A186: 138 | B186: PCSS | C186: ENRICH | D186: 0
A187: 144 | B187: PCSS | C187: g-Eclipse | D187: 0
A188: 146 | B188: PCSS | C188: Hpc-Europa/Hpc-Europa2 | D188: 0
A189: 157 | B189: PCSS | C189: Quasi Opportunistic Supercomputing for Complex Systems in Grid Environments | D189: 0

Sheet Dane1
E1: =COUNTIF(F1:EY1,"<>") -> 150 | F1: =COUNTIF(F3:F154,"<>") -> 3 | G1: =COUNTIF(G3:G154,"<>") -> 7 | H1: 2 | I1: 5 | J1: 1 | K1: 13 | L1: 2 | M1: 2 | N1: 5 | O1: 4 | P1: 3 | Q1: 6 | R1: 1 | S1: 11 | T1: 1 | U1: 6 | V1: 11 | W1: 8 | X1: 2 | Y1: 17 | Z1: 1 | AA1: 8 | AB1: 7 | AC1: 6 | AD1: 2 | AE1: 5 | AF1: 23 | AG1: 4 | AH1: 4 | AI1: 3 | AJ1: 1 | AK1: 3 | AL1: 1 | AM1: 6 | AN1: 1 | AO1: 1 | AP1: 1 | AQ1: 1 | AR1: 7 | AS1: 2 | AT1: 1 | AU1: 1 | AV1: 7 | AW1: 1 | AX1: 1 | AY1: 1 | AZ1: 1 | BA1: 2 | BB1: 4 | BC1: 4 | BD1: 3 | BE1: 1 | BF1: 1 | BG1: 8 | BH1: 1 | BI1: 1 | BJ1: 1 | BK1: 2 | BL1: 2 | BM1: 7 | BN1: 1 | BO1: 3 | BP1: 6 | BQ1: 5 | BR1: 5 | BS1: =COUNTIF(BS3:BS154,"<>") -> 4 | BT1: 1 | BU1: 9 | BV1: 1 | BW1: 3 | BX1: 1 | BY1: 1 | BZ1: 1 | CA1: 12 | CB1: 3 | CC1: 4 | CD1: 1 | CE1: 9 | CF1: 1 | CG1: 1 | CH1: 1 | CI1: 5 | CJ1: 1 | CK1: 8 | CL1: 12 | CM1: 11 | CN1: 2 | CO1: 2 | CP1: 13 | CQ1: 12 | CR1: 5 | CS1: 6 | CT1: 1 | CU1: 7 | CV1: 12 | CW1: 1 | CX1: 1 | CY1: 3 | CZ1: 3 | DA1: 1 | DB1: 1 | DC1: 1 | DD1: 4 | DE1: 2 | DF1: 1 | DG1: 1 | DH1: 2 | DI1: 1 | DJ1: 2 | DK1: 2 | DL1: 1 | DM1: 2 | DN1: 4 | DO1: 7 | DP1: 7 | DQ1: 2 | DR1: 1 | DS1: 2 | DT1: 4 | DU1: 1 | DV1: 1 | DW1: 2 | DX1: 3 | DY1: 2 | DZ1: 2 | EA1: 2 | EB1: 1 | EC1: 1 | ED1: 1 | EE1: =COUNTIF(EE3:EE154,"<>") -> 6 | EF1: 1 | EG1: 2 | EH1: 2 | EI1: 1 | EJ1: 1 | EK1: 3 | EL1: 1 | EM1: 1 | EN1: 1 | EO1: 1 | EP1: 1 | EQ1: 2 | ER1: 1 | ES1: 9 | ET1: 1 | EU1: 1 | EV1: 19 | EW1: 16 | EX1: 1 | EY1: 1
A2: OldLpNieRuszać | B2: lp | E2: =COUNTIF(E3:E154,"<>") -> 152 | F2: A5, | G2: A6, | H2: A9, | I2: A10, | J2: A12, | K2: A13, | L2: A15, | M2: A16, | N2: B1, | O2: B6, | P2: B9, | Q2: B10, | R2: B12, | S2: B13, | T2: B16, | U2: C1, | V2: C2, | W2: C3, | X2: C5, | Y2: C6, | Z2: C7, | AA2: C8, | AB2: C9, | AC2: C10, | AD2: C11, | AE2: C12, | AF2: C13, | AG2: C14, | AH2: C15, | AI2: C16, | AJ2: D1, | AK2: D2, | AL2: D5, | AM2: D6, | AN2: D7, | AO2: D10, | AP2: D11, | AQ2: D12, | AR2: D13, | AS2: E1, | AT2: E2, | AU2: E5, | AV2: E6, | AW2: E7, | AX2: E8, | AY2: E10, | AZ2: E11, | BA2: E12, | BB2: E13, | BC2: F1, | BD2: F2, | BE2: F3, | BF2: F5, | BG2: F6, | BH2: F7, | BI2: F8, | BJ2: F10, | BK2: F11, | BL2: F12, | BM2: F13, | BN2: F14, | BO2: F15, | BP2: F16, | BQ2: G1, | BR2: G2, | BS2: G3, | BT2: G5, | BU2: G6, | BV2: G7, | BW2: G9, | BX2: G10, | BY2: G11, | BZ2: G12, | CA2: G13, | CB2: G15, | CC2: H1, | CD2: H2, | CE2: H6, | CF2: H7, | CG2: H10, | CH2: H12, | CI2: H13, | CJ2: H15, | CK2: I1, | CL2: I2, | CM2: I3, | CN2: I4, | CO2: I5, | CP2: I6, | CQ2: I8, | CR2: I9, | CS2: I10, | CT2: I11, | CU2: I12, | CV2: I13, | CW2: I14, | CX2: I15, | CY2: J2, | CZ2: J3, | DA2: J5, | DB2: J6, | DC2: J10, | DD2: J13, | DE2: K1, | DF2: K2, | DG2: K3, | DH2: K6, | DI2: K10, | DJ2: K13, | DK2: L6, | DL2: L13, | DM2: M1, | DN2: M6, | DO2: M13, | DP2: M15, | DQ2: O1, | DR2: O2, | DS2: O6, | DT2: O13, | DU2: O15, | DV2: P1, | DW2: P13, | DX2: Q1, | DY2: Q2, | DZ2: Q5, | EA2: Q6, | EB2: Q7, | EC2: Q11, | ED2: Q12, | EE2: Q13, | EF2: Q15, | EG2: R1, | EH2: R2, | EI2: R6, | EJ2: R11, | EK2: R13, | EL2: R16, | EM2: S13, | EN2: T1, | EO2: T6, | EP2: T13, | EQ2: U1, | ER2: U2, | ES2: U6, | ET2: U10, | EU2: U11, | EV2: U12, | EW2: U15, | EX2: U16, | EY2: V1,
A3: 1 | B3: 1 | C3: Politechnika Poznańska | D3: Adaptacyjne i predykcyjne systemy sterowania z elementami inteligencji maszynowej | E3: =COUNTIF(F3:EY3,"<>") -> 3 | X3: C5, | AC3: C10, | AF3: C13,
A4: 2 | B4: 2 | C4: Politechnika Poznańska | D4: Agorytmy optymalizacji kombinatorycznej | E4: 1 | CC4: H1,
A5: 3 | B5: 3 | C5: Politechnika Poznańska | D5: Algorytmy bioinformatyczne | E5: 2 | CP5: I6, | CU5: I12,
A6: 4 | B6: 4 | C6: Politechnika Poznańska | D6: Algorytmy i metody inżynierii wiedzy | E6: 1 | Y6: C6,
A7: 5 | B7: 5 | C7: Politechnika Poznańska | D7: Algorytmy i metody komputerowego wyszukiwania informacji muzycznej. | E7: 2 | AA7: C8, | AB7: C9,
A8: 6 | B8: 6 | C8: Politechnika Poznańska | D8: Algorytmy planowania przepływu pakietów oraz sterowania w elektronicznych i optycznych systemach komutacji | E8: 2 | EV8: U12, | EW8: U15,
A9: 8 | B9: 7 | C9: Politechnika Poznańska | D9: Aplikacje dla systemów mobilnych | E9: 1 | AF9: C13,
A10: 9 | B10: 8 | C10: Politechnika Poznańska | D10: Automatyczna synteza liniowych generatorów testów i kompaktów odpowiedzi testowych w środowisku ścieżek sterująco- obserwacyjnych | E10: 2 | EV10: U12, | EX10: U16,
A11: 10 | B11: 9 | C11: Politechnika Poznańska | D11: Automatyczna weryfikacja prototypowych układów ASIC z wykorzystaniem rekonfigurowalnej platformy sprzętowo-programowej | E11: 4 | F11: A5, | G11: A6, | I11: A10, | K11: A13,
A12: 11 | B12: 10 | C12: Politechnika Poznańska | D12: Automatyzacja projektowania obwodów CMOS | E12: 2 | I12: A10, | K12: A13,
A13: 12 | B13: 11 | C13: Politechnika Poznańska | D13: Badania czujników i układów elektronicznych w niskich temperaturach | E13: 2 | DN13: M6, | ES13: U6,
A14: 13 | B14: 12 | C14: Politechnika Poznańska | D14: Badanie własności struktur sterowania z wykorzystaniem sterowników mikroprocesorowych | E14: 2 | K14: A13, | S14: B13,
A15: 14 | B15: 13 | C15: Politechnika Poznańska | D15: Bezpieczeństwo usług internetowych – analiza i implementacja technologii internetowych w budowie platform komunikacji użytkowników | E15: 1 | CK15: I1,
A16: 15 | B16: 14 | C16: Politechnika Poznańska | D16: BIOPTRAIN - szkolenie w zakresie algorytmów optymalizacyjnych w bioinformatyce | E16: 2 | CP16: I6, | CU16: I12,
A17: 17 | B17: 15 | C17: Politechnika Poznańska | D17: CALIBRE - Co-ordination Action for Libre Software Engineering for Open Development Platforms for Software and Services | E17: 2 | Y17: C6, | AF17: C13,
A18: 18 | B18: 16 | C18: Politechnika Poznańska | D18: COGEU (ICT- 248560) – „Kognitywne systemy radiowe zapewniające efektywne wykorzystanie częstotliwości telewizyjnych na obszarze Unii Europejskiej” (Cognitive radio systems for efficient sharing of TV white spaces in European context) | E18: 2 | EV18: U12, | EW18: U15,
A19: 19 | B19: 17 | C19: Politechnika Poznańska | D19: COMPUVAC - racjonalizacja projektowania i standaryzacja oceny nowych szczepionek genetycznych | E19: 3 | CP19: I6, | CS19: I10, | CU19: I12,
A20: 20 | B20: 18 | C20: Politechnika Poznańska | D20: COST IC0902 – „Technologie radia kognitywnego dla współdziałania i kompatybilności sieci komunikacji bezprzewodowej” (Cognitive Radio and Networking for Cooperative Coexistence of Heterogeneous Wireless Networks), | E20: 4 | DO20: M13, | DP20: M15, | EV20: U12, | EW20: U15,
A21: 21 | B21: 19 | C21: Politechnika Poznańska | D21: Czynniki innowacji w projektowaniu systemów informatycznch | E21: 1 | CK21: I1,
A22: 22 | B22: 20 | C22: Politechnika Poznańska | D22: DSPBLEND Master Studies in DSP based on Blended learning Approach | E22: 1 | ES22: U6,
A23: 23 | B23: 21 | C23: Politechnika Poznańska | D23: Efektywna replikacja i odtwarzanie stanu usług w rozproszonych systemach mobilnych | E23: 2 | CL23: I2, | CQ23: I8,
A24: 24 | B24: 22 | C24: Politechnika Poznańska | D24: Embedded Deterministic System Level Test with Low Power Dissipation | E24: 2 | EV24: U12, | EW24: U15,
A25: 25 | B25: 23 | C25: Politechnika Poznańska | D25: e-Photon/One+ Optical Networks: Towards Bandwidth Manageability and Cost Efficiency | E25: 1 | ES25: U6,
A26: 26 | B26: 24 | C26: Politechnika Poznańska | D26: Ewolucyjne systemy uczące sie w środowiskach rzeczywistych i wirtualnych | E26: 2 | CP26: I6, | CU26: I12,
A27: 27 | B27: 25 | C27: Politechnika Poznańska | D27: FP6 WINNER I / WiNNER II - Wireless World Initiative New Radio | E27: 3 | ES27: U6, | EV27: U12, | EW27: U15,
A28: 29 | B28: 26 | C28: Politechnika Poznańska | D28: Generowanie testów i szacowanie pracochłonnosci na podstawie przypadków użycia | E28: 1 | U28: C1,
A29: 30 | B29: 27 | C29: Politechnika Poznańska | D29: Implementacja indeksów do analizy wyników eksploracji danych | E29: 3 | CM29: I3, | CQ29: I8, | CR29: I9,
A30: 31 | B30: 28 | C30: Politechnika Poznańska | D30: Implementacja schematu i struktury wymiarów w magazynie danych | E30: 2 | CM30: I3, | CQ30: I8,
A31: 32 | B31: 29 | C31: Politechnika Poznańska | D31: Indeksowanie danych sekwencyjnych | E31: 2 | V31: C2, | W31: C3,
A32: 33 | B32: 30 | C32: Politechnika Poznańska | D32: InMoST: Wielkopolska sieć współpracy w zakresie innowacyjnych metod wytwarzania oprogramowania | E32: 2 | Y32: C6, | AF32: C13,
A33: 34 | B33: 31 | C33: Politechnika Poznańska | D33: Inteligentne systemy wspomagania decyzji oparte na wiedzy odkrytej z danych | E33: 2 | CQ33: I8, | CR33: I9,
A34: 35 | B34: 32 | C34: Politechnika Poznańska | D34: Komputerowo zintegrowane zarządzanie | E34: 2 | CL34: I2, | CS34: I10,
A35: 36 | B35: 33 | C35: Politechnika Poznańska | D35: Konstrukcja i analiza algorytmów dokładnych i heurystycznych dla problemów rozdziału zasobów z regularnymi i nieregularnymi miarami optymalności | E35: 1 | CS35: I10,
A36: 37 | B36: 34 | C36: Politechnika Poznańska | D36: Kooperacyjne systemy informatyczne | E36: 1 | CK36: I1,
A37: 38 | B37: 35 | C37: Politechnika Poznańska | D37: Leonardo da Vinci LLP - ELefANTS- E-Learning for Acquiring New Types of Skills | E37: 6 | DN37: M6, | DO37: M13, | DP37: M15, | ES37: U6, | EV37: U12, | EW37: U15,
A38: 39 | B38: 36 | C38: Politechnika Poznańska | D38: Leonardo da Vinci LLP - Train2Cert - Vocational Training for Certyfication in ICT | E38: 2 | DO38: M13, | DP38: M15,
A39: 40 | B39: 37 | C39: Politechnika Poznańska | D39: Leonardo da Vinci LLP InCert - International Certificates of Excellence in Selected Areas of ICT | E39: 3 | DN39: M6, | DO39: M13, | DP39: M15,
A40: 41 | B40: 38 | C40: Politechnika Poznańska | D40: Leonardo da Vinci LLP- IntEleCT - Internationalisation of Electronic Communications Training | E40: 3 | ES40: U6, | EV40: U12, | EW40: U15,
A41: 42 | B41: 39 | C41: Politechnika Poznańska | D41: METAFUNCTIONS - system analizy publikacji naukowych oraz ekstrakcji informacji dla potrzeb genomiki | E41: 2 | CP41: I6, | CU41: I12,
A42: 43 | B42: 40 | C42: Politechnika Poznańska | D42: Metody analizy kosztów związanych z przechowywaniem danych w systemach informatycznych | E42: 6 | CL42: I2, | CM42: I3, | CO42: I5, | CQ42: I8, | CR42: I9, | CW42: I14,
A43: 44 | B43: 41 | C43: Politechnika Poznańska | D43: Metody i algorytmy przetwarzania mobilnego w sieciocentrycznych systemach wsparcia pracy operacyjnej Policji | E43: 2 | V43: C2, | CL43: I2,
A44: 45 | B44: 42 | C44: Politechnika Poznańska | D44: Metody i narzędzia akwizycji wiedzy | E44: 8 | V44: C2, | W44: C3, | Y44: C6, | AA44: C8, | AB44: C9, | AD44: C11, | AE44: C12, | AH44: C15,
A45: 46 | B45: 43 | C45: Politechnika Poznańska | D45: Metody transmisji , odbioru i zabezpieczenia informacji w systemach telekomunikacyjnych i układach elektronicznych | E45: 2 | EV45: U12, | EW45: U15,
A46: 47 | B46: 44 | C46: Politechnika Poznańska | D46: Metody wizji komputerowej w automatyce i robotyce | E46: 1 | AC46: C10,
A47: 48 | B47: 45 | C47: Politechnika Poznańska | D47: Metody zarządzania współbieżnym dostępem do baz danych dokumentów XML | E47: 2 | U47: C1, | AA47: C8,
A48: 49 | B48: 46 | C48: Politechnika Poznańska | D48: Metrologia i monitorowanie | E48: 1 | EV48: U12,
A49: 50 | B49: 47 | C49: Politechnika Poznańska | D49: Model laboratoryjny światłowodowego systemu transmisyjnego z koherentnym ultragęstym zwielokrotnieniem falowym (CoUWDM) oraz wielofalowym źródłem optycznych częstotliwości nośnych | E49: 1 | ES49: U6,
A50: 51 | B50: 48 | C50: Politechnika Poznańska | D50: Model matematyczny predykcji czasów przejazdów w sieci drogowej | E50: 2 | AA50: C8, | AG50: C14,
A51: 53 | B51: 49 | C51: Politechnika Poznańska | D51: Narzędzia automatycznego projektowania obwodów z przełączanymi prądami | E51: 2 | I51: A10, | K51: A13,
A52: 55 | B52: 50 | C52: Politechnika Poznańska | D52: NEWCOM++ - The FP7 NoE in Wireless Communications! | E52: 2 | DN52: M6, | ES52: U6,
A53: 56 | B53: 51 | C53: Politechnika Poznańska | D53: Niezawodna transmisja danych przy użyciu połączeń bezpośrednich w sieciach z translacją adresów | E53: 1 | S53: B13,
A54: 57 | B54: 52 | C54: Politechnika Poznańska | D54: Nowa generacja języków dostępu do danych dla inteligentnego raportowania i analizy danych biznesowych | E54: 2 | CL54: I2, | CQ54: I8,
A55: 58 | B55: 53 | C55: Politechnika Poznańska | D55: Nowe architektury optycznych pól komutacyjnych, ich ocena i porównanie. | E55: 2 | EV55: U12, | EW55: U15,
A56: 60 | B56: 54 | C56: Politechnika Poznańska | D56: Nowe metody przetwarzania sygnałów w systemach radiokomunikacji ruchomej | E56: 1 | CK56: I1,
A57: 61 | B57: 55 | C57: Politechnika Poznańska | D57: Ocena systemu elektronicznej archiwizacji dokumentów pod względem funkcjonalnym i ekonomicznym | E57: 1 | DA57: J5,
A58: 62 | B58: 56 | C58: Politechnika Poznańska | D58: Ochrona danych i zabezpieczeń systemów informatycznych | E58: 6 | V58: C2, | W58: C3, | AF58: C13, | CL58: I2, | CM58: I3, | CV58: I13,
A59: 63 | B59: 57 | C59: Politechnika Poznańska | D59: Opracowanie i analiza modeli sterowania złożonymi obiektami w budynkach inteligentnych i w otaczającej je infrastrukturze | E59: 1 | CN59: I4,
A60: 64 | B60: 58 | C60: Politechnika Poznańska | D60: Opracowanie i analiza obliczeniowa algorytmów szeregowania i planowania produkcji | E60: 1 | CN60: I4,
A61: 65 | B61: 59 | C61: Politechnika Poznańska | D61: Optymalizacja dostępu do danych w wielowersyjnych magazynach danych | E61: 2 | AA61: C8, | CQ61: I8,
A62: 66 | B62: 60 | C62: Politechnika Poznańska | D62: Optymalizacja efektywności ruchowej w systemach zintegrowanych sieci stacjonarnych i ruchomych. | E62: 2 | EV62: U12, | EW62: U15,
A63: 67 | B63: 61 | C63: Politechnika Poznańska | D63: Optymalizacja przetwarzania zapytań eksploracyjnych | E63: 2 | CM63: I3, | CQ63: I8,
A64: 68 | B64: 62 | C64: Politechnika Poznańska | D64: Optymalizacja układów sterowania i identyfikacji | E64: 4 | I64: A10, | K64: A13, | Q64: B10, | S64: B13,
A65: 69 | B65: 63 | C65: Politechnika Poznańska | D65: Podsystemy synchronizacji systemów telekomunikacyjnych i metody bezpiecznej transmisji | E65: 1 | EQ65: U1,
A66: 70 | B66: 64 | C66: Politechnika Poznańska | D66: Pomiary wybranych parametrów systemów pomiarowych z transmisją danych przez sieć telefonii komórkowej GSM | E66: 2 | EV66: U12, | EW66: U15,
A67: 71 | B67: 65 | C67: Politechnika Poznańska | D67: Problemy szeregowania zadań - nowe modele, podejscia algorytmiczne, ocena złożoności | E67: =COUNTIF(F67:EY67,"<>") -> 1 | AC67: C10,
A68: 72 | B68: 66 | C68: Politechnika Poznańska | D68: Programowanie systemów pomiarowych w językach wysokiego poziomu | E68: 2 | EV68: U12, | EW68: U15,
A69: 73 | B69: 67 | C69: Politechnika Poznańska | D69: Projektowanie szyfrów blokowych i rozwój szacunkowych metod oceny ich jakości | E69: 1 | AF69: C13,
A70: 74 | B70: 68 | C70: Politechnika Poznańska | D70: Przetwarzanie i zabezpieczenie sygnałów dla efektywnego wykorzystania mediów transmisyjnych | E70: 1 | DM70: M1,
A71: 76 | B71: 69 | C71: Politechnika Poznańska | D71: Rozproszone usługi WWW o podwyższonej niezawodności | E71: 2 | Y71: C6, | AA71: C8,
A72: 77 | B72: 70 | C72: Politechnika Poznańska | D72: Rozwijanie układów ASIC i DESP oraz metod i algorytmów przetwarzania sygnałów dla nowoczesnych usług telekomunikacyjnych | E72: 2 | Q72: B10, | S72: B13,
A73: 78 | B73: 71 | C73: Politechnika Poznańska | D73: Rozwój metod analizy danych | E73: 3 | CL73: I2, | CM73: I3, | CQ73: I8,
A74: 79 | B74: 72 | C74: Politechnika Poznańska | D74: Rozwój metod analizy propagacji i przetwarzania sygnałów oraz zagadnienia kompatybilności elektromagnetycznej | E74: 1 | DP74: M15,
A75: 80 | B75: 73 | C75: Politechnika Poznańska | D75: Rozwój metod i narzędzi optymalizacji jedno i wielokryterialnej | E75: 1 | CK75: I1,
A76: 81 | B76: 74 | C76: Politechnika Poznańska | D76: Rozwój metod optymalizacji wielokryterialnej | E76: 1 | CK76: I1,
A77: 82 | B77: 75 | C77: Politechnika Poznańska | D77: Rozwój metod przetwarzania obrazów, dźwięku, komunikacji multimedialnej i mikroelektroniki. | E77: 2 | EV77: U12, | EW77: U15,
A78: 83 | B78: 76 | C78: Politechnika Poznańska | D78: Rozwój technologii sieciowych w systemach informatycznych | E78: 1 | CV78: I13,
A79: 84 | B79: 77 | C79: Politechnika Poznańska | D79: Rozwój teorii iteronów automatów | E79: 1 | U79: C1,
A80: 86 | B80: 78 | C80: Politechnika Poznańska | D80: Sieci i systemy informacyjne dla wirtualnej organizacji działań | E80: 2 | CL80: I2, | CM80: I3,
A81: 87 | B81: 79 | C81: Politechnika Poznańska | D81: Sieciocentryczne, mobilne systemy wsparcia dla pracy operacyjnej Policji | E81: 1 | V81: C2,
A82: 88 | B82: 80 | C82: Politechnika Poznańska | D82: Sterowanie impulsowe i symulacja cyfrowa, podstawy komputerowej analizy obrazów | E82: 4 | Y82: C6, | AC82: C10, | AF82: C13, | AI82: C16,
A83: 89 | B83: 81 | C83: Politechnika Poznańska | D83: Struktura, analiza i projektowania nowoczesnych systemów komuntacyjnych i sieci | E83: 2 | DT83: O13, | DU83: O15,
A84: 90 | B84: 82 | C84: Politechnika Poznańska | D84: Symulacja cyfrowa zjawisk elektromagnetycznych | E84: 3 | F84: A5, | G84: A6, | K84: A13,
A85: 91 | B85: 83 | C85: Politechnika Poznańska | D85: Symulacja natężenia ruchu ciężarówek na drodze dojazdowej do zakładu VWP | E85: 2 | AC85: C10, | AG85: C14,
A86: 92 | B86: 84 | C86: Politechnika Poznańska | D86: Synteza algorytmów sterowania ruchem ulicznym | E86: 1 | CS86: I10,
A87: 94 | B87: 85 | C87: Politechnika Poznańska | D87: System projektowania układów i symulacji zjawisk elektromagnetycznych | E87: 2 | F87: A5, | G87: A6,
A88: 95 | B88: 86 | C88: Politechnika Poznańska | D88: System rejestracji, podglądu i analizy wyników eksperymentu | E88: 3 | O88: B6, | Q88: B10, | T88: B16,
A89: 96 | B89: 87 | C89: Politechnika Poznańska | D89: Systemy i aplikacje semantyczne w informatyce i telekomunikacji | E89: 2 | AF89: C13, | CV89: I13,
A90: 97 | B90: 88 | C90: Politechnika Poznańska | D90: Systemy sterowania układów elektromechanicznych | E90: 4 | I90: A10, | K90: A13, | Q90: B10, | S90: B13,
A91: 98 | B91: 89 | C91: Politechnika Poznańska | D91: Systemy sterowania w zastosowaniach naukowo – technicznych | E91: 2 | CP91: I6, | CS91: I10,
A92: 99 | B92: 90 | C92: Politechnika Poznańska | D92: Systemy w czipie dla przetwarzania sygnałów mieszanych | E92: 1 | K92: A13,
A93: 100 | B93: 91 | C93: Politechnika Poznańska | D93: Systemy wspomagania decyzji na podstawie wiedzy odkrytej z danych alfanumerycznych, tekstowych, obrazowych | E93: 2 | CR93: I9, | CU93: I12,
A94: 101 | B94: 92 | C94: Politechnika Poznańska | D94: Szerokopasmowe elektroniczne i optyczne routery IP | E94: 1 | EW94: U15,
A95: 102 | B95: 93 | C95: Politechnika Poznańska | D95: Sztuczne życie | E95: 2 | CP95: I6, | CU95: I12,
A96: 103 | B96: 94 | C96: Politechnika Poznańska | D96: Technologia wielodostęou w systemach światłowodowych | E96: 1 | EW96: U15,
A97: 104 | B97: 95 | C97: Politechnika Poznańska | D97: Technologie i rozwiązania e-gospodarki | E97: 2 | CM97: I3, | CQ97: I8,
A98: 105 | B98: 96 | C98: Politechnika Poznańska | D98: Telecommunication Advanced Networks for GMES Operations | E98: 2 | CL98: I2, | CT98: I11,
A99: 107 | B99: 97 | C99: Politechnika Poznańska | D99: Teoria i algorytmy wielowymiarowego przetwarzania sygnałów | E99: 1 | DJ99: K13,
A100: 108 | B100: 98 | C100: Politechnika Poznańska | D100: Uczenie maszynowe i odkrywanie wiedzy | E100: 2 | CP100: I6, | CQ100: I8,
A101: 109 | B101: 99 | C101: Politechnika Poznańska | D101: Uogólnione, inteligentne metody cyfrowej filtracji i separacji sygnałów | E101: 3 | O101: B6, | Q101: B10, | S101: B13,
A102: 110 | B102: 100 | C102: Politechnika Poznańska | D102: URANUS (IST- 027960) – „Uniwersalna koncepcja łącza radiowego dla efektywnego dostępu zorientowanego na użytkownika” (Universal Radio-Link Platform For Efficient User-Centric Access) | E102: 1 | DO102: M13,
A103: 111 | B103: 101 | C103: Politechnika Poznańska | D103: Usługi w sieciach telekomunikacyjnych , projektowanie , charakterystyki, metody ocen | E103: 2 | CA103: G13, | CB103: G15,
A104: 112 | B104: 102 | C104: Politechnika Poznańska | D104: Uwidocznienie i modelowanie informacji zawartej w syganałach. | E104: 2 | EE104: Q13, | EF104: Q15,
A105: 113 | B105: 103 | C105: Politechnika Poznańska | D105: Wielofalowe źródło optyczne o stabilnych odstępach częstotliwości nośnych | E105: 3 | CV105: I13, | DO105: M13, | DP105: M15,
A106: 114 | B106: 104 | C106: Politechnika Poznańska | D106: Wielokryterialne metody zarządzania zasobami w gridach | E106: 1 | AF106: C13,
A107: 115 | B107: 105 | C107: Politechnika Poznańska | D107: Wpływ mechanizmów kryptograficznych na wydajność przetwarzania danych w systemach informatycznych | E107: 2 | CM107: I3, | CV107: I13,
A108: 116 | B108: 106 | C108: Politechnika Poznańska | D108: Współpraca w ramach Sieci Doskonałości BONE (Cooperation Within Network of Excellence BONE) | E108: 5 | BM108: F13, | CA108: G13, | CB108: G15, | CV108: I13, | EV108: U12,
A109: 117 | B109: 107 | C109: Politechnika Poznańska | D109: Wykorzystanie informacji uzyskiwania w trakcie realizacji szybkich transfomracji ortogonalnych | E109: 1 | EV109: U12,
A110: 118 | B110: 108 | C110: Politechnika Poznańska | D110: Wykorzystanie zjawiska magnetostrykcji w pomiarach kwantowania przewodności | E110: 2 | DO110: M13, | DP110: M15,
A111: 119 | B111: 109 | C111: Politechnika Poznańska | D111: Wymiarowanie pojemności ruchowej radiowej sieci dostępowej 2G/3G/4G | E111: 3 | BS111: G3, | CA111: G13, | CB111: G15,
A112: 120 | B112: 110 | C112: Politechnika Poznańska | D112: Zaawansowane metody oceny jakości sygnałów synchronizacji | E112: 5 | N112: B1, | P112: B9, | S112: B13, | EN112: T1, | EQ112: U1,
A113: 121 | B113: 111 | C113: Politechnika Poznańska | D113: Zagadnienia jakości oprogramowania | E113: 1 | CL113: I2,
A114: 122 | B114: 112 | C114: Politechnika Poznańska | D114: Zarządzanie przedsięwzięciami programistycznymi | E114: 3 | V114: C2, | W114: C3, | AE114: C12,
A115: 123 | B115: 113 | C115: Politechnika Poznańska | D115: Zarządzanie sieciami komputerowymi | E115: 1 | CV115: I13,
A116: 124 | B116: 114 | C116: Politechnika Poznańska | D116: Zarządzanie zasobami w systemach informatycznych i produkcyjnych | E116: 3 | AC116: C10, | AF116: C13, | AG116: C14,
A117: 125 | B117: 115 | C117: Politechnika Poznańska | D117: Zasady tworzenia specyfikacji wymagań dla systemów informatycznych | E117: 1 | CK117: I1,
A118: 126 | B118: 116 | C118: Politechnika Poznańska | D118: Zastosowanie ontologii do modelowania wiedzy w procesie odkrywania wiedzy. | E118: 3 | CM118: I3, | CQ118: I8, | CR118: I9,
A119: 127 | B119: 117 | C119: PCSS | D119: ACCESS IT | E119: 2 | CE119: H6, | CP119: I6,
A120: 129 | B120: 118 | C120: PCSS | D120: BalticGrid | E120: 3 | U120: C1, | BQ120: G1, | CC120: H1,
A121: 131 | B121: 119 | C121: PCSS | D121: Budowa sieci nauczania na rzecz środowiska oraz ochrona pachnicy dębowej na obszarze wytypowanym do sieci Natura 2000 PLH 300001 Biedrusko | E121: 5 | AM121: D6, | AV121: E6, | BG121: F6, | BU121: G6, | CE121: H6,
A122: 132 | B122: 120 | C122: PCSS | D122: Common Network Information Service | E122: 1 | AF122: C13,
A123: 134 | B123: 121 | C123: PCSS | D123: DORII – Deployment of Remote Instrumentation Infrastructure | E123: 3 | BG123: F6, | BK123: F11, | BP123: F16,
A124: 135 | B124: 122 | C124: PCSS | D124: EGEE, EGEE-II, EGEE-III | E124: 8 | AM124: D6, | AV124: E6, | BG124: F6, | BU124: G6, | CE124: H6, | CK124: I1, | DE124: K1, | DX124: Q1,
A125: 137 | B125: 123 | C125: PCSS | D125: EMANICS | E125: 3 | AF125: C13, | BM125: F13, | CI125: H13,
A126: 139 | B126: 124 | C126: PCSS | D126: EUFORIA – EU for ITER Applications | E126: 1 | BP126: F16,
A127: 140 | B127: 125 | C127: PCSS | D127: EuropeanaLocal | E127: 2 | CE127: H6, | CP127: I6,
A128: 141 | B128: 126 | C128: PCSS | D128: FBC (Federacja Bibliotek Cyfrowych) | E128: 1 | AV128: E6,
A129: 142 | B129: 127 | C129: PCSS | D129: FEDERICA (Federated E-infrastructure Dedicated to European Researchers Innovating in Computing network Architectures) | E129: 12 | G129: A6, | H129: A9, | K129: A13, | O129: B6, | P129: B9, | S129: B13, | Y129: C6, | AB129: C9, | AF129: C13, | BC129: F1, | BQ129: G1, | CC129: H1,
A130: 143 | B130: 128 | C130: PCSS | D130: GÉANT3 | E130: 12 | G130: A6, | H130: A9, | J130: A12, | K130: A13, | O130: B6, | P130: B9, | R130: B12, | S130: B13, | Y130: C6, | AB130: C9, | AE130: C12, | AF130: C13,
A131: 145 | B131: 129 | C131: PCSS | D131: HDVIPER - High Definition Videoconferencing over IP EnviRonment | E131: =COUNTIF(F131:EY131,"<>") -> 30 | Y131: C6, | Z131: C7, | AE131: C12, | AF131: C13, | AM131: D6, | AN131: D7, | AQ131: D12, | AR131: D13, | AV131: E6, | AW131: E7, | BA131: E12, | BB131: E13, | BG131: F6, | BH131: F7, | BL131: F12, | BM131: F13, | BU131: G6, | BV131: G7, | BZ131: G12, | CA131: G13, | CE131: H6, | CF131: H7, | CI131: H13, | EA131: Q6, | EB131: Q7, | EE131: Q13, | ES131: U6, | ET131: U10, | EU131: U11, | EV131: U12,
A132: 147 | B132: 130 | C132: PCSS | D132: Interactive European Grid – int.eu.grid | E132: 1 | BP132: F16,
A133: 148 | B133: 131 | C133: PCSS | D133: Miejska Sieć Komputerowa POZMAN | E133: 2 | DX133: Q1, | EG133: R1,
A134: 149 | B134: 132 | C134: PCSS | D134: Migrating Desktop | E134: 1 | BP134: F16,
A135: 150 | B135: 133 | C135: PCSS | D135: PHOSPHORUS | E135: 7 | N135: B1, | AS135: E1, | BQ135: G1, | DE135: K1, | DM135: M1, | DQ135: O1, | DX135: Q1,
A136: 151 | B136: 134 | C136: PCSS | D136: PIONIER Polski Internet Optyczny - Konsorcjum Akademickich Sieci Komputerowych i Centrów Komputerów Dużej Mocy | E136: 24 | V136: C2, | Y136: C6, | AF136: C13, | AK136: D2, | AM136: D6, | AR136: D13, | BR136: G2, | BU136: G6, | CA136: G13, | CD136: H2, | CE136: H6, | CI136: H13, | CL136: I2, | CP136: I6, | CV136: I13, | DR136: O2, | DS136: O6, | DT136: O13, | DY136: Q2, | EA136: Q6, | EE136: Q13, | EH136: R2, | EI136: R6, | EK136: R13,
A137: 152 | B137: 135 | C137: PCSS | D137: Platforma Obsługi Nauki PLATON – Etap I: Kontener usług wspólnych – usługa U2 eduroam | E137: 3 | AJ137: D1, | BQ137: G1, | DQ137: O1,
A138: 153 | B138: 136 | C138: PCSS | D138: Polski Portal Edukacyjny Interkl@sa | E138: 2 | AV138: E6, | CE138: H6,
A139: 154 | B139: 137 | C139: PCSS | D139: Porta Optica Study | E139: 14 | AM139: D6, | AR139: D13, | AV139: E6, | BB139: E13, | BU139: G6, | CA139: G13, | CP139: I6, | CV139: I13, | DK139: L6, | DL139: L13, | DS139: O6, | DT139: O13, | EO139: T6, | EP139: T13,
A140: 155 | B140: 138 | C140: PCSS | D140: PRACE - Partnership for Advanced Computing In Europe (Partnerstwo dla zaawansowanych obliczeń w Europie) | E140: 9 | Y140: C6, | BD140: F2, | BE140: F3, | BG140: F6, | CE140: H6, | DF140: K2, | DG140: K3, | DH140: K6, | DK140: L6,
A141: 156 | B141: 139 | C141: PCSS | D141: Projekt Nr 6T11 2003 C/06098 "Clusterix – Krajowy Klaster Linuxowy (National CLUSTER of LinuX Systems)" | E141: 25 | AM141: D6, | AO141: D10, | AR141: D13, | AV141: E6, | AY141: E10, | BB141: E13, | BG141: F6, | BJ141: F10, | BM141: F13, | BU141: G6, | BX141: G10, | CA141: G13, | CE141: H6, | CG141: H10, | CH141: H12, | CI141: H13, | CP141: I6, | CS141: I10, | CV141: I13, | DB141: J6, | DC141: J10, | DD141: J13, | DH141: K6, | DI141: K10, | DJ141: K13,
A142: 158 | B142: 140 | C142: PCSS | D142: The BalticGrid Second Phase (BalticGrid-II) | E142: 3 | U142: C1, | BQ142: G1, | CC142: H1,
A143: 159 | B143: 141 | C143: PCSS | D143: Zarządzanie informacją i wiedzą w usługach o podwyższonym poziomie bezpieczeństwa (projekt w ramach PPBW) | E143: 5 | U143: C1, | AS143: E1, | BC143: F1, | DV143: P1, | EY143: V1,
A144: 160 | B144: 142 | C144: ITTI | D144: Infrastruktura dla heterogenicznych, odpornych, bezpiecznych, złożonych, ściśle inter-operujących sieci | E144: 15 | V144: C2, | W144: C3, | X144: C5, | AA144: C8, | AF144: C13, | AK144: D2, | AR144: D13, | CL144: I2, | CM144: I3, | CO144: I5, | CV144: I13, | DW144: P13, | DZ144: Q5, | EE144: Q13, | EK144: R13,
A145: 161 | B145: 143 | C145: ITTI | D145: N4C: Sieci dla społeczności w obszarach trudno dostępnych pod względem telekomunikacyjnym: architektura, środowiska testowe i innowacyjne struktury współdziałania (ang. Networking for Communications Challenged Communities: Architecture, Test Beds and Inno | E145: 29 | K145: A13, | S145: B13, | AF145: C13, | AK145: D2, | AL145: D5, | AP145: D11, | AR145: D13, | AT145: E2, | AU145: E5, | AZ145: E11, | BB145: E13, | BD145: F2, | BF145: F5, | BK145: F11, | BM145: F13, | BR145: G2, | BT145: G5, | BY145: G11, | CA145: G13, | CV145: I13, | DY145: Q2, | DZ145: Q5, | EC145: Q11, | ED145: Q12, | EE145: Q13, | EH145: R2, | EJ145: R11, | EK145: R13, | EL145: R16,
A146: 162 | B146: 144 | C146: ITTI | D146: Zaprojektowanie i wszechstronne wdrożenie niebinarnej komunikacji bezprzewodowej oparte na innowacyjnych kodach LDPC | E146: 15 | Q146: B10, | S146: B13, | AR146: D13, | CA146: G13, | CI146: H13, | CJ146: H15, | CX146: I15, | DT146: O13, | DW146: P13, | EE146: Q13, | EG146: R1, | EM146: S13, | ER146: U2, | EV146: U12, | EW146: U15,
A147: 163 | B147: 145 | C147: Uczelniane Centrum Innowacji i Transferu Technologii | D147: Cognitive Environmentally Aware and Self-Adaptive Robust NETwork | E147: 14 | N147: B1, | V147: C2, | W147: C3, | Y147: C6, | AB147: C9, | AF147: C13, | BR147: G2, | BS147: G3, | BU147: G6, | BW147: G9, | CA147: G13, | CY147: J2, | CZ147: J3, | DD147: J13,
A148: 164 | B148: 146 | C148: Uczelniane Centrum Innowacji i Transferu Technologii | D148: System tłumaczenia automatycznego opracowany na potrzeby poprawy bezpieczeństwa publicznego | E148: 14 | N148: B1, | V148: C2, | W148: C3, | Y148: C6, | AB148: C9, | AF148: C13, | BR148: G2, | BS148: G3, | BU148: G6, | BW148: G9, | CA148: G13, | CY148: J2, | CZ148: J3, | DD148: J13,
A149: 165 | B149: 147 | C149: Uczelniane Centrum Innowacji i Transferu Technologii | D149: Technologie przetwarzania tekstu polskiego zorientowane na potrzeby bezpieczeństwa publicznego | E149: 14 | N149: B1, | V149: C2, | W149: C3, | Y149: C6, | AB149: C9, | AF149: C13, | BR149: G2, | BS149: G3, | BU149: G6, | BW149: G9, | CA149: G13, | CY149: J2, | CZ149: J3, | DD149: J13,
A150: 166 | B150: 148 | C150: Uniwersytet Przyrodniczy | D150: Rozproszony system ekspertowy wspomagający doradztwo w zakresie ochrony plantacji roślin uprawnych | E150: 2 | Y150: C6, | AD150: C11,
A151: 167 | B151: 149 | C151: Wyższa Szkoła Bankowa w Poznaniu | D151: Wzrost Wartości Organizacji Poprzez Efektywną Realizację Strategii | E151: 1 | BC151: F1,
A152: 168 | B152: 150 | C152: Instytut Logistyki i Magazynowania | D152: TRACEBACK – Integrated system for a reliable traceability of food supply chains | E152: 12 | AA152: C8, | AE152: C12, | AG152: C14, | AH152: C15, | AX152: E8, | BA152: E12, | BC152: E14, | BD152: E15, | BI152: F8, | BL152: F12, | BN152: F14, | BO152: F15,
A153: 169 | B153: 151 | C153: Uniwersytete Artystyczny, Poznań | D153: Współpraca w zakresie realizacji oprogramowania ułatwiającego przenoszenie danych ze skanera 3D w pliki formatu CAD | E153: 12 | G153: A6, | K153: A13, | L153: A15, | M153: A16, | Y153: C6, | AF153: C13, | AH153: C15, | AI153: C16, | BG153: F6, | BM153: F13, | BO153: F15, | BP153: F16,
A154: 169 | B154: 152 | C154: Uniwersytete Artystyczny, Poznań | D154: Współpraca UA Poznań w zakresie przygotowania nowego oprogramowania do kreślenia 3D | E154: 12 | G154: A6, | K154: A13, | L154: A15, | M154: A16, | Y154: C6, | AF154: C13, | AH154: C15, | AI154: C16, | BG154: F6, | BM154: F13, | BO154: F15, | BP154: F16,
A163: 7 | B163: 117 | C163: Politechnika Poznańska | D163: Analiza porównawcza Taryf Telekomunikacyjnych | E163: 0
A164: 16 | B164: 118 | C164: Politechnika Poznańska | D164: BONE- Bulding the Future Optical Network in Europe ( FP7 ) | E164: 0
A165: 28 | B165: 119 | C165: Politechnika Poznańska | D165: GALAPAGOS GALileo-bAsed Seamless and Robust Positioning Applications for Logistics Optimization Processes | E165: 0
A166: 52 | B166: 120 | C166: Politechnika Poznańska | D166: Modelowanie procesów sterowania złożonymi obiektami w budynku inteligentnym i w otaczającej infrastrukturze | E166: 0
A167: 54 | B167: 121 | C167: Politechnika Poznańska | D167: NEWCOM (Network of Excellence in Wireless COMmunications | E167: 0
A168: 59 | B168: 122 | C168: Politechnika Poznańska | D168: Nowe metody eksploracji złożonych typów danych | E168: 0
A169: 75 | B169: 123 | C169: Politechnika Poznańska | D169: Rozgłoszeniowe pola komutacyjne typu log2(N, m, p). nieblokowalne w szerokim sensie | E169: 0
A170: 85 | B170: 124 | C170: Politechnika Poznańska | D170: Sieci bezprzewodowe - metody wielodostępu , transmisja, zabezpieczenie przed błędami | E170: 0
A171: 93 | B171: 125 | C171: Politechnika Poznańska | D171: System miar na bazie podstawowych stałych fizycznych | E171: 0
A172: 106 | B172: 126 | C172: Politechnika Poznańska | D172: TEMPUS LLP - Master studies in DSP based on blended learning approach | E172: 0
A173: 128 | B173: 26 | C173: PCSS | D173: ACGT - Advancing Clinico-Genomic Clinical Trials on Cancer | E173: 0
A174: 130 | B174: 27 | C174: PCSS | D174: BREIN (Business objective driven reliable and intelligent grids for real business) | E174: 0
A175: 133 | B175: 28 | C175: PCSS | D175: dLibra | E175: 0
A176: 136 | B176: 29 | C176: PCSS | D176: Eksperymenty Biznesowe w Gridach (BeinGRID) | E176: 0
A177: 138 | B177: 30 | C177: PCSS | D177: ENRICH | E177: 0
A178: 144 | B178: 31 | C178: PCSS | D178: g-Eclipse | E178: 0
A179: 146 | B179: 32 | C179: PCSS | D179: Hpc-Europa/Hpc-Europa2 | E179: 0
A180: 157 | B180: 33 | C180: PCSS | D180: Quasi Opportunistic Supercomputing for Complex Systems in Grid Environments | E180: 0

Sheet Dane2
E1: =COUNTIF(F1:FM1,"<>") -> 164 | F1: =COUNTIF(F3:F166,"<>") -> 1 | G1: 3 | H1: 7 | I1: 2 | J1: 5 | K1: 2 | L1: 13 | M1: 1 | N1: 2 | O1: 2 | P1: 5 | Q1: 1 | R1: 4 | S1: 3 | T1: 6 | U1: 2 | V1: 11 | W1: 1 | X1: 1 | Y1: 9 | Z1: 13 | AA1: 8 | AB1: 2 | AC1: 18 | AD1: 1 | AE1: 8 | AF1: 7 | AG1: 6 | AH1: 2 | AI1: 7 | AJ1: 26 | AK1: 5 | AL1: =COUNTIF(AL3:AL166,"<>") -> 7 | AM1: 4 | AN1: 1 | AO1: 3 | AP1: 1 | AQ1: 6 | AR1: 1 | AS1: 1 | AT1: 1 | AU1: 1 | AV1: 7 | AW1: 2 | AX1: 2 | AY1: 1 | AZ1: 7 | BA1: 1 | BB1: 1 | BC1: 1 | BD1: 1 | BE1: 2 | BF1: 6 | BG1: 1 | BH1: 6 | BI1: 4 | BJ1: 2 | BK1: 1 | BL1: 8 | BM1: 1 | BN1: 1 | BO1: 1 | BP1: 2 | BQ1: 2 | BR1: =COUNTIF(BR3:BR166,"<>") -> 7 | BS1: 2 | BT1: 3 | BU1: 6 | BV1: 5 | BW1: 6 | BX1: 4 | BY1: 1 | BZ1: 9 | CA1: 1 | CB1: 3 | CC1: 1 | CD1: 1 | CE1: 2 | CF1: 13 | CG1: 1 | CH1: 3 | CI1: 4 | CJ1: 1 | CK1: 9 | CL1: 1 | CM1: 1 | CN1: 1 | CO1: 5 | CP1: 1 | CQ1: 9 | CR1: 12 | CS1: 11 | CT1: 2 | CU1: 2 | CV1: 13 | CW1: 12 | CX1: =COUNTIF(CX3:CX166,"<>") -> 5 | CY1: 6 | CZ1: 1 | DA1: 7 | DB1: 13 | DC1: 1 | DD1: 2 | DE1: 3 | DF1: 3 | DG1: 1 | DH1: 1 | DI1: 1 | DJ1: 4 | DK1: 3 | DL1: 1 | DM1: 1 | DN1: 2 | DO1: 1 | DP1: 3 | DQ1: 1 | DR1: 2 | DS1: 1 | DT1: 4 | DU1: 1 | DV1: 1 | DW1: 5 | DX1: 1 | DY1: 9 | DZ1: 9 | EA1: 2 | EB1: 2 | EC1: 2 | ED1: =COUNTIF(ED3:ED166,"<>") -> 1 | EE1: 6 | EF1: 1 | EG1: 1 | EH1: 1 | EI1: 2 | EJ1: 3 | EK1: 3 | EL1: 2 | EM1: 2 | EN1: 1 | EO1: 1 | EP1: 1 | EQ1: =COUNTIF(EQ3:EQ166,"<>") -> 7 | ER1: 1 | ES1: 1 | ET1: 2 | EU1: 2 | EV1: 1 | EW1: 1 | EX1: 4 | EY1: 1 | EZ1: 1 | FA1: 1 | FB1: 1 | FC1: 1 | FD1: 2 | FE1: 1 | FF1: 9 | FG1: 1 | FH1: 1 | FI1: 19 | FJ1: 1 | FK1: 16 | FL1: 2 | FM1: 1
A2: OldLpNieRuszać | B2: lp | E2: =COUNTIF(E3:E166,"<>") -> 164 | F2: A2, | G2: A5, | H2: A6, | I2: A9, | J2: A10, | K2: A12, | L2: A13, | M2: A14, | N2: A15, | O2: A16, | P2: B1, | Q2: B2, | R2: B6, | S2: B9, | T2: B10, | U2: B12, | V2: B13, | W2: B14, | X2: B16, | Y2: C1, | Z2: C2, | AA2: C3, | AB2: C5, | AC2: C6, | AD2: C7, | AE2: C8, | AF2: C9, | AG2: C10, | AH2: C11, | AI2: C12, | AJ2: C13, | AK2: C14, | AL2: C15, | AM2: C16, | AN2: D1, | AO2: D2, | AP2: D5, | AQ2: D6, | AR2: D7, | AS2: D10, | AT2: D11, | AU2: D12, | AV2: D13, | AW2: E1, | AX2: E2, | AY2: E5, | AZ2: E6, | BA2: E7, | BB2: E8, | BC2: E10, | BD2: E11, | BE2: E12, | BF2: E13, | BG2: E15, | BH2: F1, | BI2: F2, | BJ2: F3, | BK2: F5, | BL2: F6, | BM2: F7, | BN2: F8, | BO2: F10, | BP2: F11, | BQ2: F12, | BR2: F13, | BS2: F14, | BT2: F15, | BU2: F16, | BV2: G1, | BW2: G2, | BX2: G3, | BY2: G5, | BZ2: G6, | CA2: G7, | CB2: G9, | CC2: G10, | CD2: G11, | CE2: G12, | CF2: G13, | CG2: G14, | CH2: G15, | CI2: H1, | CJ2: H2, | CK2: H6, | CL2: H7, | CM2: H10, | CN2: H12, | CO2: H13, | CP2: H15, | CQ2: I1, | CR2: I2, | CS2: I3, | CT2: I4, | CU2: I5, | CV2: I6, | CW2: I8, | CX2: I9, | CY2: I10, | CZ2: I11, | DA2: I12, | DB2: I13, | DC2: I14, | DD2: I15, | DE2: J2, | DF2: J3, | DG2: J5, | DH2: J6, | DI2: J10, | DJ2: J13, | DK2: K1, | DL2: K2, | DM2: K3, | DN2: K6, | DO2: K10, | DP2: K13, | DQ2: K15, | DR2: L6, | DS2: L13, | DT2: M1, | DU2: M2, | DV2: M3, | DW2: M6, | DX2: M12, | DY2: M13, | DZ2: M15, | EA2: O1, | EB2: O2, | EC2: O6, | ED2: O12, | EE2: O13, | EF2: O14, | EG2: O15, | EH2: P1, | EI2: P13, | EJ2: Q1, | EK2: Q2, | EL2: Q5, | EM2: Q6, | EN2: Q7, | EO2: Q11, | EP2: Q12, | EQ2: Q13, | ER2: Q14, | ES2: Q15, | ET2: R1, | EU2: R2, | EV2: R6, | EW2: R11, | EX2: R13, | EY2: R16, | EZ2: S13, | FA2: T1, | FB2: T6, | FC2: T13, | FD2: U1, | FE2: U2, | FF2: U6, | FG2: U10, | FH2: U11, | FI2: U12, | FJ2: U13, | FK2: U15, | FL2: U16, | FM2: V1,
A3: 1 | B3: 1 | C3: Politechnika Poznańska | D3: Adaptacyjne i predykcyjne systemy sterowania z elementami inteligencji maszynowej | E3: =COUNTIF(F3:FM3,"<>") -> 3 | AB3: C5, | AG3: C10, | AJ3: C13,
A4: 2 | B4: 2 | C4: Politechnika Poznańska | D4: Agorytmy optymalizacji kombinatorycznej | E4: 1 | CI4: H1,
A5: 3 | B5: 3 | C5: Politechnika Poznańska | D5: Algorytmy bioinformatyczne | E5: 2 | CV5: I6, | DA5: I12,
A6: 4 | B6: 4 | C6: Politechnika Poznańska | D6: Algorytmy i metody inżynierii wiedzy | E6: 1 | AC6: C6,
A7: 5 | B7: 5 | C7: Politechnika Poznańska | D7: Algorytmy i metody komputerowego wyszukiwania informacji muzycznej. | E7: 2 | AE7: C8, | AF7: C9,
A8: 6 | B8: 6 | C8: Politechnika Poznańska | D8: Algorytmy planowania przepływu pakietów oraz sterowania w elektronicznych i optycznych systemach komutacji | E8: 2 | FI8: U12, | FK8: U15,
A9: 8 | B9: 7 | C9: Politechnika Poznańska | D9: Aplikacje dla systemów mobilnych | E9: 1 | AJ9: C13,
A10: 9 | B10: 8 | C10: Politechnika Poznańska | D10: Automatyczna synteza liniowych generatorów testów i kompaktów odpowiedzi testowych w środowisku ścieżek sterująco- obserwacyjnych | E10: 2 | FI10: U12, | FL10: U16,
A11: 10 | B11: 9 | C11: Politechnika Poznańska | D11: Automatyczna weryfikacja prototypowych układów ASIC z wykorzystaniem rekonfigurowalnej platformy sprzętowo-programowej | E11: 4 | G11: A5, | H11: A6, | J11: A10, | L11: A13,
A12: 11 | B12: 10 | C12: Politechnika Poznańska | D12: Automatyzacja projektowania obwodów CMOS | E12: 2 | J12: A10, | L12: A13,
A13: 12 | B13: 11 | C13: Politechnika Poznańska | D13: Badania czujników i układów elektronicznych w niskich temperaturach | E13: 2 | DW13: M6, | FF13: U6,
A14: 13 | B14: 12 | C14: Politechnika Poznańska | D14: Badanie własności struktur sterowania z wykorzystaniem sterowników mikroprocesorowych | E14: 2 | L14: A13, | V14: B13,
A15: 14 | B15: 13 | C15: Politechnika Poznańska | D15: Bezpieczeństwo usług internetowych – analiza i implementacja technologii internetowych w budowie platform komunikacji użytkowników | E15: 1 | CQ15: I1,
A16: 15 | B16: 14 | C16: Politechnika Poznańska | D16: BIOPTRAIN - szkolenie w zakresie algorytmów optymalizacyjnych w bioinformatyce | E16: 2 | CV16: I6, | DA16: I12,
A17: 17 | B17: 15 | C17: Politechnika Poznańska | D17: CALIBRE - Co-ordination Action for Libre Software Engineering for Open Development Platforms for Software and Services | E17: 2 | AC17: C6, | AJ17: C13,
A18: 18 | B18: 16 | C18: Politechnika Poznańska | D18: COGEU (ICT- 248560) – „Kognitywne systemy radiowe zapewniające efektywne wykorzystanie częstotliwości telewizyjnych na obszarze Unii Europejskiej” (Cognitive radio systems for efficient sharing of TV white spaces in European context) | E18: 2 | FI18: U12, | FK18: U15,
A19: 19 | B19: 17 | C19: Politechnika Poznańska | D19: COMPUVAC - racjonalizacja projektowania i standaryzacja oceny nowych szczepionek genetycznych | E19: 3 | CV19: I6, | CY19: I10, | DA19: I12,
A20: 20 | B20: 18 | C20: Politechnika Poznańska | D20: COST IC0902 – „Technologie radia kognitywnego dla współdziałania i kompatybilności sieci komunikacji bezprzewodowej” (Cognitive Radio and Networking for Cooperative Coexistence of Heterogeneous Wireless Networks), | E20: 4 | DY20: M13, | DZ20: M15, | FI20: U12, | FK20: U15,
A21: 21 | B21: 19 | C21: Politechnika Poznańska | D21: Czynniki innowacji w projektowaniu systemów informatycznch | E21: 1 | CQ21: I1,
A22: 22 | B22: 20 | C22: Politechnika Poznańska | D22: DSPBLEND Master Studies in DSP based on Blended learning Approach | E22: 1 | FF22: U6,
A23: 23 | B23: 21 | C23: Politechnika Poznańska | D23: Efektywna replikacja i odtwarzanie stanu usług w rozproszonych systemach mobilnych | E23: 2 | CR23: I2, | CW23: I8,
A24: 24 | B24: 22 | C24: Politechnika Poznańska | D24: Embedded Deterministic System Level Test with Low Power Dissipation | E24: 2 | FI24: U12, | FK24: U15,
A25: 25 | B25: 23 | C25: Politechnika Poznańska | D25: e-Photon/One+ Optical Networks: Towards Bandwidth Manageability and Cost Efficiency | E25: 1 | FF25: U6,
A26: 26 | B26: 24 | C26: Politechnika Poznańska | D26: Ewolucyjne systemy uczące sie w środowiskach rzeczywistych i wirtualnych | E26: 2 | CV26: I6, | DA26: I12,
A27: 27 | B27: 25 | C27: Politechnika Poznańska | D27: FP6 WINNER I / WiNNER II - Wireless World Initiative New Radio | E27: 3 | FF27: U6, | FI27: U12, | FK27: U15,
A28: 29 | B28: 26 | C28: Politechnika Poznańska | D28: Generowanie testów i szacowanie pracochłonnosci na podstawie przypadków użycia | E28: 1 | Y28: C1,
A29: 30 | B29: 27 | C29: Politechnika Poznańska | D29: Implementacja indeksów do analizy wyników eksploracji danych | E29: 3 | CS29: I3, | CW29: I8, | CX29: I9,
A30: 31 | B30: 28 | C30: Politechnika Poznańska | D30: Implementacja schematu i struktury wymiarów w magazynie danych | E30: 2 | CS30: I3, | CW30: I8,
A31: 32 | B31: 29 | C31: Politechnika Poznańska | D31: Indeksowanie danych sekwencyjnych | E31: 2 | Z31: C2, | AA31: C3,
A32: 33 | B32: 30 | C32: Politechnika Poznańska | D32: InMoST: Wielkopolska sieć współpracy w zakresie innowacyjnych metod wytwarzania oprogramowania | E32: 2 | AC32: C6, | AJ32: C13,
A33: 34 | B33: 31 | C33: Politechnika Poznańska | D33: Inteligentne systemy wspomagania decyzji oparte na wiedzy odkrytej z danych | E33: 2 | CW33: I8, | CX33: I9,
A34: 35 | B34: 32 | C34: Politechnika Poznańska | D34: Komputerowo zintegrowane zarządzanie | E34: 2 | CR34: I2, | CY34: I10,
A35: 36 | B35: 33 | C35: Politechnika Poznańska | D35: Konstrukcja i analiza algorytmów dokładnych i heurystycznych dla problemów rozdziału zasobów z regularnymi i nieregularnymi miarami optymalności | E35: =COUNTIF(F35:FM35,"<>") -> 1 | CY35: I10,
A36: 37 | B36: 34 | C36: Politechnika Poznańska | D36: Kooperacyjne systemy informatyczne | E36: 1 | CQ36: I1,
A37: 38 | B37: 35 | C37: Politechnika Poznańska | D37: Leonardo da Vinci LLP - ELefANTS- E-Learning for Acquiring New Types of Skills | E37: 6 | DW37: M6, | DY37: M13, | DZ37: M15, | FF37: U6, | FI37: U12, | FK37: U15,
A38: 39 | B38: 36 | C38: Politechnika Poznańska | D38: Leonardo da Vinci LLP - Train2Cert - Vocational Training for Certyfication in ICT | E38: 2 | DY38: M13, | DZ38: M15,
A39: 40 | B39: 37 | C39: Politechnika Poznańska | D39: Leonardo da Vinci LLP InCert - International Certificates of Excellence in Selected Areas of ICT | E39: 3 | DW39: M6, | DY39: M13, | DZ39: M15,
A40: 41 | B40: 38 | C40: Politechnika Poznańska | D40: Leonardo da Vinci LLP- IntEleCT - Internationalisation of Electronic Communications Training | E40: 3 | FF40: U6, | FI40: U12, | FK40: U15,
A41: 42 | B41: 39 | C41: Politechnika Poznańska | D41: METAFUNCTIONS - system analizy publikacji naukowych oraz ekstrakcji informacji dla potrzeb genomiki | E41: 2 | CV41: I6, | DA41: I12,
A42: 43 | B42: 40 | C42: Politechnika Poznańska | D42: Metody analizy kosztów związanych z przechowywaniem danych w systemach informatycznych | E42: 6 | CR42: I2, | CS42: I3, | CU42: I5, | CW42: I8, | CX42: I9, | DC42: I14,
A43: 44 | B43: 41 | C43: Politechnika Poznańska | D43: Metody i algorytmy przetwarzania mobilnego w sieciocentrycznych systemach wsparcia pracy operacyjnej Policji | E43: 2 | Z43: C2, | CR43: I2,
A44: 45 | B44: 42 | C44: Politechnika Poznańska | D44: Metody i narzędzia akwizycji wiedzy | E44: 8 | Z44: C2, | AA44: C3, | AC44: C6, | AE44: C8, | AF44: C9, | AH44: C11, | AI44: C12, | AL44: C15,
A45: 46 | B45: 43 | C45: Politechnika Poznańska | D45: Metody transmisji , odbioru i zabezpieczenia informacji w systemach telekomunikacyjnych i układach elektronicznych | E45: 2 | FI45: U12, | FK45: U15,
A46: 47 | B46: 44 | C46: Politechnika Poznańska | D46: Metody wizji komputerowej w automatyce i robotyce | E46: 1 | AG46: C10,
A47: 48 | B47: 45 | C47: Politechnika Poznańska | D47: Metody zarządzania współbieżnym dostępem do baz danych dokumentów XML | E47: 2 | Y47: C1, | AE47: C8,
A48: 49 | B48: 46 | C48: Politechnika Poznańska | D48: Metrologia i monitorowanie | E48: 1 | FI48: U12,
A49: 50 | B49: 47 | C49: Politechnika Poznańska | D49: Model laboratoryjny światłowodowego systemu transmisyjnego z koherentnym ultragęstym zwielokrotnieniem falowym (CoUWDM) oraz wielofalowym źródłem optycznych częstotliwości nośnych | E49: 1 | FF49: U6,
A50: 51 | B50: 48 | C50: Politechnika Poznańska | D50: Model matematyczny predykcji czasów przejazdów w sieci drogowej | E50: 2 | AE50: C8, | AK50: C14,
A51: 53 | B51: 49 | C51: Politechnika Poznańska | D51: Narzędzia automatycznego projektowania obwodów z przełączanymi prądami | E51: 2 | J51: A10, | L51: A13,
A52: 55 | B52: 50 | C52: Politechnika Poznańska | D52: NEWCOM++ - The FP7 NoE in Wireless Communications! | E52: 2 | DW52: M6, | FF52: U6,
A53: 56 | B53: 51 | C53: Politechnika Poznańska | D53: Niezawodna transmisja danych przy użyciu połączeń bezpośrednich w sieciach z translacją adresów | E53: 1 | V53: B13,
A54: 57 | B54: 52 | C54: Politechnika Poznańska | D54: Nowa generacja języków dostępu do danych dla inteligentnego raportowania i analizy danych biznesowych | E54: 2 | CR54: I2, | CW54: I8,
A55: 58 | B55: 53 | C55: Politechnika Poznańska | D55: Nowe architektury optycznych pól komutacyjnych, ich ocena i porównanie. | E55: 2 | FI55: U12, | FK55: U15,
A56: 60 | B56: 54 | C56: Politechnika Poznańska | D56: Nowe metody przetwarzania sygnałów w systemach radiokomunikacji ruchomej | E56: 1 | CQ56: I1,
A57: 61 | B57: 55 | C57: Politechnika Poznańska | D57: Ocena systemu elektronicznej archiwizacji dokumentów pod względem funkcjonalnym i ekonomicznym | E57: 1 | DG57: J5,
A58: 62 | B58: 56 | C58: Politechnika Poznańska | D58: Ochrona danych i zabezpieczeń systemów informatycznych | E58: 6 | Z58: C2, | AA58: C3, | AJ58: C13, | CR58: I2, | CS58: I3, | DB58: I13,
A59: 63 | B59: 57 | C59: Politechnika Poznańska | D59: Opracowanie i analiza modeli sterowania złożonymi obiektami w budynkach inteligentnych i w otaczającej je infrastrukturze | E59: 1 | CT59: I4,
A60: 64 | B60: 58 | C60: Politechnika Poznańska | D60: Opracowanie i analiza obliczeniowa algorytmów szeregowania i planowania produkcji | E60: 1 | CT60: I4,
A61: 65 | B61: 59 | C61: Politechnika Poznańska | D61: Optymalizacja dostępu do danych w wielowersyjnych magazynach danych | E61: 2 | AE61: C8, | CW61: I8,
A62: 66 | B62: 60 | C62: Politechnika Poznańska | D62: Optymalizacja efektywności ruchowej w systemach zintegrowanych sieci stacjonarnych i ruchomych. | E62: 2 | FI62: U12, | FK62: U15,
A63: 67 | B63: 61 | C63: Politechnika Poznańska | D63: Optymalizacja przetwarzania zapytań eksploracyjnych | E63: 2 | CS63: I3, | CW63: I8,
A64: 68 | B64: 62 | C64: Politechnika Poznańska | D64: Optymalizacja układów sterowania i identyfikacji | E64: 4 | J64: A10, | L64: A13, | T64: B10, | V64: B13,
A65: 69 | B65: 63 | C65: Politechnika Poznańska | D65: Podsystemy synchronizacji systemów telekomunikacyjnych i metody bezpiecznej transmisji | E65: 1 | FD65: U1,
A66: 70 | B66: 64 | C66: Politechnika Poznańska | D66: Pomiary wybranych parametrów systemów pomiarowych z transmisją danych przez sieć telefonii komórkowej GSM | E66: 2 | FI66: U12, | FK66: U15,
A67: 71 | B67: 65 | C67: Politechnika Poznańska | D67: Problemy szeregowania zadań - nowe modele, podejscia algorytmiczne, ocena złożoności | E67: =COUNTIF(F67:FM67,"<>") -> 1 | AG67: C10,
A68: 72 | B68: 66 | C68: Politechnika Poznańska | D68: Programowanie systemów pomiarowych w językach wysokiego poziomu | E68: 2 | FI68: U12, | FK68: U15,
A69: 73 | B69: 67 | C69: Politechnika Poznańska | D69: Projektowanie szyfrów blokowych i rozwój szacunkowych metod oceny ich jakości | E69: 1 | AJ69: C13,
A70: 74 | B70: 68 | C70: Politechnika Poznańska | D70: Przetwarzanie i zabezpieczenie sygnałów dla efektywnego wykorzystania mediów transmisyjnych | E70: 1 | DT70: M1,
A71: 76 | B71: 69 | C71: Politechnika Poznańska | D71: Rozproszone usługi WWW o podwyższonej niezawodności | E71: 2 | AC71: C6, | AE71: C8,
A72: 77 | B72: 70 | C72: Politechnika Poznańska | D72: Rozwijanie układów ASIC i DESP oraz metod i algorytmów przetwarzania sygnałów dla nowoczesnych usług telekomunikacyjnych | E72: 2 | T72: B10, | V72: B13,
A73: 78 | B73: 71 | C73: Politechnika Poznańska | D73: Rozwój metod analizy danych | E73: 3 | CR73: I2, | CS73: I3, | CW73: I8,
A74: 79 | B74: 72 | C74: Politechnika Poznańska | D74: Rozwój metod analizy propagacji i przetwarzania sygnałów oraz zagadnienia kompatybilności elektromagnetycznej | E74: 1 | DZ74: M15,
A75: 80 | B75: 73 | C75: Politechnika Poznańska | D75: Rozwój metod i narzędzi optymalizacji jedno i wielokryterialnej | E75: 1 | CQ75: I1,
A76: 81 | B76: 74 | C76: Politechnika Poznańska | D76: Rozwój metod optymalizacji wielokryterialnej | E76: 1 | CQ76: I1,
A77: 82 | B77: 75 | C77: Politechnika Poznańska | D77: Rozwój metod przetwarzania obrazów, dźwięku, komunikacji multimedialnej i mikroelektroniki. | E77: 2 | FI77: U12, | FK77: U15,
A78: 83 | B78: 76 | C78: Politechnika Poznańska | D78: Rozwój technologii sieciowych w systemach informatycznych | E78: 1 | DB78: I13,
A79: 84 | B79: 77 | C79: Politechnika Poznańska | D79: Rozwój teorii iteronów automatów | E79: 1 | Y79: C1,
A80: 86 | B80: 78 | C80: Politechnika Poznańska | D80: Sieci i systemy informacyjne dla wirtualnej organizacji działań | E80: 2 | CR80: I2, | CS80: I3,
A81: 87 | B81: 79 | C81: Politechnika Poznańska | D81: Sieciocentryczne, mobilne systemy wsparcia dla pracy operacyjnej Policji | E81: 1 | Z81: C2,
A82: 88 | B82: 80 | C82: Politechnika Poznańska | D82: Sterowanie impulsowe i symulacja cyfrowa, podstawy komputerowej analizy obrazów | E82: 4 | AC82: C6, | AG82: C10, | AJ82: C13, | AM82: C16,
A83: 89 | B83: 81 | C83: Politechnika Poznańska | D83: Struktura, analiza i projektowania nowoczesnych systemów komuntacyjnych i sieci | E83: 2 | EE83: O13, | EG83: O15,
A84: 90 | B84: 82 | C84: Politechnika Poznańska | D84: Symulacja cyfrowa zjawisk elektromagnetycznych | E84: 3 | G84: A5, | H84: A6, | L84: A13,
A85: 91 | B85: 83 | C85: Politechnika Poznańska | D85: Symulacja natężenia ruchu ciężarówek na drodze dojazdowej do zakładu VWP | E85: 2 | AG85: C10, | AK85: C14,
A86: 92 | B86: 84 | C86: Politechnika Poznańska | D86: Synteza algorytmów sterowania ruchem ulicznym | E86: 1 | CY86: I10,
A87: 94 | B87: 85 | C87: Politechnika Poznańska | D87: System projektowania układów i symulacji zjawisk elektromagnetycznych | E87: 2 | G87: A5, | H87: A6,
A88: 95 | B88: 86 | C88: Politechnika Poznańska | D88: System rejestracji, podglądu i analizy wyników eksperymentu | E88: 3 | R88: B6, | T88: B10, | X88: B16,
A89: 96 | B89: 87 | C89: Politechnika Poznańska | D89: Systemy i aplikacje semantyczne w informatyce i telekomunikacji | E89: 2 | AJ89: C13, | DB89: I13,
A90: 97 | B90: 88 | C90: Politechnika Poznańska | D90: Systemy sterowania układów elektromechanicznych | E90: 4 | J90: A10, | L90: A13, | T90: B10, | V90: B13,
A91: 98 | B91: 89 | C91: Politechnika Poznańska | D91: Systemy sterowania w zastosowaniach naukowo – technicznych | E91: 2 | CV91: I6, | CY91: I10,
A92: 99 | B92: 90 | C92: Politechnika Poznańska | D92: Systemy w czipie dla przetwarzania sygnałów mieszanych | E92: 1 | L92: A13,
A93: 100 | B93: 91 | C93: Politechnika Poznańska | D93: Systemy wspomagania decyzji na podstawie wiedzy odkrytej z danych alfanumerycznych, tekstowych, obrazowych | E93: 2 | CX93: I9, | DA93: I12,
A94: 101 | B94: 92 | C94: Politechnika Poznańska | D94: Szerokopasmowe elektroniczne i optyczne routery IP | E94: 1 | FK94: U15,
A95: 102 | B95: 93 | C95: Politechnika Poznańska | D95: Sztuczne życie | E95: 2 | CV95: I6, | DA95: I12,
A96: 103 | B96: 94 | C96: Politechnika Poznańska | D96: Technologia wielodostęou w systemach światłowodowych | E96: 1 | FK96: U15,
A97: 104 | B97: 95 | C97: Politechnika Poznańska | D97: Technologie i rozwiązania e-gospodarki | E97: 2 | CS97: I3, | CW97: I8,
A98: 105 | B98: 96 | C98: Politechnika Poznańska | D98: Telecommunication Advanced Networks for GMES Operations | E98: 2 | CR98: I2, | CZ98: I11,
A99: 107 | B99: 97 | C99: Politechnika Poznańska | D99: Teoria i algorytmy wielowymiarowego przetwarzania sygnałów | E99: =COUNTIF(F99:FM99,"<>") -> 1 | DP99: K13,
A100: 108 | B100: 98 | C100: Politechnika Poznańska | D100: Uczenie maszynowe i odkrywanie wiedzy | E100: 2 | CV100: I6, | CW100: I8,
A101: 109 | B101: 99 | C101: Politechnika Poznańska | D101: Uogólnione, inteligentne metody cyfrowej filtracji i separacji sygnałów | E101: 3 | R101: B6, | T101: B10, | V101: B13,
A102: 110 | B102: 100 | C102: Politechnika Poznańska | D102: URANUS (IST- 027960) – „Uniwersalna koncepcja łącza radiowego dla efektywnego dostępu zorientowanego na użytkownika” (Universal Radio-Link Platform For Efficient User-Centric Access) | E102: 1 | DY102: M13,
A103: 111 | B103: 101 | C103: Politechnika Poznańska | D103: Usługi w sieciach telekomunikacyjnych , projektowanie , charakterystyki, metody ocen | E103: 2 | CF103: G13, | CH103: G15,
A104: 112 | B104: 102 | C104: Politechnika Poznańska | D104: Uwidocznienie i modelowanie informacji zawartej w syganałach. | E104: 2 | EQ104: Q13, | ES104: Q15,
A105: 113 | B105: 103 | C105: Politechnika Poznańska | D105: Wielofalowe źródło optyczne o stabilnych odstępach częstotliwości nośnych | E105: 3 | DB105: I13, | DY105: M13, | DZ105: M15,
A106: 114 | B106: 104 | C106: Politechnika Poznańska | D106: Wielokryterialne metody zarządzania zasobami w gridach | E106: 1 | AJ106: C13,
A107: 115 | B107: 105 | C107: Politechnika Poznańska | D107: Wpływ mechanizmów kryptograficznych na wydajność przetwarzania danych w systemach informatycznych | E107: 2 | CS107: I3, | DB107: I13,
A108: 116 | B108: 106 | C108: Politechnika Poznańska | D108: Współpraca w ramach Sieci Doskonałości BONE (Cooperation Within Network of Excellence BONE) | E108: 5 | BR108: F13, | CF108: G13, | CH108: G15, | DB108: I13, | FI108: U12,
A109: 117 | B109: 107 | C109: Politechnika Poznańska | D109: Wykorzystanie informacji uzyskiwania w trakcie realizacji szybkich transfomracji ortogonalnych | E109: 1 | FI109: U12,
A110: 118 | B110: 108 | C110: Politechnika Poznańska | D110: Wykorzystanie zjawiska magnetostrykcji w pomiarach kwantowania przewodności | E110: 2 | DY110: M13, | DZ110: M15,
A111: 119 | B111: 109 | C111: Politechnika Poznańska | D111: Wymiarowanie pojemności ruchowej radiowej sieci dostępowej 2G/3G/4G | E111: 3 | BX111: G3, | CF111: G13, | CH111: G15,
A112: 120 | B112: 110 | C112: Politechnika Poznańska | D112: Zaawansowane metody oceny jakości sygnałów synchronizacji | E112: 5 | P112: B1, | S112: B9, | V112: B13, | FA112: T1, | FD112: U1,
A113: 121 | B113: 111 | C113: Politechnika Poznańska | D113: Zagadnienia jakości oprogramowania | E113: 1 | CR113: I2,
A114: 122 | B114: 112 | C114: Politechnika Poznańska | D114: Zarządzanie przedsięwzięciami programistycznymi | E114: 3 | Z114: C2, | AA114: C3, | AI114: C12,
A115: 123 | B115: 113 | C115: Politechnika Poznańska | D115: Zarządzanie sieciami komputerowymi | E115: 1 | DB115: I13,
A116: 124 | B116: 114 | C116: Politechnika Poznańska | D116: Zarządzanie zasobami w systemach informatycznych i produkcyjnych | E116: 3 | AG116: C10, | AJ116: C13, | AK116: C14,
A117: 125 | B117: 115 | C117: Politechnika Poznańska | D117: Zasady tworzenia specyfikacji wymagań dla systemów informatycznych | E117: 1 | CQ117: I1,
A118: 126 | B118: 116 | C118: Politechnika Poznańska | D118: Zastosowanie ontologii do modelowania wiedzy w procesie odkrywania wiedzy. | E118: 3 | CS118: I3, | CW118: I8, | CX118: I9,
A119: 127 | B119: 117 | C119: PCSS | D119: ACCESS IT | E119: 2 | CK119: H6, | CV119: I6,
A120: 129 | B120: 118 | C120: PCSS | D120: BalticGrid | E120: 3 | Y120: C1, | BV120: G1, | CI120: H1,
A121: 131 | B121: 119 | C121: PCSS | D121: Budowa sieci nauczania na rzecz środowiska oraz ochrona pachnicy dębowej na obszarze wytypowanym do sieci Natura 2000 PLH 300001 Biedrusko | E121: 5 | AQ121: D6, | AZ121: E6, | BL121: F6, | BZ121: G6, | CK121: H6,
A122: 132 | B122: 120 | C122: PCSS | D122: Common Network Information Service | E122: 1 | AJ122: C13,
A123: 134 | B123: 121 | C123: PCSS | D123: DORII – Deployment of Remote Instrumentation Infrastructure | E123: 3 | BL123: F6, | BP123: F11, | BU123: F16,
A124: 135 | B124: 122 | C124: PCSS | D124: EGEE, EGEE-II, EGEE-III | E124: 8 | AQ124: D6, | AZ124: E6, | BL124: F6, | BZ124: G6, | CK124: H6, | CQ124: I1, | DK124: K1, | EJ124: Q1,
A125: 137 | B125: 123 | C125: PCSS | D125: EMANICS | E125: 3 | AJ125: C13, | BR125: F13, | CO125: H13,
A126: 139 | B126: 124 | C126: PCSS | D126: EUFORIA – EU for ITER Applications | E126: 1 | BU126: F16,
A127: 140 | B127: 125 | C127: PCSS | D127: EuropeanaLocal | E127: 2 | CK127: H6, | CV127: I6,
A128: 141 | B128: 126 | C128: PCSS | D128: FBC (Federacja Bibliotek Cyfrowych) | E128: 1 | AZ128: E6,
A129: 142 | B129: 127 | C129: PCSS | D129: FEDERICA (Federated E-infrastructure Dedicated to European Researchers Innovating in Computing network Architectures) | E129: 12 | H129: A6, | I129: A9, | L129: A13, | R129: B6, | S129: B9, | V129: B13, | AC129: C6, | AF129: C9, | AJ129: C13, | BH129: F1, | BV129: G1, | CI129: H1,
A130: 143 | B130: 128 | C130: PCSS | D130: GÉANT3 | E130: 12 | H130: A6, | I130: A9, | K130: A12, | L130: A13, | R130: B6, | S130: B9, | U130: B12, | V130: B13, | AC130: C6, | AF130: C9, | AI130: C12, | AJ130: C13,
A131: 145 | B131: 129 | C131: PCSS | D131: HDVIPER - High Definition Videoconferencing over IP EnviRonment | E131: =COUNTIF(F131:FM131,"<>") -> 30 | AC131: C6, | AD131: C7, | AI131: C12, | AJ131: C13, | AQ131: D6, | AR131: D7, | AU131: D12, | AV131: D13, | AZ131: E6, | BA131: E7, | BE131: E12, | BF131: E13, | BL131: F6, | BM131: F7, | BQ131: F12, | BR131: F13, | BZ131: G6, | CA131: G7, | CE131: G12, | CF131: G13, | CK131: H6, | CL131: H7, | CO131: H13, | EM131: Q6, | EN131: Q7, | EQ131: Q13, | FF131: U6, | FG131: U10, | FH131: U11, | FI131: U12,
A132: 147 | B132: 130 | C132: PCSS | D132: Interactive European Grid – int.eu.grid | E132: 1 | BU132: F16,
A133: 148 | B133: 131 | C133: PCSS | D133: Miejska Sieć Komputerowa POZMAN | E133: 2 | EJ133: Q1, | ET133: R1,
A134: 149 | B134: 132 | C134: PCSS | D134: Migrating Desktop | E134: 1 | BU134: F16,
A135: 150 | B135: 133 | C135: PCSS | D135: PHOSPHORUS | E135: 7 | P135: B1, | AW135: E1, | BV135: G1, | DK135: K1, | DT135: M1, | EA135: O1, | EJ135: Q1,
A136: 151 | B136: 134 | C136: PCSS | D136: PIONIER Polski Internet Optyczny - Konsorcjum Akademickich Sieci Komputerowych i Centrów Komputerów Dużej Mocy | E136: 24 | Z136: C2, | AC136: C6, | AJ136: C13, | AO136: D2, | AQ136: D6, | AV136: D13, | BW136: G2, | BZ136: G6, | CF136: G13, | CJ136: H2, | CK136: H6, | CO136: H13, | CR136: I2, | CV136: I6, | DB136: I13, | EB136: O2, | EC136: O6, | EE136: O13, | EK136: Q2, | EM136: Q6, | EQ136: Q13, | EU136: R2, | EV136: R6, | EX136: R13,
A137: 152 | B137: 135 | C137: PCSS | D137: Platforma Obsługi Nauki PLATON – Etap I: Kontener usług wspólnych – usługa U2 eduroam | E137: 3 | AN137: D1, | BV137: G1, | EA137: O1,
A138: 153 | B138: 136 | C138: PCSS | D138: Polski Portal Edukacyjny Interkl@sa | E138: 2 | AZ138: E6, | CK138: H6,
A139: 154 | B139: 137 | C139: PCSS | D139: Porta Optica Study | E139: 14 | AQ139: D6, | AV139: D13, | AZ139: E6, | BF139: E13, | BZ139: G6, | CF139: G13, | CV139: I6, | DB139: I13, | DR139: L6, | DS139: L13, | EC139: O6, | EE139: O13, | FB139: T6, | FC139: T13,
A140: 155 | B140: 138 | C140: PCSS | D140: PRACE - Partnership for Advanced Computing In Europe (Partnerstwo dla zaawansowanych obliczeń w Europie) | E140: 9 | AC140: C6, | BI140: F2, | BJ140: F3, | BL140: F6, | CK140: H6, | DL140: K2, | DM140: K3, | DN140: K6, | DR140: L6,
A141: 156 | B141: 139 | C141: PCSS | D141: Projekt Nr 6T11 2003 C/06098 "Clusterix – Krajowy Klaster Linuxowy (National CLUSTER of LinuX Systems)" | E141: 25 | AQ141: D6, | AS141: D10, | AV141: D13, | AZ141: E6, | BC141: E10, | BF141: E13, | BL141: F6, | BO141: F10, | BR141: F13, | BZ141: G6, | CC141: G10, | CF141: G13, | CK141: H6, | CM141: H10, | CN141: H12, | CO141: H13, | CV141: I6, | CY141: I10, | DB141: I13, | DH141: J6, | DI141: J10, | DJ141: J13, | DN141: K6, | DO141: K10, | DP141: K13,
A142: 158 | B142: 140 | C142: PCSS | D142: The BalticGrid Second Phase (BalticGrid-II) | E142: 3 | Y142: C1, | BV142: G1, | CI142: H1,
A143: 159 | B143: 141 | C143: PCSS | D143: Zarządzanie informacją i wiedzą w usługach o podwyższonym poziomie bezpieczeństwa (projekt w ramach PPBW) | E143: 5 | Y143: C1, | AW143: E1, | BH143: F1, | EH143: P1, | FM143: V1,
A144: 160 | B144: 142 | C144: ITTI | D144: Infrastruktura dla heterogenicznych, odpornych, bezpiecznych, złożonych, ściśle inter-operujących sieci | E144: 15 | Z144: C2, | AA144: C3, | AB144: C5, | AE144: C8, | AJ144: C13, | AO144: D2, | AV144: D13, | CR144: I2, | CS144: I3, | CU144: I5, | DB144: I13, | EI144: P13, | EL144: Q5, | EQ144: Q13, | EX144: R13,
A145: 161 | B145: 143 | C145: ITTI | D145: N4C: Sieci dla społeczności w obszarach trudno dostępnych pod względem telekomunikacyjnym: architektura, środowiska testowe i innowacyjne struktury współdziałania (ang. Networking for Communications Challenged Communities: Architecture, Test Beds and Inno | E145: 29 | L145: A13, | V145: B13, | AJ145: C13, | AO145: D2, | AP145: D5, | AT145: D11, | AV145: D13, | AX145: E2, | AY145: E5, | BD145: E11, | BF145: E13, | BI145: F2, | BK145: F5, | BP145: F11, | BR145: F13, | BW145: G2, | BY145: G5, | CD145: G11, | CF145: G13, | DB145: I13, | EK145: Q2, | EL145: Q5, | EO145: Q11, | EP145: Q12, | EQ145: Q13, | EU145: R2, | EW145: R11, | EX145: R13, | EY145: R16,
A146: 162 | B146: 144 | C146: ITTI | D146: Zaprojektowanie i wszechstronne wdrożenie niebinarnej komunikacji bezprzewodowej oparte na innowacyjnych kodach LDPC | E146: 15 | T146: B10, | V146: B13, | AV146: D13, | CF146: G13, | CO146: H13, | CP146: H15, | DD146: I15, | EE146: O13, | EI146: P13, | EQ146: Q13, | ET146: R1, | EZ146: S13, | FE146: U2, | FI146: U12, | FK146: U15,
A147: 163 | B147: 145 | C147: Uczelniane Centrum Innowacji i Transferu Technologii UAM | D147: Cognitive Environmentally Aware and Self-Adaptive Robust NETwork | E147: 14 | P147: B1, | Z147: C2, | AA147: C3, | AC147: C6, | AF147: C9, | AJ147: C13, | BW147: G2, | BX147: G3, | BZ147: G6, | CB147: G9, | CF147: G13, | DE147: J2, | DF147: J3, | DJ147: J13,
A148: 164 | B148: 146 | C148: Uczelniane Centrum Innowacji i Transferu Technologii UAM | D148: System tłumaczenia automatycznego opracowany na potrzeby poprawy bezpieczeństwa publicznego | E148: 14 | P148: B1, | Z148: C2, | AA148: C3, | AC148: C6, | AF148: C9, | AJ148: C13, | BW148: G2, | BX148: G3, | BZ148: G6, | CB148: G9, | CF148: G13, | DE148: J2, | DF148: J3, | DJ148: J13,
A149: 165 | B149: 147 | C149: Uczelniane Centrum Innowacji i Transferu Technologii UAM | D149: Technologie przetwarzania tekstu polskiego zorientowane na potrzeby bezpieczeństwa publicznego | E149: 14 | P149: B1, | Z149: C2, | AA149: C3, | AC149: C6, | AF149: C9, | AJ149: C13, | BW149: G2, | BX149: G3, | BZ149: G6, | CB149: G9, | CF149: G13, | DE149: J2, | DF149: J3, | DJ149: J13,
A150: 166 | B150: 148 | C150: Uniwersytet Przyrodniczy | D150: Rozproszony system ekspertowy wspomagający doradztwo w zakresie ochrony plantacji roślin uprawnych | E150: 2 | AC150: C6, | AH150: C11,
A151: 167 | B151: 149 | C151: Wyższa Szkoła Bankowa w Poznaniu | D151: Wzrost Wartości Organizacji Poprzez Efektywną Realizację Strategii | E151: 1 | BH151: F1,
A152: 168 | B152: 150 | C152: Instytut Logistyki i Magazynowania | D152: TRACEBACK – Integrated system for a reliable traceability of food supply chains | E152: 12 | AE152: C8, | AI152: C12, | AK152: C14, | AL152: C15, | BB152: E8, | BE152: E12, | BH152: E14, | BI152: E15, | BN152: F8, | BQ152: F12, | BS152: F14, | BT152: F15,
A153: 169 | B153: 151 | C153: Uniwersytete Artystyczny, Poznań | D153: Współpraca w zakresie realizacji oprogramowania ułatwiającego przenoszenie danych ze skanera 3D w pliki formatu CAD | E153: 12 | H153: A6, | L153: A13, | N153: A15, | O153: A16, | AC153: C6, | AJ153: C13, | AL153: C15, | AM153: C16, | BL153: F6, | BR153: F13, | BT153: F15, | BU153: F16,
B154: 152 | C154: Uniwersytete Artystyczny, Poznań | D154: Współpraca UA Poznań w zakresie przygotowania nowego oprogramowania do kreślenia 3D | E154: 12 | H154: A6, | L154: A13, | N154: A15, | O154: A16, | AC154: C6, | AJ154: C13, | AL154: C15, | AM154: C16, | BL154: F6, | BR154: F13, | BT154: F15, | BU154: F16,
A155: 170 | B155: 153 | C155: Uniwersytet Ekonomiczny w Poznaniu - Katedra Informatyki Ekonomicznej | D155: SUPER - Semantics Utilised for Process management within and between EnteRprises) | E155: 2 | Y155: C1, | CQ155: I1,
A156: 171 | B156: 154 | C156: Uniwersytet Ekonomiczny w Poznaniu - Katedra Informatyki Ekonomicznej | D156: TOWL - Time-determined Ontology based information system for real time stock market analysis | E156: 2 | BJ156: F3, | DV156: M3,
A157: 172 | B157: 155 | C157: Uniwersytet Ekonomiczny w Poznaniu - Katedra Informatyki Ekonomicznej | D157: ASG - Adaptive Services Grid | E157: 12 | AJ157: C13, | AL157: C15, | BF157: E13, | BG157: E15, | DB157: I13, | DD157: I15, | DP157: K13, | DQ157: K15, | DY157: M13, | DZ157: M15, | FJ157: U13, | FL157: U16,
A158: 173 | B158: 156 | C158: Uniwersytet Ekonomiczny w Poznaniu - Katedra Informatyki Ekonomicznej | D158: ExtraSpec - Zastosowanie zaawansowanych metod ekstrakcji danych na potrzeby wyszukiwania ekspertów | E158: 2 | DK158: K1, | DT158: M1,
A159: 174 | B159: 157 | C159: Uniwersytet Ekonomiczny w Poznaniu - Katedra Informatyki Ekonomicznej | D159: Platforma integracyjna jako metodyka tworzenia rozwiązań dla instytucji samorządowych | E159: 10 | Z159: C2, | AC159: C6, | AI159: C12, | AJ159: C13, | AM159: C16, | DU159: M2, | DW159: M6, | DX159: M12, | DY159: M13, | DZ159: M15,
A160: 175 | B160: 158 | C160: Uniwersytet Ekonomiczny w Poznaniu - Katedra Informatyki Ekonomicznej | D160: Insemtives - Incentives for Semantics | E160: 1 | DT160: M1,
A161: 176 | B161: 159 | C161: Telcordia Poland | D161: EFIPSANS - Exposing the Features in IP version six protocols that can be exploited/extended for the purposes of designing/building Autonomic Networks and Services | E161: 5 | AJ161: C13, | BF161: E13, | CF161: G13, | EE161: O13, | EX161: R13,
A162: 177 | B162: 160 | C162: Telcordia Poland | D162: COMPAS - Compliance-driven Models, Languages, and Architectures for Services | E162: 3 | Y162: C1, | AL162: C15, | BH162: F1,
A163: 178 | B163: 161 | C163: Telcordia Poland | D163: CarMesh - Ubiquitous Mesh Networking for Integrated Telematic Services in Metropolitan Areas | E163: =COUNTIF(F163:FM163,"<>") -> 7 | M163: A14, | W163: B14, | AK163: C14, | BS163: F14, | CG163: G14, | EF163: O14, | ER163: Q14,
A164: 179 | B164: 162 | C164: Telcordia Poland | D164: E-SPONDER: A holistic approach towards the first responder of the future | E164: =COUNTIF(F164:FM164,"<>") -> 8 | F164: A2, | Q164: B2, | Z164: C2, | AX164: E2, | BI164: F2, | BW164: G2, | EB164: O2, | EK164: Q2,
A165: 180 | B165: 163 | C165: Telcordia Poland | D165: COST project - Data Traffic Monitoring and Analysis: theory, techniques, tools and applications for Future Networks | E165: =COUNTIF(F165:FM165,"<>") -> 7 | K165: A12, | U165: B12, | AI165: C12, | CE165: G12, | ED165: O12, | EE165: O13, | EQ165: Q13,
A166: 181 | B166: 164 | C166: Telcordia Poland | D166: INDENICA - Engineering Virtual Domain-Specific Service Platforms | E166: =COUNTIF(F166:FM166,"<>") -> 3 | Y166: C1, | AL166: C15, | BH166: F1,
A172: 7 | B172: 1 | C172: Politechnika Poznańska | D172: Analiza porównawcza Taryf Telekomunikacyjnych | E172: 0
A173: 16 | B173: 2 | C173: Politechnika Poznańska | D173: BONE- Bulding the Future Optical Network in Europe ( FP7 ) | E173: 0
A174: 28 | B174: 3 | C174: Politechnika Poznańska | D174: GALAPAGOS GALileo-bAsed Seamless and Robust Positioning Applications for Logistics Optimization Processes | E174: 0
A175: 52 | B175: 4 | C175: Politechnika Poznańska | D175: Modelowanie procesów sterowania złożonymi obiektami w budynku inteligentnym i w otaczającej infrastrukturze | E175: 0
A176: 54 | B176: 5 | C176: Politechnika Poznańska | D176: NEWCOM (Network of Excellence in Wireless COMmunications | E176: 0
A177: 59 | B177: 6 | C177: Politechnika Poznańska | D177: Nowe metody eksploracji złożonych typów danych | E177: 0
A178: 75 | B178: 7 | C178: Politechnika Poznańska | D178: Rozgłoszeniowe pola komutacyjne typu log2(N, m, p). nieblokowalne w szerokim sensie | E178: 0
A179: 85 | B179: 8 | C179: Politechnika Poznańska | D179: Sieci bezprzewodowe - metody wielodostępu , transmisja, zabezpieczenie przed błędami | E179: 0
A180: 93 | B180: 9 | C180: Politechnika Poznańska | D180: System miar na bazie podstawowych stałych fizycznych | E180: 0
A181: 106 | B181: 10 | C181: Politechnika Poznańska | D181: TEMPUS LLP - Master studies in DSP based on blended learning approach | E181: 0
A182: 128 | B182: 11 | C182: PCSS | D182: ACGT - Advancing Clinico-Genomic Clinical Trials on Cancer | E182: 0
A183: 130 | B183: 12 | C183: PCSS | D183: BREIN (Business objective driven reliable and intelligent grids for real business) | E183: 0
A184: 133 | B184: 13 | C184: PCSS | D184: dLibra | E184: 0
A185: 136 | B185: 14 | C185: PCSS | D185: Eksperymenty Biznesowe w Gridach (BeinGRID) | E185: 0
A186: 138 | B186: 15 | C186: PCSS | D186: ENRICH | E186: 0
A187: 144 | B187: 16 | C187: PCSS | D187: g-Eclipse | E187: 0
A188: 146 | B188: 17 | C188: PCSS | D188: Hpc-Europa/Hpc-Europa2 | E188: 0
A189: 157 | B189: 18 | C189: PCSS | D189: Quasi Opportunistic Supercomputing for Complex Systems in Grid Environments | E189: 0

Sheet Nauka1
D1: 1 | E1: 2 | F1: 3 | G1: 4 | H1: 5 | I1: 6 | J1: 7 | K1: 8 | L1: 9 | M1: 10 | N1: 11 | O1: 12 | P1: 13 | Q1: 14 | R1: 15 | S1: 16
B2: Branża odbiorcy Rodzaj działalności . | D2: 1. Wszystkie sektory lub sektor nieistotny | E2: 2. Administracja państwowa, w tym służby mundurowe | F2: 3. Bankowość, ubezpieczenia, inne usługi finansowe | G2: 4. Budownictwo | H2: 5. Dostawy elektryczności, gazu, ciepła i wody | I2: 6. Edukacja | J2: 7. Gospodarstwa domowe | K2: 8. Handel | L2: 9. Media | M2: 10. Produkcja przemysłowa | N2: 11. Rolnictwo | O2: 12. Służba zdrowia | P2: 13. Telekomunikacja, IT | Q2: 14. Transport | R2: 15. Usługi | S2: 16. Inni odbiorcy końcowi | T2: Łącznie
B3: A. Produkcja sprzętu IT | C3: =LEFT(B3,1) -> A | D3: =IF(COUNTIF(Dane2!$F$3:$FM$166,$C3&D$1&",")<>0,COUNTIF(Dane2!$F$3:$FM$166,$C3&D$1&","),"") ->  | E3: =IF(COUNTIF(Dane2!$F$3:$FM$166,$C3&E$1&",")<>0,COUNTIF(Dane2!$F$3:$FM$166,$C3&E$1&","),"") -> 1 | F3: =IF(COUNTIF(Dane2!$F$3:$FM$166,$C3&F$1&",")<>0,COUNTIF(Dane2!$F$3:$FM$166,$C3&F$1&","),"") ->  | G3: =IF(COUNTIF(Dane2!$F$3:$FM$166,$C3&G$1&",")<>0,COUNTIF(Dane2!$F$3:$FM$166,$C3&G$1&","),"") ->  | H3: =IF(COUNTIF(Dane2!$F$3:$FM$166,$C3&H$1&",")<>0,COUNTIF(Dane2!$F$3:$FM$166,$C3&H$1&","),"") -> 3 | I3: =IF(COUNTIF(Dane2!$F$3:$FM$166,$C3&I$1&",")<>0,COUNTIF(Dane2!$F$3:$FM$166,$C3&I$1&","),"") -> 7 | J3: =IF(COUNTIF(Dane2!$F$3:$FM$166,$C3&J$1&",")<>0,COUNTIF(Dane2!$F$3:$FM$166,$C3&J$1&","),"") ->  | K3: =IF(COUNTIF(Dane2!$F$3:$FM$166,$C3&K$1&",")<>0,COUNTIF(Dane2!$F$3:$FM$166,$C3&K$1&","),"") ->  | L3: =IF(COUNTIF(Dane2!$F$3:$FM$166,$C3&L$1&",")<>0,COUNTIF(Dane2!$F$3:$FM$166,$C3&L$1&","),"") -> 2 | M3: =IF(COUNTIF(Dane2!$F$3:$FM$166,$C3&M$1&",")<>0,COUNTIF(Dane2!$F$3:$FM$166,$C3&M$1&","),"") -> 5 | N3: =IF(COUNTIF(Dane2!$F$3:$FM$166,$C3&N$1&",")<>0,COUNTIF(Dane2!$F$3:$FM$166,$C3&N$1&","),"") ->  | O3: =IF(COUNTIF(Dane2!$F$3:$FM$166,$C3&O$1&",")<>0,COUNTIF(Dane2!$F$3:$FM$166,$C3&O$1&","),"") -> 2 | P3: =IF(COUNTIF(Dane2!$F$3:$FM$166,$C3&P$1&",")<>0,COUNTIF(Dane2!$F$3:$FM$166,$C3&P$1&","),"") -> 13 | Q3: =IF(COUNTIF(Dane2!$F$3:$FM$166,$C3&Q$1&",")<>0,COUNTIF(Dane2!$F$3:$FM$166,$C3&Q$1&","),"") -> 1 | R3: =IF(COUNTIF(Dane2!$F$3:$FM$166,$C3&R$1&",")<>0,COUNTIF(Dane2!$F$3:$FM$166,$C3&R$1&","),"") -> 2 | S3: =IF(COUNTIF(Dane2!$F$3:$FM$166,$C3&S$1&",")<>0,COUNTIF(Dane2!$F$3:$FM$166,$C3&S$1&","),"") -> 2 | T3: =SUM(D3:S3) -> 38 | U3: =T3/$T$27 -> 0.06099518459
B4: B. Produkcja sprzętu telekomunikacyjnego | C4: =LEFT(B4,1) -> B | D4: =IF(COUNTIF(Dane2!$F$3:$FM$166,$C4&D$1&",")<>0,COUNTIF(Dane2!$F$3:$FM$166,$C4&D$1&","),"") -> 5 | E4: =IF(COUNTIF(Dane2!$F$3:$FM$166,$C4&E$1&",")<>0,COUNTIF(Dane2!$F$3:$FM$166,$C4&E$1&","),"") -> 1 | F4: =IF(COUNTIF(Dane2!$F$3:$FM$166,$C4&F$1&",")<>0,COUNTIF(Dane2!$F$3:$FM$166,$C4&F$1&","),"") ->  | G4: =IF(COUNTIF(Dane2!$F$3:$FM$166,$C4&G$1&",")<>0,COUNTIF(Dane2!$F$3:$FM$166,$C4&G$1&","),"") ->  | H4: =IF(COUNTIF(Dane2!$F$3:$FM$166,$C4&H$1&",")<>0,COUNTIF(Dane2!$F$3:$FM$166,$C4&H$1&","),"") ->  | I4: =IF(COUNTIF(Dane2!$F$3:$FM$166,$C4&I$1&",")<>0,COUNTIF(Dane2!$F$3:$FM$166,$C4&I$1&","),"") -> 4 | J4: =IF(COUNTIF(Dane2!$F$3:$FM$166,$C4&J$1&",")<>0,COUNTIF(Dane2!$F$3:$FM$166,$C4&J$1&","),"") ->  | K4: =IF(COUNTIF(Dane2!$F$3:$FM$166,$C4&K$1&",")<>0,COUNTIF(Dane2!$F$3:$FM$166,$C4&K$1&","),"") ->  | L4: =IF(COUNTIF(Dane2!$F$3:$FM$166,$C4&L$1&",")<>0,COUNTIF(Dane2!$F$3:$FM$166,$C4&L$1&","),"") -> 3 | M4: =IF(COUNTIF(Dane2!$F$3:$FM$166,$C4&M$1&",")<>0,COUNTIF(Dane2!$F$3:$FM$166,$C4&M$1&","),"") -> 6 | N4: =IF(COUNTIF(Dane2!$F$3:$FM$166,$C4&N$1&",")<>0,COUNTIF(Dane2!$F$3:$FM$166,$C4&N$1&","),"") ->  | O4: =IF(COUNTIF(Dane2!$F$3:$FM$166,$C4&O$1&",")<>0,COUNTIF(Dane2!$F$3:$FM$166,$C4&O$1&","),"") -> 2 | P4: =IF(COUNTIF(Dane2!$F$3:$FM$166,$C4&P$1&",")<>0,COUNTIF(Dane2!$F$3:$FM$166,$C4&P$1&","),"") -> 11 | Q4: =IF(COUNTIF(Dane2!$F$3:$FM$166,$C4&Q$1&",")<>0,COUNTIF(Dane2!$F$3:$FM$166,$C4&Q$1&","),"") -> 1 | R4: =IF(COUNTIF(Dane2!$F$3:$FM$166,$C4&R$1&",")<>0,COUNTIF(Dane2!$F$3:$FM$166,$C4&R$1&","),"") ->  | S4: =IF(COUNTIF(Dane2!$F$3:$FM$166,$C4&S$1&",")<>0,COUNTIF(Dane2!$F$3:$FM$166,$C4&S$1&","),"") -> 1 | T4: =SUM(D4:S4) -> 34 | U4: =T4/$T$27 -> 0.05457463884
B5: C. Produkcja oprogramowania, w tym na zamówienie | C5: C | D5: =IF(COUNTIF(Dane2!$F$3:$FM$166,$C5&D$1&",")<>0,COUNTIF(Dane2!$F$3:$FM$166,$C5&D$1&","),"") -> 9 | E5: =IF(COUNTIF(Dane2!$F$3:$FM$166,$C5&E$1&",")<>0,COUNTIF(Dane2!$F$3:$FM$166,$C5&E$1&","),"") -> 13 | F5: =IF(COUNTIF(Dane2!$F$3:$FM$166,$C5&F$1&",")<>0,COUNTIF(Dane2!$F$3:$FM$166,$C5&F$1&","),"") -> 8 | G5: =IF(COUNTIF(Dane2!$F$3:$FM$166,$C5&G$1&",")<>0,COUNTIF(Dane2!$F$3:$FM$166,$C5&G$1&","),"") ->  | H5: =IF(COUNTIF(Dane2!$F$3:$FM$166,$C5&H$1&",")<>0,COUNTIF(Dane2!$F$3:$FM$166,$C5&H$1&","),"") -> 2 | I5: =IF(COUNTIF(Dane2!$F$3:$FM$166,$C5&I$1&",")<>0,COUNTIF(Dane2!$F$3:$FM$166,$C5&I$1&","),"") -> 18 | J5: =IF(COUNTIF(Dane2!$F$3:$FM$166,$C5&J$1&",")<>0,COUNTIF(Dane2!$F$3:$FM$166,$C5&J$1&","),"") -> 1 | K5: =IF(COUNTIF(Dane2!$F$3:$FM$166,$C5&K$1&",")<>0,COUNTIF(Dane2!$F$3:$FM$166,$C5&K$1&","),"") -> 8 | L5: =IF(COUNTIF(Dane2!$F$3:$FM$166,$C5&L$1&",")<>0,COUNTIF(Dane2!$F$3:$FM$166,$C5&L$1&","),"") -> 7 | M5: =IF(COUNTIF(Dane2!$F$3:$FM$166,$C5&M$1&",")<>0,COUNTIF(Dane2!$F$3:$FM$166,$C5&M$1&","),"") -> 6 | N5: =IF(COUNTIF(Dane2!$F$3:$FM$166,$C5&N$1&",")<>0,COUNTIF(Dane2!$F$3:$FM$166,$C5&N$1&","),"") -> 2 | O5: =IF(COUNTIF(Dane2!$F$3:$FM$166,$C5&O$1&",")<>0,COUNTIF(Dane2!$F$3:$FM$166,$C5&O$1&","),"") -> 7 | P5: =IF(COUNTIF(Dane2!$F$3:$FM$166,$C5&P$1&",")<>0,COUNTIF(Dane2!$F$3:$FM$166,$C5&P$1&","),"") -> 26 | Q5: =IF(COUNTIF(Dane2!$F$3:$FM$166,$C5&Q$1&",")<>0,COUNTIF(Dane2!$F$3:$FM$166,$C5&Q$1&","),"") -> 5 | R5: =IF(COUNTIF(Dane2!$F$3:$FM$166,$C5&R$1&",")<>0,COUNTIF(Dane2!$F$3:$FM$166,$C5&R$1&","),"") -> 7 | S5: =IF(COUNTIF(Dane2!$F$3:$FM$166,$C5&S$1&",")<>0,COUNTIF(Dane2!$F$3:$FM$166,$C5&S$1&","),"") -> 4 | T5: 123 | U5: 0.1974317817
B6: D. Instalacje sprzętu | C6: D | D6: =IF(COUNTIF(Dane2!$F$3:$FM$166,$C6&D$1&",")<>0,COUNTIF(Dane2!$F$3:$FM$166,$C6&D$1&","),"") -> 1 | E6: =IF(COUNTIF(Dane2!$F$3:$FM$166,$C6&E$1&",")<>0,COUNTIF(Dane2!$F$3:$FM$166,$C6&E$1&","),"") -> 3 | F6: =IF(COUNTIF(Dane2!$F$3:$FM$166,$C6&F$1&",")<>0,COUNTIF(Dane2!$F$3:$FM$166,$C6&F$1&","),"") ->  | G6: =IF(COUNTIF(Dane2!$F$3:$FM$166,$C6&G$1&",")<>0,COUNTIF(Dane2!$F$3:$FM$166,$C6&G$1&","),"") ->  | H6: =IF(COUNTIF(Dane2!$F$3:$FM$166,$C6&H$1&",")<>0,COUNTIF(Dane2!$F$3:$FM$166,$C6&H$1&","),"") -> 1 | I6: =IF(COUNTIF(Dane2!$F$3:$FM$166,$C6&I$1&",")<>0,COUNTIF(Dane2!$F$3:$FM$166,$C6&I$1&","),"") -> 6 | J6: =IF(COUNTIF(Dane2!$F$3:$FM$166,$C6&J$1&",")<>0,COUNTIF(Dane2!$F$3:$FM$166,$C6&J$1&","),"") -> 1 | K6: =IF(COUNTIF(Dane2!$F$3:$FM$166,$C6&K$1&",")<>0,COUNTIF(Dane2!$F$3:$FM$166,$C6&K$1&","),"") ->  | L6: =IF(COUNTIF(Dane2!$F$3:$FM$166,$C6&L$1&",")<>0,COUNTIF(Dane2!$F$3:$FM$166,$C6&L$1&","),"") ->  | M6: =IF(COUNTIF(Dane2!$F$3:$FM$166,$C6&M$1&",")<>0,COUNTIF(Dane2!$F$3:$FM$166,$C6&M$1&","),"") -> 1 | N6: =IF(COUNTIF(Dane2!$F$3:$FM$166,$C6&N$1&",")<>0,COUNTIF(Dane2!$F$3:$FM$166,$C6&N$1&","),"") -> 1 | O6: =IF(COUNTIF(Dane2!$F$3:$FM$166,$C6&O$1&",")<>0,COUNTIF(Dane2!$F$3:$FM$166,$C6&O$1&","),"") -> 1 | P6: =IF(COUNTIF(Dane2!$F$3:$FM$166,$C6&P$1&",")<>0,COUNTIF(Dane2!$F$3:$FM$166,$C6&P$1&","),"") -> 7 | Q6: =IF(COUNTIF(Dane2!$F$3:$FM$166,$C6&Q$1&",")<>0,COUNTIF(Dane2!$F$3:$FM$166,$C6&Q$1&","),"") ->  | R6: =IF(COUNTIF(Dane2!$F$3:$FM$166,$C6&R$1&",")<>0,COUNTIF(Dane2!$F$3:$FM$166,$C6&R$1&","),"") ->  | S6: =IF(COUNTIF(Dane2!$F$3:$FM$166,$C6&S$1&",")<>0,COUNTIF(Dane2!$F$3:$FM$166,$C6&S$1&","),"") ->  | T6: 22 | U6: 0.03531300161
B7: E. Integracja systemów IT | C7: E | D7: =IF(COUNTIF(Dane2!$F$3:$FM$166,$C7&D$1&",")<>0,COUNTIF(Dane2!$F$3:$FM$166,$C7&D$1&","),"") -> 2 | E7: =IF(COUNTIF(Dane2!$F$3:$FM$166,$C7&E$1&",")<>0,COUNTIF(Dane2!$F$3:$FM$166,$C7&E$1&","),"") -> 2 | F7: =IF(COUNTIF(Dane2!$F$3:$FM$166,$C7&F$1&",")<>0,COUNTIF(Dane2!$F$3:$FM$166,$C7&F$1&","),"") ->  | G7: =IF(COUNTIF(Dane2!$F$3:$FM$166,$C7&G$1&",")<>0,COUNTIF(Dane2!$F$3:$FM$166,$C7&G$1&","),"") ->  | H7: =IF(COUNTIF(Dane2!$F$3:$FM$166,$C7&H$1&",")<>0,COUNTIF(Dane2!$F$3:$FM$166,$C7&H$1&","),"") -> 1 | I7: =IF(COUNTIF(Dane2!$F$3:$FM$166,$C7&I$1&",")<>0,COUNTIF(Dane2!$F$3:$FM$166,$C7&I$1&","),"") -> 7 | J7: =IF(COUNTIF(Dane2!$F$3:$FM$166,$C7&J$1&",")<>0,COUNTIF(Dane2!$F$3:$FM$166,$C7&J$1&","),"") -> 1 | K7: =IF(COUNTIF(Dane2!$F$3:$FM$166,$C7&K$1&",")<>0,COUNTIF(Dane2!$F$3:$FM$166,$C7&K$1&","),"") -> 1 | L7: =IF(COUNTIF(Dane2!$F$3:$FM$166,$C7&L$1&",")<>0,COUNTIF(Dane2!$F$3:$FM$166,$C7&L$1&","),"") ->  | M7: =IF(COUNTIF(Dane2!$F$3:$FM$166,$C7&M$1&",")<>0,COUNTIF(Dane2!$F$3:$FM$166,$C7&M$1&","),"") -> 1 | N7: =IF(COUNTIF(Dane2!$F$3:$FM$166,$C7&N$1&",")<>0,COUNTIF(Dane2!$F$3:$FM$166,$C7&N$1&","),"") -> 1 | O7: =IF(COUNTIF(Dane2!$F$3:$FM$166,$C7&O$1&",")<>0,COUNTIF(Dane2!$F$3:$FM$166,$C7&O$1&","),"") -> 2 | P7: =IF(COUNTIF(Dane2!$F$3:$FM$166,$C7&P$1&",")<>0,COUNTIF(Dane2!$F$3:$FM$166,$C7&P$1&","),"") -> 6 | Q7: =IF(COUNTIF(Dane2!$F$3:$FM$166,$C7&Q$1&",")<>0,COUNTIF(Dane2!$F$3:$FM$166,$C7&Q$1&","),"") -> 1 | R7: =IF(COUNTIF(Dane2!$F$3:$FM$166,$C7&R$1&",")<>0,COUNTIF(Dane2!$F$3:$FM$166,$C7&R$1&","),"") -> 2 | S7: =IF(COUNTIF(Dane2!$F$3:$FM$166,$C7&S$1&",")<>0,COUNTIF(Dane2!$F$3:$FM$166,$C7&S$1&","),"") ->  | T7: 27 | U7: 0.04333868379
B8: F. Wdrożenia oprogramowania | C8: F | D8: =IF(COUNTIF(Dane2!$F$3:$FM$166,$C8&D$1&",")<>0,COUNTIF(Dane2!$F$3:$FM$166,$C8&D$1&","),"") -> 5 | E8: =IF(COUNTIF(Dane2!$F$3:$FM$166,$C8&E$1&",")<>0,COUNTIF(Dane2!$F$3:$FM$166,$C8&E$1&","),"") -> 3 | F8: =IF(COUNTIF(Dane2!$F$3:$FM$166,$C8&F$1&",")<>0,COUNTIF(Dane2!$F$3:$FM$166,$C8&F$1&","),"") -> 2 | G8: =IF(COUNTIF(Dane2!$F$3:$FM$166,$C8&G$1&",")<>0,COUNTIF(Dane2!$F$3:$FM$166,$C8&G$1&","),"") ->  | H8: =IF(COUNTIF(Dane2!$F$3:$FM$166,$C8&H$1&",")<>0,COUNTIF(Dane2!$F$3:$FM$166,$C8&H$1&","),"") -> 1 | I8: =IF(COUNTIF(Dane2!$F$3:$FM$166,$C8&I$1&",")<>0,COUNTIF(Dane2!$F$3:$FM$166,$C8&I$1&","),"") -> 8 | J8: =IF(COUNTIF(Dane2!$F$3:$FM$166,$C8&J$1&",")<>0,COUNTIF(Dane2!$F$3:$FM$166,$C8&J$1&","),"") -> 1 | K8: =IF(COUNTIF(Dane2!$F$3:$FM$166,$C8&K$1&",")<>0,COUNTIF(Dane2!$F$3:$FM$166,$C8&K$1&","),"") -> 1 | L8: =IF(COUNTIF(Dane2!$F$3:$FM$166,$C8&L$1&",")<>0,COUNTIF(Dane2!$F$3:$FM$166,$C8&L$1&","),"") ->  | M8: =IF(COUNTIF(Dane2!$F$3:$FM$166,$C8&M$1&",")<>0,COUNTIF(Dane2!$F$3:$FM$166,$C8&M$1&","),"") -> 1 | N8: =IF(COUNTIF(Dane2!$F$3:$FM$166,$C8&N$1&",")<>0,COUNTIF(Dane2!$F$3:$FM$166,$C8&N$1&","),"") -> 2 | O8: =IF(COUNTIF(Dane2!$F$3:$FM$166,$C8&O$1&",")<>0,COUNTIF(Dane2!$F$3:$FM$166,$C8&O$1&","),"") -> 2 | P8: =IF(COUNTIF(Dane2!$F$3:$FM$166,$C8&P$1&",")<>0,COUNTIF(Dane2!$F$3:$FM$166,$C8&P$1&","),"") -> 7 | Q8: =IF(COUNTIF(Dane2!$F$3:$FM$166,$C8&Q$1&",")<>0,COUNTIF(Dane2!$F$3:$FM$166,$C8&Q$1&","),"") -> 2 | R8: =IF(COUNTIF(Dane2!$F$3:$FM$166,$C8&R$1&",")<>0,COUNTIF(Dane2!$F$3:$FM$166,$C8&R$1&","),"") -> 3 | S8: =IF(COUNTIF(Dane2!$F$3:$FM$166,$C8&S$1&",")<>0,COUNTIF(Dane2!$F$3:$FM$166,$C8&S$1&","),"") -> 6 | T8: 44 | U8: 0.07062600321
B9: G. Projektowanie, budowa i instalacje sieci IT | C9: G | D9: =IF(COUNTIF(Dane2!$F$3:$FM$166,$C9&D$1&",")<>0,COUNTIF(Dane2!$F$3:$FM$166,$C9&D$1&","),"") -> 5 | E9: =IF(COUNTIF(Dane2!$F$3:$FM$166,$C9&E$1&",")<>0,COUNTIF(Dane2!$F$3:$FM$166,$C9&E$1&","),"") -> 6 | F9: =IF(COUNTIF(Dane2!$F$3:$FM$166,$C9&F$1&",")<>0,COUNTIF(Dane2!$F$3:$FM$166,$C9&F$1&","),"") -> 4 | G9: =IF(COUNTIF(Dane2!$F$3:$FM$166,$C9&G$1&",")<>0,COUNTIF(Dane2!$F$3:$FM$166,$C9&G$1&","),"") ->  | H9: =IF(COUNTIF(Dane2!$F$3:$FM$166,$C9&H$1&",")<>0,COUNTIF(Dane2!$F$3:$FM$166,$C9&H$1&","),"") -> 1 | I9: =IF(COUNTIF(Dane2!$F$3:$FM$166,$C9&I$1&",")<>0,COUNTIF(Dane2!$F$3:$FM$166,$C9&I$1&","),"") -> 9 | J9: =IF(COUNTIF(Dane2!$F$3:$FM$166,$C9&J$1&",")<>0,COUNTIF(Dane2!$F$3:$FM$166,$C9&J$1&","),"") -> 1 | K9: =IF(COUNTIF(Dane2!$F$3:$FM$166,$C9&K$1&",")<>0,COUNTIF(Dane2!$F$3:$FM$166,$C9&K$1&","),"") ->  | L9: =IF(COUNTIF(Dane2!$F$3:$FM$166,$C9&L$1&",")<>0,COUNTIF(Dane2!$F$3:$FM$166,$C9&L$1&","),"") -> 3 | M9: =IF(COUNTIF(Dane2!$F$3:$FM$166,$C9&M$1&",")<>0,COUNTIF(Dane2!$F$3:$FM$166,$C9&M$1&","),"") -> 1 | N9: =IF(COUNTIF(Dane2!$F$3:$FM$166,$C9&N$1&",")<>0,COUNTIF(Dane2!$F$3:$FM$166,$C9&N$1&","),"") -> 1 | O9: =IF(COUNTIF(Dane2!$F$3:$FM$166,$C9&O$1&",")<>0,COUNTIF(Dane2!$F$3:$FM$166,$C9&O$1&","),"") -> 2 | P9: =IF(COUNTIF(Dane2!$F$3:$FM$166,$C9&P$1&",")<>0,COUNTIF(Dane2!$F$3:$FM$166,$C9&P$1&","),"") -> 13 | Q9: =IF(COUNTIF(Dane2!$F$3:$FM$166,$C9&Q$1&",")<>0,COUNTIF(Dane2!$F$3:$FM$166,$C9&Q$1&","),"") -> 1 | R9: =IF(COUNTIF(Dane2!$F$3:$FM$166,$C9&R$1&",")<>0,COUNTIF(Dane2!$F$3:$FM$166,$C9&R$1&","),"") -> 3 | S9: =IF(COUNTIF(Dane2!$F$3:$FM$166,$C9&S$1&",")<>0,COUNTIF(Dane2!$F$3:$FM$166,$C9&S$1&","),"") ->  | T9: 50 | U9: 0.08025682183
B10: H. Szkolenia IT | C10: H | D10: =IF(COUNTIF(Dane2!$F$3:$FM$166,$C10&D$1&",")<>0,COUNTIF(Dane2!$F$3:$FM$166,$C10&D$1&","),"") -> 4 | E10: =IF(COUNTIF(Dane2!$F$3:$FM$166,$C10&E$1&",")<>0,COUNTIF(Dane2!$F$3:$FM$166,$C10&E$1&","),"") -> 1 | F10: =IF(COUNTIF(Dane2!$F$3:$FM$166,$C10&F$1&",")<>0,COUNTIF(Dane2!$F$3:$FM$166,$C10&F$1&","),"") ->  | G10: =IF(COUNTIF(Dane2!$F$3:$FM$166,$C10&G$1&",")<>0,COUNTIF(Dane2!$F$3:$FM$166,$C10&G$1&","),"") ->  | H10: =IF(COUNTIF(Dane2!$F$3:$FM$166,$C10&H$1&",")<>0,COUNTIF(Dane2!$F$3:$FM$166,$C10&H$1&","),"") ->  | I10: =IF(COUNTIF(Dane2!$F$3:$FM$166,$C10&I$1&",")<>0,COUNTIF(Dane2!$F$3:$FM$166,$C10&I$1&","),"") -> 9 | J10: =IF(COUNTIF(Dane2!$F$3:$FM$166,$C10&J$1&",")<>0,COUNTIF(Dane2!$F$3:$FM$166,$C10&J$1&","),"") -> 1 | K10: =IF(COUNTIF(Dane2!$F$3:$FM$166,$C10&K$1&",")<>0,COUNTIF(Dane2!$F$3:$FM$166,$C10&K$1&","),"") ->  | L10: =IF(COUNTIF(Dane2!$F$3:$FM$166,$C10&L$1&",")<>0,COUNTIF(Dane2!$F$3:$FM$166,$C10&L$1&","),"") ->  | M10: =IF(COUNTIF(Dane2!$F$3:$FM$166,$C10&M$1&",")<>0,COUNTIF(Dane2!$F$3:$FM$166,$C10&M$1&","),"") -> 1 | N10: =IF(COUNTIF(Dane2!$F$3:$FM$166,$C10&N$1&",")<>0,COUNTIF(Dane2!$F$3:$FM$166,$C10&N$1&","),"") ->  | O10: =IF(COUNTIF(Dane2!$F$3:$FM$166,$C10&O$1&",")<>0,COUNTIF(Dane2!$F$3:$FM$166,$C10&O$1&","),"") -> 1 | P10: =IF(COUNTIF(Dane2!$F$3:$FM$166,$C10&P$1&",")<>0,COUNTIF(Dane2!$F$3:$FM$166,$C10&P$1&","),"") -> 5 | Q10: =IF(COUNTIF(Dane2!$F$3:$FM$166,$C10&Q$1&",")<>0,COUNTIF(Dane2!$F$3:$FM$166,$C10&Q$1&","),"") ->  | R10: =IF(COUNTIF(Dane2!$F$3:$FM$166,$C10&R$1&",")<>0,COUNTIF(Dane2!$F$3:$FM$166,$C10&R$1&","),"") -> 1 | S10: =IF(COUNTIF(Dane2!$F$3:$FM$166,$C10&S$1&",")<>0,COUNTIF(Dane2!$F$3:$FM$166,$C10&S$1&","),"") ->  | T10: 23 | U10: 0.03691813804
B11: I. Doradztwo IT | C11: I | D11: =IF(COUNTIF(Dane2!$F$3:$FM$166,$C11&D$1&",")<>0,COUNTIF(Dane2!$F$3:$FM$166,$C11&D$1&","),"") -> 9 | E11: =IF(COUNTIF(Dane2!$F$3:$FM$166,$C11&E$1&",")<>0,COUNTIF(Dane2!$F$3:$FM$166,$C11&E$1&","),"") -> 12 | F11: =IF(COUNTIF(Dane2!$F$3:$FM$166,$C11&F$1&",")<>0,COUNTIF(Dane2!$F$3:$FM$166,$C11&F$1&","),"") -> 11 | G11: =IF(COUNTIF(Dane2!$F$3:$FM$166,$C11&G$1&",")<>0,COUNTIF(Dane2!$F$3:$FM$166,$C11&G$1&","),"") -> 2 | H11: =IF(COUNTIF(Dane2!$F$3:$FM$166,$C11&H$1&",")<>0,COUNTIF(Dane2!$F$3:$FM$166,$C11&H$1&","),"") -> 2 | I11: =IF(COUNTIF(Dane2!$F$3:$FM$166,$C11&I$1&",")<>0,COUNTIF(Dane2!$F$3:$FM$166,$C11&I$1&","),"") -> 13 | J11: =IF(COUNTIF(Dane2!$F$3:$FM$166,$C11&J$1&",")<>0,COUNTIF(Dane2!$F$3:$FM$166,$C11&J$1&","),"") ->  | K11: =IF(COUNTIF(Dane2!$F$3:$FM$166,$C11&K$1&",")<>0,COUNTIF(Dane2!$F$3:$FM$166,$C11&K$1&","),"") -> 12 | L11: =IF(COUNTIF(Dane2!$F$3:$FM$166,$C11&L$1&",")<>0,COUNTIF(Dane2!$F$3:$FM$166,$C11&L$1&","),"") -> 5 | M11: =IF(COUNTIF(Dane2!$F$3:$FM$166,$C11&M$1&",")<>0,COUNTIF(Dane2!$F$3:$FM$166,$C11&M$1&","),"") -> 6 | N11: =IF(COUNTIF(Dane2!$F$3:$FM$166,$C11&N$1&",")<>0,COUNTIF(Dane2!$F$3:$FM$166,$C11&N$1&","),"") -> 1 | O11: =IF(COUNTIF(Dane2!$F$3:$FM$166,$C11&O$1&",")<>0,COUNTIF(Dane2!$F$3:$FM$166,$C11&O$1&","),"") -> 7 | P11: =IF(COUNTIF(Dane2!$F$3:$FM$166,$C11&P$1&",")<>0,COUNTIF(Dane2!$F$3:$FM$166,$C11&P$1&","),"") -> 13 | Q11: =IF(COUNTIF(Dane2!$F$3:$FM$166,$C11&Q$1&",")<>0,COUNTIF(Dane2!$F$3:$FM$166,$C11&Q$1&","),"") -> 1 | R11: =IF(COUNTIF(Dane2!$F$3:$FM$166,$C11&R$1&",")<>0,COUNTIF(Dane2!$F$3:$FM$166,$C11&R$1&","),"") -> 2 | S11: =IF(COUNTIF(Dane2!$F$3:$FM$166,$C11&S$1&",")<>0,COUNTIF(Dane2!$F$3:$FM$166,$C11&S$1&","),"") ->  | T11: 96 | U11: 0.1540930979
B12: J. Outsourcing IT, wyłączając przetwarzanie danych | C12: J | D12: =IF(COUNTIF(Dane2!$F$3:$FM$166,$C12&D$1&",")<>0,COUNTIF(Dane2!$F$3:$FM$166,$C12&D$1&","),"") ->  | E12: =IF(COUNTIF(Dane2!$F$3:$FM$166,$C12&E$1&",")<>0,COUNTIF(Dane2!$F$3:$FM$166,$C12&E$1&","),"") -> 3 | F12: =IF(COUNTIF(Dane2!$F$3:$FM$166,$C12&F$1&",")<>0,COUNTIF(Dane2!$F$3:$FM$166,$C12&F$1&","),"") -> 3 | G12: =IF(COUNTIF(Dane2!$F$3:$FM$166,$C12&G$1&",")<>0,COUNTIF(Dane2!$F$3:$FM$166,$C12&G$1&","),"") ->  | H12: =IF(COUNTIF(Dane2!$F$3:$FM$166,$C12&H$1&",")<>0,COUNTIF(Dane2!$F$3:$FM$166,$C12&H$1&","),"") -> 1 | I12: =IF(COUNTIF(Dane2!$F$3:$FM$166,$C12&I$1&",")<>0,COUNTIF(Dane2!$F$3:$FM$166,$C12&I$1&","),"") -> 1 | J12: =IF(COUNTIF(Dane2!$F$3:$FM$166,$C12&J$1&",")<>0,COUNTIF(Dane2!$F$3:$FM$166,$C12&J$1&","),"") ->  | K12: =IF(COUNTIF(Dane2!$F$3:$FM$166,$C12&K$1&",")<>0,COUNTIF(Dane2!$F$3:$FM$166,$C12&K$1&","),"") ->  | L12: =IF(COUNTIF(Dane2!$F$3:$FM$166,$C12&L$1&",")<>0,COUNTIF(Dane2!$F$3:$FM$166,$C12&L$1&","),"") ->  | M12: =IF(COUNTIF(Dane2!$F$3:$FM$166,$C12&M$1&",")<>0,COUNTIF(Dane2!$F$3:$FM$166,$C12&M$1&","),"") -> 1 | N12: =IF(COUNTIF(Dane2!$F$3:$FM$166,$C12&N$1&",")<>0,COUNTIF(Dane2!$F$3:$FM$166,$C12&N$1&","),"") ->  | O12: =IF(COUNTIF(Dane2!$F$3:$FM$166,$C12&O$1&",")<>0,COUNTIF(Dane2!$F$3:$FM$166,$C12&O$1&","),"") ->  | P12: =IF(COUNTIF(Dane2!$F$3:$FM$166,$C12&P$1&",")<>0,COUNTIF(Dane2!$F$3:$FM$166,$C12&P$1&","),"") -> 4 | Q12: =IF(COUNTIF(Dane2!$F$3:$FM$166,$C12&Q$1&",")<>0,COUNTIF(Dane2!$F$3:$FM$166,$C12&Q$1&","),"") ->  | R12: =IF(COUNTIF(Dane2!$F$3:$FM$166,$C12&R$1&",")<>0,COUNTIF(Dane2!$F$3:$FM$166,$C12&R$1&","),"") ->  | S12: =IF(COUNTIF(Dane2!$F$3:$FM$166,$C12&S$1&",")<>0,COUNTIF(Dane2!$F$3:$FM$166,$C12&S$1&","),"") ->  | T12: 13 | U12: 0.02086677368
B13: K. Outsourcing przetwarzania danych | C13: K | D13: =IF(COUNTIF(Dane2!$F$3:$FM$166,$C13&D$1&",")<>0,COUNTIF(Dane2!$F$3:$FM$166,$C13&D$1&","),"") -> 3 | E13: =IF(COUNTIF(Dane2!$F$3:$FM$166,$C13&E$1&",")<>0,COUNTIF(Dane2!$F$3:$FM$166,$C13&E$1&","),"") -> 1 | F13: =IF(COUNTIF(Dane2!$F$3:$FM$166,$C13&F$1&",")<>0,COUNTIF(Dane2!$F$3:$FM$166,$C13&F$1&","),"") -> 1 | G13: =IF(COUNTIF(Dane2!$F$3:$FM$166,$C13&G$1&",")<>0,COUNTIF(Dane2!$F$3:$FM$166,$C13&G$1&","),"") ->  | H13: =IF(COUNTIF(Dane2!$F$3:$FM$166,$C13&H$1&",")<>0,COUNTIF(Dane2!$F$3:$FM$166,$C13&H$1&","),"") ->  | I13: =IF(COUNTIF(Dane2!$F$3:$FM$166,$C13&I$1&",")<>0,COUNTIF(Dane2!$F$3:$FM$166,$C13&I$1&","),"") -> 2 | J13: =IF(COUNTIF(Dane2!$F$3:$FM$166,$C13&J$1&",")<>0,COUNTIF(Dane2!$F$3:$FM$166,$C13&J$1&","),"") ->  | K13: =IF(COUNTIF(Dane2!$F$3:$FM$166,$C13&K$1&",")<>0,COUNTIF(Dane2!$F$3:$FM$166,$C13&K$1&","),"") ->  | L13: =IF(COUNTIF(Dane2!$F$3:$FM$166,$C13&L$1&",")<>0,COUNTIF(Dane2!$F$3:$FM$166,$C13&L$1&","),"") ->  | M13: =IF(COUNTIF(Dane2!$F$3:$FM$166,$C13&M$1&",")<>0,COUNTIF(Dane2!$F$3:$FM$166,$C13&M$1&","),"") -> 1 | N13: =IF(COUNTIF(Dane2!$F$3:$FM$166,$C13&N$1&",")<>0,COUNTIF(Dane2!$F$3:$FM$166,$C13&N$1&","),"") ->  | O13: =IF(COUNTIF(Dane2!$F$3:$FM$166,$C13&O$1&",")<>0,COUNTIF(Dane2!$F$3:$FM$166,$C13&O$1&","),"") ->  | P13: =IF(COUNTIF(Dane2!$F$3:$FM$166,$C13&P$1&",")<>0,COUNTIF(Dane2!$F$3:$FM$166,$C13&P$1&","),"") -> 3 | Q13: =IF(COUNTIF(Dane2!$F$3:$FM$166,$C13&Q$1&",")<>0,COUNTIF(Dane2!$F$3:$FM$166,$C13&Q$1&","),"") ->  | R13: =IF(COUNTIF(Dane2!$F$3:$FM$166,$C13&R$1&",")<>0,COUNTIF(Dane2!$F$3:$FM$166,$C13&R$1&","),"") -> 1 | S13: =IF(COUNTIF(Dane2!$F$3:$FM$166,$C13&S$1&",")<>0,COUNTIF(Dane2!$F$3:$FM$166,$C13&S$1&","),"") ->  | T13: 12 | U13: 0.01926163724
B14: L. Usługi serwisowe IT | C14: L | D14: =IF(COUNTIF(Dane2!$F$3:$FM$166,$C14&D$1&",")<>0,COUNTIF(Dane2!$F$3:$FM$166,$C14&D$1&","),"") ->  | E14: =IF(COUNTIF(Dane2!$F$3:$FM$166,$C14&E$1&",")<>0,COUNTIF(Dane2!$F$3:$FM$166,$C14&E$1&","),"") ->  | F14: =IF(COUNTIF(Dane2!$F$3:$FM$166,$C14&F$1&",")<>0,COUNTIF(Dane2!$F$3:$FM$166,$C14&F$1&","),"") ->  | G14: =IF(COUNTIF(Dane2!$F$3:$FM$166,$C14&G$1&",")<>0,COUNTIF(Dane2!$F$3:$FM$166,$C14&G$1&","),"") ->  | H14: =IF(COUNTIF(Dane2!$F$3:$FM$166,$C14&H$1&",")<>0,COUNTIF(Dane2!$F$3:$FM$166,$C14&H$1&","),"") ->  | I14: =IF(COUNTIF(Dane2!$F$3:$FM$166,$C14&I$1&",")<>0,COUNTIF(Dane2!$F$3:$FM$166,$C14&I$1&","),"") -> 2 | J14: =IF(COUNTIF(Dane2!$F$3:$FM$166,$C14&J$1&",")<>0,COUNTIF(Dane2!$F$3:$FM$166,$C14&J$1&","),"") ->  | K14: =IF(COUNTIF(Dane2!$F$3:$FM$166,$C14&K$1&",")<>0,COUNTIF(Dane2!$F$3:$FM$166,$C14&K$1&","),"") ->  | L14: =IF(COUNTIF(Dane2!$F$3:$FM$166,$C14&L$1&",")<>0,COUNTIF(Dane2!$F$3:$FM$166,$C14&L$1&","),"") ->  | M14: =IF(COUNTIF(Dane2!$F$3:$FM$166,$C14&M$1&",")<>0,COUNTIF(Dane2!$F$3:$FM$166,$C14&M$1&","),"") ->  | N14: =IF(COUNTIF(Dane2!$F$3:$FM$166,$C14&N$1&",")<>0,COUNTIF(Dane2!$F$3:$FM$166,$C14&N$1&","),"") ->  | O14: =IF(COUNTIF(Dane2!$F$3:$FM$166,$C14&O$1&",")<>0,COUNTIF(Dane2!$F$3:$FM$166,$C14&O$1&","),"") ->  | P14: =IF(COUNTIF(Dane2!$F$3:$FM$166,$C14&P$1&",")<>0,COUNTIF(Dane2!$F$3:$FM$166,$C14&P$1&","),"") -> 1 | Q14: =IF(COUNTIF(Dane2!$F$3:$FM$166,$C14&Q$1&",")<>0,COUNTIF(Dane2!$F$3:$FM$166,$C14&Q$1&","),"") ->  | R14: =IF(COUNTIF(Dane2!$F$3:$FM$166,$C14&R$1&",")<>0,COUNTIF(Dane2!$F$3:$FM$166,$C14&R$1&","),"") ->  | S14: =IF(COUNTIF(Dane2!$F$3:$FM$166,$C14&S$1&",")<>0,COUNTIF(Dane2!$F$3:$FM$166,$C14&S$1&","),"") ->  | T14: 3 | U14: 0.00481540931
B15: M. Inne usługi IT | C15: M | D15: =IF(COUNTIF(Dane2!$F$3:$FM$166,$C15&D$1&",")<>0,COUNTIF(Dane2!$F$3:$FM$166,$C15&D$1&","),"") -> 4 | E15: =IF(COUNTIF(Dane2!$F$3:$FM$166,$C15&E$1&",")<>0,COUNTIF(Dane2!$F$3:$FM$166,$C15&E$1&","),"") -> 1 | F15: =IF(COUNTIF(Dane2!$F$3:$FM$166,$C15&F$1&",")<>0,COUNTIF(Dane2!$F$3:$FM$166,$C15&F$1&","),"") -> 1 | G15: =IF(COUNTIF(Dane2!$F$3:$FM$166,$C15&G$1&",")<>0,COUNTIF(Dane2!$F$3:$FM$166,$C15&G$1&","),"") ->  | H15: =IF(COUNTIF(Dane2!$F$3:$FM$166,$C15&H$1&",")<>0,COUNTIF(Dane2!$F$3:$FM$166,$C15&H$1&","),"") ->  | I15: =IF(COUNTIF(Dane2!$F$3:$FM$166,$C15&I$1&",")<>0,COUNTIF(Dane2!$F$3:$FM$166,$C15&I$1&","),"") -> 5 | J15: =IF(COUNTIF(Dane2!$F$3:$FM$166,$C15&J$1&",")<>0,COUNTIF(Dane2!$F$3:$FM$166,$C15&J$1&","),"") ->  | K15: =IF(COUNTIF(Dane2!$F$3:$FM$166,$C15&K$1&",")<>0,COUNTIF(Dane2!$F$3:$FM$166,$C15&K$1&","),"") ->  | L15: =IF(COUNTIF(Dane2!$F$3:$FM$166,$C15&L$1&",")<>0,COUNTIF(Dane2!$F$3:$FM$166,$C15&L$1&","),"") ->  | M15: =IF(COUNTIF(Dane2!$F$3:$FM$166,$C15&M$1&",")<>0,COUNTIF(Dane2!$F$3:$FM$166,$C15&M$1&","),"") ->  | N15: =IF(COUNTIF(Dane2!$F$3:$FM$166,$C15&N$1&",")<>0,COUNTIF(Dane2!$F$3:$FM$166,$C15&N$1&","),"") ->  | O15: =IF(COUNTIF(Dane2!$F$3:$FM$166,$C15&O$1&",")<>0,COUNTIF(Dane2!$F$3:$FM$166,$C15&O$1&","),"") -> 1 | P15: =IF(COUNTIF(Dane2!$F$3:$FM$166,$C15&P$1&",")<>0,COUNTIF(Dane2!$F$3:$FM$166,$C15&P$1&","),"") -> 9 | Q15: =IF(COUNTIF(Dane2!$F$3:$FM$166,$C15&Q$1&",")<>0,COUNTIF(Dane2!$F$3:$FM$166,$C15&Q$1&","),"") ->  | R15: =IF(COUNTIF(Dane2!$F$3:$FM$166,$C15&R$1&",")<>0,COUNTIF(Dane2!$F$3:$FM$166,$C15&R$1&","),"") -> 9 | S15: =IF(COUNTIF(Dane2!$F$3:$FM$166,$C15&S$1&",")<>0,COUNTIF(Dane2!$F$3:$FM$166,$C15&S$1&","),"") ->  | T15: 30 | U15: 0.0481540931
B16: N. Instalacje i uruchamianie central telekomunikacyjnych | C16: N | D16: =IF(COUNTIF(Dane2!$F$3:$FM$166,$C16&D$1&",")<>0,COUNTIF(Dane2!$F$3:$FM$166,$C16&D$1&","),"") ->  | E16: =IF(COUNTIF(Dane2!$F$3:$FM$166,$C16&E$1&",")<>0,COUNTIF(Dane2!$F$3:$FM$166,$C16&E$1&","),"") ->  | F16: =IF(COUNTIF(Dane2!$F$3:$FM$166,$C16&F$1&",")<>0,COUNTIF(Dane2!$F$3:$FM$166,$C16&F$1&","),"") ->  | G16: =IF(COUNTIF(Dane2!$F$3:$FM$166,$C16&G$1&",")<>0,COUNTIF(Dane2!$F$3:$FM$166,$C16&G$1&","),"") ->  | H16: =IF(COUNTIF(Dane2!$F$3:$FM$166,$C16&H$1&",")<>0,COUNTIF(Dane2!$F$3:$FM$166,$C16&H$1&","),"") ->  | I16: =IF(COUNTIF(Dane2!$F$3:$FM$166,$C16&I$1&",")<>0,COUNTIF(Dane2!$F$3:$FM$166,$C16&I$1&","),"") ->  | J16: =IF(COUNTIF(Dane2!$F$3:$FM$166,$C16&J$1&",")<>0,COUNTIF(Dane2!$F$3:$FM$166,$C16&J$1&","),"") ->  | K16: =IF(COUNTIF(Dane2!$F$3:$FM$166,$C16&K$1&",")<>0,COUNTIF(Dane2!$F$3:$FM$166,$C16&K$1&","),"") ->  | L16: =IF(COUNTIF(Dane2!$F$3:$FM$166,$C16&L$1&",")<>0,COUNTIF(Dane2!$F$3:$FM$166,$C16&L$1&","),"") ->  | M16: =IF(COUNTIF(Dane2!$F$3:$FM$166,$C16&M$1&",")<>0,COUNTIF(Dane2!$F$3:$FM$166,$C16&M$1&","),"") ->  | N16: =IF(COUNTIF(Dane2!$F$3:$FM$166,$C16&N$1&",")<>0,COUNTIF(Dane2!$F$3:$FM$166,$C16&N$1&","),"") ->  | O16: =IF(COUNTIF(Dane2!$F$3:$FM$166,$C16&O$1&",")<>0,COUNTIF(Dane2!$F$3:$FM$166,$C16&O$1&","),"") ->  | P16: =IF(COUNTIF(Dane2!$F$3:$FM$166,$C16&P$1&",")<>0,COUNTIF(Dane2!$F$3:$FM$166,$C16&P$1&","),"") ->  | Q16: =IF(COUNTIF(Dane2!$F$3:$FM$166,$C16&Q$1&",")<>0,COUNTIF(Dane2!$F$3:$FM$166,$C16&Q$1&","),"") ->  | R16: =IF(COUNTIF(Dane2!$F$3:$FM$166,$C16&R$1&",")<>0,COUNTIF(Dane2!$F$3:$FM$166,$C16&R$1&","),"") ->  | S16: =IF(COUNTIF(Dane2!$F$3:$FM$166,$C16&S$1&",")<>0,COUNTIF(Dane2!$F$3:$FM$166,$C16&S$1&","),"") ->  | T16: 0 | U16: 0
B17: O. Projektowanie, budowa, uruchamianie i utrzymanie sieci telekom. | C17: O | D17: =IF(COUNTIF(Dane2!$F$3:$FM$166,$C17&D$1&",")<>0,COUNTIF(Dane2!$F$3:$FM$166,$C17&D$1&","),"") -> 2 | E17: =IF(COUNTIF(Dane2!$F$3:$FM$166,$C17&E$1&",")<>0,COUNTIF(Dane2!$F$3:$FM$166,$C17&E$1&","),"") -> 2 | F17: =IF(COUNTIF(Dane2!$F$3:$FM$166,$C17&F$1&",")<>0,COUNTIF(Dane2!$F$3:$FM$166,$C17&F$1&","),"") ->  | G17: =IF(COUNTIF(Dane2!$F$3:$FM$166,$C17&G$1&",")<>0,COUNTIF(Dane2!$F$3:$FM$166,$C17&G$1&","),"") ->  | H17: =IF(COUNTIF(Dane2!$F$3:$FM$166,$C17&H$1&",")<>0,COUNTIF(Dane2!$F$3:$FM$166,$C17&H$1&","),"") ->  | I17: =IF(COUNTIF(Dane2!$F$3:$FM$166,$C17&I$1&",")<>0,COUNTIF(Dane2!$F$3:$FM$166,$C17&I$1&","),"") -> 2 | J17: =IF(COUNTIF(Dane2!$F$3:$FM$166,$C17&J$1&",")<>0,COUNTIF(Dane2!$F$3:$FM$166,$C17&J$1&","),"") ->  | K17: =IF(COUNTIF(Dane2!$F$3:$FM$166,$C17&K$1&",")<>0,COUNTIF(Dane2!$F$3:$FM$166,$C17&K$1&","),"") ->  | L17: =IF(COUNTIF(Dane2!$F$3:$FM$166,$C17&L$1&",")<>0,COUNTIF(Dane2!$F$3:$FM$166,$C17&L$1&","),"") ->  | M17: =IF(COUNTIF(Dane2!$F$3:$FM$166,$C17&M$1&",")<>0,COUNTIF(Dane2!$F$3:$FM$166,$C17&M$1&","),"") ->  | N17: =IF(COUNTIF(Dane2!$F$3:$FM$166,$C17&N$1&",")<>0,COUNTIF(Dane2!$F$3:$FM$166,$C17&N$1&","),"") ->  | O17: =IF(COUNTIF(Dane2!$F$3:$FM$166,$C17&O$1&",")<>0,COUNTIF(Dane2!$F$3:$FM$166,$C17&O$1&","),"") -> 1 | P17: =IF(COUNTIF(Dane2!$F$3:$FM$166,$C17&P$1&",")<>0,COUNTIF(Dane2!$F$3:$FM$166,$C17&P$1&","),"") -> 6 | Q17: =IF(COUNTIF(Dane2!$F$3:$FM$166,$C17&Q$1&",")<>0,COUNTIF(Dane2!$F$3:$FM$166,$C17&Q$1&","),"") -> 1 | R17: =IF(COUNTIF(Dane2!$F$3:$FM$166,$C17&R$1&",")<>0,COUNTIF(Dane2!$F$3:$FM$166,$C17&R$1&","),"") -> 1 | S17: =IF(COUNTIF(Dane2!$F$3:$FM$166,$C17&S$1&",")<>0,COUNTIF(Dane2!$F$3:$FM$166,$C17&S$1&","),"") ->  | T17: 15 | U17: 0.02407704655
B18: P. Usługi operatorskie TV kablowych | C18: P | D18: =IF(COUNTIF(Dane2!$F$3:$FM$166,$C18&D$1&",")<>0,COUNTIF(Dane2!$F$3:$FM$166,$C18&D$1&","),"") -> 1 | E18: =IF(COUNTIF(Dane2!$F$3:$FM$166,$C18&E$1&",")<>0,COUNTIF(Dane2!$F$3:$FM$166,$C18&E$1&","),"") ->  | F18: =IF(COUNTIF(Dane2!$F$3:$FM$166,$C18&F$1&",")<>0,COUNTIF(Dane2!$F$3:$FM$166,$C18&F$1&","),"") ->  | G18: =IF(COUNTIF(Dane2!$F$3:$FM$166,$C18&G$1&",")<>0,COUNTIF(Dane2!$F$3:$FM$166,$C18&G$1&","),"") ->  | H18: =IF(COUNTIF(Dane2!$F$3:$FM$166,$C18&H$1&",")<>0,COUNTIF(Dane2!$F$3:$FM$166,$C18&H$1&","),"") ->  | I18: =IF(COUNTIF(Dane2!$F$3:$FM$166,$C18&I$1&",")<>0,COUNTIF(Dane2!$F$3:$FM$166,$C18&I$1&","),"") ->  | J18: =IF(COUNTIF(Dane2!$F$3:$FM$166,$C18&J$1&",")<>0,COUNTIF(Dane2!$F$3:$FM$166,$C18&J$1&","),"") ->  | K18: =IF(COUNTIF(Dane2!$F$3:$FM$166,$C18&K$1&",")<>0,COUNTIF(Dane2!$F$3:$FM$166,$C18&K$1&","),"") ->  | L18: =IF(COUNTIF(Dane2!$F$3:$FM$166,$C18&L$1&",")<>0,COUNTIF(Dane2!$F$3:$FM$166,$C18&L$1&","),"") ->  | M18: =IF(COUNTIF(Dane2!$F$3:$FM$166,$C18&M$1&",")<>0,COUNTIF(Dane2!$F$3:$FM$166,$C18&M$1&","),"") ->  | N18: =IF(COUNTIF(Dane2!$F$3:$FM$166,$C18&N$1&",")<>0,COUNTIF(Dane2!$F$3:$FM$166,$C18&N$1&","),"") ->  | O18: =IF(COUNTIF(Dane2!$F$3:$FM$166,$C18&O$1&",")<>0,COUNTIF(Dane2!$F$3:$FM$166,$C18&O$1&","),"") ->  | P18: =IF(COUNTIF(Dane2!$F$3:$FM$166,$C18&P$1&",")<>0,COUNTIF(Dane2!$F$3:$FM$166,$C18&P$1&","),"") -> 2 | Q18: =IF(COUNTIF(Dane2!$F$3:$FM$166,$C18&Q$1&",")<>0,COUNTIF(Dane2!$F$3:$FM$166,$C18&Q$1&","),"") ->  | R18: =IF(COUNTIF(Dane2!$F$3:$FM$166,$C18&R$1&",")<>0,COUNTIF(Dane2!$F$3:$FM$166,$C18&R$1&","),"") ->  | S18: =IF(COUNTIF(Dane2!$F$3:$FM$166,$C18&S$1&",")<>0,COUNTIF(Dane2!$F$3:$FM$166,$C18&S$1&","),"") ->  | T18: 3 | U18: 0.00481540931
B19: Q. Usługi operatorskie transmisji danych | C19: Q | D19: =IF(COUNTIF(Dane2!$F$3:$FM$166,$C19&D$1&",")<>0,COUNTIF(Dane2!$F$3:$FM$166,$C19&D$1&","),"") -> 3 | E19: =IF(COUNTIF(Dane2!$F$3:$FM$166,$C19&E$1&",")<>0,COUNTIF(Dane2!$F$3:$FM$166,$C19&E$1&","),"") -> 3 | F19: =IF(COUNTIF(Dane2!$F$3:$FM$166,$C19&F$1&",")<>0,COUNTIF(Dane2!$F$3:$FM$166,$C19&F$1&","),"") ->  | G19: =IF(COUNTIF(Dane2!$F$3:$FM$166,$C19&G$1&",")<>0,COUNTIF(Dane2!$F$3:$FM$166,$C19&G$1&","),"") ->  | H19: =IF(COUNTIF(Dane2!$F$3:$FM$166,$C19&H$1&",")<>0,COUNTIF(Dane2!$F$3:$FM$166,$C19&H$1&","),"") -> 2 | I19: =IF(COUNTIF(Dane2!$F$3:$FM$166,$C19&I$1&",")<>0,COUNTIF(Dane2!$F$3:$FM$166,$C19&I$1&","),"") -> 2 | J19: =IF(COUNTIF(Dane2!$F$3:$FM$166,$C19&J$1&",")<>0,COUNTIF(Dane2!$F$3:$FM$166,$C19&J$1&","),"") -> 1 | K19: =IF(COUNTIF(Dane2!$F$3:$FM$166,$C19&K$1&",")<>0,COUNTIF(Dane2!$F$3:$FM$166,$C19&K$1&","),"") ->  | L19: =IF(COUNTIF(Dane2!$F$3:$FM$166,$C19&L$1&",")<>0,COUNTIF(Dane2!$F$3:$FM$166,$C19&L$1&","),"") ->  | M19: =IF(COUNTIF(Dane2!$F$3:$FM$166,$C19&M$1&",")<>0,COUNTIF(Dane2!$F$3:$FM$166,$C19&M$1&","),"") ->  | N19: =IF(COUNTIF(Dane2!$F$3:$FM$166,$C19&N$1&",")<>0,COUNTIF(Dane2!$F$3:$FM$166,$C19&N$1&","),"") -> 1 | O19: =IF(COUNTIF(Dane2!$F$3:$FM$166,$C19&O$1&",")<>0,COUNTIF(Dane2!$F$3:$FM$166,$C19&O$1&","),"") -> 1 | P19: =IF(COUNTIF(Dane2!$F$3:$FM$166,$C19&P$1&",")<>0,COUNTIF(Dane2!$F$3:$FM$166,$C19&P$1&","),"") -> 7 | Q19: =IF(COUNTIF(Dane2!$F$3:$FM$166,$C19&Q$1&",")<>0,COUNTIF(Dane2!$F$3:$FM$166,$C19&Q$1&","),"") -> 1 | R19: =IF(COUNTIF(Dane2!$F$3:$FM$166,$C19&R$1&",")<>0,COUNTIF(Dane2!$F$3:$FM$166,$C19&R$1&","),"") -> 1 | S19: =IF(COUNTIF(Dane2!$F$3:$FM$166,$C19&S$1&",")<>0,COUNTIF(Dane2!$F$3:$FM$166,$C19&S$1&","),"") ->  | T19: 22 | U19: 0.03531300161
B20: R. Usługi internetowe (dostępowe ISP) | C20: R | D20: =IF(COUNTIF(Dane2!$F$3:$FM$166,$C20&D$1&",")<>0,COUNTIF(Dane2!$F$3:$FM$166,$C20&D$1&","),"") -> 2 | E20: =IF(COUNTIF(Dane2!$F$3:$FM$166,$C20&E$1&",")<>0,COUNTIF(Dane2!$F$3:$FM$166,$C20&E$1&","),"") -> 2 | F20: =IF(COUNTIF(Dane2!$F$3:$FM$166,$C20&F$1&",")<>0,COUNTIF(Dane2!$F$3:$FM$166,$C20&F$1&","),"") ->  | G20: =IF(COUNTIF(Dane2!$F$3:$FM$166,$C20&G$1&",")<>0,COUNTIF(Dane2!$F$3:$FM$166,$C20&G$1&","),"") ->  | H20: =IF(COUNTIF(Dane2!$F$3:$FM$166,$C20&H$1&",")<>0,COUNTIF(Dane2!$F$3:$FM$166,$C20&H$1&","),"") ->  | I20: =IF(COUNTIF(Dane2!$F$3:$FM$166,$C20&I$1&",")<>0,COUNTIF(Dane2!$F$3:$FM$166,$C20&I$1&","),"") -> 1 | J20: =IF(COUNTIF(Dane2!$F$3:$FM$166,$C20&J$1&",")<>0,COUNTIF(Dane2!$F$3:$FM$166,$C20&J$1&","),"") ->  | K20: =IF(COUNTIF(Dane2!$F$3:$FM$166,$C20&K$1&",")<>0,COUNTIF(Dane2!$F$3:$FM$166,$C20&K$1&","),"") ->  | L20: =IF(COUNTIF(Dane2!$F$3:$FM$166,$C20&L$1&",")<>0,COUNTIF(Dane2!$F$3:$FM$166,$C20&L$1&","),"") ->  | M20: =IF(COUNTIF(Dane2!$F$3:$FM$166,$C20&M$1&",")<>0,COUNTIF(Dane2!$F$3:$FM$166,$C20&M$1&","),"") ->  | N20: =IF(COUNTIF(Dane2!$F$3:$FM$166,$C20&N$1&",")<>0,COUNTIF(Dane2!$F$3:$FM$166,$C20&N$1&","),"") -> 1 | O20: =IF(COUNTIF(Dane2!$F$3:$FM$166,$C20&O$1&",")<>0,COUNTIF(Dane2!$F$3:$FM$166,$C20&O$1&","),"") ->  | P20: =IF(COUNTIF(Dane2!$F$3:$FM$166,$C20&P$1&",")<>0,COUNTIF(Dane2!$F$3:$FM$166,$C20&P$1&","),"") -> 4 | Q20: =IF(COUNTIF(Dane2!$F$3:$FM$166,$C20&Q$1&",")<>0,COUNTIF(Dane2!$F$3:$FM$166,$C20&Q$1&","),"") ->  | R20: =IF(COUNTIF(Dane2!$F$3:$FM$166,$C20&R$1&",")<>0,COUNTIF(Dane2!$F$3:$FM$166,$C20&R$1&","),"") ->  | S20: =IF(COUNTIF(Dane2!$F$3:$FM$166,$C20&S$1&",")<>0,COUNTIF(Dane2!$F$3:$FM$166,$C20&S$1&","),"") -> 1 | T20: 11 | U20: 0.0176565008
B21: S. Outsourcing telekomunikacyjny | C21: S | D21: =IF(COUNTIF(Dane2!$F$3:$FM$166,$C21&D$1&",")<>0,COUNTIF(Dane2!$F$3:$FM$166,$C21&D$1&","),"") ->  | E21: =IF(COUNTIF(Dane2!$F$3:$FM$166,$C21&E$1&",")<>0,COUNTIF(Dane2!$F$3:$FM$166,$C21&E$1&","),"") ->  | F21: =IF(COUNTIF(Dane2!$F$3:$FM$166,$C21&F$1&",")<>0,COUNTIF(Dane2!$F$3:$FM$166,$C21&F$1&","),"") ->  | G21: =IF(COUNTIF(Dane2!$F$3:$FM$166,$C21&G$1&",")<>0,COUNTIF(Dane2!$F$3:$FM$166,$C21&G$1&","),"") ->  | H21: =IF(COUNTIF(Dane2!$F$3:$FM$166,$C21&H$1&",")<>0,COUNTIF(Dane2!$F$3:$FM$166,$C21&H$1&","),"") ->  | I21: =IF(COUNTIF(Dane2!$F$3:$FM$166,$C21&I$1&",")<>0,COUNTIF(Dane2!$F$3:$FM$166,$C21&I$1&","),"") ->  | J21: =IF(COUNTIF(Dane2!$F$3:$FM$166,$C21&J$1&",")<>0,COUNTIF(Dane2!$F$3:$FM$166,$C21&J$1&","),"") ->  | K21: =IF(COUNTIF(Dane2!$F$3:$FM$166,$C21&K$1&",")<>0,COUNTIF(Dane2!$F$3:$FM$166,$C21&K$1&","),"") ->  | L21: =IF(COUNTIF(Dane2!$F$3:$FM$166,$C21&L$1&",")<>0,COUNTIF(Dane2!$F$3:$FM$166,$C21&L$1&","),"") ->  | M21: =IF(COUNTIF(Dane2!$F$3:$FM$166,$C21&M$1&",")<>0,COUNTIF(Dane2!$F$3:$FM$166,$C21&M$1&","),"") ->  | N21: =IF(COUNTIF(Dane2!$F$3:$FM$166,$C21&N$1&",")<>0,COUNTIF(Dane2!$F$3:$FM$166,$C21&N$1&","),"") ->  | O21: =IF(COUNTIF(Dane2!$F$3:$FM$166,$C21&O$1&",")<>0,COUNTIF(Dane2!$F$3:$FM$166,$C21&O$1&","),"") ->  | P21: =IF(COUNTIF(Dane2!$F$3:$FM$166,$C21&P$1&",")<>0,COUNTIF(Dane2!$F$3:$FM$166,$C21&P$1&","),"") -> 1 | Q21: =IF(COUNTIF(Dane2!$F$3:$FM$166,$C21&Q$1&",")<>0,COUNTIF(Dane2!$F$3:$FM$166,$C21&Q$1&","),"") ->  | R21: =IF(COUNTIF(Dane2!$F$3:$FM$166,$C21&R$1&",")<>0,COUNTIF(Dane2!$F$3:$FM$166,$C21&R$1&","),"") ->  | S21: =IF(COUNTIF(Dane2!$F$3:$FM$166,$C21&S$1&",")<>0,COUNTIF(Dane2!$F$3:$FM$166,$C21&S$1&","),"") ->  | T21: 1 | U21: 0.001605136437
B22: T. Usługi serwisowe telekomunikacyjne | C22: T | D22: =IF(COUNTIF(Dane2!$F$3:$FM$166,$C22&D$1&",")<>0,COUNTIF(Dane2!$F$3:$FM$166,$C22&D$1&","),"") -> 1 | E22: =IF(COUNTIF(Dane2!$F$3:$FM$166,$C22&E$1&",")<>0,COUNTIF(Dane2!$F$3:$FM$166,$C22&E$1&","),"") ->  | F22: =IF(COUNTIF(Dane2!$F$3:$FM$166,$C22&F$1&",")<>0,COUNTIF(Dane2!$F$3:$FM$166,$C22&F$1&","),"") ->  | G22: =IF(COUNTIF(Dane2!$F$3:$FM$166,$C22&G$1&",")<>0,COUNTIF(Dane2!$F$3:$FM$166,$C22&G$1&","),"") ->  | H22: =IF(COUNTIF(Dane2!$F$3:$FM$166,$C22&H$1&",")<>0,COUNTIF(Dane2!$F$3:$FM$166,$C22&H$1&","),"") ->  | I22: =IF(COUNTIF(Dane2!$F$3:$FM$166,$C22&I$1&",")<>0,COUNTIF(Dane2!$F$3:$FM$166,$C22&I$1&","),"") -> 1 | J22: =IF(COUNTIF(Dane2!$F$3:$FM$166,$C22&J$1&",")<>0,COUNTIF(Dane2!$F$3:$FM$166,$C22&J$1&","),"") ->  | K22: =IF(COUNTIF(Dane2!$F$3:$FM$166,$C22&K$1&",")<>0,COUNTIF(Dane2!$F$3:$FM$166,$C22&K$1&","),"") ->  | L22: =IF(COUNTIF(Dane2!$F$3:$FM$166,$C22&L$1&",")<>0,COUNTIF(Dane2!$F$3:$FM$166,$C22&L$1&","),"") ->  | M22: =IF(COUNTIF(Dane2!$F$3:$FM$166,$C22&M$1&",")<>0,COUNTIF(Dane2!$F$3:$FM$166,$C22&M$1&","),"") ->  | N22: =IF(COUNTIF(Dane2!$F$3:$FM$166,$C22&N$1&",")<>0,COUNTIF(Dane2!$F$3:$FM$166,$C22&N$1&","),"") ->  | O22: =IF(COUNTIF(Dane2!$F$3:$FM$166,$C22&O$1&",")<>0,COUNTIF(Dane2!$F$3:$FM$166,$C22&O$1&","),"") ->  | P22: =IF(COUNTIF(Dane2!$F$3:$FM$166,$C22&P$1&",")<>0,COUNTIF(Dane2!$F$3:$FM$166,$C22&P$1&","),"") -> 1 | Q22: =IF(COUNTIF(Dane2!$F$3:$FM$166,$C22&Q$1&",")<>0,COUNTIF(Dane2!$F$3:$FM$166,$C22&Q$1&","),"") ->  | R22: =IF(COUNTIF(Dane2!$F$3:$FM$166,$C22&R$1&",")<>0,COUNTIF(Dane2!$F$3:$FM$166,$C22&R$1&","),"") ->  | S22: =IF(COUNTIF(Dane2!$F$3:$FM$166,$C22&S$1&",")<>0,COUNTIF(Dane2!$F$3:$FM$166,$C22&S$1&","),"") ->  | T22: 3 | U22: 0.00481540931
B23: U Inne usługi telekomunikacyjne | C23: U | D23: =IF(COUNTIF(Dane2!$F$3:$FM$166,$C23&D$1&",")<>0,COUNTIF(Dane2!$F$3:$FM$166,$C23&D$1&","),"") -> 2 | E23: =IF(COUNTIF(Dane2!$F$3:$FM$166,$C23&E$1&",")<>0,COUNTIF(Dane2!$F$3:$FM$166,$C23&E$1&","),"") -> 1 | F23: =IF(COUNTIF(Dane2!$F$3:$FM$166,$C23&F$1&",")<>0,COUNTIF(Dane2!$F$3:$FM$166,$C23&F$1&","),"") ->  | G23: =IF(COUNTIF(Dane2!$F$3:$FM$166,$C23&G$1&",")<>0,COUNTIF(Dane2!$F$3:$FM$166,$C23&G$1&","),"") ->  | H23: =IF(COUNTIF(Dane2!$F$3:$FM$166,$C23&H$1&",")<>0,COUNTIF(Dane2!$F$3:$FM$166,$C23&H$1&","),"") ->  | I23: =IF(COUNTIF(Dane2!$F$3:$FM$166,$C23&I$1&",")<>0,COUNTIF(Dane2!$F$3:$FM$166,$C23&I$1&","),"") -> 9 | J23: =IF(COUNTIF(Dane2!$F$3:$FM$166,$C23&J$1&",")<>0,COUNTIF(Dane2!$F$3:$FM$166,$C23&J$1&","),"") ->  | K23: =IF(COUNTIF(Dane2!$F$3:$FM$166,$C23&K$1&",")<>0,COUNTIF(Dane2!$F$3:$FM$166,$C23&K$1&","),"") ->  | L23: =IF(COUNTIF(Dane2!$F$3:$FM$166,$C23&L$1&",")<>0,COUNTIF(Dane2!$F$3:$FM$166,$C23&L$1&","),"") ->  | M23: =IF(COUNTIF(Dane2!$F$3:$FM$166,$C23&M$1&",")<>0,COUNTIF(Dane2!$F$3:$FM$166,$C23&M$1&","),"") -> 1 | N23: =IF(COUNTIF(Dane2!$F$3:$FM$166,$C23&N$1&",")<>0,COUNTIF(Dane2!$F$3:$FM$166,$C23&N$1&","),"") -> 1 | O23: =IF(COUNTIF(Dane2!$F$3:$FM$166,$C23&O$1&",")<>0,COUNTIF(Dane2!$F$3:$FM$166,$C23&O$1&","),"") -> 19 | P23: =IF(COUNTIF(Dane2!$F$3:$FM$166,$C23&P$1&",")<>0,COUNTIF(Dane2!$F$3:$FM$166,$C23&P$1&","),"") -> 1 | Q23: =IF(COUNTIF(Dane2!$F$3:$FM$166,$C23&Q$1&",")<>0,COUNTIF(Dane2!$F$3:$FM$166,$C23&Q$1&","),"") ->  | R23: =IF(COUNTIF(Dane2!$F$3:$FM$166,$C23&R$1&",")<>0,COUNTIF(Dane2!$F$3:$FM$166,$C23&R$1&","),"") -> 16 | S23: =IF(COUNTIF(Dane2!$F$3:$FM$166,$C23&S$1&",")<>0,COUNTIF(Dane2!$F$3:$FM$166,$C23&S$1&","),"") -> 2 | T23: 52 | U23: 0.0834670947
B24: V. Dystrybucja IT (sprzedaż do dalszej odsprzedaży) | C24: V | D24: =IF(COUNTIF(Dane2!$F$3:$FM$166,$C24&D$1&",")<>0,COUNTIF(Dane2!$F$3:$FM$166,$C24&D$1&","),"") -> 1 | E24: =IF(COUNTIF(Dane2!$F$3:$FM$166,$C24&E$1&",")<>0,COUNTIF(Dane2!$F$3:$FM$166,$C24&E$1&","),"") ->  | F24: =IF(COUNTIF(Dane2!$F$3:$FM$166,$C24&F$1&",")<>0,COUNTIF(Dane2!$F$3:$FM$166,$C24&F$1&","),"") ->  | G24: =IF(COUNTIF(Dane2!$F$3:$FM$166,$C24&G$1&",")<>0,COUNTIF(Dane2!$F$3:$FM$166,$C24&G$1&","),"") ->  | H24: =IF(COUNTIF(Dane2!$F$3:$FM$166,$C24&H$1&",")<>0,COUNTIF(Dane2!$F$3:$FM$166,$C24&H$1&","),"") ->  | I24: =IF(COUNTIF(Dane2!$F$3:$FM$166,$C24&I$1&",")<>0,COUNTIF(Dane2!$F$3:$FM$166,$C24&I$1&","),"") ->  | J24: =IF(COUNTIF(Dane2!$F$3:$FM$166,$C24&J$1&",")<>0,COUNTIF(Dane2!$F$3:$FM$166,$C24&J$1&","),"") ->  | K24: =IF(COUNTIF(Dane2!$F$3:$FM$166,$C24&K$1&",")<>0,COUNTIF(Dane2!$F$3:$FM$166,$C24&K$1&","),"") ->  | L24: =IF(COUNTIF(Dane2!$F$3:$FM$166,$C24&L$1&",")<>0,COUNTIF(Dane2!$F$3:$FM$166,$C24&L$1&","),"") ->  | M24: =IF(COUNTIF(Dane2!$F$3:$FM$166,$C24&M$1&",")<>0,COUNTIF(Dane2!$F$3:$FM$166,$C24&M$1&","),"") ->  | N24: =IF(COUNTIF(Dane2!$F$3:$FM$166,$C24&N$1&",")<>0,COUNTIF(Dane2!$F$3:$FM$166,$C24&N$1&","),"") ->  | O24: =IF(COUNTIF(Dane2!$F$3:$FM$166,$C24&O$1&",")<>0,COUNTIF(Dane2!$F$3:$FM$166,$C24&O$1&","),"") ->  | P24: =IF(COUNTIF(Dane2!$F$3:$FM$166,$C24&P$1&",")<>0,COUNTIF(Dane2!$F$3:$FM$166,$C24&P$1&","),"") ->  | Q24: =IF(COUNTIF(Dane2!$F$3:$FM$166,$C24&Q$1&",")<>0,COUNTIF(Dane2!$F$3:$FM$166,$C24&Q$1&","),"") ->  | R24: =IF(COUNTIF(Dane2!$F$3:$FM$166,$C24&R$1&",")<>0,COUNTIF(Dane2!$F$3:$FM$166,$C24&R$1&","),"") ->  | S24: =IF(COUNTIF(Dane2!$F$3:$FM$166,$C24&S$1&",")<>0,COUNTIF(Dane2!$F$3:$FM$166,$C24&S$1&","),"") ->  | T24: 1 | U24: 0.001605136437
B25: W. Dystrybucja telekomunikacyjna (sprzedaż do dalszej odsprzedaży) | C25: W | D25: =IF(COUNTIF(Dane2!$F$3:$FM$166,$C25&D$1&",")<>0,COUNTIF(Dane2!$F$3:$FM$166,$C25&D$1&","),"") ->  | E25: =IF(COUNTIF(Dane2!$F$3:$FM$166,$C25&E$1&",")<>0,COUNTIF(Dane2!$F$3:$FM$166,$C25&E$1&","),"") ->  | F25: =IF(COUNTIF(Dane2!$F$3:$FM$166,$C25&F$1&",")<>0,COUNTIF(Dane2!$F$3:$FM$166,$C25&F$1&","),"") ->  | G25: =IF(COUNTIF(Dane2!$F$3:$FM$166,$C25&G$1&",")<>0,COUNTIF(Dane2!$F$3:$FM$166,$C25&G$1&","),"") ->  | H25: =IF(COUNTIF(Dane2!$F$3:$FM$166,$C25&H$1&",")<>0,COUNTIF(Dane2!$F$3:$FM$166,$C25&H$1&","),"") ->  | I25: =IF(COUNTIF(Dane2!$F$3:$FM$166,$C25&I$1&",")<>0,COUNTIF(Dane2!$F$3:$FM$166,$C25&I$1&","),"") ->  | J25: =IF(COUNTIF(Dane2!$F$3:$FM$166,$C25&J$1&",")<>0,COUNTIF(Dane2!$F$3:$FM$166,$C25&J$1&","),"") ->  | K25: =IF(COUNTIF(Dane2!$F$3:$FM$166,$C25&K$1&",")<>0,COUNTIF(Dane2!$F$3:$FM$166,$C25&K$1&","),"") ->  | L25: =IF(COUNTIF(Dane2!$F$3:$FM$166,$C25&L$1&",")<>0,COUNTIF(Dane2!$F$3:$FM$166,$C25&L$1&","),"") ->  | M25: =IF(COUNTIF(Dane2!$F$3:$FM$166,$C25&M$1&",")<>0,COUNTIF(Dane2!$F$3:$FM$166,$C25&M$1&","),"") ->  | N25: =IF(COUNTIF(Dane2!$F$3:$FM$166,$C25&N$1&",")<>0,COUNTIF(Dane2!$F$3:$FM$166,$C25&N$1&","),"") ->  | O25: =IF(COUNTIF(Dane2!$F$3:$FM$166,$C25&O$1&",")<>0,COUNTIF(Dane2!$F$3:$FM$166,$C25&O$1&","),"") ->  | P25: =IF(COUNTIF(Dane2!$F$3:$FM$166,$C25&P$1&",")<>0,COUNTIF(Dane2!$F$3:$FM$166,$C25&P$1&","),"") ->  | Q25: =IF(COUNTIF(Dane2!$F$3:$FM$166,$C25&Q$1&",")<>0,COUNTIF(Dane2!$F$3:$FM$166,$C25&Q$1&","),"") ->  | R25: =IF(COUNTIF(Dane2!$F$3:$FM$166,$C25&R$1&",")<>0,COUNTIF(Dane2!$F$3:$FM$166,$C25&R$1&","),"") ->  | S25: =IF(COUNTIF(Dane2!$F$3:$FM$166,$C25&S$1&",")<>0,COUNTIF(Dane2!$F$3:$FM$166,$C25&S$1&","),"") ->  | T25: 0 | U25: 0
B26: X. Sprzedaż IT i telekomunikacyjna (do klienta końcowego) | C26: X | D26: =IF(COUNTIF(Dane2!$F$3:$FM$166,$C26&D$1&",")<>0,COUNTIF(Dane2!$F$3:$FM$166,$C26&D$1&","),"") ->  | E26: =IF(COUNTIF(Dane2!$F$3:$FM$166,$C26&E$1&",")<>0,COUNTIF(Dane2!$F$3:$FM$166,$C26&E$1&","),"") ->  | F26: =IF(COUNTIF(Dane2!$F$3:$FM$166,$C26&F$1&",")<>0,COUNTIF(Dane2!$F$3:$FM$166,$C26&F$1&","),"") ->  | G26: =IF(COUNTIF(Dane2!$F$3:$FM$166,$C26&G$1&",")<>0,COUNTIF(Dane2!$F$3:$FM$166,$C26&G$1&","),"") ->  | H26: =IF(COUNTIF(Dane2!$F$3:$FM$166,$C26&H$1&",")<>0,COUNTIF(Dane2!$F$3:$FM$166,$C26&H$1&","),"") ->  | I26: =IF(COUNTIF(Dane2!$F$3:$FM$166,$C26&I$1&",")<>0,COUNTIF(Dane2!$F$3:$FM$166,$C26&I$1&","),"") ->  | J26: =IF(COUNTIF(Dane2!$F$3:$FM$166,$C26&J$1&",")<>0,COUNTIF(Dane2!$F$3:$FM$166,$C26&J$1&","),"") ->  | K26: =IF(COUNTIF(Dane2!$F$3:$FM$166,$C26&K$1&",")<>0,COUNTIF(Dane2!$F$3:$FM$166,$C26&K$1&","),"") ->  | L26: =IF(COUNTIF(Dane2!$F$3:$FM$166,$C26&L$1&",")<>0,COUNTIF(Dane2!$F$3:$FM$166,$C26&L$1&","),"") ->  | M26: =IF(COUNTIF(Dane2!$F$3:$FM$166,$C26&M$1&",")<>0,COUNTIF(Dane2!$F$3:$FM$166,$C26&M$1&","),"") ->  | N26: =IF(COUNTIF(Dane2!$F$3:$FM$166,$C26&N$1&",")<>0,COUNTIF(Dane2!$F$3:$FM$166,$C26&N$1&","),"") ->  | O26: =IF(COUNTIF(Dane2!$F$3:$FM$166,$C26&O$1&",")<>0,COUNTIF(Dane2!$F$3:$FM$166,$C26&O$1&","),"") ->  | P26: =IF(COUNTIF(Dane2!$F$3:$FM$166,$C26&P$1&",")<>0,COUNTIF(Dane2!$F$3:$FM$166,$C26&P$1&","),"") ->  | Q26: =IF(COUNTIF(Dane2!$F$3:$FM$166,$C26&Q$1&",")<>0,COUNTIF(Dane2!$F$3:$FM$166,$C26&Q$1&","),"") ->  | R26: =IF(COUNTIF(Dane2!$F$3:$FM$166,$C26&R$1&",")<>0,COUNTIF(Dane2!$F$3:$FM$166,$C26&R$1&","),"") ->  | S26: =IF(COUNTIF(Dane2!$F$3:$FM$166,$C26&S$1&",")<>0,COUNTIF(Dane2!$F$3:$FM$166,$C26&S$1&","),"") ->  | T26: 0 | U26: 0
B27: Łącznie | D27: =SUM(D3:D26) -> 59 | E27: =SUM(E3:E26) -> 55 | F27: 30 | G27: 2 | H27: 14 | I27: 106 | J27: 7 | K27: 22 | L27: 20 | M27: 31 | N27: 11 | O27: 48 | P27: 140 | Q27: 14 | R27: 48 | S27: 16 | T27: =SUM(T3:T26) -> 623
D28: =D27/$T$27 -> 0.09470304976 | E28: =E27/$T$27 -> 0.08828250401 | F28: 0.0481540931 | G28: 0.003210272873 | H28: 0.02247191011 | I28: 0.1701444623 | J28: 0.01123595506 | K28: 0.03531300161 | L28: 0.03210272873 | M28: 0.04975922953 | N28: 0.0176565008 | O28: 0.07704654896 | P28: 0.2247191011 | Q28: 0.02247191011 | R28: 0.07704654896 | S28: 0.02568218299

Sheet Firmy
A1: CZĘŚĆ DRUGA - PROFIL DZIAŁALNOŚCI
B3: Dane posłużą do celów statystycznych oraz do wyszukiwarki partnerów do wspólnych projektów, firm działających na potrzeby konkretnych sektorów, z określonymi kompetencjami itp. W poniższej tabeli należy wskazać pary działalności własnej oraz działalności klientów / odbiorców tych działań. Wskazanie pary odbywa się poprzez wpisanie liczby większej od 0 i mniejszej lub równej 100 na przecięciu odpowiednich pozycji. Liczba powinna odzwierciedlać percepcyjny orientacyjny procentowy udział danej działalności w całej działalności ICT firmy. Suma tych wskazań musi wynosić 100.
B4: W celu uszczegółowienia wskazań i/lub prezentacji oferty Państwa firmy, zapraszamy do wypełnienia opisów usług / produktów na następnym arkuszu
B5: Firmy
B6: Klienci przedsiębiorstw Działalność przedsiębiorstw . | C6: 1. Wszystkie sektory lub sektor nieistotny | D6: 2. Administracja państwowa, w tym służby mundurowe | E6: 3. Bankowość, ubezpieczenia, inne usługi finansowe | F6: 4. Budownictwo | G6: 5. Dostawy elektryczności, gazu, ciepła i wody | H6: 6. Edukacja | I6: 7. Gospodarstwa domowe | J6: 8. Handel | K6: 9. Media | L6: 10. Produkcja przemysłowa | M6: 11. Rolnictwo | N6: 12. Służba zdrowia | O6: 13. Telekomunikacja, IT | P6: 14. Transport | Q6: 15. Usługi | R6: 16. Inni odbiorcy końcowi | S6: Łącznie dla działalności
B7: A. Produkcja sprzętu IT | C7: 4 | D7: 1 | E7: 2 | F7: 0 | G7: 0 | H7: 1 | I7: 1 | J7: 1 | K7: 0 | L7: 1 | M7: 0 | N7: 1 | O7: 1 | P7: 0 | Q7: 1 | S7: =SUM(C7:R7) -> 14 | T7: =S7/$S$31 -> 0.01325757576
B8: B. Produkcja sprzętu telekomunikacyjnego | C8: 5 | D8: 1 | E8: 1 | F8: 0 | G8: 1 | H8: 1 | I8: 1 | J8: 1 | K8: 0 | L8: 1 | M8: 0 | N8: 1 | O8: 2 | P8: 0 | Q8: 1 | R8: 1 | S8: =SUM(C8:R8) -> 17 | T8: =S8/$S$31 -> 0.01609848485
B9: C. Produkcja oprogramowania, w tym na zamówienie | C9: 61 | D9: 3 | E9: 8 | F9: 4 | G9: 4 | H9: 4 | I9: 0 | J9: 10 | K9: 4 | L9: 7 | M9: 0 | N9: 1 | O9: 6 | P9: 3 | Q9: 6 | R9: 4 | S9: 125 | T9: 0.1183712121
B10: D. Instalacje sprzętu | C10: 24 | D10: 3 | E10: 4 | F10: 3 | G10: 1 | H10: 5 | I10: 2 | J10: 5 | K10: 0 | L10: 3 | M10: 0 | N10: 3 | O10: 3 | P10: 2 | Q10: 5 | R10: 2 | S10: 65 | T10: 0.0615530303
B11: E. Integracja systemów IT | C11: 29 | D11: 3 | E11: 5 | F11: 5 | G11: 0 | H11: 3 | I11: 0 | J11: 5 | K11: 2 | L11: 6 | M11: 0 | N11: 2 | O11: 4 | P11: 2 | Q11: 7 | R11: 3 | S11: 76 | T11: 0.07196969697
B12: F. Wdrożenia oprogramowania | C12: 51 | D12: 4 | E12: 8 | F12: 6 | G12: 2 | H12: 4 | I12: 0 | J12: 11 | K12: 3 | L12: 10 | M12: 0 | N12: 2 | O12: 6 | P12: 4 | Q12: 10 | R12: 6 | S12: 127 | T12: 0.1202651515
B13: G. Projektowanie, budowa i instalacje sieci IT | C13: 28 | D13: 3 | E13: 5 | F13: 4 | G13: 0 | H13: 3 | I13: 1 | J13: 5 | K13: 0 | L13: 2 | M13: 0 | N13: 3 | O13: 4 | P13: 1 | Q13: 4 | R13: 1 | S13: 64 | T13: 0.06060606061
B14: H. Szkolenia IT | C14: 28 | D14: 1 | E14: 4 | F14: 2 | G14: 0 | H14: 3 | I14: 1 | J14: 4 | K14: 1 | L14: 2 | M14: 1 | N14: 1 | O14: 3 | P14: 1 | Q14: 3 | R14: 2 | S14: 57 | T14: 0.05397727273
B15: I. Doradztwo IT | C15: 33 | D15: 3 | E15: 6 | F15: 3 | G15: 3 | H15: 5 | I15: 1 | J15: 7 | K15: 2 | L15: 2 | M15: 1 | N15: 2 | O15: 4 | P15: 3 | Q15: 5 | R15: 3 | S15: 83 | T15: 0.07859848485
B16: J. Outsourcing IT, wyłączając przetwarzanie danych | C16: 23 | D16: 2 | E16: 4 | F16: 1 | G16: 1 | H16: 2 | I16: 1 | J16: 4 | K16: 0 | L16: 2 | M16: 0 | N16: 1 | O16: 2 | P16: 1 | Q16: 3 | R16: 3 | S16: 50 | T16: 0.04734848485
B17: K. Outsourcing przetwarzania danych | C17: 8 | D17: 2 | E17: 3 | F17: 2 | G17: 0 | H17: 3 | I17: 1 | J17: 4 | K17: 0 | L17: 3 | M17: 0 | N17: 1 | O17: 2 | P17: 2 | Q17: 4 | R17: 1 | S17: 36 | T17: 0.03409090909
B18: L. Usługi serwisowe IT | C18: 46 | D18: 2 | E18: 6 | F18: 2 | G18: 2 | H18: 5 | I18: 2 | J18: 5 | K18: 1 | L18: 3 | M18: 0 | N18: 3 | O18: 3 | P18: 1 | Q18: 5 | R18: 5 | S18: 91 | T18: 0.08617424242
B19: M. Inne usługi IT | C19: 34 | D19: 1 | E19: 4 | F19: 2 | G19: 1 | H19: 2 | I19: 1 | J19: 4 | K19: 0 | L19: 3 | M19: 0 | N19: 1 | O19: 3 | P19: 1 | Q19: 3 | R19: 3 | S19: 63 | T19: 0.05965909091
B20: N. Instalacje i uruchamianie central telekomunikacyjnych | C20: 8 | D20: 1 | E20: 0 | F20: 1 | G20: 0 | H20: 0 | I20: 0 | J20: 0 | K20: 0 | L20: 0 | M20: 0 | N20: 1 | O20: 0 | P20: 0 | Q20: 0 | R20: 1 | S20: 12 | T20: 0.01136363636
B21: O. Projektowanie, budowa, uruchamianie i utrzymanie sieci telekom. | C21: 11 | D21: 0 | E21: 2 | F21: 0 | G21: 0 | H21: 1 | I21: 1 | J21: 1 | K21: 0 | L21: 0 | M21: 0 | N21: 1 | O21: 1 | P21: 0 | Q21: 3 | R21: 2 | S21: 23 | T21: 0.02178030303
B22: P. Usługi operatorskie TV kablowych | C22: 7 | D22: 0 | E22: 0 | F22: 1 | G22: 0 | H22: 0 | I22: 0 | J22: 0 | K22: 0 | L22: 0 | M22: 0 | N22: 0 | O22: 0 | P22: 0 | Q22: 0 | R22: 0 | S22: 8 | T22: 0.007575757576
B23: Q. Usługi operatorskie transmisji danych | C23: 12 | D23: 0 | E23: 0 | F23: 0 | G23: 0 | H23: 0 | I23: 0 | J23: 0 | K23: 0 | L23: 0 | M23: 0 | N23: 0 | O23: 0 | P23: 0 | Q23: 1 | R23: 1 | S23: 14 | T23: 0.01325757576
B24: R. Usługi internetowe (dostępowe ISP) | C24: 30 | D24: 0 | E24: 0 | F24: 0 | G24: 0 | H24: 0 | I24: 2 | J24: 0 | K24: 0 | L24: 0 | M24: 0 | N24: 0 | O24: 0 | P24: 0 | Q24: 0 | R24: 0 | S24: 32 | T24: 0.0303030303
B25: S. Outsourcing telekomunikacyjny | C25: 5 | D25: 1 | E25: 0 | F25: 0 | G25: 0 | H25: 0 | I25: 0 | J25: 0 | K25: 0 | L25: 0 | M25: 0 | N25: 0 | O25: 0 | P25: 0 | Q25: 0 | R25: 0 | S25: 6 | T25: 0.005681818182
B26: T. Usługi serwisowe telekomunikacyjne | C26: 10 | D26: 0 | E26: 0 | F26: 0 | G26: 0 | H26: 0 | I26: 0 | J26: 0 | K26: 0 | L26: 0 | M26: 0 | N26: 1 | O26: 1 | P26: 0 | Q26: 0 | R26: 0 | S26: 12 | T26: 0.01136363636
B27: U Inne usługi telekomunikacyjne | C27: 19 | D27: 1 | E27: 0 | F27: 0 | G27: 1 | H27: 0 | I27: 0 | J27: 0 | K27: 0 | L27: 0 | M27: 0 | N27: 1 | O27: 1 | P27: 0 | Q27: 1 | R27: 4 | S27: 28 | T27: 0.02651515152
B28: V. Dystrybucja IT (sprzedaż do dalszej odsprzedaży) | C28: 6 | D28: 1 | E28: 0 | F28: 1 | G28: 0 | H28: 1 | I28: 0 | J28: 2 | K28: 0 | L28: 1 | M28: 0 | N28: 1 | O28: 1 | P28: 1 | Q28: 2 | R28: 1 | S28: 18 | T28: 0.01704545455
B29: W. Dystrybucja telekomunikacyjna (sprzedaż do dalszej odsprzedaży) | C29: 4 | D29: 0 | E29: 0 | F29: 0 | G29: 0 | H29: 0 | I29: 0 | J29: 0 | K29: 0 | L29: 0 | M29: 0 | N29: 0 | O29: 2 | P29: 0 | Q29: 0 | R29: 0 | S29: 6 | T29: 0.005681818182
B30: X. Sprzedaż IT i telekomunikacyjna (do klienta końcowego) | C30: 18 | D30: 1 | E30: 2 | F30: 0 | G30: 1 | H30: 1 | I30: 1 | J30: 2 | K30: 0 | L30: 1 | M30: 0 | N30: 1 | O30: 0 | P30: 0 | Q30: 1 | R30: 0 | S30: 29 | T30: 0.02746212121
B31: Łącznie dla sektora | C31: =SUM(C7:C30) -> 504 | D31: 34 | E31: 64 | F31: 37 | G31: 17 | H31: 44 | I31: 16 | J31: 71 | K31: 13 | L31: 47 | M31: 2 | N31: 28 | O31: 49 | P31: 22 | Q31: 65 | R31: 43 | S31: =SUM(S7:S30) -> 1056
C32: =C31/$S$31 -> 0.4772727273 | D32: =D31/$S$31 -> 0.0321969697 | E32: 0.06060606061 | F32: 0.03503787879 | G32: 0.01609848485 | H32: 0.04166666667 | I32: 0.01515151515 | J32: 0.06723484848 | K32: 0.01231060606 | L32: 0.04450757576 | M32: 0.001893939394 | N32: 0.02651515152 | O32: 0.04640151515 | P32: 0.02083333333 | Q32: 0.0615530303 | R32: 0.04071969697

Sheet Firmy2
B1: Jednostki naukowe
B2: Branża odbiorcy Rodzaj działalności odbiorcy . | C2: 1. Wszystkie sektory lub sektor nieistotny | D2: 2. Administracja państwowa, w tym służby mundurowe | E2: 3. Bankowość, ubezpieczenia, inne usługi finansowe | F2: 4. Budownictwo | G2: 5. Dostawy elektryczności, gazu, ciepła i wody | H2: 6. Edukacja | I2: 7. Gospodarstwa domowe | J2: 8. Handel | K2: 9. Media | L2: 10. Produkcja przemysłowa | M2: 11. Rolnictwo | N2: 12. Służba zdrowia | O2: 13. Telekomunikacja, IT | P2: 14. Transport | Q2: 15. Usługi | R2: 16. Inni odbiorcy końcowi | S2: Łącznie 233 przedsięb.
B3: A. Produkcja sprzętu IT | C3: 4 | D3: 1 | E3: 2 | H3: 1 | I3: 1 | J3: 1 | L3: 1 | N3: 1 | O3: 1 | Q3: 1 | S3: =SUM(C3:R3) -> 14 | T3: =S3/$S$27 -> 0.01325757576 | V3: =COUNTIF(D3:R3,">0") -> 9 | W3: =COUNTIF(C3,"<>") -> 1
B4: B. Produkcja sprzętu telekomunikacyjnego | C4: 5 | D4: 1 | E4: 1 | G4: 1 | H4: 1 | I4: 1 | J4: 1 | L4: 1 | N4: 1 | O4: 2 | Q4: 1 | R4: 1 | S4: =SUM(C4:R4) -> 17 | T4: =S4/$S$27 -> 0.01609848485 | V4: =COUNTIF(D4:R4,">0") -> 11 | W4: 1
B5: C. Produkcja oprogramowania, w tym na zamówienie | C5: 61 | D5: 3 | E5: 8 | F5: 4 | G5: 4 | H5: 4 | J5: 10 | K5: 4 | L5: 7 | N5: 1 | O5: 6 | P5: 3 | Q5: 6 | R5: 4 | S5: 125 | T5: 0.1183712121 | V5: 13 | W5: 1
B6: D. Instalacje sprzętu | C6: 24 | D6: 3 | E6: 4 | F6: 3 | G6: 1 | H6: 5 | I6: 2 | J6: 5 | L6: 3 | N6: 3 | O6: 3 | P6: 2 | Q6: 5 | R6: 2 | S6: 65 | T6: 0.0615530303 | V6: 13 | W6: 1
B7: E. Integracja systemów IT | C7: 29 | D7: 3 | E7: 5 | F7: 5 | H7: 3 | J7: 5 | K7: 2 | L7: 6 | N7: 2 | O7: 4 | P7: 2 | Q7: 7 | R7: 3 | S7: 76 | T7: 0.07196969697 | V7: 12 | W7: 1
B8: F. Wdrożenia oprogramowania | C8: 51 | D8: 4 | E8: 8 | F8: 6 | G8: 2 | H8: 4 | J8: 11 | K8: 3 | L8: 10 | N8: 2 | O8: 6 | P8: 4 | Q8: 10 | R8: 6 | S8: 127 | T8: 0.1202651515 | V8: =COUNTIF(D8:R8,">0") -> 13 | W8: 1
B9: G. Projektowanie, budowa i instalacje sieci IT | C9: 28 | D9: 3 | E9: 5 | F9: 4 | H9: 3 | I9: 1 | J9: 5 | L9: 2 | N9: 3 | O9: 4 | P9: 1 | Q9: 4 | R9: 1 | S9: 64 | T9: 0.06060606061 | V9: 12 | W9: 1
B10: H. Szkolenia IT | C10: 28 | D10: 1 | E10: 4 | F10: 2 | H10: 3 | I10: 1 | J10: 4 | K10: 1 | L10: 2 | M10: 1 | N10: 1 | O10: 3 | P10: 1 | Q10: 3 | R10: 2 | S10: 57 | T10: 0.05397727273 | V10: =COUNTIF(D10:R10,">0") -> 14 | W10: 1
B11: I. Doradztwo IT | C11: 33 | D11: 3 | E11: 6 | F11: 3 | G11: 3 | H11: 5 | I11: 1 | J11: 7 | K11: 2 | L11: 2 | M11: 1 | N11: 2 | O11: 4 | P11: 3 | Q11: 5 | R11: 3 | S11: 83 | T11: 0.07859848485 | V11: 15 | W11: 1
B12: J. Outsourcing IT, wyłączając przetwarzanie danych | C12: 23 | D12: 2 | E12: 4 | F12: 1 | G12: 1 | H12: 2 | I12: 1 | J12: 4 | L12: 2 | N12: 1 | O12: 2 | P12: 1 | Q12: 3 | R12: 3 | S12: 50 | T12: 0.04734848485 | V12: 13 | W12: 1
B13: K. Outsourcing przetwarzania danych | C13: 8 | D13: 2 | E13: 3 | F13: 2 | H13: 3 | I13: 1 | J13: 4 | L13: 3 | N13: 1 | O13: 2 | P13: 2 | Q13: 4 | R13: 1 | S13: 36 | T13: 0.03409090909 | V13: 12 | W13: 1
B14: L. Usługi serwisowe IT | C14: 46 | D14: 2 | E14: 6 | F14: 2 | G14: 2 | H14: 5 | I14: 2 | J14: 5 | K14: 1 | L14: 3 | N14: 3 | O14: 3 | P14: 1 | Q14: 5 | R14: 5 | S14: 91 | T14: 0.08617424242 | V14: 14 | W14: 1
B15: M. Inne usługi IT | C15: 34 | D15: 1 | E15: 4 | F15: 2 | G15: 1 | H15: 2 | I15: 1 | J15: 4 | L15: 3 | N15: 1 | O15: 3 | P15: 1 | Q15: 3 | R15: 3 | S15: 63 | T15: 0.05965909091 | V15: =COUNTIF(D15:R15,">0") -> 13 | W15: 1
B16: N. Instalacje i uruchamianie central telekomunikacyjnych | C16: 8 | D16: 1 | F16: 1 | N16: 1 | R16: 1 | S16: 12 | T16: 0.01136363636 | V16: 4 | W16: 1
B17: O. Projekt., budowa, uruchamianie i utrzym. sieci telekom. | C17: 11 | E17: 2 | H17: 1 | I17: 1 | J17: 1 | N17: 1 | O17: 1 | Q17: 3 | R17: 2 | S17: 23 | T17: 0.02178030303 | V17: =COUNTIF(D17:R17,">0") -> 8 | W17: 1
B18: P. Usługi operatorskie TV kablowych | C18: 7 | F18: 1 | S18: 8 | T18: 0.007575757576 | V18: 1 | W18: 1
B19: Q. Usługi operatorskie transmisji danych | C19: 12 | Q19: 1 | R19: 1 | S19: 14 | T19: 0.01325757576 | V19: 2 | W19: 1
B20: R. Usługi internetowe (dostępowe ISP) | C20: 30 | I20: 2 | S20: 32 | T20: 0.0303030303 | V20: 1 | W20: 1
B21: S. Outsourcing telekomunikacyjny | C21: 5 | D21: 1 | S21: 6 | T21: 0.005681818182 | V21: 1 | W21: 1
B22: T. Usługi serwisowe telekomunikacyjne | C22: 10 | N22: 1 | O22: 1 | S22: 12 | T22: 0.01136363636 | V22: =COUNTIF(D22:R22,">0") -> 2 | W22: 1
B23: U. Inne usługi telekomunikacyjne | C23: 19 | D23: 1 | G23: 1 | N23: 1 | O23: 1 | Q23: 1 | R23: 4 | S23: 28 | T23: 0.02651515152 | V23: 6 | W23: 1
B24: V. Dystrybucja IT (sprzedaż do dalszej odsprzedaży) | C24: 6 | D24: 1 | F24: 1 | H24: 1 | J24: 2 | L24: 1 | N24: 1 | O24: 1 | P24: 1 | Q24: 2 | R24: 1 | S24: 18 | T24: 0.01704545455 | V24: =COUNTIF(D24:R24,">0") -> 10 | W24: 1
B25: W. Dystryb. telekomunik. (sprzedaż do dalszej odsprzedaży) | C25: 4 | O25: 2 | S25: 6 | T25: 0.005681818182 | V25: 1 | W25: 1
B26: X. Sprzedaż IT i telekomunikacyjna (do klienta końcowego) | C26: 18 | D26: 1 | E26: 2 | G26: 1 | H26: 1 | I26: 1 | J26: 2 | L26: 1 | N26: 1 | Q26: 1 | S26: 29 | T26: 0.02746212121 | V26: 9 | W26: =COUNTIF(C26,"<>") -> 1
B27: Łącznie 233 przedsiębiorstwa | C27: =SUM(C3:C26) -> 504 | D27: =SUM(D3:D26) -> 34 | E27: 64 | F27: 37 | G27: 17 | H27: 44 | I27: 16 | J27: 71 | K27: 13 | L27: 47 | M27: 2 | N27: 28 | O27: 49 | P27: 22 | Q27: 65 | R27: 43 | S27: 1056 | V27: =SUM(V3:V26) -> 209 | W27: =SUM(W3:W26) -> 24
C28: =C27/$S$27 -> 0.4772727273 | D28: =D27/$S$27 -> 0.0321969697 | E28: 0.06060606061 | F28: 0.03503787879 | G28: 0.01609848485 | H28: 0.04166666667 | I28: 0.01515151515 | J28: 0.06723484848 | K28: 0.01231060606 | L28: 0.04450757576 | M28: 0.001893939394 | N28: 0.02651515152 | O28: 0.04640151515 | P28: 0.02083333333 | Q28: 0.0615530303 | R28: 0.04071969697 | V28: =V27/360 -> 0.5805555556 | W28: =W27/384 -> 0.0625

Sheet Nauka-Firmy
B1: Jednostki naukowe+Firmy
B2: Branża odbiorcy Rodzaj działalności odbiorcy . | C2: 1. Wszystkie sektory lub sektor nieistotny | D2: 2. Administracja państwowa, w tym służby mundurowe | E2: 3. Bankowość, ubezpieczenia, inne usługi finansowe | F2: 4. Budownictwo | G2: 5. Dostawy elektryczności, gazu, ciepła i wody | H2: 6. Edukacja | I2: 7. Gospodarstwa domowe | J2: 8. Handel | K2: 9. Media | L2: 10. Produkcja przemysłowa | M2: 11. Rolnictwo | N2: 12. Służba zdrowia | O2: 13. Telekomunikacja, IT | P2: 14. Transport | Q2: 15. Usługi | R2: 16. Inni odbiorcy końcowi
B3: A. Produkcja sprzętu IT | C3: =IF('Wyk2i3-Tab1 (Nauka2)'!C3<>"",IF(Firmy2!C3<>"",'Wyk2i3-Tab1 (Nauka2)'!C3&"/"&Firmy2!C3,""),"") ->  | D3: =IF('Wyk2i3-Tab1 (Nauka2)'!D3<>"",IF(Firmy2!D3<>"",'Wyk2i3-Tab1 (Nauka2)'!D3&"/"&Firmy2!D3,""),"") -> 1/1 | E3: =IF('Wyk2i3-Tab1 (Nauka2)'!E3<>"",IF(Firmy2!E3<>"",'Wyk2i3-Tab1 (Nauka2)'!E3&"/"&Firmy2!E3,""),"") ->  | F3: =IF('Wyk2i3-Tab1 (Nauka2)'!F3<>"",IF(Firmy2!F3<>"",'Wyk2i3-Tab1 (Nauka2)'!F3&"/"&Firmy2!F3,""),"") ->  | G3: =IF('Wyk2i3-Tab1 (Nauka2)'!G3<>"",IF(Firmy2!G3<>"",'Wyk2i3-Tab1 (Nauka2)'!G3&"/"&Firmy2!G3,""),"") ->  | H3: =IF('Wyk2i3-Tab1 (Nauka2)'!H3<>"",IF(Firmy2!H3<>"",'Wyk2i3-Tab1 (Nauka2)'!H3&"/"&Firmy2!H3,""),"") -> 7/1 | I3: =IF('Wyk2i3-Tab1 (Nauka2)'!I3<>"",IF(Firmy2!I3<>"",'Wyk2i3-Tab1 (Nauka2)'!I3&"/"&Firmy2!I3,""),"") ->  | J3: =IF('Wyk2i3-Tab1 (Nauka2)'!J3<>"",IF(Firmy2!J3<>"",'Wyk2i3-Tab1 (Nauka2)'!J3&"/"&Firmy2!J3,""),"") ->  | K3: =IF('Wyk2i3-Tab1 (Nauka2)'!K3<>"",IF(Firmy2!K3<>"",'Wyk2i3-Tab1 (Nauka2)'!K3&"/"&Firmy2!K3,""),"") ->  | L3: =IF('Wyk2i3-Tab1 (Nauka2)'!L3<>"",IF(Firmy2!L3<>"",'Wyk2i3-Tab1 (Nauka2)'!L3&"/"&Firmy2!L3,""),"") -> 5/1 | M3: =IF('Wyk2i3-Tab1 (Nauka2)'!M3<>"",IF(Firmy2!M3<>"",'Wyk2i3-Tab1 (Nauka2)'!M3&"/"&Firmy2!M3,""),"") ->  | N3: =IF('Wyk2i3-Tab1 (Nauka2)'!N3<>"",IF(Firmy2!N3<>"",'Wyk2i3-Tab1 (Nauka2)'!N3&"/"&Firmy2!N3,""),"") -> 2/1 | O3: =IF('Wyk2i3-Tab1 (Nauka2)'!O3<>"",IF(Firmy2!O3<>"",'Wyk2i3-Tab1 (Nauka2)'!O3&"/"&Firmy2!O3,""),"") -> 13/1 | P3: =IF('Wyk2i3-Tab1 (Nauka2)'!P3<>"",IF(Firmy2!P3<>"",'Wyk2i3-Tab1 (Nauka2)'!P3&"/"&Firmy2!P3,""),"") ->  | Q3: =IF('Wyk2i3-Tab1 (Nauka2)'!Q3<>"",IF(Firmy2!Q3<>"",'Wyk2i3-Tab1 (Nauka2)'!Q3&"/"&Firmy2!Q3,""),"") -> 2/1 | R3: =IF('Wyk2i3-Tab1 (Nauka2)'!R3<>"",IF(Firmy2!R3<>"",'Wyk2i3-Tab1 (Nauka2)'!R3&"/"&Firmy2!R3,""),"") ->  | V3: =COUNTIF(C3:R3,"<>") -> 16
B4: B. Produkcja sprzętu telekomunikacyjnego | C4: =IF('Wyk2i3-Tab1 (Nauka2)'!C4<>"",IF(Firmy2!C4<>"",'Wyk2i3-Tab1 (Nauka2)'!C4&"/"&Firmy2!C4,""),"") -> 5/5 | D4: =IF('Wyk2i3-Tab1 (Nauka2)'!D4<>"",IF(Firmy2!D4<>"",'Wyk2i3-Tab1 (Nauka2)'!D4&"/"&Firmy2!D4,""),"") -> 1/1 | E4: =IF('Wyk2i3-Tab1 (Nauka2)'!E4<>"",IF(Firmy2!E4<>"",'Wyk2i3-Tab1 (Nauka2)'!E4&"/"&Firmy2!E4,""),"") ->  | F4: =IF('Wyk2i3-Tab1 (Nauka2)'!F4<>"",IF(Firmy2!F4<>"",'Wyk2i3-Tab1 (Nauka2)'!F4&"/"&Firmy2!F4,""),"") ->  | G4: =IF('Wyk2i3-Tab1 (Nauka2)'!G4<>"",IF(Firmy2!G4<>"",'Wyk2i3-Tab1 (Nauka2)'!G4&"/"&Firmy2!G4,""),"") ->  | H4: =IF('Wyk2i3-Tab1 (Nauka2)'!H4<>"",IF(Firmy2!H4<>"",'Wyk2i3-Tab1 (Nauka2)'!H4&"/"&Firmy2!H4,""),"") -> 4/1 | I4: =IF('Wyk2i3-Tab1 (Nauka2)'!I4<>"",IF(Firmy2!I4<>"",'Wyk2i3-Tab1 (Nauka2)'!I4&"/"&Firmy2!I4,""),"") ->  | J4: =IF('Wyk2i3-Tab1 (Nauka2)'!J4<>"",IF(Firmy2!J4<>"",'Wyk2i3-Tab1 (Nauka2)'!J4&"/"&Firmy2!J4,""),"") ->  | K4: =IF('Wyk2i3-Tab1 (Nauka2)'!K4<>"",IF(Firmy2!K4<>"",'Wyk2i3-Tab1 (Nauka2)'!K4&"/"&Firmy2!K4,""),"") ->  | L4: =IF('Wyk2i3-Tab1 (Nauka2)'!L4<>"",IF(Firmy2!L4<>"",'Wyk2i3-Tab1 (Nauka2)'!L4&"/"&Firmy2!L4,""),"") -> 6/1 | M4: =IF('Wyk2i3-Tab1 (Nauka2)'!M4<>"",IF(Firmy2!M4<>"",'Wyk2i3-Tab1 (Nauka2)'!M4&"/"&Firmy2!M4,""),"") ->  | N4: =IF('Wyk2i3-Tab1 (Nauka2)'!N4<>"",IF(Firmy2!N4<>"",'Wyk2i3-Tab1 (Nauka2)'!N4&"/"&Firmy2!N4,""),"") -> 2/1 | O4: =IF('Wyk2i3-Tab1 (Nauka2)'!O4<>"",IF(Firmy2!O4<>"",'Wyk2i3-Tab1 (Nauka2)'!O4&"/"&Firmy2!O4,""),"") -> 11/2 | P4: =IF('Wyk2i3-Tab1 (Nauka2)'!P4<>"",IF(Firmy2!P4<>"",'Wyk2i3-Tab1 (Nauka2)'!P4&"/"&Firmy2!P4,""),"") ->  | Q4: =IF('Wyk2i3-Tab1 (Nauka2)'!Q4<>"",IF(Firmy2!Q4<>"",'Wyk2i3-Tab1 (Nauka2)'!Q4&"/"&Firmy2!Q4,""),"") ->  | R4: =IF('Wyk2i3-Tab1 (Nauka2)'!R4<>"",IF(Firmy2!R4<>"",'Wyk2i3-Tab1 (Nauka2)'!R4&"/"&Firmy2!R4,""),"") -> 1/1 | V4: =COUNTIF(D4:R4,"<>") -> 15
B5: C. Produkcja oprogramowania, w tym na zamówienie | C5: =IF('Wyk2i3-Tab1 (Nauka2)'!C5<>"",IF(Firmy2!C5<>"",'Wyk2i3-Tab1 (Nauka2)'!C5&"/"&Firmy2!C5,""),"") -> 9/61 | D5: =IF('Wyk2i3-Tab1 (Nauka2)'!D5<>"",IF(Firmy2!D5<>"",'Wyk2i3-Tab1 (Nauka2)'!D5&"/"&Firmy2!D5,""),"") -> 13/3 | E5: =IF('Wyk2i3-Tab1 (Nauka2)'!E5<>"",IF(Firmy2!E5<>"",'Wyk2i3-Tab1 (Nauka2)'!E5&"/"&Firmy2!E5,""),"") -> 8/8 | F5: =IF('Wyk2i3-Tab1 (Nauka2)'!F5<>"",IF(Firmy2!F5<>"",'Wyk2i3-Tab1 (Nauka2)'!F5&"/"&Firmy2!F5,""),"") ->  | G5: =IF('Wyk2i3-Tab1 (Nauka2)'!G5<>"",IF(Firmy2!G5<>"",'Wyk2i3-Tab1 (Nauka2)'!G5&"/"&Firmy2!G5,""),"") -> 2/4 | H5: =IF('Wyk2i3-Tab1 (Nauka2)'!H5<>"",IF(Firmy2!H5<>"",'Wyk2i3-Tab1 (Nauka2)'!H5&"/"&Firmy2!H5,""),"") -> 18/4 | I5: =IF('Wyk2i3-Tab1 (Nauka2)'!I5<>"",IF(Firmy2!I5<>"",'Wyk2i3-Tab1 (Nauka2)'!I5&"/"&Firmy2!I5,""),"") ->  | J5: =IF('Wyk2i3-Tab1 (Nauka2)'!J5<>"",IF(Firmy2!J5<>"",'Wyk2i3-Tab1 (Nauka2)'!J5&"/"&Firmy2!J5,""),"") -> 8/10 | K5: =IF('Wyk2i3-Tab1 (Nauka2)'!K5<>"",IF(Firmy2!K5<>"",'Wyk2i3-Tab1 (Nauka2)'!K5&"/"&Firmy2!K5,""),"") -> 7/4 | L5: =IF('Wyk2i3-Tab1 (Nauka2)'!L5<>"",IF(Firmy2!L5<>"",'Wyk2i3-Tab1 (Nauka2)'!L5&"/"&Firmy2!L5,""),"") -> 6/7 | M5: =IF('Wyk2i3-Tab1 (Nauka2)'!M5<>"",IF(Firmy2!M5<>"",'Wyk2i3-Tab1 (Nauka2)'!M5&"/"&Firmy2!M5,""),"") ->  | N5: =IF('Wyk2i3-Tab1 (Nauka2)'!N5<>"",IF(Firmy2!N5<>"",'Wyk2i3-Tab1 (Nauka2)'!N5&"/"&Firmy2!N5,""),"") -> 7/1 | O5: =IF('Wyk2i3-Tab1 (Nauka2)'!O5<>"",IF(Firmy2!O5<>"",'Wyk2i3-Tab1 (Nauka2)'!O5&"/"&Firmy2!O5,""),"") -> 26/6 | P5: =IF('Wyk2i3-Tab1 (Nauka2)'!P5<>"",IF(Firmy2!P5<>"",'Wyk2i3-Tab1 (Nauka2)'!P5&"/"&Firmy2!P5,""),"") -> 5/3 | Q5: =IF('Wyk2i3-Tab1 (Nauka2)'!Q5<>"",IF(Firmy2!Q5<>"",'Wyk2i3-Tab1 (Nauka2)'!Q5&"/"&Firmy2!Q5,""),"") -> 7/6 | R5: =IF('Wyk2i3-Tab1 (Nauka2)'!R5<>"",IF(Firmy2!R5<>"",'Wyk2i3-Tab1 (Nauka2)'!R5&"/"&Firmy2!R5,""),"") -> 4/4 | V5: 15
B6: D. Instalacje sprzętu | C6: =IF('Wyk2i3-Tab1 (Nauka2)'!C6<>"",IF(Firmy2!C6<>"",'Wyk2i3-Tab1 (Nauka2)'!C6&"/"&Firmy2!C6,""),"") -> 1/24 | D6: =IF('Wyk2i3-Tab1 (Nauka2)'!D6<>"",IF(Firmy2!D6<>"",'Wyk2i3-Tab1 (Nauka2)'!D6&"/"&Firmy2!D6,""),"") -> 3/3 | E6: =IF('Wyk2i3-Tab1 (Nauka2)'!E6<>"",IF(Firmy2!E6<>"",'Wyk2i3-Tab1 (Nauka2)'!E6&"/"&Firmy2!E6,""),"") ->  | F6: =IF('Wyk2i3-Tab1 (Nauka2)'!F6<>"",IF(Firmy2!F6<>"",'Wyk2i3-Tab1 (Nauka2)'!F6&"/"&Firmy2!F6,""),"") ->  | G6: =IF('Wyk2i3-Tab1 (Nauka2)'!G6<>"",IF(Firmy2!G6<>"",'Wyk2i3-Tab1 (Nauka2)'!G6&"/"&Firmy2!G6,""),"") -> 1/1 | H6: =IF('Wyk2i3-Tab1 (Nauka2)'!H6<>"",IF(Firmy2!H6<>"",'Wyk2i3-Tab1 (Nauka2)'!H6&"/"&Firmy2!H6,""),"") -> 6/5 | I6: =IF('Wyk2i3-Tab1 (Nauka2)'!I6<>"",IF(Firmy2!I6<>"",'Wyk2i3-Tab1 (Nauka2)'!I6&"/"&Firmy2!I6,""),"") -> 1/2 | J6: =IF('Wyk2i3-Tab1 (Nauka2)'!J6<>"",IF(Firmy2!J6<>"",'Wyk2i3-Tab1 (Nauka2)'!J6&"/"&Firmy2!J6,""),"") ->  | K6: =IF('Wyk2i3-Tab1 (Nauka2)'!K6<>"",IF(Firmy2!K6<>"",'Wyk2i3-Tab1 (Nauka2)'!K6&"/"&Firmy2!K6,""),"") ->  | L6: =IF('Wyk2i3-Tab1 (Nauka2)'!L6<>"",IF(Firmy2!L6<>"",'Wyk2i3-Tab1 (Nauka2)'!L6&"/"&Firmy2!L6,""),"") -> 1/3 | M6: =IF('Wyk2i3-Tab1 (Nauka2)'!M6<>"",IF(Firmy2!M6<>"",'Wyk2i3-Tab1 (Nauka2)'!M6&"/"&Firmy2!M6,""),"") ->  | N6: =IF('Wyk2i3-Tab1 (Nauka2)'!N6<>"",IF(Firmy2!N6<>"",'Wyk2i3-Tab1 (Nauka2)'!N6&"/"&Firmy2!N6,""),"") -> 1/3 | O6: =IF('Wyk2i3-Tab1 (Nauka2)'!O6<>"",IF(Firmy2!O6<>"",'Wyk2i3-Tab1 (Nauka2)'!O6&"/"&Firmy2!O6,""),"") -> 7/3 | P6: =IF('Wyk2i3-Tab1 (Nauka2)'!P6<>"",IF(Firmy2!P6<>"",'Wyk2i3-Tab1 (Nauka2)'!P6&"/"&Firmy2!P6,""),"") ->  | Q6: =IF('Wyk2i3-Tab1 (Nauka2)'!Q6<>"",IF(Firmy2!Q6<>"",'Wyk2i3-Tab1 (Nauka2)'!Q6&"/"&Firmy2!Q6,""),"") ->  | R6: =IF('Wyk2i3-Tab1 (Nauka2)'!R6<>"",IF(Firmy2!R6<>"",'Wyk2i3-Tab1 (Nauka2)'!R6&"/"&Firmy2!R6,""),"") ->  | V6: 15
B7: E. Integracja systemów IT | C7: =IF('Wyk2i3-Tab1 (Nauka2)'!C7<>"",IF(Firmy2!C7<>"",'Wyk2i3-Tab1 (Nauka2)'!C7&"/"&Firmy2!C7,""),"") -> 2/29 | D7: =IF('Wyk2i3-Tab1 (Nauka2)'!D7<>"",IF(Firmy2!D7<>"",'Wyk2i3-Tab1 (Nauka2)'!D7&"/"&Firmy2!D7,""),"") -> 2/3 | E7: =IF('Wyk2i3-Tab1 (Nauka2)'!E7<>"",IF(Firmy2!E7<>"",'Wyk2i3-Tab1 (Nauka2)'!E7&"/"&Firmy2!E7,""),"") ->  | F7: =IF('Wyk2i3-Tab1 (Nauka2)'!F7<>"",IF(Firmy2!F7<>"",'Wyk2i3-Tab1 (Nauka2)'!F7&"/"&Firmy2!F7,""),"") ->  | G7: =IF('Wyk2i3-Tab1 (Nauka2)'!G7<>"",IF(Firmy2!G7<>"",'Wyk2i3-Tab1 (Nauka2)'!G7&"/"&Firmy2!G7,""),"") ->  | H7: =IF('Wyk2i3-Tab1 (Nauka2)'!H7<>"",IF(Firmy2!H7<>"",'Wyk2i3-Tab1 (Nauka2)'!H7&"/"&Firmy2!H7,""),"") -> 7/3 | I7: =IF('Wyk2i3-Tab1 (Nauka2)'!I7<>"",IF(Firmy2!I7<>"",'Wyk2i3-Tab1 (Nauka2)'!I7&"/"&Firmy2!I7,""),"") ->  | J7: =IF('Wyk2i3-Tab1 (Nauka2)'!J7<>"",IF(Firmy2!J7<>"",'Wyk2i3-Tab1 (Nauka2)'!J7&"/"&Firmy2!J7,""),"") -> 1/5 | K7: =IF('Wyk2i3-Tab1 (Nauka2)'!K7<>"",IF(Firmy2!K7<>"",'Wyk2i3-Tab1 (Nauka2)'!K7&"/"&Firmy2!K7,""),"") ->  | L7: =IF('Wyk2i3-Tab1 (Nauka2)'!L7<>"",IF(Firmy2!L7<>"",'Wyk2i3-Tab1 (Nauka2)'!L7&"/"&Firmy2!L7,""),"") -> 1/6 | M7: =IF('Wyk2i3-Tab1 (Nauka2)'!M7<>"",IF(Firmy2!M7<>"",'Wyk2i3-Tab1 (Nauka2)'!M7&"/"&Firmy2!M7,""),"") ->  | N7: =IF('Wyk2i3-Tab1 (Nauka2)'!N7<>"",IF(Firmy2!N7<>"",'Wyk2i3-Tab1 (Nauka2)'!N7&"/"&Firmy2!N7,""),"") -> 2/2 | O7: =IF('Wyk2i3-Tab1 (Nauka2)'!O7<>"",IF(Firmy2!O7<>"",'Wyk2i3-Tab1 (Nauka2)'!O7&"/"&Firmy2!O7,""),"") -> 6/4 | P7: =IF('Wyk2i3-Tab1 (Nauka2)'!P7<>"",IF(Firmy2!P7<>"",'Wyk2i3-Tab1 (Nauka2)'!P7&"/"&Firmy2!P7,""),"") -> 1/2 | Q7: =IF('Wyk2i3-Tab1 (Nauka2)'!Q7<>"",IF(Firmy2!Q7<>"",'Wyk2i3-Tab1 (Nauka2)'!Q7&"/"&Firmy2!Q7,""),"") -> 2/7 | R7: =IF('Wyk2i3-Tab1 (Nauka2)'!R7<>"",IF(Firmy2!R7<>"",'Wyk2i3-Tab1 (Nauka2)'!R7&"/"&Firmy2!R7,""),"") ->  | V7: 15
B8: F. Wdrożenia oprogramowania | C8: =IF('Wyk2i3-Tab1 (Nauka2)'!C8<>"",IF(Firmy2!C8<>"",'Wyk2i3-Tab1 (Nauka2)'!C8&"/"&Firmy2!C8,""),"") -> 5/51 | D8: =IF('Wyk2i3-Tab1 (Nauka2)'!D8<>"",IF(Firmy2!D8<>"",'Wyk2i3-Tab1 (Nauka2)'!D8&"/"&Firmy2!D8,""),"") -> 3/4 | E8: =IF('Wyk2i3-Tab1 (Nauka2)'!E8<>"",IF(Firmy2!E8<>"",'Wyk2i3-Tab1 (Nauka2)'!E8&"/"&Firmy2!E8,""),"") -> 2/8 | F8: =IF('Wyk2i3-Tab1 (Nauka2)'!F8<>"",IF(Firmy2!F8<>"",'Wyk2i3-Tab1 (Nauka2)'!F8&"/"&Firmy2!F8,""),"") ->  | G8: =IF('Wyk2i3-Tab1 (Nauka2)'!G8<>"",IF(Firmy2!G8<>"",'Wyk2i3-Tab1 (Nauka2)'!G8&"/"&Firmy2!G8,""),"") -> 1/2 | H8: =IF('Wyk2i3-Tab1 (Nauka2)'!H8<>"",IF(Firmy2!H8<>"",'Wyk2i3-Tab1 (Nauka2)'!H8&"/"&Firmy2!H8,""),"") -> 8/4 | I8: =IF('Wyk2i3-Tab1 (Nauka2)'!I8<>"",IF(Firmy2!I8<>"",'Wyk2i3-Tab1 (Nauka2)'!I8&"/"&Firmy2!I8,""),"") ->  | J8: =IF('Wyk2i3-Tab1 (Nauka2)'!J8<>"",IF(Firmy2!J8<>"",'Wyk2i3-Tab1 (Nauka2)'!J8&"/"&Firmy2!J8,""),"") -> 1/11 | K8: =IF('Wyk2i3-Tab1 (Nauka2)'!K8<>"",IF(Firmy2!K8<>"",'Wyk2i3-Tab1 (Nauka2)'!K8&"/"&Firmy2!K8,""),"") ->  | L8: =IF('Wyk2i3-Tab1 (Nauka2)'!L8<>"",IF(Firmy2!L8<>"",'Wyk2i3-Tab1 (Nauka2)'!L8&"/"&Firmy2!L8,""),"") -> 1/10 | M8: =IF('Wyk2i3-Tab1 (Nauka2)'!M8<>"",IF(Firmy2!M8<>"",'Wyk2i3-Tab1 (Nauka2)'!M8&"/"&Firmy2!M8,""),"") ->  | N8: =IF('Wyk2i3-Tab1 (Nauka2)'!N8<>"",IF(Firmy2!N8<>"",'Wyk2i3-Tab1 (Nauka2)'!N8&"/"&Firmy2!N8,""),"") -> 2/2 | O8: =IF('Wyk2i3-Tab1 (Nauka2)'!O8<>"",IF(Firmy2!O8<>"",'Wyk2i3-Tab1 (Nauka2)'!O8&"/"&Firmy2!O8,""),"") -> 7/6 | P8: =IF('Wyk2i3-Tab1 (Nauka2)'!P8<>"",IF(Firmy2!P8<>"",'Wyk2i3-Tab1 (Nauka2)'!P8&"/"&Firmy2!P8,""),"") -> 2/4 | Q8: =IF('Wyk2i3-Tab1 (Nauka2)'!Q8<>"",IF(Firmy2!Q8<>"",'Wyk2i3-Tab1 (Nauka2)'!Q8&"/"&Firmy2!Q8,""),"") -> 3/10 | R8: =IF('Wyk2i3-Tab1 (Nauka2)'!R8<>"",IF(Firmy2!R8<>"",'Wyk2i3-Tab1 (Nauka2)'!R8&"/"&Firmy2!R8,""),"") -> 6/6 | V8: 15
B9: G. Projektowanie, budowa i instalacje sieci IT | C9: =IF('Wyk2i3-Tab1 (Nauka2)'!C9<>"",IF(Firmy2!C9<>"",'Wyk2i3-Tab1 (Nauka2)'!C9&"/"&Firmy2!C9,""),"") -> 5/28 | D9: =IF('Wyk2i3-Tab1 (Nauka2)'!D9<>"",IF(Firmy2!D9<>"",'Wyk2i3-Tab1 (Nauka2)'!D9&"/"&Firmy2!D9,""),"") -> 6/3 | E9: =IF('Wyk2i3-Tab1 (Nauka2)'!E9<>"",IF(Firmy2!E9<>"",'Wyk2i3-Tab1 (Nauka2)'!E9&"/"&Firmy2!E9,""),"") -> 4/5 | F9: =IF('Wyk2i3-Tab1 (Nauka2)'!F9<>"",IF(Firmy2!F9<>"",'Wyk2i3-Tab1 (Nauka2)'!F9&"/"&Firmy2!F9,""),"") ->  | G9: =IF('Wyk2i3-Tab1 (Nauka2)'!G9<>"",IF(Firmy2!G9<>"",'Wyk2i3-Tab1 (Nauka2)'!G9&"/"&Firmy2!G9,""),"") ->  | H9: =IF('Wyk2i3-Tab1 (Nauka2)'!H9<>"",IF(Firmy2!H9<>"",'Wyk2i3-Tab1 (Nauka2)'!H9&"/"&Firmy2!H9,""),"") -> 9/3 | I9: =IF('Wyk2i3-Tab1 (Nauka2)'!I9<>"",IF(Firmy2!I9<>"",'Wyk2i3-Tab1 (Nauka2)'!I9&"/"&Firmy2!I9,""),"") -> 1/1 | J9: =IF('Wyk2i3-Tab1 (Nauka2)'!J9<>"",IF(Firmy2!J9<>"",'Wyk2i3-Tab1 (Nauka2)'!J9&"/"&Firmy2!J9,""),"") ->  | K9: =IF('Wyk2i3-Tab1 (Nauka2)'!K9<>"",IF(Firmy2!K9<>"",'Wyk2i3-Tab1 (Nauka2)'!K9&"/"&Firmy2!K9,""),"") ->  | L9: =IF('Wyk2i3-Tab1 (Nauka2)'!L9<>"",IF(Firmy2!L9<>"",'Wyk2i3-Tab1 (Nauka2)'!L9&"/"&Firmy2!L9,""),"") -> 1/2 | M9: =IF('Wyk2i3-Tab1 (Nauka2)'!M9<>"",IF(Firmy2!M9<>"",'Wyk2i3-Tab1 (Nauka2)'!M9&"/"&Firmy2!M9,""),"") ->  | N9: =IF('Wyk2i3-Tab1 (Nauka2)'!N9<>"",IF(Firmy2!N9<>"",'Wyk2i3-Tab1 (Nauka2)'!N9&"/"&Firmy2!N9,""),"") -> 2/3 | O9: =IF('Wyk2i3-Tab1 (Nauka2)'!O9<>"",IF(Firmy2!O9<>"",'Wyk2i3-Tab1 (Nauka2)'!O9&"/"&Firmy2!O9,""),"") -> 13/4 | P9: =IF('Wyk2i3-Tab1 (Nauka2)'!P9<>"",IF(Firmy2!P9<>"",'Wyk2i3-Tab1 (Nauka2)'!P9&"/"&Firmy2!P9,""),"") -> 1/1 | Q9: =IF('Wyk2i3-Tab1 (Nauka2)'!Q9<>"",IF(Firmy2!Q9<>"",'Wyk2i3-Tab1 (Nauka2)'!Q9&"/"&Firmy2!Q9,""),"") -> 3/4 | R9: =IF('Wyk2i3-Tab1 (Nauka2)'!R9<>"",IF(Firmy2!R9<>"",'Wyk2i3-Tab1 (Nauka2)'!R9&"/"&Firmy2!R9,""),"") ->  | V9: 15
B10: H. Szkolenia IT | C10: =IF('Wyk2i3-Tab1 (Nauka2)'!C10<>"",IF(Firmy2!C10<>"",'Wyk2i3-Tab1 (Nauka2)'!C10&"/"&Firmy2!C10,""),"") -> 4/28 | D10: =IF('Wyk2i3-Tab1 (Nauka2)'!D10<>"",IF(Firmy2!D10<>"",'Wyk2i3-Tab1 (Nauka2)'!D10&"/"&Firmy2!D10,""),"") -> 1/1 | E10: =IF('Wyk2i3-Tab1 (Nauka2)'!E10<>"",IF(Firmy2!E10<>"",'Wyk2i3-Tab1 (Nauka2)'!E10&"/"&Firmy2!E10,""),"") ->  | F10: =IF('Wyk2i3-Tab1 (Nauka2)'!F10<>"",IF(Firmy2!F10<>"",'Wyk2i3-Tab1 (Nauka2)'!F10&"/"&Firmy2!F10,""),"") ->  | G10: =IF('Wyk2i3-Tab1 (Nauka2)'!G10<>"",IF(Firmy2!G10<>"",'Wyk2i3-Tab1 (Nauka2)'!G10&"/"&Firmy2!G10,""),"") ->  | H10: =IF('Wyk2i3-Tab1 (Nauka2)'!H10<>"",IF(Firmy2!H10<>"",'Wyk2i3-Tab1 (Nauka2)'!H10&"/"&Firmy2!H10,""),"") -> 9/3 | I10: =IF('Wyk2i3-Tab1 (Nauka2)'!I10<>"",IF(Firmy2!I10<>"",'Wyk2i3-Tab1 (Nauka2)'!I10&"/"&Firmy2!I10,""),"") -> 1/1 | J10: =IF('Wyk2i3-Tab1 (Nauka2)'!J10<>"",IF(Firmy2!J10<>"",'Wyk2i3-Tab1 (Nauka2)'!J10&"/"&Firmy2!J10,""),"") ->  | K10: =IF('Wyk2i3-Tab1 (Nauka2)'!K10<>"",IF(Firmy2!K10<>"",'Wyk2i3-Tab1 (Nauka2)'!K10&"/"&Firmy2!K10,""),"") ->  | L10: =IF('Wyk2i3-Tab1 (Nauka2)'!L10<>"",IF(Firmy2!L10<>"",'Wyk2i3-Tab1 (Nauka2)'!L10&"/"&Firmy2!L10,""),"") -> 1/2 | M10: =IF('Wyk2i3-Tab1 (Nauka2)'!M10<>"",IF(Firmy2!M10<>"",'Wyk2i3-Tab1 (Nauka2)'!M10&"/"&Firmy2!M10,""),"") ->  | N10: =IF('Wyk2i3-Tab1 (Nauka2)'!N10<>"",IF(Firmy2!N10<>"",'Wyk2i3-Tab1 (Nauka2)'!N10&"/"&Firmy2!N10,""),"") -> 1/1 | O10: =IF('Wyk2i3-Tab1 (Nauka2)'!O10<>"",IF(Firmy2!O10<>"",'Wyk2i3-Tab1 (Nauka2)'!O10&"/"&Firmy2!O10,""),"") -> 5/3 | P10: =IF('Wyk2i3-Tab1 (Nauka2)'!P10<>"",IF(Firmy2!P10<>"",'Wyk2i3-Tab1 (Nauka2)'!P10&"/"&Firmy2!P10,""),"") ->  | Q10: =IF('Wyk2i3-Tab1 (Nauka2)'!Q10<>"",IF(Firmy2!Q10<>"",'Wyk2i3-Tab1 (Nauka2)'!Q10&"/"&Firmy2!Q10,""),"") -> 1/3 | R10: =IF('Wyk2i3-Tab1 (Nauka2)'!R10<>"",IF(Firmy2!R10<>"",'Wyk2i3-Tab1 (Nauka2)'!R10&"/"&Firmy2!R10,""),"") ->  | V10: 15
B11: I. Doradztwo IT | C11: =IF('Wyk2i3-Tab1 (Nauka2)'!C11<>"",IF(Firmy2!C11<>"",'Wyk2i3-Tab1 (Nauka2)'!C11&"/"&Firmy2!C11,""),"") -> 9/33 | D11: =IF('Wyk2i3-Tab1 (Nauka2)'!D11<>"",IF(Firmy2!D11<>"",'Wyk2i3-Tab1 (Nauka2)'!D11&"/"&Firmy2!D11,""),"") -> 12/3 | E11: =IF('Wyk2i3-Tab1 (Nauka2)'!E11<>"",IF(Firmy2!E11<>"",'Wyk2i3-Tab1 (Nauka2)'!E11&"/"&Firmy2!E11,""),"") -> 11/6 | F11: =IF('Wyk2i3-Tab1 (Nauka2)'!F11<>"",IF(Firmy2!F11<>"",'Wyk2i3-Tab1 (Nauka2)'!F11&"/"&Firmy2!F11,""),"") -> 2/3 | G11: =IF('Wyk2i3-Tab1 (Nauka2)'!G11<>"",IF(Firmy2!G11<>"",'Wyk2i3-Tab1 (Nauka2)'!G11&"/"&Firmy2!G11,""),"") -> 2/3 | H11: =IF('Wyk2i3-Tab1 (Nauka2)'!H11<>"",IF(Firmy2!H11<>"",'Wyk2i3-Tab1 (Nauka2)'!H11&"/"&Firmy2!H11,""),"") -> 13/5 | I11: =IF('Wyk2i3-Tab1 (Nauka2)'!I11<>"",IF(Firmy2!I11<>"",'Wyk2i3-Tab1 (Nauka2)'!I11&"/"&Firmy2!I11,""),"") ->  | J11: =IF('Wyk2i3-Tab1 (Nauka2)'!J11<>"",IF(Firmy2!J11<>"",'Wyk2i3-Tab1 (Nauka2)'!J11&"/"&Firmy2!J11,""),"") -> 12/7 | K11: =IF('Wyk2i3-Tab1 (Nauka2)'!K11<>"",IF(Firmy2!K11<>"",'Wyk2i3-Tab1 (Nauka2)'!K11&"/"&Firmy2!K11,""),"") -> 5/2 | L11: =IF('Wyk2i3-Tab1 (Nauka2)'!L11<>"",IF(Firmy2!L11<>"",'Wyk2i3-Tab1 (Nauka2)'!L11&"/"&Firmy2!L11,""),"") -> 6/2 | M11: =IF('Wyk2i3-Tab1 (Nauka2)'!M11<>"",IF(Firmy2!M11<>"",'Wyk2i3-Tab1 (Nauka2)'!M11&"/"&Firmy2!M11,""),"") -> 1/1 | N11: =IF('Wyk2i3-Tab1 (Nauka2)'!N11<>"",IF(Firmy2!N11<>"",'Wyk2i3-Tab1 (Nauka2)'!N11&"/"&Firmy2!N11,""),"") -> 7/2 | O11: =IF('Wyk2i3-Tab1 (Nauka2)'!O11<>"",IF(Firmy2!O11<>"",'Wyk2i3-Tab1 (Nauka2)'!O11&"/"&Firmy2!O11,""),"") -> 13/4 | P11: =IF('Wyk2i3-Tab1 (Nauka2)'!P11<>"",IF(Firmy2!P11<>"",'Wyk2i3-Tab1 (Nauka2)'!P11&"/"&Firmy2!P11,""),"") -> 1/3 | Q11: =IF('Wyk2i3-Tab1 (Nauka2)'!Q11<>"",IF(Firmy2!Q11<>"",'Wyk2i3-Tab1 (Nauka2)'!Q11&"/"&Firmy2!Q11,""),"") -> 2/5 | R11: =IF('Wyk2i3-Tab1 (Nauka2)'!R11<>"",IF(Firmy2!R11<>"",'Wyk2i3-Tab1 (Nauka2)'!R11&"/"&Firmy2!R11,""),"") ->  | V11: 15
B12: J. Outsourcing IT, wyłączając przetwarzanie danych | C12: =IF('Wyk2i3-Tab1 (Nauka2)'!C12<>"",IF(Firmy2!C12<>"",'Wyk2i3-Tab1 (Nauka2)'!C12&"/"&Firmy2!C12,""),"") ->  | D12: =IF('Wyk2i3-Tab1 (Nauka2)'!D12<>"",IF(Firmy2!D12<>"",'Wyk2i3-Tab1 (Nauka2)'!D12&"/"&Firmy2!D12,""),"") -> 3/2 | E12: =IF('Wyk2i3-Tab1 (Nauka2)'!E12<>"",IF(Firmy2!E12<>"",'Wyk2i3-Tab1 (Nauka2)'!E12&"/"&Firmy2!E12,""),"") -> 3/4 | F12: =IF('Wyk2i3-Tab1 (Nauka2)'!F12<>"",IF(Firmy2!F12<>"",'Wyk2i3-Tab1 (Nauka2)'!F12&"/"&Firmy2!F12,""),"") ->  | G12: =IF('Wyk2i3-Tab1 (Nauka2)'!G12<>"",IF(Firmy2!G12<>"",'Wyk2i3-Tab1 (Nauka2)'!G12&"/"&Firmy2!G12,""),"") -> 1/1 | H12: =IF('Wyk2i3-Tab1 (Nauka2)'!H12<>"",IF(Firmy2!H12<>"",'Wyk2i3-Tab1 (Nauka2)'!H12&"/"&Firmy2!H12,""),"") -> 1/2 | I12: =IF('Wyk2i3-Tab1 (Nauka2)'!I12<>"",IF(Firmy2!I12<>"",'Wyk2i3-Tab1 (Nauka2)'!I12&"/"&Firmy2!I12,""),"") ->  | J12: =IF('Wyk2i3-Tab1 (Nauka2)'!J12<>"",IF(Firmy2!J12<>"",'Wyk2i3-Tab1 (Nauka2)'!J12&"/"&Firmy2!J12,""),"") ->  | K12: =IF('Wyk2i3-Tab1 (Nauka2)'!K12<>"",IF(Firmy2!K12<>"",'Wyk2i3-Tab1 (Nauka2)'!K12&"/"&Firmy2!K12,""),"") ->  | L12: =IF('Wyk2i3-Tab1 (Nauka2)'!L12<>"",IF(Firmy2!L12<>"",'Wyk2i3-Tab1 (Nauka2)'!L12&"/"&Firmy2!L12,""),"") -> 1/2 | M12: =IF('Wyk2i3-Tab1 (Nauka2)'!M12<>"",IF(Firmy2!M12<>"",'Wyk2i3-Tab1 (Nauka2)'!M12&"/"&Firmy2!M12,""),"") ->  | N12: =IF('Wyk2i3-Tab1 (Nauka2)'!N12<>"",IF(Firmy2!N12<>"",'Wyk2i3-Tab1 (Nauka2)'!N12&"/"&Firmy2!N12,""),"") ->  | O12: =IF('Wyk2i3-Tab1 (Nauka2)'!O12<>"",IF(Firmy2!O12<>"",'Wyk2i3-Tab1 (Nauka2)'!O12&"/"&Firmy2!O12,""),"") -> 4/2 | P12: =IF('Wyk2i3-Tab1 (Nauka2)'!P12<>"",IF(Firmy2!P12<>"",'Wyk2i3-Tab1 (Nauka2)'!P12&"/"&Firmy2!P12,""),"") ->  | Q12: =IF('Wyk2i3-Tab1 (Nauka2)'!Q12<>"",IF(Firmy2!Q12<>"",'Wyk2i3-Tab1 (Nauka2)'!Q12&"/"&Firmy2!Q12,""),"") ->  | R12: =IF('Wyk2i3-Tab1 (Nauka2)'!R12<>"",IF(Firmy2!R12<>"",'Wyk2i3-Tab1 (Nauka2)'!R12&"/"&Firmy2!R12,""),"") ->  | V12: 15
B13: K. Outsourcing przetwarzania danych | C13: =IF('Wyk2i3-Tab1 (Nauka2)'!C13<>"",IF(Firmy2!C13<>"",'Wyk2i3-Tab1 (Nauka2)'!C13&"/"&Firmy2!C13,""),"") -> 3/8 | D13: =IF('Wyk2i3-Tab1 (Nauka2)'!D13<>"",IF(Firmy2!D13<>"",'Wyk2i3-Tab1 (Nauka2)'!D13&"/"&Firmy2!D13,""),"") -> 1/2 | E13: =IF('Wyk2i3-Tab1 (Nauka2)'!E13<>"",IF(Firmy2!E13<>"",'Wyk2i3-Tab1 (Nauka2)'!E13&"/"&Firmy2!E13,""),"") -> 1/3 | F13: =IF('Wyk2i3-Tab1 (Nauka2)'!F13<>"",IF(Firmy2!F13<>"",'Wyk2i3-Tab1 (Nauka2)'!F13&"/"&Firmy2!F13,""),"") ->  | G13: =IF('Wyk2i3-Tab1 (Nauka2)'!G13<>"",IF(Firmy2!G13<>"",'Wyk2i3-Tab1 (Nauka2)'!G13&"/"&Firmy2!G13,""),"") ->  | H13: =IF('Wyk2i3-Tab1 (Nauka2)'!H13<>"",IF(Firmy2!H13<>"",'Wyk2i3-Tab1 (Nauka2)'!H13&"/"&Firmy2!H13,""),"") -> 2/3 | I13: =IF('Wyk2i3-Tab1 (Nauka2)'!I13<>"",IF(Firmy2!I13<>"",'Wyk2i3-Tab1 (Nauka2)'!I13&"/"&Firmy2!I13,""),"") ->  | J13: =IF('Wyk2i3-Tab1 (Nauka2)'!J13<>"",IF(Firmy2!J13<>"",'Wyk2i3-Tab1 (Nauka2)'!J13&"/"&Firmy2!J13,""),"") ->  | K13: =IF('Wyk2i3-Tab1 (Nauka2)'!K13<>"",IF(Firmy2!K13<>"",'Wyk2i3-Tab1 (Nauka2)'!K13&"/"&Firmy2!K13,""),"") ->  | L13: =IF('Wyk2i3-Tab1 (Nauka2)'!L13<>"",IF(Firmy2!L13<>"",'Wyk2i3-Tab1 (Nauka2)'!L13&"/"&Firmy2!L13,""),"") -> 1/3 | M13: =IF('Wyk2i3-Tab1 (Nauka2)'!M13<>"",IF(Firmy2!M13<>"",'Wyk2i3-Tab1 (Nauka2)'!M13&"/"&Firmy2!M13,""),"") ->  | N13: =IF('Wyk2i3-Tab1 (Nauka2)'!N13<>"",IF(Firmy2!N13<>"",'Wyk2i3-Tab1 (Nauka2)'!N13&"/"&Firmy2!N13,""),"") ->  | O13: =IF('Wyk2i3-Tab1 (Nauka2)'!O13<>"",IF(Firmy2!O13<>"",'Wyk2i3-Tab1 (Nauka2)'!O13&"/"&Firmy2!O13,""),"") -> 3/2 | P13: =IF('Wyk2i3-Tab1 (Nauka2)'!P13<>"",IF(Firmy2!P13<>"",'Wyk2i3-Tab1 (Nauka2)'!P13&"/"&Firmy2!P13,""),"") ->  | Q13: =IF('Wyk2i3-Tab1 (Nauka2)'!Q13<>"",IF(Firmy2!Q13<>"",'Wyk2i3-Tab1 (Nauka2)'!Q13&"/"&Firmy2!Q13,""),"") -> 1/4 | R13: =IF('Wyk2i3-Tab1 (Nauka2)'!R13<>"",IF(Firmy2!R13<>"",'Wyk2i3-Tab1 (Nauka2)'!R13&"/"&Firmy2!R13,""),"") ->  | V13: 15
B14: L. Usługi serwisowe IT | C14: =IF('Wyk2i3-Tab1 (Nauka2)'!C14<>"",IF(Firmy2!C14<>"",'Wyk2i3-Tab1 (Nauka2)'!C14&"/"&Firmy2!C14,""),"") ->  | D14: =IF('Wyk2i3-Tab1 (Nauka2)'!D14<>"",IF(Firmy2!D14<>"",'Wyk2i3-Tab1 (Nauka2)'!D14&"/"&Firmy2!D14,""),"") ->  | E14: =IF('Wyk2i3-Tab1 (Nauka2)'!E14<>"",IF(Firmy2!E14<>"",'Wyk2i3-Tab1 (Nauka2)'!E14&"/"&Firmy2!E14,""),"") ->  | F14: =IF('Wyk2i3-Tab1 (Nauka2)'!F14<>"",IF(Firmy2!F14<>"",'Wyk2i3-Tab1 (Nauka2)'!F14&"/"&Firmy2!F14,""),"") ->  | G14: =IF('Wyk2i3-Tab1 (Nauka2)'!G14<>"",IF(Firmy2!G14<>"",'Wyk2i3-Tab1 (Nauka2)'!G14&"/"&Firmy2!G14,""),"") ->  | H14: =IF('Wyk2i3-Tab1 (Nauka2)'!H14<>"",IF(Firmy2!H14<>"",'Wyk2i3-Tab1 (Nauka2)'!H14&"/"&Firmy2!H14,""),"") -> 2/5 | I14: =IF('Wyk2i3-Tab1 (Nauka2)'!I14<>"",IF(Firmy2!I14<>"",'Wyk2i3-Tab1 (Nauka2)'!I14&"/"&Firmy2!I14,""),"") ->  | J14: =IF('Wyk2i3-Tab1 (Nauka2)'!J14<>"",IF(Firmy2!J14<>"",'Wyk2i3-Tab1 (Nauka2)'!J14&"/"&Firmy2!J14,""),"") ->  | K14: =IF('Wyk2i3-Tab1 (Nauka2)'!K14<>"",IF(Firmy2!K14<>"",'Wyk2i3-Tab1 (Nauka2)'!K14&"/"&Firmy2!K14,""),"") ->  | L14: =IF('Wyk2i3-Tab1 (Nauka2)'!L14<>"",IF(Firmy2!L14<>"",'Wyk2i3-Tab1 (Nauka2)'!L14&"/"&Firmy2!L14,""),"") ->  | M14: =IF('Wyk2i3-Tab1 (Nauka2)'!M14<>"",IF(Firmy2!M14<>"",'Wyk2i3-Tab1 (Nauka2)'!M14&"/"&Firmy2!M14,""),"") ->  | N14: =IF('Wyk2i3-Tab1 (Nauka2)'!N14<>"",IF(Firmy2!N14<>"",'Wyk2i3-Tab1 (Nauka2)'!N14&"/"&Firmy2!N14,""),"") ->  | O14: =IF('Wyk2i3-Tab1 (Nauka2)'!O14<>"",IF(Firmy2!O14<>"",'Wyk2i3-Tab1 (Nauka2)'!O14&"/"&Firmy2!O14,""),"") -> 1/3 | P14: =IF('Wyk2i3-Tab1 (Nauka2)'!P14<>"",IF(Firmy2!P14<>"",'Wyk2i3-Tab1 (Nauka2)'!P14&"/"&Firmy2!P14,""),"") ->  | Q14: =IF('Wyk2i3-Tab1 (Nauka2)'!Q14<>"",IF(Firmy2!Q14<>"",'Wyk2i3-Tab1 (Nauka2)'!Q14&"/"&Firmy2!Q14,""),"") ->  | R14: =IF('Wyk2i3-Tab1 (Nauka2)'!R14<>"",IF(Firmy2!R14<>"",'Wyk2i3-Tab1 (Nauka2)'!R14&"/"&Firmy2!R14,""),"") ->  | V14: 15
B15: M. Inne usługi IT | C15: =IF('Wyk2i3-Tab1 (Nauka2)'!C15<>"",IF(Firmy2!C15<>"",'Wyk2i3-Tab1 (Nauka2)'!C15&"/"&Firmy2!C15,""),"") -> 4/34 | D15: =IF('Wyk2i3-Tab1 (Nauka2)'!D15<>"",IF(Firmy2!D15<>"",'Wyk2i3-Tab1 (Nauka2)'!D15&"/"&Firmy2!D15,""),"") -> 1/1 | E15: =IF('Wyk2i3-Tab1 (Nauka2)'!E15<>"",IF(Firmy2!E15<>"",'Wyk2i3-Tab1 (Nauka2)'!E15&"/"&Firmy2!E15,""),"") -> 1/4 | F15: =IF('Wyk2i3-Tab1 (Nauka2)'!F15<>"",IF(Firmy2!F15<>"",'Wyk2i3-Tab1 (Nauka2)'!F15&"/"&Firmy2!F15,""),"") ->  | G15: =IF('Wyk2i3-Tab1 (Nauka2)'!G15<>"",IF(Firmy2!G15<>"",'Wyk2i3-Tab1 (Nauka2)'!G15&"/"&Firmy2!G15,""),"") ->  | H15: =IF('Wyk2i3-Tab1 (Nauka2)'!H15<>"",IF(Firmy2!H15<>"",'Wyk2i3-Tab1 (Nauka2)'!H15&"/"&Firmy2!H15,""),"") -> 5/2 | I15: =IF('Wyk2i3-Tab1 (Nauka2)'!I15<>"",IF(Firmy2!I15<>"",'Wyk2i3-Tab1 (Nauka2)'!I15&"/"&Firmy2!I15,""),"") ->  | J15: =IF('Wyk2i3-Tab1 (Nauka2)'!J15<>"",IF(Firmy2!J15<>"",'Wyk2i3-Tab1 (Nauka2)'!J15&"/"&Firmy2!J15,""),"") ->  | K15: =IF('Wyk2i3-Tab1 (Nauka2)'!K15<>"",IF(Firmy2!K15<>"",'Wyk2i3-Tab1 (Nauka2)'!K15&"/"&Firmy2!K15,""),"") ->  | L15: =IF('Wyk2i3-Tab1 (Nauka2)'!L15<>"",IF(Firmy2!L15<>"",'Wyk2i3-Tab1 (Nauka2)'!L15&"/"&Firmy2!L15,""),"") ->  | M15: =IF('Wyk2i3-Tab1 (Nauka2)'!M15<>"",IF(Firmy2!M15<>"",'Wyk2i3-Tab1 (Nauka2)'!M15&"/"&Firmy2!M15,""),"") ->  | N15: =IF('Wyk2i3-Tab1 (Nauka2)'!N15<>"",IF(Firmy2!N15<>"",'Wyk2i3-Tab1 (Nauka2)'!N15&"/"&Firmy2!N15,""),"") -> 1/1 | O15: =IF('Wyk2i3-Tab1 (Nauka2)'!O15<>"",IF(Firmy2!O15<>"",'Wyk2i3-Tab1 (Nauka2)'!O15&"/"&Firmy2!O15,""),"") -> 9/3 | P15: =IF('Wyk2i3-Tab1 (Nauka2)'!P15<>"",IF(Firmy2!P15<>"",'Wyk2i3-Tab1 (Nauka2)'!P15&"/"&Firmy2!P15,""),"") ->  | Q15: =IF('Wyk2i3-Tab1 (Nauka2)'!Q15<>"",IF(Firmy2!Q15<>"",'Wyk2i3-Tab1 (Nauka2)'!Q15&"/"&Firmy2!Q15,""),"") -> 9/3 | R15: =IF('Wyk2i3-Tab1 (Nauka2)'!R15<>"",IF(Firmy2!R15<>"",'Wyk2i3-Tab1 (Nauka2)'!R15&"/"&Firmy2!R15,""),"") ->  | V15: 15
B16: N. Instalacje i uruchamianie central telekomunikacyjnych | C16: =IF('Wyk2i3-Tab1 (Nauka2)'!C16<>"",IF(Firmy2!C16<>"",'Wyk2i3-Tab1 (Nauka2)'!C16&"/"&Firmy2!C16,""),"") ->  | D16: =IF('Wyk2i3-Tab1 (Nauka2)'!D16<>"",IF(Firmy2!D16<>"",'Wyk2i3-Tab1 (Nauka2)'!D16&"/"&Firmy2!D16,""),"") ->  | E16: =IF('Wyk2i3-Tab1 (Nauka2)'!E16<>"",IF(Firmy2!E16<>"",'Wyk2i3-Tab1 (Nauka2)'!E16&"/"&Firmy2!E16,""),"") ->  | F16: =IF('Wyk2i3-Tab1 (Nauka2)'!F16<>"",IF(Firmy2!F16<>"",'Wyk2i3-Tab1 (Nauka2)'!F16&"/"&Firmy2!F16,""),"") ->  | G16: =IF('Wyk2i3-Tab1 (Nauka2)'!G16<>"",IF(Firmy2!G16<>"",'Wyk2i3-Tab1 (Nauka2)'!G16&"/"&Firmy2!G16,""),"") ->  | H16: =IF('Wyk2i3-Tab1 (Nauka2)'!H16<>"",IF(Firmy2!H16<>"",'Wyk2i3-Tab1 (Nauka2)'!H16&"/"&Firmy2!H16,""),"") ->  | I16: =IF('Wyk2i3-Tab1 (Nauka2)'!I16<>"",IF(Firmy2!I16<>"",'Wyk2i3-Tab1 (Nauka2)'!I16&"/"&Firmy2!I16,""),"") ->  | J16: =IF('Wyk2i3-Tab1 (Nauka2)'!J16<>"",IF(Firmy2!J16<>"",'Wyk2i3-Tab1 (Nauka2)'!J16&"/"&Firmy2!J16,""),"") ->  | K16: =IF('Wyk2i3-Tab1 (Nauka2)'!K16<>"",IF(Firmy2!K16<>"",'Wyk2i3-Tab1 (Nauka2)'!K16&"/"&Firmy2!K16,""),"") ->  | L16: =IF('Wyk2i3-Tab1 (Nauka2)'!L16<>"",IF(Firmy2!L16<>"",'Wyk2i3-Tab1 (Nauka2)'!L16&"/"&Firmy2!L16,""),"") ->  | M16: =IF('Wyk2i3-Tab1 (Nauka2)'!M16<>"",IF(Firmy2!M16<>"",'Wyk2i3-Tab1 (Nauka2)'!M16&"/"&Firmy2!M16,""),"") ->  | N16: =IF('Wyk2i3-Tab1 (Nauka2)'!N16<>"",IF(Firmy2!N16<>"",'Wyk2i3-Tab1 (Nauka2)'!N16&"/"&Firmy2!N16,""),"") ->  | O16: =IF('Wyk2i3-Tab1 (Nauka2)'!O16<>"",IF(Firmy2!O16<>"",'Wyk2i3-Tab1 (Nauka2)'!O16&"/"&Firmy2!O16,""),"") ->  | P16: =IF('Wyk2i3-Tab1 (Nauka2)'!P16<>"",IF(Firmy2!P16<>"",'Wyk2i3-Tab1 (Nauka2)'!P16&"/"&Firmy2!P16,""),"") ->  | Q16: =IF('Wyk2i3-Tab1 (Nauka2)'!Q16<>"",IF(Firmy2!Q16<>"",'Wyk2i3-Tab1 (Nauka2)'!Q16&"/"&Firmy2!Q16,""),"") ->  | R16: =IF('Wyk2i3-Tab1 (Nauka2)'!R16<>"",IF(Firmy2!R16<>"",'Wyk2i3-Tab1 (Nauka2)'!R16&"/"&Firmy2!R16,""),"") ->  | V16: 15
B17: O. Projekt., budowa, uruchamianie i utrzym. sieci telekom. | C17: =IF('Wyk2i3-Tab1 (Nauka2)'!C17<>"",IF(Firmy2!C17<>"",'Wyk2i3-Tab1 (Nauka2)'!C17&"/"&Firmy2!C17,""),"") -> 2/11 | D17: =IF('Wyk2i3-Tab1 (Nauka2)'!D17<>"",IF(Firmy2!D17<>"",'Wyk2i3-Tab1 (Nauka2)'!D17&"/"&Firmy2!D17,""),"") ->  | E17: =IF('Wyk2i3-Tab1 (Nauka2)'!E17<>"",IF(Firmy2!E17<>"",'Wyk2i3-Tab1 (Nauka2)'!E17&"/"&Firmy2!E17,""),"") ->  | F17: =IF('Wyk2i3-Tab1 (Nauka2)'!F17<>"",IF(Firmy2!F17<>"",'Wyk2i3-Tab1 (Nauka2)'!F17&"/"&Firmy2!F17,""),"") ->  | G17: =IF('Wyk2i3-Tab1 (Nauka2)'!G17<>"",IF(Firmy2!G17<>"",'Wyk2i3-Tab1 (Nauka2)'!G17&"/"&Firmy2!G17,""),"") ->  | H17: =IF('Wyk2i3-Tab1 (Nauka2)'!H17<>"",IF(Firmy2!H17<>"",'Wyk2i3-Tab1 (Nauka2)'!H17&"/"&Firmy2!H17,""),"") -> 2/1 | I17: =IF('Wyk2i3-Tab1 (Nauka2)'!I17<>"",IF(Firmy2!I17<>"",'Wyk2i3-Tab1 (Nauka2)'!I17&"/"&Firmy2!I17,""),"") ->  | J17: =IF('Wyk2i3-Tab1 (Nauka2)'!J17<>"",IF(Firmy2!J17<>"",'Wyk2i3-Tab1 (Nauka2)'!J17&"/"&Firmy2!J17,""),"") ->  | K17: =IF('Wyk2i3-Tab1 (Nauka2)'!K17<>"",IF(Firmy2!K17<>"",'Wyk2i3-Tab1 (Nauka2)'!K17&"/"&Firmy2!K17,""),"") ->  | L17: =IF('Wyk2i3-Tab1 (Nauka2)'!L17<>"",IF(Firmy2!L17<>"",'Wyk2i3-Tab1 (Nauka2)'!L17&"/"&Firmy2!L17,""),"") ->  | M17: =IF('Wyk2i3-Tab1 (Nauka2)'!M17<>"",IF(Firmy2!M17<>"",'Wyk2i3-Tab1 (Nauka2)'!M17&"/"&Firmy2!M17,""),"") ->  | N17: =IF('Wyk2i3-Tab1 (Nauka2)'!N17<>"",IF(Firmy2!N17<>"",'Wyk2i3-Tab1 (Nauka2)'!N17&"/"&Firmy2!N17,""),"") -> 1/1 | O17: =IF('Wyk2i3-Tab1 (Nauka2)'!O17<>"",IF(Firmy2!O17<>"",'Wyk2i3-Tab1 (Nauka2)'!O17&"/"&Firmy2!O17,""),"") -> 6/1 | P17: =IF('Wyk2i3-Tab1 (Nauka2)'!P17<>"",IF(Firmy2!P17<>"",'Wyk2i3-Tab1 (Nauka2)'!P17&"/"&Firmy2!P17,""),"") ->  | Q17: =IF('Wyk2i3-Tab1 (Nauka2)'!Q17<>"",IF(Firmy2!Q17<>"",'Wyk2i3-Tab1 (Nauka2)'!Q17&"/"&Firmy2!Q17,""),"") -> 1/3 | R17: =IF('Wyk2i3-Tab1 (Nauka2)'!R17<>"",IF(Firmy2!R17<>"",'Wyk2i3-Tab1 (Nauka2)'!R17&"/"&Firmy2!R17,""),"") ->  | V17: 15
B18: P. Usługi operatorskie TV kablowych | C18: =IF('Wyk2i3-Tab1 (Nauka2)'!C18<>"",IF(Firmy2!C18<>"",'Wyk2i3-Tab1 (Nauka2)'!C18&"/"&Firmy2!C18,""),"") -> 1/7 | D18: =IF('Wyk2i3-Tab1 (Nauka2)'!D18<>"",IF(Firmy2!D18<>"",'Wyk2i3-Tab1 (Nauka2)'!D18&"/"&Firmy2!D18,""),"") ->  | E18: =IF('Wyk2i3-Tab1 (Nauka2)'!E18<>"",IF(Firmy2!E18<>"",'Wyk2i3-Tab1 (Nauka2)'!E18&"/"&Firmy2!E18,""),"") ->  | F18: =IF('Wyk2i3-Tab1 (Nauka2)'!F18<>"",IF(Firmy2!F18<>"",'Wyk2i3-Tab1 (Nauka2)'!F18&"/"&Firmy2!F18,""),"") ->  | G18: =IF('Wyk2i3-Tab1 (Nauka2)'!G18<>"",IF(Firmy2!G18<>"",'Wyk2i3-Tab1 (Nauka2)'!G18&"/"&Firmy2!G18,""),"") ->  | H18: =IF('Wyk2i3-Tab1 (Nauka2)'!H18<>"",IF(Firmy2!H18<>"",'Wyk2i3-Tab1 (Nauka2)'!H18&"/"&Firmy2!H18,""),"") ->  | I18: =IF('Wyk2i3-Tab1 (Nauka2)'!I18<>"",IF(Firmy2!I18<>"",'Wyk2i3-Tab1 (Nauka2)'!I18&"/"&Firmy2!I18,""),"") ->  | J18: =IF('Wyk2i3-Tab1 (Nauka2)'!J18<>"",IF(Firmy2!J18<>"",'Wyk2i3-Tab1 (Nauka2)'!J18&"/"&Firmy2!J18,""),"") ->  | K18: =IF('Wyk2i3-Tab1 (Nauka2)'!K18<>"",IF(Firmy2!K18<>"",'Wyk2i3-Tab1 (Nauka2)'!K18&"/"&Firmy2!K18,""),"") ->  | L18: =IF('Wyk2i3-Tab1 (Nauka2)'!L18<>"",IF(Firmy2!L18<>"",'Wyk2i3-Tab1 (Nauka2)'!L18&"/"&Firmy2!L18,""),"") ->  | M18: =IF('Wyk2i3-Tab1 (Nauka2)'!M18<>"",IF(Firmy2!M18<>"",'Wyk2i3-Tab1 (Nauka2)'!M18&"/"&Firmy2!M18,""),"") ->  | N18: =IF('Wyk2i3-Tab1 (Nauka2)'!N18<>"",IF(Firmy2!N18<>"",'Wyk2i3-Tab1 (Nauka2)'!N18&"/"&Firmy2!N18,""),"") ->  | O18: =IF('Wyk2i3-Tab1 (Nauka2)'!O18<>"",IF(Firmy2!O18<>"",'Wyk2i3-Tab1 (Nauka2)'!O18&"/"&Firmy2!O18,""),"") ->  | P18: =IF('Wyk2i3-Tab1 (Nauka2)'!P18<>"",IF(Firmy2!P18<>"",'Wyk2i3-Tab1 (Nauka2)'!P18&"/"&Firmy2!P18,""),"") ->  | Q18: =IF('Wyk2i3-Tab1 (Nauka2)'!Q18<>"",IF(Firmy2!Q18<>"",'Wyk2i3-Tab1 (Nauka2)'!Q18&"/"&Firmy2!Q18,""),"") ->  | R18: =IF('Wyk2i3-Tab1 (Nauka2)'!R18<>"",IF(Firmy2!R18<>"",'Wyk2i3-Tab1 (Nauka2)'!R18&"/"&Firmy2!R18,""),"") ->  | V18: 15
B19: Q. Usługi operatorskie transmisji danych | C19: =IF('Wyk2i3-Tab1 (Nauka2)'!C19<>"",IF(Firmy2!C19<>"",'Wyk2i3-Tab1 (Nauka2)'!C19&"/"&Firmy2!C19,""),"") -> 3/12 | D19: =IF('Wyk2i3-Tab1 (Nauka2)'!D19<>"",IF(Firmy2!D19<>"",'Wyk2i3-Tab1 (Nauka2)'!D19&"/"&Firmy2!D19,""),"") ->  | E19: =IF('Wyk2i3-Tab1 (Nauka2)'!E19<>"",IF(Firmy2!E19<>"",'Wyk2i3-Tab1 (Nauka2)'!E19&"/"&Firmy2!E19,""),"") ->  | F19: =IF('Wyk2i3-Tab1 (Nauka2)'!F19<>"",IF(Firmy2!F19<>"",'Wyk2i3-Tab1 (Nauka2)'!F19&"/"&Firmy2!F19,""),"") ->  | G19: =IF('Wyk2i3-Tab1 (Nauka2)'!G19<>"",IF(Firmy2!G19<>"",'Wyk2i3-Tab1 (Nauka2)'!G19&"/"&Firmy2!G19,""),"") ->  | H19: =IF('Wyk2i3-Tab1 (Nauka2)'!H19<>"",IF(Firmy2!H19<>"",'Wyk2i3-Tab1 (Nauka2)'!H19&"/"&Firmy2!H19,""),"") ->  | I19: =IF('Wyk2i3-Tab1 (Nauka2)'!I19<>"",IF(Firmy2!I19<>"",'Wyk2i3-Tab1 (Nauka2)'!I19&"/"&Firmy2!I19,""),"") ->  | J19: =IF('Wyk2i3-Tab1 (Nauka2)'!J19<>"",IF(Firmy2!J19<>"",'Wyk2i3-Tab1 (Nauka2)'!J19&"/"&Firmy2!J19,""),"") ->  | K19: =IF('Wyk2i3-Tab1 (Nauka2)'!K19<>"",IF(Firmy2!K19<>"",'Wyk2i3-Tab1 (Nauka2)'!K19&"/"&Firmy2!K19,""),"") ->  | L19: =IF('Wyk2i3-Tab1 (Nauka2)'!L19<>"",IF(Firmy2!L19<>"",'Wyk2i3-Tab1 (Nauka2)'!L19&"/"&Firmy2!L19,""),"") ->  | M19: =IF('Wyk2i3-Tab1 (Nauka2)'!M19<>"",IF(Firmy2!M19<>"",'Wyk2i3-Tab1 (Nauka2)'!M19&"/"&Firmy2!M19,""),"") ->  | N19: =IF('Wyk2i3-Tab1 (Nauka2)'!N19<>"",IF(Firmy2!N19<>"",'Wyk2i3-Tab1 (Nauka2)'!N19&"/"&Firmy2!N19,""),"") ->  | O19: =IF('Wyk2i3-Tab1 (Nauka2)'!O19<>"",IF(Firmy2!O19<>"",'Wyk2i3-Tab1 (Nauka2)'!O19&"/"&Firmy2!O19,""),"") ->  | P19: =IF('Wyk2i3-Tab1 (Nauka2)'!P19<>"",IF(Firmy2!P19<>"",'Wyk2i3-Tab1 (Nauka2)'!P19&"/"&Firmy2!P19,""),"") ->  | Q19: =IF('Wyk2i3-Tab1 (Nauka2)'!Q19<>"",IF(Firmy2!Q19<>"",'Wyk2i3-Tab1 (Nauka2)'!Q19&"/"&Firmy2!Q19,""),"") -> 1/1 | R19: =IF('Wyk2i3-Tab1 (Nauka2)'!R19<>"",IF(Firmy2!R19<>"",'Wyk2i3-Tab1 (Nauka2)'!R19&"/"&Firmy2!R19,""),"") ->  | V19: 15
B20: R. Usługi internetowe (dostępowe ISP) | C20: =IF('Wyk2i3-Tab1 (Nauka2)'!C20<>"",IF(Firmy2!C20<>"",'Wyk2i3-Tab1 (Nauka2)'!C20&"/"&Firmy2!C20,""),"") -> 2/30 | D20: =IF('Wyk2i3-Tab1 (Nauka2)'!D20<>"",IF(Firmy2!D20<>"",'Wyk2i3-Tab1 (Nauka2)'!D20&"/"&Firmy2!D20,""),"") ->  | E20: =IF('Wyk2i3-Tab1 (Nauka2)'!E20<>"",IF(Firmy2!E20<>"",'Wyk2i3-Tab1 (Nauka2)'!E20&"/"&Firmy2!E20,""),"") ->  | F20: =IF('Wyk2i3-Tab1 (Nauka2)'!F20<>"",IF(Firmy2!F20<>"",'Wyk2i3-Tab1 (Nauka2)'!F20&"/"&Firmy2!F20,""),"") ->  | G20: =IF('Wyk2i3-Tab1 (Nauka2)'!G20<>"",IF(Firmy2!G20<>"",'Wyk2i3-Tab1 (Nauka2)'!G20&"/"&Firmy2!G20,""),"") ->  | H20: =IF('Wyk2i3-Tab1 (Nauka2)'!H20<>"",IF(Firmy2!H20<>"",'Wyk2i3-Tab1 (Nauka2)'!H20&"/"&Firmy2!H20,""),"") ->  | I20: =IF('Wyk2i3-Tab1 (Nauka2)'!I20<>"",IF(Firmy2!I20<>"",'Wyk2i3-Tab1 (Nauka2)'!I20&"/"&Firmy2!I20,""),"") ->  | J20: =IF('Wyk2i3-Tab1 (Nauka2)'!J20<>"",IF(Firmy2!J20<>"",'Wyk2i3-Tab1 (Nauka2)'!J20&"/"&Firmy2!J20,""),"") ->  | K20: =IF('Wyk2i3-Tab1 (Nauka2)'!K20<>"",IF(Firmy2!K20<>"",'Wyk2i3-Tab1 (Nauka2)'!K20&"/"&Firmy2!K20,""),"") ->  | L20: =IF('Wyk2i3-Tab1 (Nauka2)'!L20<>"",IF(Firmy2!L20<>"",'Wyk2i3-Tab1 (Nauka2)'!L20&"/"&Firmy2!L20,""),"") ->  | M20: =IF('Wyk2i3-Tab1 (Nauka2)'!M20<>"",IF(Firmy2!M20<>"",'Wyk2i3-Tab1 (Nauka2)'!M20&"/"&Firmy2!M20,""),"") ->  | N20: =IF('Wyk2i3-Tab1 (Nauka2)'!N20<>"",IF(Firmy2!N20<>"",'Wyk2i3-Tab1 (Nauka2)'!N20&"/"&Firmy2!N20,""),"") ->  | O20: =IF('Wyk2i3-Tab1 (Nauka2)'!O20<>"",IF(Firmy2!O20<>"",'Wyk2i3-Tab1 (Nauka2)'!O20&"/"&Firmy2!O20,""),"") ->  | P20: =IF('Wyk2i3-Tab1 (Nauka2)'!P20<>"",IF(Firmy2!P20<>"",'Wyk2i3-Tab1 (Nauka2)'!P20&"/"&Firmy2!P20,""),"") ->  | Q20: =IF('Wyk2i3-Tab1 (Nauka2)'!Q20<>"",IF(Firmy2!Q20<>"",'Wyk2i3-Tab1 (Nauka2)'!Q20&"/"&Firmy2!Q20,""),"") ->  | R20: =IF('Wyk2i3-Tab1 (Nauka2)'!R20<>"",IF(Firmy2!R20<>"",'Wyk2i3-Tab1 (Nauka2)'!R20&"/"&Firmy2!R20,""),"") ->  | V20: 15
B21: S. Outsourcing telekomunikacyjny | C21: =IF('Wyk2i3-Tab1 (Nauka2)'!C21<>"",IF(Firmy2!C21<>"",'Wyk2i3-Tab1 (Nauka2)'!C21&"/"&Firmy2!C21,""),"") ->  | D21: =IF('Wyk2i3-Tab1 (Nauka2)'!D21<>"",IF(Firmy2!D21<>"",'Wyk2i3-Tab1 (Nauka2)'!D21&"/"&Firmy2!D21,""),"") ->  | E21: =IF('Wyk2i3-Tab1 (Nauka2)'!E21<>"",IF(Firmy2!E21<>"",'Wyk2i3-Tab1 (Nauka2)'!E21&"/"&Firmy2!E21,""),"") ->  | F21: =IF('Wyk2i3-Tab1 (Nauka2)'!F21<>"",IF(Firmy2!F21<>"",'Wyk2i3-Tab1 (Nauka2)'!F21&"/"&Firmy2!F21,""),"") ->  | G21: =IF('Wyk2i3-Tab1 (Nauka2)'!G21<>"",IF(Firmy2!G21<>"",'Wyk2i3-Tab1 (Nauka2)'!G21&"/"&Firmy2!G21,""),"") ->  | H21: =IF('Wyk2i3-Tab1 (Nauka2)'!H21<>"",IF(Firmy2!H21<>"",'Wyk2i3-Tab1 (Nauka2)'!H21&"/"&Firmy2!H21,""),"") ->  | I21: =IF('Wyk2i3-Tab1 (Nauka2)'!I21<>"",IF(Firmy2!I21<>"",'Wyk2i3-Tab1 (Nauka2)'!I21&"/"&Firmy2!I21,""),"") ->  | J21: =IF('Wyk2i3-Tab1 (Nauka2)'!J21<>"",IF(Firmy2!J21<>"",'Wyk2i3-Tab1 (Nauka2)'!J21&"/"&Firmy2!J21,""),"") ->  | K21: =IF('Wyk2i3-Tab1 (Nauka2)'!K21<>"",IF(Firmy2!K21<>"",'Wyk2i3-Tab1 (Nauka2)'!K21&"/"&Firmy2!K21,""),"") ->  | L21: =IF('Wyk2i3-Tab1 (Nauka2)'!L21<>"",IF(Firmy2!L21<>"",'Wyk2i3-Tab1 (Nauka2)'!L21&"/"&Firmy2!L21,""),"") ->  | M21: =IF('Wyk2i3-Tab1 (Nauka2)'!M21<>"",IF(Firmy2!M21<>"",'Wyk2i3-Tab1 (Nauka2)'!M21&"/"&Firmy2!M21,""),"") ->  | N21: =IF('Wyk2i3-Tab1 (Nauka2)'!N21<>"",IF(Firmy2!N21<>"",'Wyk2i3-Tab1 (Nauka2)'!N21&"/"&Firmy2!N21,""),"") ->  | O21: =IF('Wyk2i3-Tab1 (Nauka2)'!O21<>"",IF(Firmy2!O21<>"",'Wyk2i3-Tab1 (Nauka2)'!O21&"/"&Firmy2!O21,""),"") ->  | P21: =IF('Wyk2i3-Tab1 (Nauka2)'!P21<>"",IF(Firmy2!P21<>"",'Wyk2i3-Tab1 (Nauka2)'!P21&"/"&Firmy2!P21,""),"") ->  | Q21: =IF('Wyk2i3-Tab1 (Nauka2)'!Q21<>"",IF(Firmy2!Q21<>"",'Wyk2i3-Tab1 (Nauka2)'!Q21&"/"&Firmy2!Q21,""),"") ->  | R21: =IF('Wyk2i3-Tab1 (Nauka2)'!R21<>"",IF(Firmy2!R21<>"",'Wyk2i3-Tab1 (Nauka2)'!R21&"/"&Firmy2!R21,""),"") ->  | V21: 15
B22: T. Usługi serwisowe telekomunikacyjne | C22: =IF('Wyk2i3-Tab1 (Nauka2)'!C22<>"",IF(Firmy2!C22<>"",'Wyk2i3-Tab1 (Nauka2)'!C22&"/"&Firmy2!C22,""),"") -> 1/10 | D22: =IF('Wyk2i3-Tab1 (Nauka2)'!D22<>"",IF(Firmy2!D22<>"",'Wyk2i3-Tab1 (Nauka2)'!D22&"/"&Firmy2!D22,""),"") ->  | E22: =IF('Wyk2i3-Tab1 (Nauka2)'!E22<>"",IF(Firmy2!E22<>"",'Wyk2i3-Tab1 (Nauka2)'!E22&"/"&Firmy2!E22,""),"") ->  | F22: =IF('Wyk2i3-Tab1 (Nauka2)'!F22<>"",IF(Firmy2!F22<>"",'Wyk2i3-Tab1 (Nauka2)'!F22&"/"&Firmy2!F22,""),"") ->  | G22: =IF('Wyk2i3-Tab1 (Nauka2)'!G22<>"",IF(Firmy2!G22<>"",'Wyk2i3-Tab1 (Nauka2)'!G22&"/"&Firmy2!G22,""),"") ->  | H22: =IF('Wyk2i3-Tab1 (Nauka2)'!H22<>"",IF(Firmy2!H22<>"",'Wyk2i3-Tab1 (Nauka2)'!H22&"/"&Firmy2!H22,""),"") ->  | I22: =IF('Wyk2i3-Tab1 (Nauka2)'!I22<>"",IF(Firmy2!I22<>"",'Wyk2i3-Tab1 (Nauka2)'!I22&"/"&Firmy2!I22,""),"") ->  | J22: =IF('Wyk2i3-Tab1 (Nauka2)'!J22<>"",IF(Firmy2!J22<>"",'Wyk2i3-Tab1 (Nauka2)'!J22&"/"&Firmy2!J22,""),"") ->  | K22: =IF('Wyk2i3-Tab1 (Nauka2)'!K22<>"",IF(Firmy2!K22<>"",'Wyk2i3-Tab1 (Nauka2)'!K22&"/"&Firmy2!K22,""),"") ->  | L22: =IF('Wyk2i3-Tab1 (Nauka2)'!L22<>"",IF(Firmy2!L22<>"",'Wyk2i3-Tab1 (Nauka2)'!L22&"/"&Firmy2!L22,""),"") ->  | M22: =IF('Wyk2i3-Tab1 (Nauka2)'!M22<>"",IF(Firmy2!M22<>"",'Wyk2i3-Tab1 (Nauka2)'!M22&"/"&Firmy2!M22,""),"") ->  | N22: =IF('Wyk2i3-Tab1 (Nauka2)'!N22<>"",IF(Firmy2!N22<>"",'Wyk2i3-Tab1 (Nauka2)'!N22&"/"&Firmy2!N22,""),"") ->  | O22: =IF('Wyk2i3-Tab1 (Nauka2)'!O22<>"",IF(Firmy2!O22<>"",'Wyk2i3-Tab1 (Nauka2)'!O22&"/"&Firmy2!O22,""),"") -> 1/1 | P22: =IF('Wyk2i3-Tab1 (Nauka2)'!P22<>"",IF(Firmy2!P22<>"",'Wyk2i3-Tab1 (Nauka2)'!P22&"/"&Firmy2!P22,""),"") ->  | Q22: =IF('Wyk2i3-Tab1 (Nauka2)'!Q22<>"",IF(Firmy2!Q22<>"",'Wyk2i3-Tab1 (Nauka2)'!Q22&"/"&Firmy2!Q22,""),"") ->  | R22: =IF('Wyk2i3-Tab1 (Nauka2)'!R22<>"",IF(Firmy2!R22<>"",'Wyk2i3-Tab1 (Nauka2)'!R22&"/"&Firmy2!R22,""),"") ->  | V22: 15
B23: U Inne usługi telekomunikacyjne | C23: =IF('Wyk2i3-Tab1 (Nauka2)'!C23<>"",IF(Firmy2!C23<>"",'Wyk2i3-Tab1 (Nauka2)'!C23&"/"&Firmy2!C23,""),"") -> 2/19 | D23: =IF('Wyk2i3-Tab1 (Nauka2)'!D23<>"",IF(Firmy2!D23<>"",'Wyk2i3-Tab1 (Nauka2)'!D23&"/"&Firmy2!D23,""),"") -> 1/1 | E23: =IF('Wyk2i3-Tab1 (Nauka2)'!E23<>"",IF(Firmy2!E23<>"",'Wyk2i3-Tab1 (Nauka2)'!E23&"/"&Firmy2!E23,""),"") ->  | F23: =IF('Wyk2i3-Tab1 (Nauka2)'!F23<>"",IF(Firmy2!F23<>"",'Wyk2i3-Tab1 (Nauka2)'!F23&"/"&Firmy2!F23,""),"") ->  | G23: =IF('Wyk2i3-Tab1 (Nauka2)'!G23<>"",IF(Firmy2!G23<>"",'Wyk2i3-Tab1 (Nauka2)'!G23&"/"&Firmy2!G23,""),"") ->  | H23: =IF('Wyk2i3-Tab1 (Nauka2)'!H23<>"",IF(Firmy2!H23<>"",'Wyk2i3-Tab1 (Nauka2)'!H23&"/"&Firmy2!H23,""),"") ->  | I23: =IF('Wyk2i3-Tab1 (Nauka2)'!I23<>"",IF(Firmy2!I23<>"",'Wyk2i3-Tab1 (Nauka2)'!I23&"/"&Firmy2!I23,""),"") ->  | J23: =IF('Wyk2i3-Tab1 (Nauka2)'!J23<>"",IF(Firmy2!J23<>"",'Wyk2i3-Tab1 (Nauka2)'!J23&"/"&Firmy2!J23,""),"") ->  | K23: =IF('Wyk2i3-Tab1 (Nauka2)'!K23<>"",IF(Firmy2!K23<>"",'Wyk2i3-Tab1 (Nauka2)'!K23&"/"&Firmy2!K23,""),"") ->  | L23: =IF('Wyk2i3-Tab1 (Nauka2)'!L23<>"",IF(Firmy2!L23<>"",'Wyk2i3-Tab1 (Nauka2)'!L23&"/"&Firmy2!L23,""),"") ->  | M23: =IF('Wyk2i3-Tab1 (Nauka2)'!M23<>"",IF(Firmy2!M23<>"",'Wyk2i3-Tab1 (Nauka2)'!M23&"/"&Firmy2!M23,""),"") ->  | N23: =IF('Wyk2i3-Tab1 (Nauka2)'!N23<>"",IF(Firmy2!N23<>"",'Wyk2i3-Tab1 (Nauka2)'!N23&"/"&Firmy2!N23,""),"") -> 19/1 | O23: =IF('Wyk2i3-Tab1 (Nauka2)'!O23<>"",IF(Firmy2!O23<>"",'Wyk2i3-Tab1 (Nauka2)'!O23&"/"&Firmy2!O23,""),"") -> 1/1 | P23: =IF('Wyk2i3-Tab1 (Nauka2)'!P23<>"",IF(Firmy2!P23<>"",'Wyk2i3-Tab1 (Nauka2)'!P23&"/"&Firmy2!P23,""),"") ->  | Q23: =IF('Wyk2i3-Tab1 (Nauka2)'!Q23<>"",IF(Firmy2!Q23<>"",'Wyk2i3-Tab1 (Nauka2)'!Q23&"/"&Firmy2!Q23,""),"") -> 16/1 | R23: =IF('Wyk2i3-Tab1 (Nauka2)'!R23<>"",IF(Firmy2!R23<>"",'Wyk2i3-Tab1 (Nauka2)'!R23&"/"&Firmy2!R23,""),"") -> 2/4 | V23: 15
B24: V. Dystrybucja IT (sprzedaż do dalszej odsprzedaży) | C24: =IF('Wyk2i3-Tab1 (Nauka2)'!C24<>"",IF(Firmy2!C24<>"",'Wyk2i3-Tab1 (Nauka2)'!C24&"/"&Firmy2!C24,""),"") -> 1/6 | D24: =IF('Wyk2i3-Tab1 (Nauka2)'!D24<>"",IF(Firmy2!D24<>"",'Wyk2i3-Tab1 (Nauka2)'!D24&"/"&Firmy2!D24,""),"") ->  | E24: =IF('Wyk2i3-Tab1 (Nauka2)'!E24<>"",IF(Firmy2!E24<>"",'Wyk2i3-Tab1 (Nauka2)'!E24&"/"&Firmy2!E24,""),"") ->  | F24: =IF('Wyk2i3-Tab1 (Nauka2)'!F24<>"",IF(Firmy2!F24<>"",'Wyk2i3-Tab1 (Nauka2)'!F24&"/"&Firmy2!F24,""),"") ->  | G24: =IF('Wyk2i3-Tab1 (Nauka2)'!G24<>"",IF(Firmy2!G24<>"",'Wyk2i3-Tab1 (Nauka2)'!G24&"/"&Firmy2!G24,""),"") ->  | H24: =IF('Wyk2i3-Tab1 (Nauka2)'!H24<>"",IF(Firmy2!H24<>"",'Wyk2i3-Tab1 (Nauka2)'!H24&"/"&Firmy2!H24,""),"") ->  | I24: =IF('Wyk2i3-Tab1 (Nauka2)'!I24<>"",IF(Firmy2!I24<>"",'Wyk2i3-Tab1 (Nauka2)'!I24&"/"&Firmy2!I24,""),"") ->  | J24: =IF('Wyk2i3-Tab1 (Nauka2)'!J24<>"",IF(Firmy2!J24<>"",'Wyk2i3-Tab1 (Nauka2)'!J24&"/"&Firmy2!J24,""),"") ->  | K24: =IF('Wyk2i3-Tab1 (Nauka2)'!K24<>"",IF(Firmy2!K24<>"",'Wyk2i3-Tab1 (Nauka2)'!K24&"/"&Firmy2!K24,""),"") ->  | L24: =IF('Wyk2i3-Tab1 (Nauka2)'!L24<>"",IF(Firmy2!L24<>"",'Wyk2i3-Tab1 (Nauka2)'!L24&"/"&Firmy2!L24,""),"") ->  | M24: =IF('Wyk2i3-Tab1 (Nauka2)'!M24<>"",IF(Firmy2!M24<>"",'Wyk2i3-Tab1 (Nauka2)'!M24&"/"&Firmy2!M24,""),"") ->  | N24: =IF('Wyk2i3-Tab1 (Nauka2)'!N24<>"",IF(Firmy2!N24<>"",'Wyk2i3-Tab1 (Nauka2)'!N24&"/"&Firmy2!N24,""),"") ->  | O24: =IF('Wyk2i3-Tab1 (Nauka2)'!O24<>"",IF(Firmy2!O24<>"",'Wyk2i3-Tab1 (Nauka2)'!O24&"/"&Firmy2!O24,""),"") ->  | P24: =IF('Wyk2i3-Tab1 (Nauka2)'!P24<>"",IF(Firmy2!P24<>"",'Wyk2i3-Tab1 (Nauka2)'!P24&"/"&Firmy2!P24,""),"") ->  | Q24: =IF('Wyk2i3-Tab1 (Nauka2)'!Q24<>"",IF(Firmy2!Q24<>"",'Wyk2i3-Tab1 (Nauka2)'!Q24&"/"&Firmy2!Q24,""),"") ->  | R24: =IF('Wyk2i3-Tab1 (Nauka2)'!R24<>"",IF(Firmy2!R24<>"",'Wyk2i3-Tab1 (Nauka2)'!R24&"/"&Firmy2!R24,""),"") ->  | V24: 15
B25: W. Dystryb. telekomunik. (sprzedaż do dalszej odsprzedaży) | C25: =IF('Wyk2i3-Tab1 (Nauka2)'!C25<>"",IF(Firmy2!C25<>"",'Wyk2i3-Tab1 (Nauka2)'!C25&"/"&Firmy2!C25,""),"") ->  | D25: =IF('Wyk2i3-Tab1 (Nauka2)'!D25<>"",IF(Firmy2!D25<>"",'Wyk2i3-Tab1 (Nauka2)'!D25&"/"&Firmy2!D25,""),"") ->  | E25: =IF('Wyk2i3-Tab1 (Nauka2)'!E25<>"",IF(Firmy2!E25<>"",'Wyk2i3-Tab1 (Nauka2)'!E25&"/"&Firmy2!E25,""),"") ->  | F25: =IF('Wyk2i3-Tab1 (Nauka2)'!F25<>"",IF(Firmy2!F25<>"",'Wyk2i3-Tab1 (Nauka2)'!F25&"/"&Firmy2!F25,""),"") ->  | G25: =IF('Wyk2i3-Tab1 (Nauka2)'!G25<>"",IF(Firmy2!G25<>"",'Wyk2i3-Tab1 (Nauka2)'!G25&"/"&Firmy2!G25,""),"") ->  | H25: =IF('Wyk2i3-Tab1 (Nauka2)'!H25<>"",IF(Firmy2!H25<>"",'Wyk2i3-Tab1 (Nauka2)'!H25&"/"&Firmy2!H25,""),"") ->  | I25: =IF('Wyk2i3-Tab1 (Nauka2)'!I25<>"",IF(Firmy2!I25<>"",'Wyk2i3-Tab1 (Nauka2)'!I25&"/"&Firmy2!I25,""),"") ->  | J25: =IF('Wyk2i3-Tab1 (Nauka2)'!J25<>"",IF(Firmy2!J25<>"",'Wyk2i3-Tab1 (Nauka2)'!J25&"/"&Firmy2!J25,""),"") ->  | K25: =IF('Wyk2i3-Tab1 (Nauka2)'!K25<>"",IF(Firmy2!K25<>"",'Wyk2i3-Tab1 (Nauka2)'!K25&"/"&Firmy2!K25,""),"") ->  | L25: =IF('Wyk2i3-Tab1 (Nauka2)'!L25<>"",IF(Firmy2!L25<>"",'Wyk2i3-Tab1 (Nauka2)'!L25&"/"&Firmy2!L25,""),"") ->  | M25: =IF('Wyk2i3-Tab1 (Nauka2)'!M25<>"",IF(Firmy2!M25<>"",'Wyk2i3-Tab1 (Nauka2)'!M25&"/"&Firmy2!M25,""),"") ->  | N25: =IF('Wyk2i3-Tab1 (Nauka2)'!N25<>"",IF(Firmy2!N25<>"",'Wyk2i3-Tab1 (Nauka2)'!N25&"/"&Firmy2!N25,""),"") ->  | O25: =IF('Wyk2i3-Tab1 (Nauka2)'!O25<>"",IF(Firmy2!O25<>"",'Wyk2i3-Tab1 (Nauka2)'!O25&"/"&Firmy2!O25,""),"") ->  | P25: =IF('Wyk2i3-Tab1 (Nauka2)'!P25<>"",IF(Firmy2!P25<>"",'Wyk2i3-Tab1 (Nauka2)'!P25&"/"&Firmy2!P25,""),"") ->  | Q25: =IF('Wyk2i3-Tab1 (Nauka2)'!Q25<>"",IF(Firmy2!Q25<>"",'Wyk2i3-Tab1 (Nauka2)'!Q25&"/"&Firmy2!Q25,""),"") ->  | R25: =IF('Wyk2i3-Tab1 (Nauka2)'!R25<>"",IF(Firmy2!R25<>"",'Wyk2i3-Tab1 (Nauka2)'!R25&"/"&Firmy2!R25,""),"") ->  | V25: 15
B26: X. Sprzedaż IT i telekomunikacyjna (do klienta końcowego) | C26: =IF('Wyk2i3-Tab1 (Nauka2)'!C26<>"",IF(Firmy2!C26<>"",'Wyk2i3-Tab1 (Nauka2)'!C26&"/"&Firmy2!C26,""),"") ->  | D26: =IF('Wyk2i3-Tab1 (Nauka2)'!D26<>"",IF(Firmy2!D26<>"",'Wyk2i3-Tab1 (Nauka2)'!D26&"/"&Firmy2!D26,""),"") ->  | E26: =IF('Wyk2i3-Tab1 (Nauka2)'!E26<>"",IF(Firmy2!E26<>"",'Wyk2i3-Tab1 (Nauka2)'!E26&"/"&Firmy2!E26,""),"") ->  | F26: =IF('Wyk2i3-Tab1 (Nauka2)'!F26<>"",IF(Firmy2!F26<>"",'Wyk2i3-Tab1 (Nauka2)'!F26&"/"&Firmy2!F26,""),"") ->  | G26: =IF('Wyk2i3-Tab1 (Nauka2)'!G26<>"",IF(Firmy2!G26<>"",'Wyk2i3-Tab1 (Nauka2)'!G26&"/"&Firmy2!G26,""),"") ->  | H26: =IF('Wyk2i3-Tab1 (Nauka2)'!H26<>"",IF(Firmy2!H26<>"",'Wyk2i3-Tab1 (Nauka2)'!H26&"/"&Firmy2!H26,""),"") ->  | I26: =IF('Wyk2i3-Tab1 (Nauka2)'!I26<>"",IF(Firmy2!I26<>"",'Wyk2i3-Tab1 (Nauka2)'!I26&"/"&Firmy2!I26,""),"") ->  | J26: =IF('Wyk2i3-Tab1 (Nauka2)'!J26<>"",IF(Firmy2!J26<>"",'Wyk2i3-Tab1 (Nauka2)'!J26&"/"&Firmy2!J26,""),"") ->  | K26: =IF('Wyk2i3-Tab1 (Nauka2)'!K26<>"",IF(Firmy2!K26<>"",'Wyk2i3-Tab1 (Nauka2)'!K26&"/"&Firmy2!K26,""),"") ->  | L26: =IF('Wyk2i3-Tab1 (Nauka2)'!L26<>"",IF(Firmy2!L26<>"",'Wyk2i3-Tab1 (Nauka2)'!L26&"/"&Firmy2!L26,""),"") ->  | M26: =IF('Wyk2i3-Tab1 (Nauka2)'!M26<>"",IF(Firmy2!M26<>"",'Wyk2i3-Tab1 (Nauka2)'!M26&"/"&Firmy2!M26,""),"") ->  | N26: =IF('Wyk2i3-Tab1 (Nauka2)'!N26<>"",IF(Firmy2!N26<>"",'Wyk2i3-Tab1 (Nauka2)'!N26&"/"&Firmy2!N26,""),"") ->  | O26: =IF('Wyk2i3-Tab1 (Nauka2)'!O26<>"",IF(Firmy2!O26<>"",'Wyk2i3-Tab1 (Nauka2)'!O26&"/"&Firmy2!O26,""),"") ->  | P26: =IF('Wyk2i3-Tab1 (Nauka2)'!P26<>"",IF(Firmy2!P26<>"",'Wyk2i3-Tab1 (Nauka2)'!P26&"/"&Firmy2!P26,""),"") ->  | Q26: =IF('Wyk2i3-Tab1 (Nauka2)'!Q26<>"",IF(Firmy2!Q26<>"",'Wyk2i3-Tab1 (Nauka2)'!Q26&"/"&Firmy2!Q26,""),"") ->  | R26: =IF('Wyk2i3-Tab1 (Nauka2)'!R26<>"",IF(Firmy2!R26<>"",'Wyk2i3-Tab1 (Nauka2)'!R26&"/"&Firmy2!R26,""),"") ->  | V26: 15
V27: =SUM(V3:V26) -> 361
V28: =V27/384 -> 0.9401041667

Sheet Nauka-FirmyKolor
B1: Jednostki naukowe+Firmy
B2: Branża odbiorcy Rodzaj działalności odbiorcy . | C2: 1. Wszystkie sektory lub sektor nieistotny | D2: 2. Administracja państwowa, w tym służby mundurowe | E2: 3. Bankowość, ubezpieczenia, inne usługi finansowe | F2: 4. Budownictwo | G2: 5. Dostawy elektryczności, gazu, ciepła i wody | H2: 6. Edukacja | I2: 7. Gospodarstwa domowe | J2: 8. Handel | K2: 9. Media | L2: 10. Produkcja przemysłowa | M2: 11. Rolnictwo | N2: 12. Służba zdrowia | O2: 13. Telekomunikacja, IT | P2: 14. Transport | Q2: 15. Usługi | R2: 16. Inni odbiorcy końcowi
B3: A. Produkcja sprzętu IT | C3: =IF('Wyk2i3-Tab1 (Nauka2)'!C3<>"",IF(Firmy2!C3<>"",MIN('Wyk2i3-Tab1 (Nauka2)'!C3,Firmy2!C3),""),"") ->  | D3: =IF('Wyk2i3-Tab1 (Nauka2)'!D3<>"",IF(Firmy2!D3<>"",MIN('Wyk2i3-Tab1 (Nauka2)'!D3,Firmy2!D3),""),"") -> 1 | E3: =IF('Wyk2i3-Tab1 (Nauka2)'!E3<>"",IF(Firmy2!E3<>"",MIN('Wyk2i3-Tab1 (Nauka2)'!E3,Firmy2!E3),""),"") ->  | F3: =IF('Wyk2i3-Tab1 (Nauka2)'!F3<>"",IF(Firmy2!F3<>"",MIN('Wyk2i3-Tab1 (Nauka2)'!F3,Firmy2!F3),""),"") ->  | G3: =IF('Wyk2i3-Tab1 (Nauka2)'!G3<>"",IF(Firmy2!G3<>"",MIN('Wyk2i3-Tab1 (Nauka2)'!G3,Firmy2!G3),""),"") ->  | H3: =IF('Wyk2i3-Tab1 (Nauka2)'!H3<>"",IF(Firmy2!H3<>"",MIN('Wyk2i3-Tab1 (Nauka2)'!H3,Firmy2!H3),""),"") -> 1 | I3: =IF('Wyk2i3-Tab1 (Nauka2)'!I3<>"",IF(Firmy2!I3<>"",MIN('Wyk2i3-Tab1 (Nauka2)'!I3,Firmy2!I3),""),"") ->  | J3: =IF('Wyk2i3-Tab1 (Nauka2)'!J3<>"",IF(Firmy2!J3<>"",MIN('Wyk2i3-Tab1 (Nauka2)'!J3,Firmy2!J3),""),"") ->  | K3: =IF('Wyk2i3-Tab1 (Nauka2)'!K3<>"",IF(Firmy2!K3<>"",MIN('Wyk2i3-Tab1 (Nauka2)'!K3,Firmy2!K3),""),"") ->  | L3: =IF('Wyk2i3-Tab1 (Nauka2)'!L3<>"",IF(Firmy2!L3<>"",MIN('Wyk2i3-Tab1 (Nauka2)'!L3,Firmy2!L3),""),"") -> 1 | M3: =IF('Wyk2i3-Tab1 (Nauka2)'!M3<>"",IF(Firmy2!M3<>"",MIN('Wyk2i3-Tab1 (Nauka2)'!M3,Firmy2!M3),""),"") ->  | N3: =IF('Wyk2i3-Tab1 (Nauka2)'!N3<>"",IF(Firmy2!N3<>"",MIN('Wyk2i3-Tab1 (Nauka2)'!N3,Firmy2!N3),""),"") -> 1 | O3: =IF('Wyk2i3-Tab1 (Nauka2)'!O3<>"",IF(Firmy2!O3<>"",MIN('Wyk2i3-Tab1 (Nauka2)'!O3,Firmy2!O3),""),"") -> 1 | P3: =IF('Wyk2i3-Tab1 (Nauka2)'!P3<>"",IF(Firmy2!P3<>"",MIN('Wyk2i3-Tab1 (Nauka2)'!P3,Firmy2!P3),""),"") ->  | Q3: =IF('Wyk2i3-Tab1 (Nauka2)'!Q3<>"",IF(Firmy2!Q3<>"",MIN('Wyk2i3-Tab1 (Nauka2)'!Q3,Firmy2!Q3),""),"") -> 1 | R3: =IF('Wyk2i3-Tab1 (Nauka2)'!R3<>"",IF(Firmy2!R3<>"",MIN('Wyk2i3-Tab1 (Nauka2)'!R3,Firmy2!R3),""),"") -> 
B4: B. Produkcja sprzętu telekomunikacyjnego | C4: =IF('Wyk2i3-Tab1 (Nauka2)'!C4<>"",IF(Firmy2!C4<>"",MIN('Wyk2i3-Tab1 (Nauka2)'!C4,Firmy2!C4),""),"") -> 5 | D4: =IF('Wyk2i3-Tab1 (Nauka2)'!D4<>"",IF(Firmy2!D4<>"",MIN('Wyk2i3-Tab1 (Nauka2)'!D4,Firmy2!D4),""),"") -> 1 | E4: =IF('Wyk2i3-Tab1 (Nauka2)'!E4<>"",IF(Firmy2!E4<>"",MIN('Wyk2i3-Tab1 (Nauka2)'!E4,Firmy2!E4),""),"") ->  | F4: =IF('Wyk2i3-Tab1 (Nauka2)'!F4<>"",IF(Firmy2!F4<>"",MIN('Wyk2i3-Tab1 (Nauka2)'!F4,Firmy2!F4),""),"") ->  | G4: =IF('Wyk2i3-Tab1 (Nauka2)'!G4<>"",IF(Firmy2!G4<>"",MIN('Wyk2i3-Tab1 (Nauka2)'!G4,Firmy2!G4),""),"") ->  | H4: =IF('Wyk2i3-Tab1 (Nauka2)'!H4<>"",IF(Firmy2!H4<>"",MIN('Wyk2i3-Tab1 (Nauka2)'!H4,Firmy2!H4),""),"") -> 1 | I4: =IF('Wyk2i3-Tab1 (Nauka2)'!I4<>"",IF(Firmy2!I4<>"",MIN('Wyk2i3-Tab1 (Nauka2)'!I4,Firmy2!I4),""),"") ->  | J4: =IF('Wyk2i3-Tab1 (Nauka2)'!J4<>"",IF(Firmy2!J4<>"",MIN('Wyk2i3-Tab1 (Nauka2)'!J4,Firmy2!J4),""),"") ->  | K4: =IF('Wyk2i3-Tab1 (Nauka2)'!K4<>"",IF(Firmy2!K4<>"",MIN('Wyk2i3-Tab1 (Nauka2)'!K4,Firmy2!K4),""),"") ->  | L4: =IF('Wyk2i3-Tab1 (Nauka2)'!L4<>"",IF(Firmy2!L4<>"",MIN('Wyk2i3-Tab1 (Nauka2)'!L4,Firmy2!L4),""),"") -> 1 | M4: =IF('Wyk2i3-Tab1 (Nauka2)'!M4<>"",IF(Firmy2!M4<>"",MIN('Wyk2i3-Tab1 (Nauka2)'!M4,Firmy2!M4),""),"") ->  | N4: =IF('Wyk2i3-Tab1 (Nauka2)'!N4<>"",IF(Firmy2!N4<>"",MIN('Wyk2i3-Tab1 (Nauka2)'!N4,Firmy2!N4),""),"") -> 1 | O4: =IF('Wyk2i3-Tab1 (Nauka2)'!O4<>"",IF(Firmy2!O4<>"",MIN('Wyk2i3-Tab1 (Nauka2)'!O4,Firmy2!O4),""),"") -> 2 | P4: =IF('Wyk2i3-Tab1 (Nauka2)'!P4<>"",IF(Firmy2!P4<>"",MIN('Wyk2i3-Tab1 (Nauka2)'!P4,Firmy2!P4),""),"") ->  | Q4: =IF('Wyk2i3-Tab1 (Nauka2)'!Q4<>"",IF(Firmy2!Q4<>"",MIN('Wyk2i3-Tab1 (Nauka2)'!Q4,Firmy2!Q4),""),"") ->  | R4: =IF('Wyk2i3-Tab1 (Nauka2)'!R4<>"",IF(Firmy2!R4<>"",MIN('Wyk2i3-Tab1 (Nauka2)'!R4,Firmy2!R4),""),"") -> 1
B5: C. Produkcja oprogramowania, w tym na zamówienie | C5: =IF('Wyk2i3-Tab1 (Nauka2)'!C5<>"",IF(Firmy2!C5<>"",MIN('Wyk2i3-Tab1 (Nauka2)'!C5,Firmy2!C5),""),"") -> 9 | D5: =IF('Wyk2i3-Tab1 (Nauka2)'!D5<>"",IF(Firmy2!D5<>"",MIN('Wyk2i3-Tab1 (Nauka2)'!D5,Firmy2!D5),""),"") -> 3 | E5: =IF('Wyk2i3-Tab1 (Nauka2)'!E5<>"",IF(Firmy2!E5<>"",MIN('Wyk2i3-Tab1 (Nauka2)'!E5,Firmy2!E5),""),"") -> 8 | F5: =IF('Wyk2i3-Tab1 (Nauka2)'!F5<>"",IF(Firmy2!F5<>"",MIN('Wyk2i3-Tab1 (Nauka2)'!F5,Firmy2!F5),""),"") ->  | G5: =IF('Wyk2i3-Tab1 (Nauka2)'!G5<>"",IF(Firmy2!G5<>"",MIN('Wyk2i3-Tab1 (Nauka2)'!G5,Firmy2!G5),""),"") -> 2 | H5: =IF('Wyk2i3-Tab1 (Nauka2)'!H5<>"",IF(Firmy2!H5<>"",MIN('Wyk2i3-Tab1 (Nauka2)'!H5,Firmy2!H5),""),"") -> 4 | I5: =IF('Wyk2i3-Tab1 (Nauka2)'!I5<>"",IF(Firmy2!I5<>"",MIN('Wyk2i3-Tab1 (Nauka2)'!I5,Firmy2!I5),""),"") ->  | J5: =IF('Wyk2i3-Tab1 (Nauka2)'!J5<>"",IF(Firmy2!J5<>"",MIN('Wyk2i3-Tab1 (Nauka2)'!J5,Firmy2!J5),""),"") -> 8 | K5: =IF('Wyk2i3-Tab1 (Nauka2)'!K5<>"",IF(Firmy2!K5<>"",MIN('Wyk2i3-Tab1 (Nauka2)'!K5,Firmy2!K5),""),"") -> 4 | L5: =IF('Wyk2i3-Tab1 (Nauka2)'!L5<>"",IF(Firmy2!L5<>"",MIN('Wyk2i3-Tab1 (Nauka2)'!L5,Firmy2!L5),""),"") -> 6 | M5: =IF('Wyk2i3-Tab1 (Nauka2)'!M5<>"",IF(Firmy2!M5<>"",MIN('Wyk2i3-Tab1 (Nauka2)'!M5,Firmy2!M5),""),"") ->  | N5: =IF('Wyk2i3-Tab1 (Nauka2)'!N5<>"",IF(Firmy2!N5<>"",MIN('Wyk2i3-Tab1 (Nauka2)'!N5,Firmy2!N5),""),"") -> 1 | O5: =IF('Wyk2i3-Tab1 (Nauka2)'!O5<>"",IF(Firmy2!O5<>"",MIN('Wyk2i3-Tab1 (Nauka2)'!O5,Firmy2!O5),""),"") -> 6 | P5: =IF('Wyk2i3-Tab1 (Nauka2)'!P5<>"",IF(Firmy2!P5<>"",MIN('Wyk2i3-Tab1 (Nauka2)'!P5,Firmy2!P5),""),"") -> 3 | Q5: =IF('Wyk2i3-Tab1 (Nauka2)'!Q5<>"",IF(Firmy2!Q5<>"",MIN('Wyk2i3-Tab1 (Nauka2)'!Q5,Firmy2!Q5),""),"") -> 6 | R5: =IF('Wyk2i3-Tab1 (Nauka2)'!R5<>"",IF(Firmy2!R5<>"",MIN('Wyk2i3-Tab1 (Nauka2)'!R5,Firmy2!R5),""),"") -> 4
B6: D. Instalacje sprzętu | C6: =IF('Wyk2i3-Tab1 (Nauka2)'!C6<>"",IF(Firmy2!C6<>"",MIN('Wyk2i3-Tab1 (Nauka2)'!C6,Firmy2!C6),""),"") -> 1 | D6: =IF('Wyk2i3-Tab1 (Nauka2)'!D6<>"",IF(Firmy2!D6<>"",MIN('Wyk2i3-Tab1 (Nauka2)'!D6,Firmy2!D6),""),"") -> 3 | E6: =IF('Wyk2i3-Tab1 (Nauka2)'!E6<>"",IF(Firmy2!E6<>"",MIN('Wyk2i3-Tab1 (Nauka2)'!E6,Firmy2!E6),""),"") ->  | F6: =IF('Wyk2i3-Tab1 (Nauka2)'!F6<>"",IF(Firmy2!F6<>"",MIN('Wyk2i3-Tab1 (Nauka2)'!F6,Firmy2!F6),""),"") ->  | G6: =IF('Wyk2i3-Tab1 (Nauka2)'!G6<>"",IF(Firmy2!G6<>"",MIN('Wyk2i3-Tab1 (Nauka2)'!G6,Firmy2!G6),""),"") -> 1 | H6: =IF('Wyk2i3-Tab1 (Nauka2)'!H6<>"",IF(Firmy2!H6<>"",MIN('Wyk2i3-Tab1 (Nauka2)'!H6,Firmy2!H6),""),"") -> 5 | I6: =IF('Wyk2i3-Tab1 (Nauka2)'!I6<>"",IF(Firmy2!I6<>"",MIN('Wyk2i3-Tab1 (Nauka2)'!I6,Firmy2!I6),""),"") -> 1 | J6: =IF('Wyk2i3-Tab1 (Nauka2)'!J6<>"",IF(Firmy2!J6<>"",MIN('Wyk2i3-Tab1 (Nauka2)'!J6,Firmy2!J6),""),"") ->  | K6: =IF('Wyk2i3-Tab1 (Nauka2)'!K6<>"",IF(Firmy2!K6<>"",MIN('Wyk2i3-Tab1 (Nauka2)'!K6,Firmy2!K6),""),"") ->  | L6: =IF('Wyk2i3-Tab1 (Nauka2)'!L6<>"",IF(Firmy2!L6<>"",MIN('Wyk2i3-Tab1 (Nauka2)'!L6,Firmy2!L6),""),"") -> 1 | M6: =IF('Wyk2i3-Tab1 (Nauka2)'!M6<>"",IF(Firmy2!M6<>"",MIN('Wyk2i3-Tab1 (Nauka2)'!M6,Firmy2!M6),""),"") ->  | N6: =IF('Wyk2i3-Tab1 (Nauka2)'!N6<>"",IF(Firmy2!N6<>"",MIN('Wyk2i3-Tab1 (Nauka2)'!N6,Firmy2!N6),""),"") -> 1 | O6: =IF('Wyk2i3-Tab1 (Nauka2)'!O6<>"",IF(Firmy2!O6<>"",MIN('Wyk2i3-Tab1 (Nauka2)'!O6,Firmy2!O6),""),"") -> 3 | P6: =IF('Wyk2i3-Tab1 (Nauka2)'!P6<>"",IF(Firmy2!P6<>"",MIN('Wyk2i3-Tab1 (Nauka2)'!P6,Firmy2!P6),""),"") ->  | Q6: =IF('Wyk2i3-Tab1 (Nauka2)'!Q6<>"",IF(Firmy2!Q6<>"",MIN('Wyk2i3-Tab1 (Nauka2)'!Q6,Firmy2!Q6),""),"") ->  | R6: =IF('Wyk2i3-Tab1 (Nauka2)'!R6<>"",IF(Firmy2!R6<>"",MIN('Wyk2i3-Tab1 (Nauka2)'!R6,Firmy2!R6),""),"") -> 
B7: E. Integracja systemów IT | C7: =IF('Wyk2i3-Tab1 (Nauka2)'!C7<>"",IF(Firmy2!C7<>"",MIN('Wyk2i3-Tab1 (Nauka2)'!C7,Firmy2!C7),""),"") -> 2 | D7: =IF('Wyk2i3-Tab1 (Nauka2)'!D7<>"",IF(Firmy2!D7<>"",MIN('Wyk2i3-Tab1 (Nauka2)'!D7,Firmy2!D7),""),"") -> 2 | E7: =IF('Wyk2i3-Tab1 (Nauka2)'!E7<>"",IF(Firmy2!E7<>"",MIN('Wyk2i3-Tab1 (Nauka2)'!E7,Firmy2!E7),""),"") ->  | F7: =IF('Wyk2i3-Tab1 (Nauka2)'!F7<>"",IF(Firmy2!F7<>"",MIN('Wyk2i3-Tab1 (Nauka2)'!F7,Firmy2!F7),""),"") ->  | G7: =IF('Wyk2i3-Tab1 (Nauka2)'!G7<>"",IF(Firmy2!G7<>"",MIN('Wyk2i3-Tab1 (Nauka2)'!G7,Firmy2!G7),""),"") ->  | H7: =IF('Wyk2i3-Tab1 (Nauka2)'!H7<>"",IF(Firmy2!H7<>"",MIN('Wyk2i3-Tab1 (Nauka2)'!H7,Firmy2!H7),""),"") -> 3 | I7: =IF('Wyk2i3-Tab1 (Nauka2)'!I7<>"",IF(Firmy2!I7<>"",MIN('Wyk2i3-Tab1 (Nauka2)'!I7,Firmy2!I7),""),"") ->  | J7: =IF('Wyk2i3-Tab1 (Nauka2)'!J7<>"",IF(Firmy2!J7<>"",MIN('Wyk2i3-Tab1 (Nauka2)'!J7,Firmy2!J7),""),"") -> 1 | K7: =IF('Wyk2i3-Tab1 (Nauka2)'!K7<>"",IF(Firmy2!K7<>"",MIN('Wyk2i3-Tab1 (Nauka2)'!K7,Firmy2!K7),""),"") ->  | L7: =IF('Wyk2i3-Tab1 (Nauka2)'!L7<>"",IF(Firmy2!L7<>"",MIN('Wyk2i3-Tab1 (Nauka2)'!L7,Firmy2!L7),""),"") -> 1 | M7: =IF('Wyk2i3-Tab1 (Nauka2)'!M7<>"",IF(Firmy2!M7<>"",MIN('Wyk2i3-Tab1 (Nauka2)'!M7,Firmy2!M7),""),"") ->  | N7: =IF('Wyk2i3-Tab1 (Nauka2)'!N7<>"",IF(Firmy2!N7<>"",MIN('Wyk2i3-Tab1 (Nauka2)'!N7,Firmy2!N7),""),"") -> 2 | O7: =IF('Wyk2i3-Tab1 (Nauka2)'!O7<>"",IF(Firmy2!O7<>"",MIN('Wyk2i3-Tab1 (Nauka2)'!O7,Firmy2!O7),""),"") -> 4 | P7: =IF('Wyk2i3-Tab1 (Nauka2)'!P7<>"",IF(Firmy2!P7<>"",MIN('Wyk2i3-Tab1 (Nauka2)'!P7,Firmy2!P7),""),"") -> 1 | Q7: =IF('Wyk2i3-Tab1 (Nauka2)'!Q7<>"",IF(Firmy2!Q7<>"",MIN('Wyk2i3-Tab1 (Nauka2)'!Q7,Firmy2!Q7),""),"") -> 2 | R7: =IF('Wyk2i3-Tab1 (Nauka2)'!R7<>"",IF(Firmy2!R7<>"",MIN('Wyk2i3-Tab1 (Nauka2)'!R7,Firmy2!R7),""),"") -> 
B8: F. Wdrożenia oprogramowania | C8: =IF('Wyk2i3-Tab1 (Nauka2)'!C8<>"",IF(Firmy2!C8<>"",MIN('Wyk2i3-Tab1 (Nauka2)'!C8,Firmy2!C8),""),"") -> 5 | D8: =IF('Wyk2i3-Tab1 (Nauka2)'!D8<>"",IF(Firmy2!D8<>"",MIN('Wyk2i3-Tab1 (Nauka2)'!D8,Firmy2!D8),""),"") -> 3 | E8: =IF('Wyk2i3-Tab1 (Nauka2)'!E8<>"",IF(Firmy2!E8<>"",MIN('Wyk2i3-Tab1 (Nauka2)'!E8,Firmy2!E8),""),"") -> 2 | F8: =IF('Wyk2i3-Tab1 (Nauka2)'!F8<>"",IF(Firmy2!F8<>"",MIN('Wyk2i3-Tab1 (Nauka2)'!F8,Firmy2!F8),""),"") ->  | G8: =IF('Wyk2i3-Tab1 (Nauka2)'!G8<>"",IF(Firmy2!G8<>"",MIN('Wyk2i3-Tab1 (Nauka2)'!G8,Firmy2!G8),""),"") -> 1 | H8: =IF('Wyk2i3-Tab1 (Nauka2)'!H8<>"",IF(Firmy2!H8<>"",MIN('Wyk2i3-Tab1 (Nauka2)'!H8,Firmy2!H8),""),"") -> 4 | I8: =IF('Wyk2i3-Tab1 (Nauka2)'!I8<>"",IF(Firmy2!I8<>"",MIN('Wyk2i3-Tab1 (Nauka2)'!I8,Firmy2!I8),""),"") ->  | J8: =IF('Wyk2i3-Tab1 (Nauka2)'!J8<>"",IF(Firmy2!J8<>"",MIN('Wyk2i3-Tab1 (Nauka2)'!J8,Firmy2!J8),""),"") -> 1 | K8: =IF('Wyk2i3-Tab1 (Nauka2)'!K8<>"",IF(Firmy2!K8<>"",MIN('Wyk2i3-Tab1 (Nauka2)'!K8,Firmy2!K8),""),"") ->  | L8: =IF('Wyk2i3-Tab1 (Nauka2)'!L8<>"",IF(Firmy2!L8<>"",MIN('Wyk2i3-Tab1 (Nauka2)'!L8,Firmy2!L8),""),"") -> 1 | M8: =IF('Wyk2i3-Tab1 (Nauka2)'!M8<>"",IF(Firmy2!M8<>"",MIN('Wyk2i3-Tab1 (Nauka2)'!M8,Firmy2!M8),""),"") ->  | N8: =IF('Wyk2i3-Tab1 (Nauka2)'!N8<>"",IF(Firmy2!N8<>"",MIN('Wyk2i3-Tab1 (Nauka2)'!N8,Firmy2!N8),""),"") -> 2 | O8: =IF('Wyk2i3-Tab1 (Nauka2)'!O8<>"",IF(Firmy2!O8<>"",MIN('Wyk2i3-Tab1 (Nauka2)'!O8,Firmy2!O8),""),"") -> 6 | P8: =IF('Wyk2i3-Tab1 (Nauka2)'!P8<>"",IF(Firmy2!P8<>"",MIN('Wyk2i3-Tab1 (Nauka2)'!P8,Firmy2!P8),""),"") -> 2 | Q8: =IF('Wyk2i3-Tab1 (Nauka2)'!Q8<>"",IF(Firmy2!Q8<>"",MIN('Wyk2i3-Tab1 (Nauka2)'!Q8,Firmy2!Q8),""),"") -> 3 | R8: =IF('Wyk2i3-Tab1 (Nauka2)'!R8<>"",IF(Firmy2!R8<>"",MIN('Wyk2i3-Tab1 (Nauka2)'!R8,Firmy2!R8),""),"") -> 6
B9: G. Projektowanie, budowa i instalacje sieci IT | C9: =IF('Wyk2i3-Tab1 (Nauka2)'!C9<>"",IF(Firmy2!C9<>"",MIN('Wyk2i3-Tab1 (Nauka2)'!C9,Firmy2!C9),""),"") -> 5 | D9: =IF('Wyk2i3-Tab1 (Nauka2)'!D9<>"",IF(Firmy2!D9<>"",MIN('Wyk2i3-Tab1 (Nauka2)'!D9,Firmy2!D9),""),"") -> 3 | E9: =IF('Wyk2i3-Tab1 (Nauka2)'!E9<>"",IF(Firmy2!E9<>"",MIN('Wyk2i3-Tab1 (Nauka2)'!E9,Firmy2!E9),""),"") -> 4 | F9: =IF('Wyk2i3-Tab1 (Nauka2)'!F9<>"",IF(Firmy2!F9<>"",MIN('Wyk2i3-Tab1 (Nauka2)'!F9,Firmy2!F9),""),"") ->  | G9: =IF('Wyk2i3-Tab1 (Nauka2)'!G9<>"",IF(Firmy2!G9<>"",MIN('Wyk2i3-Tab1 (Nauka2)'!G9,Firmy2!G9),""),"") ->  | H9: =IF('Wyk2i3-Tab1 (Nauka2)'!H9<>"",IF(Firmy2!H9<>"",MIN('Wyk2i3-Tab1 (Nauka2)'!H9,Firmy2!H9),""),"") -> 3 | I9: =IF('Wyk2i3-Tab1 (Nauka2)'!I9<>"",IF(Firmy2!I9<>"",MIN('Wyk2i3-Tab1 (Nauka2)'!I9,Firmy2!I9),""),"") -> 1 | J9: =IF('Wyk2i3-Tab1 (Nauka2)'!J9<>"",IF(Firmy2!J9<>"",MIN('Wyk2i3-Tab1 (Nauka2)'!J9,Firmy2!J9),""),"") ->  | K9: =IF('Wyk2i3-Tab1 (Nauka2)'!K9<>"",IF(Firmy2!K9<>"",MIN('Wyk2i3-Tab1 (Nauka2)'!K9,Firmy2!K9),""),"") ->  | L9: =IF('Wyk2i3-Tab1 (Nauka2)'!L9<>"",IF(Firmy2!L9<>"",MIN('Wyk2i3-Tab1 (Nauka2)'!L9,Firmy2!L9),""),"") -> 1 | M9: =IF('Wyk2i3-Tab1 (Nauka2)'!M9<>"",IF(Firmy2!M9<>"",MIN('Wyk2i3-Tab1 (Nauka2)'!M9,Firmy2!M9),""),"") ->  | N9: =IF('Wyk2i3-Tab1 (Nauka2)'!N9<>"",IF(Firmy2!N9<>"",MIN('Wyk2i3-Tab1 (Nauka2)'!N9,Firmy2!N9),""),"") -> 2 | O9: =IF('Wyk2i3-Tab1 (Nauka2)'!O9<>"",IF(Firmy2!O9<>"",MIN('Wyk2i3-Tab1 (Nauka2)'!O9,Firmy2!O9),""),"") -> 4 | P9: =IF('Wyk2i3-Tab1 (Nauka2)'!P9<>"",IF(Firmy2!P9<>"",MIN('Wyk2i3-Tab1 (Nauka2)'!P9,Firmy2!P9),""),"") -> 1 | Q9: =IF('Wyk2i3-Tab1 (Nauka2)'!Q9<>"",IF(Firmy2!Q9<>"",MIN('Wyk2i3-Tab1 (Nauka2)'!Q9,Firmy2!Q9),""),"") -> 3 | R9: =IF('Wyk2i3-Tab1 (Nauka2)'!R9<>"",IF(Firmy2!R9<>"",MIN('Wyk2i3-Tab1 (Nauka2)'!R9,Firmy2!R9),""),"") -> 
B10: H. Szkolenia IT | C10: =IF('Wyk2i3-Tab1 (Nauka2)'!C10<>"",IF(Firmy2!C10<>"",MIN('Wyk2i3-Tab1 (Nauka2)'!C10,Firmy2!C10),""),"") -> 4 | D10: =IF('Wyk2i3-Tab1 (Nauka2)'!D10<>"",IF(Firmy2!D10<>"",MIN('Wyk2i3-Tab1 (Nauka2)'!D10,Firmy2!D10),""),"") -> 1 | E10: =IF('Wyk2i3-Tab1 (Nauka2)'!E10<>"",IF(Firmy2!E10<>"",MIN('Wyk2i3-Tab1 (Nauka2)'!E10,Firmy2!E10),""),"") ->  | F10: =IF('Wyk2i3-Tab1 (Nauka2)'!F10<>"",IF(Firmy2!F10<>"",MIN('Wyk2i3-Tab1 (Nauka2)'!F10,Firmy2!F10),""),"") ->  | G10: =IF('Wyk2i3-Tab1 (Nauka2)'!G10<>"",IF(Firmy2!G10<>"",MIN('Wyk2i3-Tab1 (Nauka2)'!G10,Firmy2!G10),""),"") ->  | H10: =IF('Wyk2i3-Tab1 (Nauka2)'!H10<>"",IF(Firmy2!H10<>"",MIN('Wyk2i3-Tab1 (Nauka2)'!H10,Firmy2!H10),""),"") -> 3 | I10: =IF('Wyk2i3-Tab1 (Nauka2)'!I10<>"",IF(Firmy2!I10<>"",MIN('Wyk2i3-Tab1 (Nauka2)'!I10,Firmy2!I10),""),"") -> 1 | J10: =IF('Wyk2i3-Tab1 (Nauka2)'!J10<>"",IF(Firmy2!J10<>"",MIN('Wyk2i3-Tab1 (Nauka2)'!J10,Firmy2!J10),""),"") ->  | K10: =IF('Wyk2i3-Tab1 (Nauka2)'!K10<>"",IF(Firmy2!K10<>"",MIN('Wyk2i3-Tab1 (Nauka2)'!K10,Firmy2!K10),""),"") ->  | L10: =IF('Wyk2i3-Tab1 (Nauka2)'!L10<>"",IF(Firmy2!L10<>"",MIN('Wyk2i3-Tab1 (Nauka2)'!L10,Firmy2!L10),""),"") -> 1 | M10: =IF('Wyk2i3-Tab1 (Nauka2)'!M10<>"",IF(Firmy2!M10<>"",MIN('Wyk2i3-Tab1 (Nauka2)'!M10,Firmy2!M10),""),"") ->  | N10: =IF('Wyk2i3-Tab1 (Nauka2)'!N10<>"",IF(Firmy2!N10<>"",MIN('Wyk2i3-Tab1 (Nauka2)'!N10,Firmy2!N10),""),"") -> 1 | O10: =IF('Wyk2i3-Tab1 (Nauka2)'!O10<>"",IF(Firmy2!O10<>"",MIN('Wyk2i3-Tab1 (Nauka2)'!O10,Firmy2!O10),""),"") -> 3 | P10: =IF('Wyk2i3-Tab1 (Nauka2)'!P10<>"",IF(Firmy2!P10<>"",MIN('Wyk2i3-Tab1 (Nauka2)'!P10,Firmy2!P10),""),"") ->  | Q10: =IF('Wyk2i3-Tab1 (Nauka2)'!Q10<>"",IF(Firmy2!Q10<>"",MIN('Wyk2i3-Tab1 (Nauka2)'!Q10,Firmy2!Q10),""),"") -> 1 | R10: =IF('Wyk2i3-Tab1 (Nauka2)'!R10<>"",IF(Firmy2!R10<>"",MIN('Wyk2i3-Tab1 (Nauka2)'!R10,Firmy2!R10),""),"") -> 
B11: I. Doradztwo IT | C11: =IF('Wyk2i3-Tab1 (Nauka2)'!C11<>"",IF(Firmy2!C11<>"",MIN('Wyk2i3-Tab1 (Nauka2)'!C11,Firmy2!C11),""),"") -> 9 | D11: =IF('Wyk2i3-Tab1 (Nauka2)'!D11<>"",IF(Firmy2!D11<>"",MIN('Wyk2i3-Tab1 (Nauka2)'!D11,Firmy2!D11),""),"") -> 3 | E11: =IF('Wyk2i3-Tab1 (Nauka2)'!E11<>"",IF(Firmy2!E11<>"",MIN('Wyk2i3-Tab1 (Nauka2)'!E11,Firmy2!E11),""),"") -> 6 | F11: =IF('Wyk2i3-Tab1 (Nauka2)'!F11<>"",IF(Firmy2!F11<>"",MIN('Wyk2i3-Tab1 (Nauka2)'!F11,Firmy2!F11),""),"") -> 2 | G11: =IF('Wyk2i3-Tab1 (Nauka2)'!G11<>"",IF(Firmy2!G11<>"",MIN('Wyk2i3-Tab1 (Nauka2)'!G11,Firmy2!G11),""),"") -> 2 | H11: =IF('Wyk2i3-Tab1 (Nauka2)'!H11<>"",IF(Firmy2!H11<>"",MIN('Wyk2i3-Tab1 (Nauka2)'!H11,Firmy2!H11),""),"") -> 5 | I11: =IF('Wyk2i3-Tab1 (Nauka2)'!I11<>"",IF(Firmy2!I11<>"",MIN('Wyk2i3-Tab1 (Nauka2)'!I11,Firmy2!I11),""),"") ->  | J11: =IF('Wyk2i3-Tab1 (Nauka2)'!J11<>"",IF(Firmy2!J11<>"",MIN('Wyk2i3-Tab1 (Nauka2)'!J11,Firmy2!J11),""),"") -> 7 | K11: =IF('Wyk2i3-Tab1 (Nauka2)'!K11<>"",IF(Firmy2!K11<>"",MIN('Wyk2i3-Tab1 (Nauka2)'!K11,Firmy2!K11),""),"") -> 2 | L11: =IF('Wyk2i3-Tab1 (Nauka2)'!L11<>"",IF(Firmy2!L11<>"",MIN('Wyk2i3-Tab1 (Nauka2)'!L11,Firmy2!L11),""),"") -> 2 | M11: =IF('Wyk2i3-Tab1 (Nauka2)'!M11<>"",IF(Firmy2!M11<>"",MIN('Wyk2i3-Tab1 (Nauka2)'!M11,Firmy2!M11),""),"") -> 1 | N11: =IF('Wyk2i3-Tab1 (Nauka2)'!N11<>"",IF(Firmy2!N11<>"",MIN('Wyk2i3-Tab1 (Nauka2)'!N11,Firmy2!N11),""),"") -> 2 | O11: =IF('Wyk2i3-Tab1 (Nauka2)'!O11<>"",IF(Firmy2!O11<>"",MIN('Wyk2i3-Tab1 (Nauka2)'!O11,Firmy2!O11),""),"") -> 4 | P11: =IF('Wyk2i3-Tab1 (Nauka2)'!P11<>"",IF(Firmy2!P11<>"",MIN('Wyk2i3-Tab1 (Nauka2)'!P11,Firmy2!P11),""),"") -> 1 | Q11: =IF('Wyk2i3-Tab1 (Nauka2)'!Q11<>"",IF(Firmy2!Q11<>"",MIN('Wyk2i3-Tab1 (Nauka2)'!Q11,Firmy2!Q11),""),"") -> 2 | R11: =IF('Wyk2i3-Tab1 (Nauka2)'!R11<>"",IF(Firmy2!R11<>"",MIN('Wyk2i3-Tab1 (Nauka2)'!R11,Firmy2!R11),""),"") -> 
B12: J. Outsourcing IT, wyłączając przetwarzanie danych | C12: =IF('Wyk2i3-Tab1 (Nauka2)'!C12<>"",IF(Firmy2!C12<>"",MIN('Wyk2i3-Tab1 (Nauka2)'!C12,Firmy2!C12),""),"") ->  | D12: =IF('Wyk2i3-Tab1 (Nauka2)'!D12<>"",IF(Firmy2!D12<>"",MIN('Wyk2i3-Tab1 (Nauka2)'!D12,Firmy2!D12),""),"") -> 2 | E12: =IF('Wyk2i3-Tab1 (Nauka2)'!E12<>"",IF(Firmy2!E12<>"",MIN('Wyk2i3-Tab1 (Nauka2)'!E12,Firmy2!E12),""),"") -> 3 | F12: =IF('Wyk2i3-Tab1 (Nauka2)'!F12<>"",IF(Firmy2!F12<>"",MIN('Wyk2i3-Tab1 (Nauka2)'!F12,Firmy2!F12),""),"") ->  | G12: =IF('Wyk2i3-Tab1 (Nauka2)'!G12<>"",IF(Firmy2!G12<>"",MIN('Wyk2i3-Tab1 (Nauka2)'!G12,Firmy2!G12),""),"") -> 1 | H12: =IF('Wyk2i3-Tab1 (Nauka2)'!H12<>"",IF(Firmy2!H12<>"",MIN('Wyk2i3-Tab1 (Nauka2)'!H12,Firmy2!H12),""),"") -> 1 | I12: =IF('Wyk2i3-Tab1 (Nauka2)'!I12<>"",IF(Firmy2!I12<>"",MIN('Wyk2i3-Tab1 (Nauka2)'!I12,Firmy2!I12),""),"") ->  | J12: =IF('Wyk2i3-Tab1 (Nauka2)'!J12<>"",IF(Firmy2!J12<>"",MIN('Wyk2i3-Tab1 (Nauka2)'!J12,Firmy2!J12),""),"") ->  | K12: =IF('Wyk2i3-Tab1 (Nauka2)'!K12<>"",IF(Firmy2!K12<>"",MIN('Wyk2i3-Tab1 (Nauka2)'!K12,Firmy2!K12),""),"") ->  | L12: =IF('Wyk2i3-Tab1 (Nauka2)'!L12<>"",IF(Firmy2!L12<>"",MIN('Wyk2i3-Tab1 (Nauka2)'!L12,Firmy2!L12),""),"") -> 1 | M12: =IF('Wyk2i3-Tab1 (Nauka2)'!M12<>"",IF(Firmy2!M12<>"",MIN('Wyk2i3-Tab1 (Nauka2)'!M12,Firmy2!M12),""),"") ->  | N12: =IF('Wyk2i3-Tab1 (Nauka2)'!N12<>"",IF(Firmy2!N12<>"",MIN('Wyk2i3-Tab1 (Nauka2)'!N12,Firmy2!N12),""),"") ->  | O12: =IF('Wyk2i3-Tab1 (Nauka2)'!O12<>"",IF(Firmy2!O12<>"",MIN('Wyk2i3-Tab1 (Nauka2)'!O12,Firmy2!O12),""),"") -> 2 | P12: =IF('Wyk2i3-Tab1 (Nauka2)'!P12<>"",IF(Firmy2!P12<>"",MIN('Wyk2i3-Tab1 (Nauka2)'!P12,Firmy2!P12),""),"") ->  | Q12: =IF('Wyk2i3-Tab1 (Nauka2)'!Q12<>"",IF(Firmy2!Q12<>"",MIN('Wyk2i3-Tab1 (Nauka2)'!Q12,Firmy2!Q12),""),"") ->  | R12: =IF('Wyk2i3-Tab1 (Nauka2)'!R12<>"",IF(Firmy2!R12<>"",MIN('Wyk2i3-Tab1 (Nauka2)'!R12,Firmy2!R12),""),"") -> 
B13: K. Outsourcing przetwarzania danych | C13: =IF('Wyk2i3-Tab1 (Nauka2)'!C13<>"",IF(Firmy2!C13<>"",MIN('Wyk2i3-Tab1 (Nauka2)'!C13,Firmy2!C13),""),"") -> 3 | D13: =IF('Wyk2i3-Tab1 (Nauka2)'!D13<>"",IF(Firmy2!D13<>"",MIN('Wyk2i3-Tab1 (Nauka2)'!D13,Firmy2!D13),""),"") -> 1 | E13: =IF('Wyk2i3-Tab1 (Nauka2)'!E13<>"",IF(Firmy2!E13<>"",MIN('Wyk2i3-Tab1 (Nauka2)'!E13,Firmy2!E13),""),"") -> 1 | F13: =IF('Wyk2i3-Tab1 (Nauka2)'!F13<>"",IF(Firmy2!F13<>"",MIN('Wyk2i3-Tab1 (Nauka2)'!F13,Firmy2!F13),""),"") ->  | G13: =IF('Wyk2i3-Tab1 (Nauka2)'!G13<>"",IF(Firmy2!G13<>"",MIN('Wyk2i3-Tab1 (Nauka2)'!G13,Firmy2!G13),""),"") ->  | H13: =IF('Wyk2i3-Tab1 (Nauka2)'!H13<>"",IF(Firmy2!H13<>"",MIN('Wyk2i3-Tab1 (Nauka2)'!H13,Firmy2!H13),""),"") -> 2 | I13: =IF('Wyk2i3-Tab1 (Nauka2)'!I13<>"",IF(Firmy2!I13<>"",MIN('Wyk2i3-Tab1 (Nauka2)'!I13,Firmy2!I13),""),"") ->  | J13: =IF('Wyk2i3-Tab1 (Nauka2)'!J13<>"",IF(Firmy2!J13<>"",MIN('Wyk2i3-Tab1 (Nauka2)'!J13,Firmy2!J13),""),"") ->  | K13: =IF('Wyk2i3-Tab1 (Nauka2)'!K13<>"",IF(Firmy2!K13<>"",MIN('Wyk2i3-Tab1 (Nauka2)'!K13,Firmy2!K13),""),"") ->  | L13: =IF('Wyk2i3-Tab1 (Nauka2)'!L13<>"",IF(Firmy2!L13<>"",MIN('Wyk2i3-Tab1 (Nauka2)'!L13,Firmy2!L13),""),"") -> 1 | M13: =IF('Wyk2i3-Tab1 (Nauka2)'!M13<>"",IF(Firmy2!M13<>"",MIN('Wyk2i3-Tab1 (Nauka2)'!M13,Firmy2!M13),""),"") ->  | N13: =IF('Wyk2i3-Tab1 (Nauka2)'!N13<>"",IF(Firmy2!N13<>"",MIN('Wyk2i3-Tab1 (Nauka2)'!N13,Firmy2!N13),""),"") ->  | O13: =IF('Wyk2i3-Tab1 (Nauka2)'!O13<>"",IF(Firmy2!O13<>"",MIN('Wyk2i3-Tab1 (Nauka2)'!O13,Firmy2!O13),""),"") -> 2 | P13: =IF('Wyk2i3-Tab1 (Nauka2)'!P13<>"",IF(Firmy2!P13<>"",MIN('Wyk2i3-Tab1 (Nauka2)'!P13,Firmy2!P13),""),"") ->  | Q13: =IF('Wyk2i3-Tab1 (Nauka2)'!Q13<>"",IF(Firmy2!Q13<>"",MIN('Wyk2i3-Tab1 (Nauka2)'!Q13,Firmy2!Q13),""),"") -> 1 | R13: =IF('Wyk2i3-Tab1 (Nauka2)'!R13<>"",IF(Firmy2!R13<>"",MIN('Wyk2i3-Tab1 (Nauka2)'!R13,Firmy2!R13),""),"") -> 
B14: L. Usługi serwisowe IT | C14: =IF('Wyk2i3-Tab1 (Nauka2)'!C14<>"",IF(Firmy2!C14<>"",MIN('Wyk2i3-Tab1 (Nauka2)'!C14,Firmy2!C14),""),"") ->  | D14: =IF('Wyk2i3-Tab1 (Nauka2)'!D14<>"",IF(Firmy2!D14<>"",MIN('Wyk2i3-Tab1 (Nauka2)'!D14,Firmy2!D14),""),"") ->  | E14: =IF('Wyk2i3-Tab1 (Nauka2)'!E14<>"",IF(Firmy2!E14<>"",MIN('Wyk2i3-Tab1 (Nauka2)'!E14,Firmy2!E14),""),"") ->  | F14: =IF('Wyk2i3-Tab1 (Nauka2)'!F14<>"",IF(Firmy2!F14<>"",MIN('Wyk2i3-Tab1 (Nauka2)'!F14,Firmy2!F14),""),"") ->  | G14: =IF('Wyk2i3-Tab1 (Nauka2)'!G14<>"",IF(Firmy2!G14<>"",MIN('Wyk2i3-Tab1 (Nauka2)'!G14,Firmy2!G14),""),"") ->  | H14: =IF('Wyk2i3-Tab1 (Nauka2)'!H14<>"",IF(Firmy2!H14<>"",MIN('Wyk2i3-Tab1 (Nauka2)'!H14,Firmy2!H14),""),"") -> 2 | I14: =IF('Wyk2i3-Tab1 (Nauka2)'!I14<>"",IF(Firmy2!I14<>"",MIN('Wyk2i3-Tab1 (Nauka2)'!I14,Firmy2!I14),""),"") ->  | J14: =IF('Wyk2i3-Tab1 (Nauka2)'!J14<>"",IF(Firmy2!J14<>"",MIN('Wyk2i3-Tab1 (Nauka2)'!J14,Firmy2!J14),""),"") ->  | K14: =IF('Wyk2i3-Tab1 (Nauka2)'!K14<>"",IF(Firmy2!K14<>"",MIN('Wyk2i3-Tab1 (Nauka2)'!K14,Firmy2!K14),""),"") ->  | L14: =IF('Wyk2i3-Tab1 (Nauka2)'!L14<>"",IF(Firmy2!L14<>"",MIN('Wyk2i3-Tab1 (Nauka2)'!L14,Firmy2!L14),""),"") ->  | M14: =IF('Wyk2i3-Tab1 (Nauka2)'!M14<>"",IF(Firmy2!M14<>"",MIN('Wyk2i3-Tab1 (Nauka2)'!M14,Firmy2!M14),""),"") ->  | N14: =IF('Wyk2i3-Tab1 (Nauka2)'!N14<>"",IF(Firmy2!N14<>"",MIN('Wyk2i3-Tab1 (Nauka2)'!N14,Firmy2!N14),""),"") ->  | O14: =IF('Wyk2i3-Tab1 (Nauka2)'!O14<>"",IF(Firmy2!O14<>"",MIN('Wyk2i3-Tab1 (Nauka2)'!O14,Firmy2!O14),""),"") -> 1 | P14: =IF('Wyk2i3-Tab1 (Nauka2)'!P14<>"",IF(Firmy2!P14<>"",MIN('Wyk2i3-Tab1 (Nauka2)'!P14,Firmy2!P14),""),"") ->  | Q14: =IF('Wyk2i3-Tab1 (Nauka2)'!Q14<>"",IF(Firmy2!Q14<>"",MIN('Wyk2i3-Tab1 (Nauka2)'!Q14,Firmy2!Q14),""),"") ->  | R14: =IF('Wyk2i3-Tab1 (Nauka2)'!R14<>"",IF(Firmy2!R14<>"",MIN('Wyk2i3-Tab1 (Nauka2)'!R14,Firmy2!R14),""),"") -> 
B15: M. Inne usługi IT | C15: =IF('Wyk2i3-Tab1 (Nauka2)'!C15<>"",IF(Firmy2!C15<>"",MIN('Wyk2i3-Tab1 (Nauka2)'!C15,Firmy2!C15),""),"") -> 4 | D15: =IF('Wyk2i3-Tab1 (Nauka2)'!D15<>"",IF(Firmy2!D15<>"",MIN('Wyk2i3-Tab1 (Nauka2)'!D15,Firmy2!D15),""),"") -> 1 | E15: =IF('Wyk2i3-Tab1 (Nauka2)'!E15<>"",IF(Firmy2!E15<>"",MIN('Wyk2i3-Tab1 (Nauka2)'!E15,Firmy2!E15),""),"") -> 1 | F15: =IF('Wyk2i3-Tab1 (Nauka2)'!F15<>"",IF(Firmy2!F15<>"",MIN('Wyk2i3-Tab1 (Nauka2)'!F15,Firmy2!F15),""),"") ->  | G15: =IF('Wyk2i3-Tab1 (Nauka2)'!G15<>"",IF(Firmy2!G15<>"",MIN('Wyk2i3-Tab1 (Nauka2)'!G15,Firmy2!G15),""),"") ->  | H15: =IF('Wyk2i3-Tab1 (Nauka2)'!H15<>"",IF(Firmy2!H15<>"",MIN('Wyk2i3-Tab1 (Nauka2)'!H15,Firmy2!H15),""),"") -> 2 | I15: =IF('Wyk2i3-Tab1 (Nauka2)'!I15<>"",IF(Firmy2!I15<>"",MIN('Wyk2i3-Tab1 (Nauka2)'!I15,Firmy2!I15),""),"") ->  | J15: =IF('Wyk2i3-Tab1 (Nauka2)'!J15<>"",IF(Firmy2!J15<>"",MIN('Wyk2i3-Tab1 (Nauka2)'!J15,Firmy2!J15),""),"") ->  | K15: =IF('Wyk2i3-Tab1 (Nauka2)'!K15<>"",IF(Firmy2!K15<>"",MIN('Wyk2i3-Tab1 (Nauka2)'!K15,Firmy2!K15),""),"") ->  | L15: =IF('Wyk2i3-Tab1 (Nauka2)'!L15<>"",IF(Firmy2!L15<>"",MIN('Wyk2i3-Tab1 (Nauka2)'!L15,Firmy2!L15),""),"") ->  | M15: =IF('Wyk2i3-Tab1 (Nauka2)'!M15<>"",IF(Firmy2!M15<>"",MIN('Wyk2i3-Tab1 (Nauka2)'!M15,Firmy2!M15),""),"") ->  | N15: =IF('Wyk2i3-Tab1 (Nauka2)'!N15<>"",IF(Firmy2!N15<>"",MIN('Wyk2i3-Tab1 (Nauka2)'!N15,Firmy2!N15),""),"") -> 1 | O15: =IF('Wyk2i3-Tab1 (Nauka2)'!O15<>"",IF(Firmy2!O15<>"",MIN('Wyk2i3-Tab1 (Nauka2)'!O15,Firmy2!O15),""),"") -> 3 | P15: =IF('Wyk2i3-Tab1 (Nauka2)'!P15<>"",IF(Firmy2!P15<>"",MIN('Wyk2i3-Tab1 (Nauka2)'!P15,Firmy2!P15),""),"") ->  | Q15: =IF('Wyk2i3-Tab1 (Nauka2)'!Q15<>"",IF(Firmy2!Q15<>"",MIN('Wyk2i3-Tab1 (Nauka2)'!Q15,Firmy2!Q15),""),"") -> 3 | R15: =IF('Wyk2i3-Tab1 (Nauka2)'!R15<>"",IF(Firmy2!R15<>"",MIN('Wyk2i3-Tab1 (Nauka2)'!R15,Firmy2!R15),""),"") -> 
B16: N. Instalacje i uruchamianie central telekomunikacyjnych | C16: =IF('Wyk2i3-Tab1 (Nauka2)'!C16<>"",IF(Firmy2!C16<>"",MIN('Wyk2i3-Tab1 (Nauka2)'!C16,Firmy2!C16),""),"") ->  | D16: =IF('Wyk2i3-Tab1 (Nauka2)'!D16<>"",IF(Firmy2!D16<>"",MIN('Wyk2i3-Tab1 (Nauka2)'!D16,Firmy2!D16),""),"") ->  | E16: =IF('Wyk2i3-Tab1 (Nauka2)'!E16<>"",IF(Firmy2!E16<>"",MIN('Wyk2i3-Tab1 (Nauka2)'!E16,Firmy2!E16),""),"") ->  | F16: =IF('Wyk2i3-Tab1 (Nauka2)'!F16<>"",IF(Firmy2!F16<>"",MIN('Wyk2i3-Tab1 (Nauka2)'!F16,Firmy2!F16),""),"") ->  | G16: =IF('Wyk2i3-Tab1 (Nauka2)'!G16<>"",IF(Firmy2!G16<>"",MIN('Wyk2i3-Tab1 (Nauka2)'!G16,Firmy2!G16),""),"") ->  | H16: =IF('Wyk2i3-Tab1 (Nauka2)'!H16<>"",IF(Firmy2!H16<>"",MIN('Wyk2i3-Tab1 (Nauka2)'!H16,Firmy2!H16),""),"") ->  | I16: =IF('Wyk2i3-Tab1 (Nauka2)'!I16<>"",IF(Firmy2!I16<>"",MIN('Wyk2i3-Tab1 (Nauka2)'!I16,Firmy2!I16),""),"") ->  | J16: =IF('Wyk2i3-Tab1 (Nauka2)'!J16<>"",IF(Firmy2!J16<>"",MIN('Wyk2i3-Tab1 (Nauka2)'!J16,Firmy2!J16),""),"") ->  | K16: =IF('Wyk2i3-Tab1 (Nauka2)'!K16<>"",IF(Firmy2!K16<>"",MIN('Wyk2i3-Tab1 (Nauka2)'!K16,Firmy2!K16),""),"") ->  | L16: =IF('Wyk2i3-Tab1 (Nauka2)'!L16<>"",IF(Firmy2!L16<>"",MIN('Wyk2i3-Tab1 (Nauka2)'!L16,Firmy2!L16),""),"") ->  | M16: =IF('Wyk2i3-Tab1 (Nauka2)'!M16<>"",IF(Firmy2!M16<>"",MIN('Wyk2i3-Tab1 (Nauka2)'!M16,Firmy2!M16),""),"") ->  | N16: =IF('Wyk2i3-Tab1 (Nauka2)'!N16<>"",IF(Firmy2!N16<>"",MIN('Wyk2i3-Tab1 (Nauka2)'!N16,Firmy2!N16),""),"") ->  | O16: =IF('Wyk2i3-Tab1 (Nauka2)'!O16<>"",IF(Firmy2!O16<>"",MIN('Wyk2i3-Tab1 (Nauka2)'!O16,Firmy2!O16),""),"") ->  | P16: =IF('Wyk2i3-Tab1 (Nauka2)'!P16<>"",IF(Firmy2!P16<>"",MIN('Wyk2i3-Tab1 (Nauka2)'!P16,Firmy2!P16),""),"") ->  | Q16: =IF('Wyk2i3-Tab1 (Nauka2)'!Q16<>"",IF(Firmy2!Q16<>"",MIN('Wyk2i3-Tab1 (Nauka2)'!Q16,Firmy2!Q16),""),"") ->  | R16: =IF('Wyk2i3-Tab1 (Nauka2)'!R16<>"",IF(Firmy2!R16<>"",MIN('Wyk2i3-Tab1 (Nauka2)'!R16,Firmy2!R16),""),"") -> 
B17: O. Projekt., budowa, uruchamianie i utrzym. sieci telekom. | C17: =IF('Wyk2i3-Tab1 (Nauka2)'!C17<>"",IF(Firmy2!C17<>"",MIN('Wyk2i3-Tab1 (Nauka2)'!C17,Firmy2!C17),""),"") -> 2 | D17: =IF('Wyk2i3-Tab1 (Nauka2)'!D17<>"",IF(Firmy2!D17<>"",MIN('Wyk2i3-Tab1 (Nauka2)'!D17,Firmy2!D17),""),"") ->  | E17: =IF('Wyk2i3-Tab1 (Nauka2)'!E17<>"",IF(Firmy2!E17<>"",MIN('Wyk2i3-Tab1 (Nauka2)'!E17,Firmy2!E17),""),"") ->  | F17: =IF('Wyk2i3-Tab1 (Nauka2)'!F17<>"",IF(Firmy2!F17<>"",MIN('Wyk2i3-Tab1 (Nauka2)'!F17,Firmy2!F17),""),"") ->  | G17: =IF('Wyk2i3-Tab1 (Nauka2)'!G17<>"",IF(Firmy2!G17<>"",MIN('Wyk2i3-Tab1 (Nauka2)'!G17,Firmy2!G17),""),"") ->  | H17: =IF('Wyk2i3-Tab1 (Nauka2)'!H17<>"",IF(Firmy2!H17<>"",MIN('Wyk2i3-Tab1 (Nauka2)'!H17,Firmy2!H17),""),"") -> 1 | I17: =IF('Wyk2i3-Tab1 (Nauka2)'!I17<>"",IF(Firmy2!I17<>"",MIN('Wyk2i3-Tab1 (Nauka2)'!I17,Firmy2!I17),""),"") ->  | J17: =IF('Wyk2i3-Tab1 (Nauka2)'!J17<>"",IF(Firmy2!J17<>"",MIN('Wyk2i3-Tab1 (Nauka2)'!J17,Firmy2!J17),""),"") ->  | K17: =IF('Wyk2i3-Tab1 (Nauka2)'!K17<>"",IF(Firmy2!K17<>"",MIN('Wyk2i3-Tab1 (Nauka2)'!K17,Firmy2!K17),""),"") ->  | L17: =IF('Wyk2i3-Tab1 (Nauka2)'!L17<>"",IF(Firmy2!L17<>"",MIN('Wyk2i3-Tab1 (Nauka2)'!L17,Firmy2!L17),""),"") ->  | M17: =IF('Wyk2i3-Tab1 (Nauka2)'!M17<>"",IF(Firmy2!M17<>"",MIN('Wyk2i3-Tab1 (Nauka2)'!M17,Firmy2!M17),""),"") ->  | N17: =IF('Wyk2i3-Tab1 (Nauka2)'!N17<>"",IF(Firmy2!N17<>"",MIN('Wyk2i3-Tab1 (Nauka2)'!N17,Firmy2!N17),""),"") -> 1 | O17: =IF('Wyk2i3-Tab1 (Nauka2)'!O17<>"",IF(Firmy2!O17<>"",MIN('Wyk2i3-Tab1 (Nauka2)'!O17,Firmy2!O17),""),"") -> 1 | P17: =IF('Wyk2i3-Tab1 (Nauka2)'!P17<>"",IF(Firmy2!P17<>"",MIN('Wyk2i3-Tab1 (Nauka2)'!P17,Firmy2!P17),""),"") ->  | Q17: =IF('Wyk2i3-Tab1 (Nauka2)'!Q17<>"",IF(Firmy2!Q17<>"",MIN('Wyk2i3-Tab1 (Nauka2)'!Q17,Firmy2!Q17),""),"") -> 1 | R17: =IF('Wyk2i3-Tab1 (Nauka2)'!R17<>"",IF(Firmy2!R17<>"",MIN('Wyk2i3-Tab1 (Nauka2)'!R17,Firmy2!R17),""),"") -> 
B18: P. Usługi operatorskie TV kablowych | C18: =IF('Wyk2i3-Tab1 (Nauka2)'!C18<>"",IF(Firmy2!C18<>"",MIN('Wyk2i3-Tab1 (Nauka2)'!C18,Firmy2!C18),""),"") -> 1 | D18: =IF('Wyk2i3-Tab1 (Nauka2)'!D18<>"",IF(Firmy2!D18<>"",MIN('Wyk2i3-Tab1 (Nauka2)'!D18,Firmy2!D18),""),"") ->  | E18: =IF('Wyk2i3-Tab1 (Nauka2)'!E18<>"",IF(Firmy2!E18<>"",MIN('Wyk2i3-Tab1 (Nauka2)'!E18,Firmy2!E18),""),"") ->  | F18: =IF('Wyk2i3-Tab1 (Nauka2)'!F18<>"",IF(Firmy2!F18<>"",MIN('Wyk2i3-Tab1 (Nauka2)'!F18,Firmy2!F18),""),"") ->  | G18: =IF('Wyk2i3-Tab1 (Nauka2)'!G18<>"",IF(Firmy2!G18<>"",MIN('Wyk2i3-Tab1 (Nauka2)'!G18,Firmy2!G18),""),"") ->  | H18: =IF('Wyk2i3-Tab1 (Nauka2)'!H18<>"",IF(Firmy2!H18<>"",MIN('Wyk2i3-Tab1 (Nauka2)'!H18,Firmy2!H18),""),"") ->  | I18: =IF('Wyk2i3-Tab1 (Nauka2)'!I18<>"",IF(Firmy2!I18<>"",MIN('Wyk2i3-Tab1 (Nauka2)'!I18,Firmy2!I18),""),"") ->  | J18: =IF('Wyk2i3-Tab1 (Nauka2)'!J18<>"",IF(Firmy2!J18<>"",MIN('Wyk2i3-Tab1 (Nauka2)'!J18,Firmy2!J18),""),"") ->  | K18: =IF('Wyk2i3-Tab1 (Nauka2)'!K18<>"",IF(Firmy2!K18<>"",MIN('Wyk2i3-Tab1 (Nauka2)'!K18,Firmy2!K18),""),"") ->  | L18: =IF('Wyk2i3-Tab1 (Nauka2)'!L18<>"",IF(Firmy2!L18<>"",MIN('Wyk2i3-Tab1 (Nauka2)'!L18,Firmy2!L18),""),"") ->  | M18: =IF('Wyk2i3-Tab1 (Nauka2)'!M18<>"",IF(Firmy2!M18<>"",MIN('Wyk2i3-Tab1 (Nauka2)'!M18,Firmy2!M18),""),"") ->  | N18: =IF('Wyk2i3-Tab1 (Nauka2)'!N18<>"",IF(Firmy2!N18<>"",MIN('Wyk2i3-Tab1 (Nauka2)'!N18,Firmy2!N18),""),"") ->  | O18: =IF('Wyk2i3-Tab1 (Nauka2)'!O18<>"",IF(Firmy2!O18<>"",MIN('Wyk2i3-Tab1 (Nauka2)'!O18,Firmy2!O18),""),"") ->  | P18: =IF('Wyk2i3-Tab1 (Nauka2)'!P18<>"",IF(Firmy2!P18<>"",MIN('Wyk2i3-Tab1 (Nauka2)'!P18,Firmy2!P18),""),"") ->  | Q18: =IF('Wyk2i3-Tab1 (Nauka2)'!Q18<>"",IF(Firmy2!Q18<>"",MIN('Wyk2i3-Tab1 (Nauka2)'!Q18,Firmy2!Q18),""),"") ->  | R18: =IF('Wyk2i3-Tab1 (Nauka2)'!R18<>"",IF(Firmy2!R18<>"",MIN('Wyk2i3-Tab1 (Nauka2)'!R18,Firmy2!R18),""),"") -> 
B19: Q. Usługi operatorskie transmisji danych | C19: =IF('Wyk2i3-Tab1 (Nauka2)'!C19<>"",IF(Firmy2!C19<>"",MIN('Wyk2i3-Tab1 (Nauka2)'!C19,Firmy2!C19),""),"") -> 3 | D19: =IF('Wyk2i3-Tab1 (Nauka2)'!D19<>"",IF(Firmy2!D19<>"",MIN('Wyk2i3-Tab1 (Nauka2)'!D19,Firmy2!D19),""),"") ->  | E19: =IF('Wyk2i3-Tab1 (Nauka2)'!E19<>"",IF(Firmy2!E19<>"",MIN('Wyk2i3-Tab1 (Nauka2)'!E19,Firmy2!E19),""),"") ->  | F19: =IF('Wyk2i3-Tab1 (Nauka2)'!F19<>"",IF(Firmy2!F19<>"",MIN('Wyk2i3-Tab1 (Nauka2)'!F19,Firmy2!F19),""),"") ->  | G19: =IF('Wyk2i3-Tab1 (Nauka2)'!G19<>"",IF(Firmy2!G19<>"",MIN('Wyk2i3-Tab1 (Nauka2)'!G19,Firmy2!G19),""),"") ->  | H19: =IF('Wyk2i3-Tab1 (Nauka2)'!H19<>"",IF(Firmy2!H19<>"",MIN('Wyk2i3-Tab1 (Nauka2)'!H19,Firmy2!H19),""),"") ->  | I19: =IF('Wyk2i3-Tab1 (Nauka2)'!I19<>"",IF(Firmy2!I19<>"",MIN('Wyk2i3-Tab1 (Nauka2)'!I19,Firmy2!I19),""),"") ->  | J19: =IF('Wyk2i3-Tab1 (Nauka2)'!J19<>"",IF(Firmy2!J19<>"",MIN('Wyk2i3-Tab1 (Nauka2)'!J19,Firmy2!J19),""),"") ->  | K19: =IF('Wyk2i3-Tab1 (Nauka2)'!K19<>"",IF(Firmy2!K19<>"",MIN('Wyk2i3-Tab1 (Nauka2)'!K19,Firmy2!K19),""),"") ->  | L19: =IF('Wyk2i3-Tab1 (Nauka2)'!L19<>"",IF(Firmy2!L19<>"",MIN('Wyk2i3-Tab1 (Nauka2)'!L19,Firmy2!L19),""),"") ->  | M19: =IF('Wyk2i3-Tab1 (Nauka2)'!M19<>"",IF(Firmy2!M19<>"",MIN('Wyk2i3-Tab1 (Nauka2)'!M19,Firmy2!M19),""),"") ->  | N19: =IF('Wyk2i3-Tab1 (Nauka2)'!N19<>"",IF(Firmy2!N19<>"",MIN('Wyk2i3-Tab1 (Nauka2)'!N19,Firmy2!N19),""),"") ->  | O19: =IF('Wyk2i3-Tab1 (Nauka2)'!O19<>"",IF(Firmy2!O19<>"",MIN('Wyk2i3-Tab1 (Nauka2)'!O19,Firmy2!O19),""),"") ->  | P19: =IF('Wyk2i3-Tab1 (Nauka2)'!P19<>"",IF(Firmy2!P19<>"",MIN('Wyk2i3-Tab1 (Nauka2)'!P19,Firmy2!P19),""),"") ->  | Q19: =IF('Wyk2i3-Tab1 (Nauka2)'!Q19<>"",IF(Firmy2!Q19<>"",MIN('Wyk2i3-Tab1 (Nauka2)'!Q19,Firmy2!Q19),""),"") -> 1 | R19: =IF('Wyk2i3-Tab1 (Nauka2)'!R19<>"",IF(Firmy2!R19<>"",MIN('Wyk2i3-Tab1 (Nauka2)'!R19,Firmy2!R19),""),"") -> 
B20: R. Usługi internetowe (dostępowe ISP) | C20: =IF('Wyk2i3-Tab1 (Nauka2)'!C20<>"",IF(Firmy2!C20<>"",MIN('Wyk2i3-Tab1 (Nauka2)'!C20,Firmy2!C20),""),"") -> 2 | D20: =IF('Wyk2i3-Tab1 (Nauka2)'!D20<>"",IF(Firmy2!D20<>"",MIN('Wyk2i3-Tab1 (Nauka2)'!D20,Firmy2!D20),""),"") ->  | E20: =IF('Wyk2i3-Tab1 (Nauka2)'!E20<>"",IF(Firmy2!E20<>"",MIN('Wyk2i3-Tab1 (Nauka2)'!E20,Firmy2!E20),""),"") ->  | F20: =IF('Wyk2i3-Tab1 (Nauka2)'!F20<>"",IF(Firmy2!F20<>"",MIN('Wyk2i3-Tab1 (Nauka2)'!F20,Firmy2!F20),""),"") ->  | G20: =IF('Wyk2i3-Tab1 (Nauka2)'!G20<>"",IF(Firmy2!G20<>"",MIN('Wyk2i3-Tab1 (Nauka2)'!G20,Firmy2!G20),""),"") ->  | H20: =IF('Wyk2i3-Tab1 (Nauka2)'!H20<>"",IF(Firmy2!H20<>"",MIN('Wyk2i3-Tab1 (Nauka2)'!H20,Firmy2!H20),""),"") ->  | I20: =IF('Wyk2i3-Tab1 (Nauka2)'!I20<>"",IF(Firmy2!I20<>"",MIN('Wyk2i3-Tab1 (Nauka2)'!I20,Firmy2!I20),""),"") ->  | J20: =IF('Wyk2i3-Tab1 (Nauka2)'!J20<>"",IF(Firmy2!J20<>"",MIN('Wyk2i3-Tab1 (Nauka2)'!J20,Firmy2!J20),""),"") ->  | K20: =IF('Wyk2i3-Tab1 (Nauka2)'!K20<>"",IF(Firmy2!K20<>"",MIN('Wyk2i3-Tab1 (Nauka2)'!K20,Firmy2!K20),""),"") ->  | L20: =IF('Wyk2i3-Tab1 (Nauka2)'!L20<>"",IF(Firmy2!L20<>"",MIN('Wyk2i3-Tab1 (Nauka2)'!L20,Firmy2!L20),""),"") ->  | M20: =IF('Wyk2i3-Tab1 (Nauka2)'!M20<>"",IF(Firmy2!M20<>"",MIN('Wyk2i3-Tab1 (Nauka2)'!M20,Firmy2!M20),""),"") ->  | N20: =IF('Wyk2i3-Tab1 (Nauka2)'!N20<>"",IF(Firmy2!N20<>"",MIN('Wyk2i3-Tab1 (Nauka2)'!N20,Firmy2!N20),""),"") ->  | O20: =IF('Wyk2i3-Tab1 (Nauka2)'!O20<>"",IF(Firmy2!O20<>"",MIN('Wyk2i3-Tab1 (Nauka2)'!O20,Firmy2!O20),""),"") ->  | P20: =IF('Wyk2i3-Tab1 (Nauka2)'!P20<>"",IF(Firmy2!P20<>"",MIN('Wyk2i3-Tab1 (Nauka2)'!P20,Firmy2!P20),""),"") ->  | Q20: =IF('Wyk2i3-Tab1 (Nauka2)'!Q20<>"",IF(Firmy2!Q20<>"",MIN('Wyk2i3-Tab1 (Nauka2)'!Q20,Firmy2!Q20),""),"") ->  | R20: =IF('Wyk2i3-Tab1 (Nauka2)'!R20<>"",IF(Firmy2!R20<>"",MIN('Wyk2i3-Tab1 (Nauka2)'!R20,Firmy2!R20),""),"") -> 
B21: S. Outsourcing telekomunikacyjny | C21: =IF('Wyk2i3-Tab1 (Nauka2)'!C21<>"",IF(Firmy2!C21<>"",MIN('Wyk2i3-Tab1 (Nauka2)'!C21,Firmy2!C21),""),"") ->  | D21: =IF('Wyk2i3-Tab1 (Nauka2)'!D21<>"",IF(Firmy2!D21<>"",MIN('Wyk2i3-Tab1 (Nauka2)'!D21,Firmy2!D21),""),"") ->  | E21: =IF('Wyk2i3-Tab1 (Nauka2)'!E21<>"",IF(Firmy2!E21<>"",MIN('Wyk2i3-Tab1 (Nauka2)'!E21,Firmy2!E21),""),"") ->  | F21: =IF('Wyk2i3-Tab1 (Nauka2)'!F21<>"",IF(Firmy2!F21<>"",MIN('Wyk2i3-Tab1 (Nauka2)'!F21,Firmy2!F21),""),"") ->  | G21: =IF('Wyk2i3-Tab1 (Nauka2)'!G21<>"",IF(Firmy2!G21<>"",MIN('Wyk2i3-Tab1 (Nauka2)'!G21,Firmy2!G21),""),"") ->  | H21: =IF('Wyk2i3-Tab1 (Nauka2)'!H21<>"",IF(Firmy2!H21<>"",MIN('Wyk2i3-Tab1 (Nauka2)'!H21,Firmy2!H21),""),"") ->  | I21: =IF('Wyk2i3-Tab1 (Nauka2)'!I21<>"",IF(Firmy2!I21<>"",MIN('Wyk2i3-Tab1 (Nauka2)'!I21,Firmy2!I21),""),"") ->  | J21: =IF('Wyk2i3-Tab1 (Nauka2)'!J21<>"",IF(Firmy2!J21<>"",MIN('Wyk2i3-Tab1 (Nauka2)'!J21,Firmy2!J21),""),"") ->  | K21: =IF('Wyk2i3-Tab1 (Nauka2)'!K21<>"",IF(Firmy2!K21<>"",MIN('Wyk2i3-Tab1 (Nauka2)'!K21,Firmy2!K21),""),"") ->  | L21: =IF('Wyk2i3-Tab1 (Nauka2)'!L21<>"",IF(Firmy2!L21<>"",MIN('Wyk2i3-Tab1 (Nauka2)'!L21,Firmy2!L21),""),"") ->  | M21: =IF('Wyk2i3-Tab1 (Nauka2)'!M21<>"",IF(Firmy2!M21<>"",MIN('Wyk2i3-Tab1 (Nauka2)'!M21,Firmy2!M21),""),"") ->  | N21: =IF('Wyk2i3-Tab1 (Nauka2)'!N21<>"",IF(Firmy2!N21<>"",MIN('Wyk2i3-Tab1 (Nauka2)'!N21,Firmy2!N21),""),"") ->  | O21: =IF('Wyk2i3-Tab1 (Nauka2)'!O21<>"",IF(Firmy2!O21<>"",MIN('Wyk2i3-Tab1 (Nauka2)'!O21,Firmy2!O21),""),"") ->  | P21: =IF('Wyk2i3-Tab1 (Nauka2)'!P21<>"",IF(Firmy2!P21<>"",MIN('Wyk2i3-Tab1 (Nauka2)'!P21,Firmy2!P21),""),"") ->  | Q21: =IF('Wyk2i3-Tab1 (Nauka2)'!Q21<>"",IF(Firmy2!Q21<>"",MIN('Wyk2i3-Tab1 (Nauka2)'!Q21,Firmy2!Q21),""),"") ->  | R21: =IF('Wyk2i3-Tab1 (Nauka2)'!R21<>"",IF(Firmy2!R21<>"",MIN('Wyk2i3-Tab1 (Nauka2)'!R21,Firmy2!R21),""),"") -> 
B22: T. Usługi serwisowe telekomunikacyjne | C22: =IF('Wyk2i3-Tab1 (Nauka2)'!C22<>"",IF(Firmy2!C22<>"",MIN('Wyk2i3-Tab1 (Nauka2)'!C22,Firmy2!C22),""),"") -> 1 | D22: =IF('Wyk2i3-Tab1 (Nauka2)'!D22<>"",IF(Firmy2!D22<>"",MIN('Wyk2i3-Tab1 (Nauka2)'!D22,Firmy2!D22),""),"") ->  | E22: =IF('Wyk2i3-Tab1 (Nauka2)'!E22<>"",IF(Firmy2!E22<>"",MIN('Wyk2i3-Tab1 (Nauka2)'!E22,Firmy2!E22),""),"") ->  | F22: =IF('Wyk2i3-Tab1 (Nauka2)'!F22<>"",IF(Firmy2!F22<>"",MIN('Wyk2i3-Tab1 (Nauka2)'!F22,Firmy2!F22),""),"") ->  | G22: =IF('Wyk2i3-Tab1 (Nauka2)'!G22<>"",IF(Firmy2!G22<>"",MIN('Wyk2i3-Tab1 (Nauka2)'!G22,Firmy2!G22),""),"") ->  | H22: =IF('Wyk2i3-Tab1 (Nauka2)'!H22<>"",IF(Firmy2!H22<>"",MIN('Wyk2i3-Tab1 (Nauka2)'!H22,Firmy2!H22),""),"") ->  | I22: =IF('Wyk2i3-Tab1 (Nauka2)'!I22<>"",IF(Firmy2!I22<>"",MIN('Wyk2i3-Tab1 (Nauka2)'!I22,Firmy2!I22),""),"") ->  | J22: =IF('Wyk2i3-Tab1 (Nauka2)'!J22<>"",IF(Firmy2!J22<>"",MIN('Wyk2i3-Tab1 (Nauka2)'!J22,Firmy2!J22),""),"") ->  | K22: =IF('Wyk2i3-Tab1 (Nauka2)'!K22<>"",IF(Firmy2!K22<>"",MIN('Wyk2i3-Tab1 (Nauka2)'!K22,Firmy2!K22),""),"") ->  | L22: =IF('Wyk2i3-Tab1 (Nauka2)'!L22<>"",IF(Firmy2!L22<>"",MIN('Wyk2i3-Tab1 (Nauka2)'!L22,Firmy2!L22),""),"") ->  | M22: =IF('Wyk2i3-Tab1 (Nauka2)'!M22<>"",IF(Firmy2!M22<>"",MIN('Wyk2i3-Tab1 (Nauka2)'!M22,Firmy2!M22),""),"") ->  | N22: =IF('Wyk2i3-Tab1 (Nauka2)'!N22<>"",IF(Firmy2!N22<>"",MIN('Wyk2i3-Tab1 (Nauka2)'!N22,Firmy2!N22),""),"") ->  | O22: =IF('Wyk2i3-Tab1 (Nauka2)'!O22<>"",IF(Firmy2!O22<>"",MIN('Wyk2i3-Tab1 (Nauka2)'!O22,Firmy2!O22),""),"") -> 1 | P22: =IF('Wyk2i3-Tab1 (Nauka2)'!P22<>"",IF(Firmy2!P22<>"",MIN('Wyk2i3-Tab1 (Nauka2)'!P22,Firmy2!P22),""),"") ->  | Q22: =IF('Wyk2i3-Tab1 (Nauka2)'!Q22<>"",IF(Firmy2!Q22<>"",MIN('Wyk2i3-Tab1 (Nauka2)'!Q22,Firmy2!Q22),""),"") ->  | R22: =IF('Wyk2i3-Tab1 (Nauka2)'!R22<>"",IF(Firmy2!R22<>"",MIN('Wyk2i3-Tab1 (Nauka2)'!R22,Firmy2!R22),""),"") -> 
B23: U Inne usługi telekomunikacyjne | C23: =IF('Wyk2i3-Tab1 (Nauka2)'!C23<>"",IF(Firmy2!C23<>"",MIN('Wyk2i3-Tab1 (Nauka2)'!C23,Firmy2!C23),""),"") -> 2 | D23: =IF('Wyk2i3-Tab1 (Nauka2)'!D23<>"",IF(Firmy2!D23<>"",MIN('Wyk2i3-Tab1 (Nauka2)'!D23,Firmy2!D23),""),"") -> 1 | E23: =IF('Wyk2i3-Tab1 (Nauka2)'!E23<>"",IF(Firmy2!E23<>"",MIN('Wyk2i3-Tab1 (Nauka2)'!E23,Firmy2!E23),""),"") ->  | F23: =IF('Wyk2i3-Tab1 (Nauka2)'!F23<>"",IF(Firmy2!F23<>"",MIN('Wyk2i3-Tab1 (Nauka2)'!F23,Firmy2!F23),""),"") ->  | G23: =IF('Wyk2i3-Tab1 (Nauka2)'!G23<>"",IF(Firmy2!G23<>"",MIN('Wyk2i3-Tab1 (Nauka2)'!G23,Firmy2!G23),""),"") ->  | H23: =IF('Wyk2i3-Tab1 (Nauka2)'!H23<>"",IF(Firmy2!H23<>"",MIN('Wyk2i3-Tab1 (Nauka2)'!H23,Firmy2!H23),""),"") ->  | I23: =IF('Wyk2i3-Tab1 (Nauka2)'!I23<>"",IF(Firmy2!I23<>"",MIN('Wyk2i3-Tab1 (Nauka2)'!I23,Firmy2!I23),""),"") ->  | J23: =IF('Wyk2i3-Tab1 (Nauka2)'!J23<>"",IF(Firmy2!J23<>"",MIN('Wyk2i3-Tab1 (Nauka2)'!J23,Firmy2!J23),""),"") ->  | K23: =IF('Wyk2i3-Tab1 (Nauka2)'!K23<>"",IF(Firmy2!K23<>"",MIN('Wyk2i3-Tab1 (Nauka2)'!K23,Firmy2!K23),""),"") ->  | L23: =IF('Wyk2i3-Tab1 (Nauka2)'!L23<>"",IF(Firmy2!L23<>"",MIN('Wyk2i3-Tab1 (Nauka2)'!L23,Firmy2!L23),""),"") ->  | M23: =IF('Wyk2i3-Tab1 (Nauka2)'!M23<>"",IF(Firmy2!M23<>"",MIN('Wyk2i3-Tab1 (Nauka2)'!M23,Firmy2!M23),""),"") ->  | N23: =IF('Wyk2i3-Tab1 (Nauka2)'!N23<>"",IF(Firmy2!N23<>"",MIN('Wyk2i3-Tab1 (Nauka2)'!N23,Firmy2!N23),""),"") -> 1 | O23: =IF('Wyk2i3-Tab1 (Nauka2)'!O23<>"",IF(Firmy2!O23<>"",MIN('Wyk2i3-Tab1 (Nauka2)'!O23,Firmy2!O23),""),"") -> 1 | P23: =IF('Wyk2i3-Tab1 (Nauka2)'!P23<>"",IF(Firmy2!P23<>"",MIN('Wyk2i3-Tab1 (Nauka2)'!P23,Firmy2!P23),""),"") ->  | Q23: =IF('Wyk2i3-Tab1 (Nauka2)'!Q23<>"",IF(Firmy2!Q23<>"",MIN('Wyk2i3-Tab1 (Nauka2)'!Q23,Firmy2!Q23),""),"") -> 1 | R23: =IF('Wyk2i3-Tab1 (Nauka2)'!R23<>"",IF(Firmy2!R23<>"",MIN('Wyk2i3-Tab1 (Nauka2)'!R23,Firmy2!R23),""),"") -> 2
B24: V. Dystrybucja IT (sprzedaż do dalszej odsprzedaży) | C24: =IF('Wyk2i3-Tab1 (Nauka2)'!C24<>"",IF(Firmy2!C24<>"",MIN('Wyk2i3-Tab1 (Nauka2)'!C24,Firmy2!C24),""),"") -> 1 | D24: =IF('Wyk2i3-Tab1 (Nauka2)'!D24<>"",IF(Firmy2!D24<>"",MIN('Wyk2i3-Tab1 (Nauka2)'!D24,Firmy2!D24),""),"") ->  | E24: =IF('Wyk2i3-Tab1 (Nauka2)'!E24<>"",IF(Firmy2!E24<>"",MIN('Wyk2i3-Tab1 (Nauka2)'!E24,Firmy2!E24),""),"") ->  | F24: =IF('Wyk2i3-Tab1 (Nauka2)'!F24<>"",IF(Firmy2!F24<>"",MIN('Wyk2i3-Tab1 (Nauka2)'!F24,Firmy2!F24),""),"") ->  | G24: =IF('Wyk2i3-Tab1 (Nauka2)'!G24<>"",IF(Firmy2!G24<>"",MIN('Wyk2i3-Tab1 (Nauka2)'!G24,Firmy2!G24),""),"") ->  | H24: =IF('Wyk2i3-Tab1 (Nauka2)'!H24<>"",IF(Firmy2!H24<>"",MIN('Wyk2i3-Tab1 (Nauka2)'!H24,Firmy2!H24),""),"") ->  | I24: =IF('Wyk2i3-Tab1 (Nauka2)'!I24<>"",IF(Firmy2!I24<>"",MIN('Wyk2i3-Tab1 (Nauka2)'!I24,Firmy2!I24),""),"") ->  | J24: =IF('Wyk2i3-Tab1 (Nauka2)'!J24<>"",IF(Firmy2!J24<>"",MIN('Wyk2i3-Tab1 (Nauka2)'!J24,Firmy2!J24),""),"") ->  | K24: =IF('Wyk2i3-Tab1 (Nauka2)'!K24<>"",IF(Firmy2!K24<>"",MIN('Wyk2i3-Tab1 (Nauka2)'!K24,Firmy2!K24),""),"") ->  | L24: =IF('Wyk2i3-Tab1 (Nauka2)'!L24<>"",IF(Firmy2!L24<>"",MIN('Wyk2i3-Tab1 (Nauka2)'!L24,Firmy2!L24),""),"") ->  | M24: =IF('Wyk2i3-Tab1 (Nauka2)'!M24<>"",IF(Firmy2!M24<>"",MIN('Wyk2i3-Tab1 (Nauka2)'!M24,Firmy2!M24),""),"") ->  | N24: =IF('Wyk2i3-Tab1 (Nauka2)'!N24<>"",IF(Firmy2!N24<>"",MIN('Wyk2i3-Tab1 (Nauka2)'!N24,Firmy2!N24),""),"") ->  | O24: =IF('Wyk2i3-Tab1 (Nauka2)'!O24<>"",IF(Firmy2!O24<>"",MIN('Wyk2i3-Tab1 (Nauka2)'!O24,Firmy2!O24),""),"") ->  | P24: =IF('Wyk2i3-Tab1 (Nauka2)'!P24<>"",IF(Firmy2!P24<>"",MIN('Wyk2i3-Tab1 (Nauka2)'!P24,Firmy2!P24),""),"") ->  | Q24: =IF('Wyk2i3-Tab1 (Nauka2)'!Q24<>"",IF(Firmy2!Q24<>"",MIN('Wyk2i3-Tab1 (Nauka2)'!Q24,Firmy2!Q24),""),"") ->  | R24: =IF('Wyk2i3-Tab1 (Nauka2)'!R24<>"",IF(Firmy2!R24<>"",MIN('Wyk2i3-Tab1 (Nauka2)'!R24,Firmy2!R24),""),"") -> 
B25: W. Dystryb. telekomunik. (sprzedaż do dalszej odsprzedaży) | C25: =IF('Wyk2i3-Tab1 (Nauka2)'!C25<>"",IF(Firmy2!C25<>"",MIN('Wyk2i3-Tab1 (Nauka2)'!C25,Firmy2!C25),""),"") ->  | D25: =IF('Wyk2i3-Tab1 (Nauka2)'!D25<>"",IF(Firmy2!D25<>"",MIN('Wyk2i3-Tab1 (Nauka2)'!D25,Firmy2!D25),""),"") ->  | E25: =IF('Wyk2i3-Tab1 (Nauka2)'!E25<>"",IF(Firmy2!E25<>"",MIN('Wyk2i3-Tab1 (Nauka2)'!E25,Firmy2!E25),""),"") ->  | F25: =IF('Wyk2i3-Tab1 (Nauka2)'!F25<>"",IF(Firmy2!F25<>"",MIN('Wyk2i3-Tab1 (Nauka2)'!F25,Firmy2!F25),""),"") ->  | G25: =IF('Wyk2i3-Tab1 (Nauka2)'!G25<>"",IF(Firmy2!G25<>"",MIN('Wyk2i3-Tab1 (Nauka2)'!G25,Firmy2!G25),""),"") ->  | H25: =IF('Wyk2i3-Tab1 (Nauka2)'!H25<>"",IF(Firmy2!H25<>"",MIN('Wyk2i3-Tab1 (Nauka2)'!H25,Firmy2!H25),""),"") ->  | I25: =IF('Wyk2i3-Tab1 (Nauka2)'!I25<>"",IF(Firmy2!I25<>"",MIN('Wyk2i3-Tab1 (Nauka2)'!I25,Firmy2!I25),""),"") ->  | J25: =IF('Wyk2i3-Tab1 (Nauka2)'!J25<>"",IF(Firmy2!J25<>"",MIN('Wyk2i3-Tab1 (Nauka2)'!J25,Firmy2!J25),""),"") ->  | K25: =IF('Wyk2i3-Tab1 (Nauka2)'!K25<>"",IF(Firmy2!K25<>"",MIN('Wyk2i3-Tab1 (Nauka2)'!K25,Firmy2!K25),""),"") ->  | L25: =IF('Wyk2i3-Tab1 (Nauka2)'!L25<>"",IF(Firmy2!L25<>"",MIN('Wyk2i3-Tab1 (Nauka2)'!L25,Firmy2!L25),""),"") ->  | M25: =IF('Wyk2i3-Tab1 (Nauka2)'!M25<>"",IF(Firmy2!M25<>"",MIN('Wyk2i3-Tab1 (Nauka2)'!M25,Firmy2!M25),""),"") ->  | N25: =IF('Wyk2i3-Tab1 (Nauka2)'!N25<>"",IF(Firmy2!N25<>"",MIN('Wyk2i3-Tab1 (Nauka2)'!N25,Firmy2!N25),""),"") ->  | O25: =IF('Wyk2i3-Tab1 (Nauka2)'!O25<>"",IF(Firmy2!O25<>"",MIN('Wyk2i3-Tab1 (Nauka2)'!O25,Firmy2!O25),""),"") ->  | P25: =IF('Wyk2i3-Tab1 (Nauka2)'!P25<>"",IF(Firmy2!P25<>"",MIN('Wyk2i3-Tab1 (Nauka2)'!P25,Firmy2!P25),""),"") ->  | Q25: =IF('Wyk2i3-Tab1 (Nauka2)'!Q25<>"",IF(Firmy2!Q25<>"",MIN('Wyk2i3-Tab1 (Nauka2)'!Q25,Firmy2!Q25),""),"") ->  | R25: =IF('Wyk2i3-Tab1 (Nauka2)'!R25<>"",IF(Firmy2!R25<>"",MIN('Wyk2i3-Tab1 (Nauka2)'!R25,Firmy2!R25),""),"") -> 
B26: X. Sprzedaż IT i telekomunikacyjna (do klienta końcowego) | C26: =IF('Wyk2i3-Tab1 (Nauka2)'!C26<>"",IF(Firmy2!C26<>"",MIN('Wyk2i3-Tab1 (Nauka2)'!C26,Firmy2!C26),""),"") ->  | D26: =IF('Wyk2i3-Tab1 (Nauka2)'!D26<>"",IF(Firmy2!D26<>"",MIN('Wyk2i3-Tab1 (Nauka2)'!D26,Firmy2!D26),""),"") ->  | E26: =IF('Wyk2i3-Tab1 (Nauka2)'!E26<>"",IF(Firmy2!E26<>"",MIN('Wyk2i3-Tab1 (Nauka2)'!E26,Firmy2!E26),""),"") ->  | F26: =IF('Wyk2i3-Tab1 (Nauka2)'!F26<>"",IF(Firmy2!F26<>"",MIN('Wyk2i3-Tab1 (Nauka2)'!F26,Firmy2!F26),""),"") ->  | G26: =IF('Wyk2i3-Tab1 (Nauka2)'!G26<>"",IF(Firmy2!G26<>"",MIN('Wyk2i3-Tab1 (Nauka2)'!G26,Firmy2!G26),""),"") ->  | H26: =IF('Wyk2i3-Tab1 (Nauka2)'!H26<>"",IF(Firmy2!H26<>"",MIN('Wyk2i3-Tab1 (Nauka2)'!H26,Firmy2!H26),""),"") ->  | I26: =IF('Wyk2i3-Tab1 (Nauka2)'!I26<>"",IF(Firmy2!I26<>"",MIN('Wyk2i3-Tab1 (Nauka2)'!I26,Firmy2!I26),""),"") ->  | J26: =IF('Wyk2i3-Tab1 (Nauka2)'!J26<>"",IF(Firmy2!J26<>"",MIN('Wyk2i3-Tab1 (Nauka2)'!J26,Firmy2!J26),""),"") ->  | K26: =IF('Wyk2i3-Tab1 (Nauka2)'!K26<>"",IF(Firmy2!K26<>"",MIN('Wyk2i3-Tab1 (Nauka2)'!K26,Firmy2!K26),""),"") ->  | L26: =IF('Wyk2i3-Tab1 (Nauka2)'!L26<>"",IF(Firmy2!L26<>"",MIN('Wyk2i3-Tab1 (Nauka2)'!L26,Firmy2!L26),""),"") ->  | M26: =IF('Wyk2i3-Tab1 (Nauka2)'!M26<>"",IF(Firmy2!M26<>"",MIN('Wyk2i3-Tab1 (Nauka2)'!M26,Firmy2!M26),""),"") ->  | N26: =IF('Wyk2i3-Tab1 (Nauka2)'!N26<>"",IF(Firmy2!N26<>"",MIN('Wyk2i3-Tab1 (Nauka2)'!N26,Firmy2!N26),""),"") ->  | O26: =IF('Wyk2i3-Tab1 (Nauka2)'!O26<>"",IF(Firmy2!O26<>"",MIN('Wyk2i3-Tab1 (Nauka2)'!O26,Firmy2!O26),""),"") ->  | P26: =IF('Wyk2i3-Tab1 (Nauka2)'!P26<>"",IF(Firmy2!P26<>"",MIN('Wyk2i3-Tab1 (Nauka2)'!P26,Firmy2!P26),""),"") ->  | Q26: =IF('Wyk2i3-Tab1 (Nauka2)'!Q26<>"",IF(Firmy2!Q26<>"",MIN('Wyk2i3-Tab1 (Nauka2)'!Q26,Firmy2!Q26),""),"") ->  | R26: =IF('Wyk2i3-Tab1 (Nauka2)'!R26<>"",IF(Firmy2!R26<>"",MIN('Wyk2i3-Tab1 (Nauka2)'!R26,Firmy2!R26),""),"") -> 
D29: 9 | E29: 8 | F29: 7-6 | G29: 5-4 | H29: 3-2 | I29: 1

Sheet Nauka-FirmyBrakWsparciaNauki
B1: Jednostki naukowe+Firmy
B2: Branża odbiorcy Rodzaj działalności odbiorcy . | C2: 1. Wszystkie sektory lub sektor nieistotny | D2: 2. Administracja państwowa, w tym służby mundurowe | E2: 3. Bankowość, ubezpieczenia, inne usługi finansowe | F2: 4. Budownictwo | G2: 5. Dostawy elektryczności, gazu, ciepła i wody | H2: 6. Edukacja | I2: 7. Gospodarstwa domowe | J2: 8. Handel | K2: 9. Media | L2: 10. Produkcja przemysłowa | M2: 11. Rolnictwo | N2: 12. Służba zdrowia | O2: 13. Telekomunikacja, IT | P2: 14. Transport | Q2: 15. Usługi | R2: 16. Inni odbiorcy końcowi
B3: A. Produkcja sprzętu IT | C3: =IF(Firmy2!C3<>"",IF('Wyk2i3-Tab1 (Nauka2)'!C3="",Firmy2!C3,""),"") -> 4 | D3: =IF(Firmy2!D3<>"",IF('Wyk2i3-Tab1 (Nauka2)'!D3="",Firmy2!D3,""),"") ->  | E3: =IF(Firmy2!E3<>"",IF('Wyk2i3-Tab1 (Nauka2)'!E3="",Firmy2!E3,""),"") -> 2 | F3: =IF(Firmy2!F3<>"",IF('Wyk2i3-Tab1 (Nauka2)'!F3="",Firmy2!F3,""),"") ->  | G3: =IF(Firmy2!G3<>"",IF('Wyk2i3-Tab1 (Nauka2)'!G3="",Firmy2!G3,""),"") ->  | H3: =IF(Firmy2!H3<>"",IF('Wyk2i3-Tab1 (Nauka2)'!H3="",Firmy2!H3,""),"") ->  | I3: =IF(Firmy2!I3<>"",IF('Wyk2i3-Tab1 (Nauka2)'!I3="",Firmy2!I3,""),"") -> 1 | J3: =IF(Firmy2!J3<>"",IF('Wyk2i3-Tab1 (Nauka2)'!J3="",Firmy2!J3,""),"") -> 1 | K3: =IF(Firmy2!K3<>"",IF('Wyk2i3-Tab1 (Nauka2)'!K3="",Firmy2!K3,""),"") ->  | L3: =IF(Firmy2!L3<>"",IF('Wyk2i3-Tab1 (Nauka2)'!L3="",Firmy2!L3,""),"") ->  | M3: =IF(Firmy2!M3<>"",IF('Wyk2i3-Tab1 (Nauka2)'!M3="",Firmy2!M3,""),"") ->  | N3: =IF(Firmy2!N3<>"",IF('Wyk2i3-Tab1 (Nauka2)'!N3="",Firmy2!N3,""),"") ->  | O3: =IF(Firmy2!O3<>"",IF('Wyk2i3-Tab1 (Nauka2)'!O3="",Firmy2!O3,""),"") ->  | P3: =IF(Firmy2!P3<>"",IF('Wyk2i3-Tab1 (Nauka2)'!P3="",Firmy2!P3,""),"") ->  | Q3: =IF(Firmy2!Q3<>"",IF('Wyk2i3-Tab1 (Nauka2)'!Q3="",Firmy2!Q3,""),"") ->  | R3: =IF(Firmy2!R3<>"",IF('Wyk2i3-Tab1 (Nauka2)'!R3="",Firmy2!R3,""),"") ->  | T3: =COUNTIF(C3:R3,"<>") -> 16
B4: B. Produkcja sprzętu telekomunikacyjnego | C4: =IF(Firmy2!C4<>"",IF('Wyk2i3-Tab1 (Nauka2)'!C4="",Firmy2!C4,""),"") ->  | D4: =IF(Firmy2!D4<>"",IF('Wyk2i3-Tab1 (Nauka2)'!D4="",Firmy2!D4,""),"") ->  | E4: =IF(Firmy2!E4<>"",IF('Wyk2i3-Tab1 (Nauka2)'!E4="",Firmy2!E4,""),"") -> 1 | F4: =IF(Firmy2!F4<>"",IF('Wyk2i3-Tab1 (Nauka2)'!F4="",Firmy2!F4,""),"") ->  | G4: =IF(Firmy2!G4<>"",IF('Wyk2i3-Tab1 (Nauka2)'!G4="",Firmy2!G4,""),"") -> 1 | H4: =IF(Firmy2!H4<>"",IF('Wyk2i3-Tab1 (Nauka2)'!H4="",Firmy2!H4,""),"") ->  | I4: =IF(Firmy2!I4<>"",IF('Wyk2i3-Tab1 (Nauka2)'!I4="",Firmy2!I4,""),"") -> 1 | J4: =IF(Firmy2!J4<>"",IF('Wyk2i3-Tab1 (Nauka2)'!J4="",Firmy2!J4,""),"") -> 1 | K4: =IF(Firmy2!K4<>"",IF('Wyk2i3-Tab1 (Nauka2)'!K4="",Firmy2!K4,""),"") ->  | L4: =IF(Firmy2!L4<>"",IF('Wyk2i3-Tab1 (Nauka2)'!L4="",Firmy2!L4,""),"") ->  | M4: =IF(Firmy2!M4<>"",IF('Wyk2i3-Tab1 (Nauka2)'!M4="",Firmy2!M4,""),"") ->  | N4: =IF(Firmy2!N4<>"",IF('Wyk2i3-Tab1 (Nauka2)'!N4="",Firmy2!N4,""),"") ->  | O4: =IF(Firmy2!O4<>"",IF('Wyk2i3-Tab1 (Nauka2)'!O4="",Firmy2!O4,""),"") ->  | P4: =IF(Firmy2!P4<>"",IF('Wyk2i3-Tab1 (Nauka2)'!P4="",Firmy2!P4,""),"") ->  | Q4: =IF(Firmy2!Q4<>"",IF('Wyk2i3-Tab1 (Nauka2)'!Q4="",Firmy2!Q4,""),"") -> 1 | R4: =IF(Firmy2!R4<>"",IF('Wyk2i3-Tab1 (Nauka2)'!R4="",Firmy2!R4,""),"") -> 
B5: C. Produkcja oprogramowania, w tym na zamówienie | C5: =IF(Firmy2!C5<>"",IF('Wyk2i3-Tab1 (Nauka2)'!C5="",Firmy2!C5,""),"") ->  | D5: =IF(Firmy2!D5<>"",IF('Wyk2i3-Tab1 (Nauka2)'!D5="",Firmy2!D5,""),"") ->  | E5: =IF(Firmy2!E5<>"",IF('Wyk2i3-Tab1 (Nauka2)'!E5="",Firmy2!E5,""),"") ->  | F5: =IF(Firmy2!F5<>"",IF('Wyk2i3-Tab1 (Nauka2)'!F5="",Firmy2!F5,""),"") -> 4 | G5: =IF(Firmy2!G5<>"",IF('Wyk2i3-Tab1 (Nauka2)'!G5="",Firmy2!G5,""),"") ->  | H5: =IF(Firmy2!H5<>"",IF('Wyk2i3-Tab1 (Nauka2)'!H5="",Firmy2!H5,""),"") ->  | I5: =IF(Firmy2!I5<>"",IF('Wyk2i3-Tab1 (Nauka2)'!I5="",Firmy2!I5,""),"") ->  | J5: =IF(Firmy2!J5<>"",IF('Wyk2i3-Tab1 (Nauka2)'!J5="",Firmy2!J5,""),"") ->  | K5: =IF(Firmy2!K5<>"",IF('Wyk2i3-Tab1 (Nauka2)'!K5="",Firmy2!K5,""),"") ->  | L5: =IF(Firmy2!L5<>"",IF('Wyk2i3-Tab1 (Nauka2)'!L5="",Firmy2!L5,""),"") ->  | M5: =IF(Firmy2!M5<>"",IF('Wyk2i3-Tab1 (Nauka2)'!M5="",Firmy2!M5,""),"") ->  | N5: =IF(Firmy2!N5<>"",IF('Wyk2i3-Tab1 (Nauka2)'!N5="",Firmy2!N5,""),"") ->  | O5: =IF(Firmy2!O5<>"",IF('Wyk2i3-Tab1 (Nauka2)'!O5="",Firmy2!O5,""),"") ->  | P5: =IF(Firmy2!P5<>"",IF('Wyk2i3-Tab1 (Nauka2)'!P5="",Firmy2!P5,""),"") ->  | Q5: =IF(Firmy2!Q5<>"",IF('Wyk2i3-Tab1 (Nauka2)'!Q5="",Firmy2!Q5,""),"") ->  | R5: =IF(Firmy2!R5<>"",IF('Wyk2i3-Tab1 (Nauka2)'!R5="",Firmy2!R5,""),"") -> 
B6: D. Instalacje sprzętu | C6: =IF(Firmy2!C6<>"",IF('Wyk2i3-Tab1 (Nauka2)'!C6="",Firmy2!C6,""),"") ->  | D6: =IF(Firmy2!D6<>"",IF('Wyk2i3-Tab1 (Nauka2)'!D6="",Firmy2!D6,""),"") ->  | E6: =IF(Firmy2!E6<>"",IF('Wyk2i3-Tab1 (Nauka2)'!E6="",Firmy2!E6,""),"") -> 4 | F6: =IF(Firmy2!F6<>"",IF('Wyk2i3-Tab1 (Nauka2)'!F6="",Firmy2!F6,""),"") -> 3 | G6: =IF(Firmy2!G6<>"",IF('Wyk2i3-Tab1 (Nauka2)'!G6="",Firmy2!G6,""),"") ->  | H6: =IF(Firmy2!H6<>"",IF('Wyk2i3-Tab1 (Nauka2)'!H6="",Firmy2!H6,""),"") ->  | I6: =IF(Firmy2!I6<>"",IF('Wyk2i3-Tab1 (Nauka2)'!I6="",Firmy2!I6,""),"") ->  | J6: =IF(Firmy2!J6<>"",IF('Wyk2i3-Tab1 (Nauka2)'!J6="",Firmy2!J6,""),"") -> 5 | K6: =IF(Firmy2!K6<>"",IF('Wyk2i3-Tab1 (Nauka2)'!K6="",Firmy2!K6,""),"") ->  | L6: =IF(Firmy2!L6<>"",IF('Wyk2i3-Tab1 (Nauka2)'!L6="",Firmy2!L6,""),"") ->  | M6: =IF(Firmy2!M6<>"",IF('Wyk2i3-Tab1 (Nauka2)'!M6="",Firmy2!M6,""),"") ->  | N6: =IF(Firmy2!N6<>"",IF('Wyk2i3-Tab1 (Nauka2)'!N6="",Firmy2!N6,""),"") ->  | O6: =IF(Firmy2!O6<>"",IF('Wyk2i3-Tab1 (Nauka2)'!O6="",Firmy2!O6,""),"") ->  | P6: =IF(Firmy2!P6<>"",IF('Wyk2i3-Tab1 (Nauka2)'!P6="",Firmy2!P6,""),"") -> 2 | Q6: =IF(Firmy2!Q6<>"",IF('Wyk2i3-Tab1 (Nauka2)'!Q6="",Firmy2!Q6,""),"") -> 5 | R6: =IF(Firmy2!R6<>"",IF('Wyk2i3-Tab1 (Nauka2)'!R6="",Firmy2!R6,""),"") -> 2
B7: E. Integracja systemów IT | C7: =IF(Firmy2!C7<>"",IF('Wyk2i3-Tab1 (Nauka2)'!C7="",Firmy2!C7,""),"") ->  | D7: =IF(Firmy2!D7<>"",IF('Wyk2i3-Tab1 (Nauka2)'!D7="",Firmy2!D7,""),"") ->  | E7: =IF(Firmy2!E7<>"",IF('Wyk2i3-Tab1 (Nauka2)'!E7="",Firmy2!E7,""),"") -> 5 | F7: =IF(Firmy2!F7<>"",IF('Wyk2i3-Tab1 (Nauka2)'!F7="",Firmy2!F7,""),"") -> 5 | G7: =IF(Firmy2!G7<>"",IF('Wyk2i3-Tab1 (Nauka2)'!G7="",Firmy2!G7,""),"") ->  | H7: =IF(Firmy2!H7<>"",IF('Wyk2i3-Tab1 (Nauka2)'!H7="",Firmy2!H7,""),"") ->  | I7: =IF(Firmy2!I7<>"",IF('Wyk2i3-Tab1 (Nauka2)'!I7="",Firmy2!I7,""),"") ->  | J7: =IF(Firmy2!J7<>"",IF('Wyk2i3-Tab1 (Nauka2)'!J7="",Firmy2!J7,""),"") ->  | K7: =IF(Firmy2!K7<>"",IF('Wyk2i3-Tab1 (Nauka2)'!K7="",Firmy2!K7,""),"") -> 2 | L7: =IF(Firmy2!L7<>"",IF('Wyk2i3-Tab1 (Nauka2)'!L7="",Firmy2!L7,""),"") ->  | M7: =IF(Firmy2!M7<>"",IF('Wyk2i3-Tab1 (Nauka2)'!M7="",Firmy2!M7,""),"") ->  | N7: =IF(Firmy2!N7<>"",IF('Wyk2i3-Tab1 (Nauka2)'!N7="",Firmy2!N7,""),"") ->  | O7: =IF(Firmy2!O7<>"",IF('Wyk2i3-Tab1 (Nauka2)'!O7="",Firmy2!O7,""),"") ->  | P7: =IF(Firmy2!P7<>"",IF('Wyk2i3-Tab1 (Nauka2)'!P7="",Firmy2!P7,""),"") ->  | Q7: =IF(Firmy2!Q7<>"",IF('Wyk2i3-Tab1 (Nauka2)'!Q7="",Firmy2!Q7,""),"") ->  | R7: =IF(Firmy2!R7<>"",IF('Wyk2i3-Tab1 (Nauka2)'!R7="",Firmy2!R7,""),"") -> 3
B8: F. Wdrożenia oprogramowania | C8: =IF(Firmy2!C8<>"",IF('Wyk2i3-Tab1 (Nauka2)'!C8="",Firmy2!C8,""),"") ->  | D8: =IF(Firmy2!D8<>"",IF('Wyk2i3-Tab1 (Nauka2)'!D8="",Firmy2!D8,""),"") ->  | E8: =IF(Firmy2!E8<>"",IF('Wyk2i3-Tab1 (Nauka2)'!E8="",Firmy2!E8,""),"") ->  | F8: =IF(Firmy2!F8<>"",IF('Wyk2i3-Tab1 (Nauka2)'!F8="",Firmy2!F8,""),"") -> 6 | G8: =IF(Firmy2!G8<>"",IF('Wyk2i3-Tab1 (Nauka2)'!G8="",Firmy2!G8,""),"") ->  | H8: =IF(Firmy2!H8<>"",IF('Wyk2i3-Tab1 (Nauka2)'!H8="",Firmy2!H8,""),"") ->  | I8: =IF(Firmy2!I8<>"",IF('Wyk2i3-Tab1 (Nauka2)'!I8="",Firmy2!I8,""),"") ->  | J8: =IF(Firmy2!J8<>"",IF('Wyk2i3-Tab1 (Nauka2)'!J8="",Firmy2!J8,""),"") ->  | K8: =IF(Firmy2!K8<>"",IF('Wyk2i3-Tab1 (Nauka2)'!K8="",Firmy2!K8,""),"") -> 3 | L8: =IF(Firmy2!L8<>"",IF('Wyk2i3-Tab1 (Nauka2)'!L8="",Firmy2!L8,""),"") ->  | M8: =IF(Firmy2!M8<>"",IF('Wyk2i3-Tab1 (Nauka2)'!M8="",Firmy2!M8,""),"") ->  | N8: =IF(Firmy2!N8<>"",IF('Wyk2i3-Tab1 (Nauka2)'!N8="",Firmy2!N8,""),"") ->  | O8: =IF(Firmy2!O8<>"",IF('Wyk2i3-Tab1 (Nauka2)'!O8="",Firmy2!O8,""),"") ->  | P8: =IF(Firmy2!P8<>"",IF('Wyk2i3-Tab1 (Nauka2)'!P8="",Firmy2!P8,""),"") ->  | Q8: =IF(Firmy2!Q8<>"",IF('Wyk2i3-Tab1 (Nauka2)'!Q8="",Firmy2!Q8,""),"") ->  | R8: =IF(Firmy2!R8<>"",IF('Wyk2i3-Tab1 (Nauka2)'!R8="",Firmy2!R8,""),"") -> 
B9: G. Projektowanie, budowa i instalacje sieci IT | C9: =IF(Firmy2!C9<>"",IF('Wyk2i3-Tab1 (Nauka2)'!C9="",Firmy2!C9,""),"") ->  | D9: =IF(Firmy2!D9<>"",IF('Wyk2i3-Tab1 (Nauka2)'!D9="",Firmy2!D9,""),"") ->  | E9: =IF(Firmy2!E9<>"",IF('Wyk2i3-Tab1 (Nauka2)'!E9="",Firmy2!E9,""),"") ->  | F9: =IF(Firmy2!F9<>"",IF('Wyk2i3-Tab1 (Nauka2)'!F9="",Firmy2!F9,""),"") -> 4 | G9: =IF(Firmy2!G9<>"",IF('Wyk2i3-Tab1 (Nauka2)'!G9="",Firmy2!G9,""),"") ->  | H9: =IF(Firmy2!H9<>"",IF('Wyk2i3-Tab1 (Nauka2)'!H9="",Firmy2!H9,""),"") ->  | I9: =IF(Firmy2!I9<>"",IF('Wyk2i3-Tab1 (Nauka2)'!I9="",Firmy2!I9,""),"") ->  | J9: =IF(Firmy2!J9<>"",IF('Wyk2i3-Tab1 (Nauka2)'!J9="",Firmy2!J9,""),"") -> 5 | K9: =IF(Firmy2!K9<>"",IF('Wyk2i3-Tab1 (Nauka2)'!K9="",Firmy2!K9,""),"") ->  | L9: =IF(Firmy2!L9<>"",IF('Wyk2i3-Tab1 (Nauka2)'!L9="",Firmy2!L9,""),"") ->  | M9: =IF(Firmy2!M9<>"",IF('Wyk2i3-Tab1 (Nauka2)'!M9="",Firmy2!M9,""),"") ->  | N9: =IF(Firmy2!N9<>"",IF('Wyk2i3-Tab1 (Nauka2)'!N9="",Firmy2!N9,""),"") ->  | O9: =IF(Firmy2!O9<>"",IF('Wyk2i3-Tab1 (Nauka2)'!O9="",Firmy2!O9,""),"") ->  | P9: =IF(Firmy2!P9<>"",IF('Wyk2i3-Tab1 (Nauka2)'!P9="",Firmy2!P9,""),"") ->  | Q9: =IF(Firmy2!Q9<>"",IF('Wyk2i3-Tab1 (Nauka2)'!Q9="",Firmy2!Q9,""),"") ->  | R9: =IF(Firmy2!R9<>"",IF('Wyk2i3-Tab1 (Nauka2)'!R9="",Firmy2!R9,""),"") -> 1
B10: H. Szkolenia IT | C10: =IF(Firmy2!C10<>"",IF('Wyk2i3-Tab1 (Nauka2)'!C10="",Firmy2!C10,""),"") ->  | D10: =IF(Firmy2!D10<>"",IF('Wyk2i3-Tab1 (Nauka2)'!D10="",Firmy2!D10,""),"") ->  | E10: =IF(Firmy2!E10<>"",IF('Wyk2i3-Tab1 (Nauka2)'!E10="",Firmy2!E10,""),"") -> 4 | F10: =IF(Firmy2!F10<>"",IF('Wyk2i3-Tab1 (Nauka2)'!F10="",Firmy2!F10,""),"") -> 2 | G10: =IF(Firmy2!G10<>"",IF('Wyk2i3-Tab1 (Nauka2)'!G10="",Firmy2!G10,""),"") ->  | H10: =IF(Firmy2!H10<>"",IF('Wyk2i3-Tab1 (Nauka2)'!H10="",Firmy2!H10,""),"") ->  | I10: =IF(Firmy2!I10<>"",IF('Wyk2i3-Tab1 (Nauka2)'!I10="",Firmy2!I10,""),"") ->  | J10: =IF(Firmy2!J10<>"",IF('Wyk2i3-Tab1 (Nauka2)'!J10="",Firmy2!J10,""),"") -> 4 | K10: =IF(Firmy2!K10<>"",IF('Wyk2i3-Tab1 (Nauka2)'!K10="",Firmy2!K10,""),"") -> 1 | L10: =IF(Firmy2!L10<>"",IF('Wyk2i3-Tab1 (Nauka2)'!L10="",Firmy2!L10,""),"") ->  | M10: =IF(Firmy2!M10<>"",IF('Wyk2i3-Tab1 (Nauka2)'!M10="",Firmy2!M10,""),"") -> 1 | N10: =IF(Firmy2!N10<>"",IF('Wyk2i3-Tab1 (Nauka2)'!N10="",Firmy2!N10,""),"") ->  | O10: =IF(Firmy2!O10<>"",IF('Wyk2i3-Tab1 (Nauka2)'!O10="",Firmy2!O10,""),"") ->  | P10: =IF(Firmy2!P10<>"",IF('Wyk2i3-Tab1 (Nauka2)'!P10="",Firmy2!P10,""),"") -> 1 | Q10: =IF(Firmy2!Q10<>"",IF('Wyk2i3-Tab1 (Nauka2)'!Q10="",Firmy2!Q10,""),"") ->  | R10: =IF(Firmy2!R10<>"",IF('Wyk2i3-Tab1 (Nauka2)'!R10="",Firmy2!R10,""),"") -> 2
B11: I. Doradztwo IT | C11: =IF(Firmy2!C11<>"",IF('Wyk2i3-Tab1 (Nauka2)'!C11="",Firmy2!C11,""),"") ->  | D11: =IF(Firmy2!D11<>"",IF('Wyk2i3-Tab1 (Nauka2)'!D11="",Firmy2!D11,""),"") ->  | E11: =IF(Firmy2!E11<>"",IF('Wyk2i3-Tab1 (Nauka2)'!E11="",Firmy2!E11,""),"") ->  | F11: =IF(Firmy2!F11<>"",IF('Wyk2i3-Tab1 (Nauka2)'!F11="",Firmy2!F11,""),"") ->  | G11: =IF(Firmy2!G11<>"",IF('Wyk2i3-Tab1 (Nauka2)'!G11="",Firmy2!G11,""),"") ->  | H11: =IF(Firmy2!H11<>"",IF('Wyk2i3-Tab1 (Nauka2)'!H11="",Firmy2!H11,""),"") ->  | I11: =IF(Firmy2!I11<>"",IF('Wyk2i3-Tab1 (Nauka2)'!I11="",Firmy2!I11,""),"") -> 1 | J11: =IF(Firmy2!J11<>"",IF('Wyk2i3-Tab1 (Nauka2)'!J11="",Firmy2!J11,""),"") ->  | K11: =IF(Firmy2!K11<>"",IF('Wyk2i3-Tab1 (Nauka2)'!K11="",Firmy2!K11,""),"") ->  | L11: =IF(Firmy2!L11<>"",IF('Wyk2i3-Tab1 (Nauka2)'!L11="",Firmy2!L11,""),"") ->  | M11: =IF(Firmy2!M11<>"",IF('Wyk2i3-Tab1 (Nauka2)'!M11="",Firmy2!M11,""),"") ->  | N11: =IF(Firmy2!N11<>"",IF('Wyk2i3-Tab1 (Nauka2)'!N11="",Firmy2!N11,""),"") ->  | O11: =IF(Firmy2!O11<>"",IF('Wyk2i3-Tab1 (Nauka2)'!O11="",Firmy2!O11,""),"") ->  | P11: =IF(Firmy2!P11<>"",IF('Wyk2i3-Tab1 (Nauka2)'!P11="",Firmy2!P11,""),"") ->  | Q11: =IF(Firmy2!Q11<>"",IF('Wyk2i3-Tab1 (Nauka2)'!Q11="",Firmy2!Q11,""),"") ->  | R11: =IF(Firmy2!R11<>"",IF('Wyk2i3-Tab1 (Nauka2)'!R11="",Firmy2!R11,""),"") -> 3
B12: J. Outsourcing IT, wyłączając przetwarzanie danych | C12: =IF(Firmy2!C12<>"",IF('Wyk2i3-Tab1 (Nauka2)'!C12="",Firmy2!C12,""),"") -> 23 | D12: =IF(Firmy2!D12<>"",IF('Wyk2i3-Tab1 (Nauka2)'!D12="",Firmy2!D12,""),"") ->  | E12: =IF(Firmy2!E12<>"",IF('Wyk2i3-Tab1 (Nauka2)'!E12="",Firmy2!E12,""),"") ->  | F12: =IF(Firmy2!F12<>"",IF('Wyk2i3-Tab1 (Nauka2)'!F12="",Firmy2!F12,""),"") -> 1 | G12: =IF(Firmy2!G12<>"",IF('Wyk2i3-Tab1 (Nauka2)'!G12="",Firmy2!G12,""),"") ->  | H12: =IF(Firmy2!H12<>"",IF('Wyk2i3-Tab1 (Nauka2)'!H12="",Firmy2!H12,""),"") ->  | I12: =IF(Firmy2!I12<>"",IF('Wyk2i3-Tab1 (Nauka2)'!I12="",Firmy2!I12,""),"") -> 1 | J12: =IF(Firmy2!J12<>"",IF('Wyk2i3-Tab1 (Nauka2)'!J12="",Firmy2!J12,""),"") -> 4 | K12: =IF(Firmy2!K12<>"",IF('Wyk2i3-Tab1 (Nauka2)'!K12="",Firmy2!K12,""),"") ->  | L12: =IF(Firmy2!L12<>"",IF('Wyk2i3-Tab1 (Nauka2)'!L12="",Firmy2!L12,""),"") ->  | M12: =IF(Firmy2!M12<>"",IF('Wyk2i3-Tab1 (Nauka2)'!M12="",Firmy2!M12,""),"") ->  | N12: =IF(Firmy2!N12<>"",IF('Wyk2i3-Tab1 (Nauka2)'!N12="",Firmy2!N12,""),"") -> 1 | O12: =IF(Firmy2!O12<>"",IF('Wyk2i3-Tab1 (Nauka2)'!O12="",Firmy2!O12,""),"") ->  | P12: =IF(Firmy2!P12<>"",IF('Wyk2i3-Tab1 (Nauka2)'!P12="",Firmy2!P12,""),"") -> 1 | Q12: =IF(Firmy2!Q12<>"",IF('Wyk2i3-Tab1 (Nauka2)'!Q12="",Firmy2!Q12,""),"") -> 3 | R12: =IF(Firmy2!R12<>"",IF('Wyk2i3-Tab1 (Nauka2)'!R12="",Firmy2!R12,""),"") -> 3
B13: K. Outsourcing przetwarzania danych | C13: =IF(Firmy2!C13<>"",IF('Wyk2i3-Tab1 (Nauka2)'!C13="",Firmy2!C13,""),"") ->  | D13: =IF(Firmy2!D13<>"",IF('Wyk2i3-Tab1 (Nauka2)'!D13="",Firmy2!D13,""),"") ->  | E13: =IF(Firmy2!E13<>"",IF('Wyk2i3-Tab1 (Nauka2)'!E13="",Firmy2!E13,""),"") ->  | F13: =IF(Firmy2!F13<>"",IF('Wyk2i3-Tab1 (Nauka2)'!F13="",Firmy2!F13,""),"") -> 2 | G13: =IF(Firmy2!G13<>"",IF('Wyk2i3-Tab1 (Nauka2)'!G13="",Firmy2!G13,""),"") ->  | H13: =IF(Firmy2!H13<>"",IF('Wyk2i3-Tab1 (Nauka2)'!H13="",Firmy2!H13,""),"") ->  | I13: =IF(Firmy2!I13<>"",IF('Wyk2i3-Tab1 (Nauka2)'!I13="",Firmy2!I13,""),"") -> 1 | J13: =IF(Firmy2!J13<>"",IF('Wyk2i3-Tab1 (Nauka2)'!J13="",Firmy2!J13,""),"") -> 4 | K13: =IF(Firmy2!K13<>"",IF('Wyk2i3-Tab1 (Nauka2)'!K13="",Firmy2!K13,""),"") ->  | L13: =IF(Firmy2!L13<>"",IF('Wyk2i3-Tab1 (Nauka2)'!L13="",Firmy2!L13,""),"") ->  | M13: =IF(Firmy2!M13<>"",IF('Wyk2i3-Tab1 (Nauka2)'!M13="",Firmy2!M13,""),"") ->  | N13: =IF(Firmy2!N13<>"",IF('Wyk2i3-Tab1 (Nauka2)'!N13="",Firmy2!N13,""),"") -> 1 | O13: =IF(Firmy2!O13<>"",IF('Wyk2i3-Tab1 (Nauka2)'!O13="",Firmy2!O13,""),"") ->  | P13: =IF(Firmy2!P13<>"",IF('Wyk2i3-Tab1 (Nauka2)'!P13="",Firmy2!P13,""),"") -> 2 | Q13: =IF(Firmy2!Q13<>"",IF('Wyk2i3-Tab1 (Nauka2)'!Q13="",Firmy2!Q13,""),"") ->  | R13: =IF(Firmy2!R13<>"",IF('Wyk2i3-Tab1 (Nauka2)'!R13="",Firmy2!R13,""),"") -> 1
B14: L. Usługi serwisowe IT | C14: =IF(Firmy2!C14<>"",IF('Wyk2i3-Tab1 (Nauka2)'!C14="",Firmy2!C14,""),"") -> 46 | D14: =IF(Firmy2!D14<>"",IF('Wyk2i3-Tab1 (Nauka2)'!D14="",Firmy2!D14,""),"") -> 2 | E14: =IF(Firmy2!E14<>"",IF('Wyk2i3-Tab1 (Nauka2)'!E14="",Firmy2!E14,""),"") -> 6 | F14: =IF(Firmy2!F14<>"",IF('Wyk2i3-Tab1 (Nauka2)'!F14="",Firmy2!F14,""),"") -> 2 | G14: =IF(Firmy2!G14<>"",IF('Wyk2i3-Tab1 (Nauka2)'!G14="",Firmy2!G14,""),"") -> 2 | H14: =IF(Firmy2!H14<>"",IF('Wyk2i3-Tab1 (Nauka2)'!H14="",Firmy2!H14,""),"") ->  | I14: =IF(Firmy2!I14<>"",IF('Wyk2i3-Tab1 (Nauka2)'!I14="",Firmy2!I14,""),"") -> 2 | J14: =IF(Firmy2!J14<>"",IF('Wyk2i3-Tab1 (Nauka2)'!J14="",Firmy2!J14,""),"") -> 5 | K14: =IF(Firmy2!K14<>"",IF('Wyk2i3-Tab1 (Nauka2)'!K14="",Firmy2!K14,""),"") -> 1 | L14: =IF(Firmy2!L14<>"",IF('Wyk2i3-Tab1 (Nauka2)'!L14="",Firmy2!L14,""),"") -> 3 | M14: =IF(Firmy2!M14<>"",IF('Wyk2i3-Tab1 (Nauka2)'!M14="",Firmy2!M14,""),"") ->  | N14: =IF(Firmy2!N14<>"",IF('Wyk2i3-Tab1 (Nauka2)'!N14="",Firmy2!N14,""),"") -> 3 | O14: =IF(Firmy2!O14<>"",IF('Wyk2i3-Tab1 (Nauka2)'!O14="",Firmy2!O14,""),"") ->  | P14: =IF(Firmy2!P14<>"",IF('Wyk2i3-Tab1 (Nauka2)'!P14="",Firmy2!P14,""),"") -> 1 | Q14: =IF(Firmy2!Q14<>"",IF('Wyk2i3-Tab1 (Nauka2)'!Q14="",Firmy2!Q14,""),"") -> 5 | R14: =IF(Firmy2!R14<>"",IF('Wyk2i3-Tab1 (Nauka2)'!R14="",Firmy2!R14,""),"") -> 5
B15: M. Inne usługi IT | C15: =IF(Firmy2!C15<>"",IF('Wyk2i3-Tab1 (Nauka2)'!C15="",Firmy2!C15,""),"") ->  | D15: =IF(Firmy2!D15<>"",IF('Wyk2i3-Tab1 (Nauka2)'!D15="",Firmy2!D15,""),"") ->  | E15: =IF(Firmy2!E15<>"",IF('Wyk2i3-Tab1 (Nauka2)'!E15="",Firmy2!E15,""),"") ->  | F15: =IF(Firmy2!F15<>"",IF('Wyk2i3-Tab1 (Nauka2)'!F15="",Firmy2!F15,""),"") -> 2 | G15: =IF(Firmy2!G15<>"",IF('Wyk2i3-Tab1 (Nauka2)'!G15="",Firmy2!G15,""),"") -> 1 | H15: =IF(Firmy2!H15<>"",IF('Wyk2i3-Tab1 (Nauka2)'!H15="",Firmy2!H15,""),"") ->  | I15: =IF(Firmy2!I15<>"",IF('Wyk2i3-Tab1 (Nauka2)'!I15="",Firmy2!I15,""),"") -> 1 | J15: =IF(Firmy2!J15<>"",IF('Wyk2i3-Tab1 (Nauka2)'!J15="",Firmy2!J15,""),"") -> 4 | K15: =IF(Firmy2!K15<>"",IF('Wyk2i3-Tab1 (Nauka2)'!K15="",Firmy2!K15,""),"") ->  | L15: =IF(Firmy2!L15<>"",IF('Wyk2i3-Tab1 (Nauka2)'!L15="",Firmy2!L15,""),"") -> 3 | M15: =IF(Firmy2!M15<>"",IF('Wyk2i3-Tab1 (Nauka2)'!M15="",Firmy2!M15,""),"") ->  | N15: =IF(Firmy2!N15<>"",IF('Wyk2i3-Tab1 (Nauka2)'!N15="",Firmy2!N15,""),"") ->  | O15: =IF(Firmy2!O15<>"",IF('Wyk2i3-Tab1 (Nauka2)'!O15="",Firmy2!O15,""),"") ->  | P15: =IF(Firmy2!P15<>"",IF('Wyk2i3-Tab1 (Nauka2)'!P15="",Firmy2!P15,""),"") -> 1 | Q15: =IF(Firmy2!Q15<>"",IF('Wyk2i3-Tab1 (Nauka2)'!Q15="",Firmy2!Q15,""),"") ->  | R15: =IF(Firmy2!R15<>"",IF('Wyk2i3-Tab1 (Nauka2)'!R15="",Firmy2!R15,""),"") -> 3
B16: N. Instalacje i uruchamianie central telekomunikacyjnych | C16: =IF(Firmy2!C16<>"",IF('Wyk2i3-Tab1 (Nauka2)'!C16="",Firmy2!C16,""),"") -> 8 | D16: =IF(Firmy2!D16<>"",IF('Wyk2i3-Tab1 (Nauka2)'!D16="",Firmy2!D16,""),"") -> 1 | E16: =IF(Firmy2!E16<>"",IF('Wyk2i3-Tab1 (Nauka2)'!E16="",Firmy2!E16,""),"") ->  | F16: =IF(Firmy2!F16<>"",IF('Wyk2i3-Tab1 (Nauka2)'!F16="",Firmy2!F16,""),"") -> 1 | G16: =IF(Firmy2!G16<>"",IF('Wyk2i3-Tab1 (Nauka2)'!G16="",Firmy2!G16,""),"") ->  | H16: =IF(Firmy2!H16<>"",IF('Wyk2i3-Tab1 (Nauka2)'!H16="",Firmy2!H16,""),"") ->  | I16: =IF(Firmy2!I16<>"",IF('Wyk2i3-Tab1 (Nauka2)'!I16="",Firmy2!I16,""),"") ->  | J16: =IF(Firmy2!J16<>"",IF('Wyk2i3-Tab1 (Nauka2)'!J16="",Firmy2!J16,""),"") ->  | K16: =IF(Firmy2!K16<>"",IF('Wyk2i3-Tab1 (Nauka2)'!K16="",Firmy2!K16,""),"") ->  | L16: =IF(Firmy2!L16<>"",IF('Wyk2i3-Tab1 (Nauka2)'!L16="",Firmy2!L16,""),"") ->  | M16: =IF(Firmy2!M16<>"",IF('Wyk2i3-Tab1 (Nauka2)'!M16="",Firmy2!M16,""),"") ->  | N16: =IF(Firmy2!N16<>"",IF('Wyk2i3-Tab1 (Nauka2)'!N16="",Firmy2!N16,""),"") -> 1 | O16: =IF(Firmy2!O16<>"",IF('Wyk2i3-Tab1 (Nauka2)'!O16="",Firmy2!O16,""),"") ->  | P16: =IF(Firmy2!P16<>"",IF('Wyk2i3-Tab1 (Nauka2)'!P16="",Firmy2!P16,""),"") ->  | Q16: =IF(Firmy2!Q16<>"",IF('Wyk2i3-Tab1 (Nauka2)'!Q16="",Firmy2!Q16,""),"") ->  | R16: =IF(Firmy2!R16<>"",IF('Wyk2i3-Tab1 (Nauka2)'!R16="",Firmy2!R16,""),"") -> 1
B17: O. Projekt., budowa, uruchamianie i utrzym. sieci telekom. | C17: =IF(Firmy2!C17<>"",IF('Wyk2i3-Tab1 (Nauka2)'!C17="",Firmy2!C17,""),"") ->  | D17: =IF(Firmy2!D17<>"",IF('Wyk2i3-Tab1 (Nauka2)'!D17="",Firmy2!D17,""),"") ->  | E17: =IF(Firmy2!E17<>"",IF('Wyk2i3-Tab1 (Nauka2)'!E17="",Firmy2!E17,""),"") -> 2 | F17: =IF(Firmy2!F17<>"",IF('Wyk2i3-Tab1 (Nauka2)'!F17="",Firmy2!F17,""),"") ->  | G17: =IF(Firmy2!G17<>"",IF('Wyk2i3-Tab1 (Nauka2)'!G17="",Firmy2!G17,""),"") ->  | H17: =IF(Firmy2!H17<>"",IF('Wyk2i3-Tab1 (Nauka2)'!H17="",Firmy2!H17,""),"") ->  | I17: =IF(Firmy2!I17<>"",IF('Wyk2i3-Tab1 (Nauka2)'!I17="",Firmy2!I17,""),"") -> 1 | J17: =IF(Firmy2!J17<>"",IF('Wyk2i3-Tab1 (Nauka2)'!J17="",Firmy2!J17,""),"") -> 1 | K17: =IF(Firmy2!K17<>"",IF('Wyk2i3-Tab1 (Nauka2)'!K17="",Firmy2!K17,""),"") ->  | L17: =IF(Firmy2!L17<>"",IF('Wyk2i3-Tab1 (Nauka2)'!L17="",Firmy2!L17,""),"") ->  | M17: =IF(Firmy2!M17<>"",IF('Wyk2i3-Tab1 (Nauka2)'!M17="",Firmy2!M17,""),"") ->  | N17: =IF(Firmy2!N17<>"",IF('Wyk2i3-Tab1 (Nauka2)'!N17="",Firmy2!N17,""),"") ->  | O17: =IF(Firmy2!O17<>"",IF('Wyk2i3-Tab1 (Nauka2)'!O17="",Firmy2!O17,""),"") ->  | P17: =IF(Firmy2!P17<>"",IF('Wyk2i3-Tab1 (Nauka2)'!P17="",Firmy2!P17,""),"") ->  | Q17: =IF(Firmy2!Q17<>"",IF('Wyk2i3-Tab1 (Nauka2)'!Q17="",Firmy2!Q17,""),"") ->  | R17: =IF(Firmy2!R17<>"",IF('Wyk2i3-Tab1 (Nauka2)'!R17="",Firmy2!R17,""),"") -> 2
B18: P. Usługi operatorskie TV kablowych | C18: =IF(Firmy2!C18<>"",IF('Wyk2i3-Tab1 (Nauka2)'!C18="",Firmy2!C18,""),"") ->  | D18: =IF(Firmy2!D18<>"",IF('Wyk2i3-Tab1 (Nauka2)'!D18="",Firmy2!D18,""),"") ->  | E18: =IF(Firmy2!E18<>"",IF('Wyk2i3-Tab1 (Nauka2)'!E18="",Firmy2!E18,""),"") ->  | F18: =IF(Firmy2!F18<>"",IF('Wyk2i3-Tab1 (Nauka2)'!F18="",Firmy2!F18,""),"") -> 1 | G18: =IF(Firmy2!G18<>"",IF('Wyk2i3-Tab1 (Nauka2)'!G18="",Firmy2!G18,""),"") ->  | H18: =IF(Firmy2!H18<>"",IF('Wyk2i3-Tab1 (Nauka2)'!H18="",Firmy2!H18,""),"") ->  | I18: =IF(Firmy2!I18<>"",IF('Wyk2i3-Tab1 (Nauka2)'!I18="",Firmy2!I18,""),"") ->  | J18: =IF(Firmy2!J18<>"",IF('Wyk2i3-Tab1 (Nauka2)'!J18="",Firmy2!J18,""),"") ->  | K18: =IF(Firmy2!K18<>"",IF('Wyk2i3-Tab1 (Nauka2)'!K18="",Firmy2!K18,""),"") ->  | L18: =IF(Firmy2!L18<>"",IF('Wyk2i3-Tab1 (Nauka2)'!L18="",Firmy2!L18,""),"") ->  | M18: =IF(Firmy2!M18<>"",IF('Wyk2i3-Tab1 (Nauka2)'!M18="",Firmy2!M18,""),"") ->  | N18: =IF(Firmy2!N18<>"",IF('Wyk2i3-Tab1 (Nauka2)'!N18="",Firmy2!N18,""),"") ->  | O18: =IF(Firmy2!O18<>"",IF('Wyk2i3-Tab1 (Nauka2)'!O18="",Firmy2!O18,""),"") ->  | P18: =IF(Firmy2!P18<>"",IF('Wyk2i3-Tab1 (Nauka2)'!P18="",Firmy2!P18,""),"") ->  | Q18: =IF(Firmy2!Q18<>"",IF('Wyk2i3-Tab1 (Nauka2)'!Q18="",Firmy2!Q18,""),"") ->  | R18: =IF(Firmy2!R18<>"",IF('Wyk2i3-Tab1 (Nauka2)'!R18="",Firmy2!R18,""),"") -> 
B19: Q. Usługi operatorskie transmisji danych | C19: =IF(Firmy2!C19<>"",IF('Wyk2i3-Tab1 (Nauka2)'!C19="",Firmy2!C19,""),"") ->  | D19: =IF(Firmy2!D19<>"",IF('Wyk2i3-Tab1 (Nauka2)'!D19="",Firmy2!D19,""),"") ->  | E19: =IF(Firmy2!E19<>"",IF('Wyk2i3-Tab1 (Nauka2)'!E19="",Firmy2!E19,""),"") ->  | F19: =IF(Firmy2!F19<>"",IF('Wyk2i3-Tab1 (Nauka2)'!F19="",Firmy2!F19,""),"") ->  | G19: =IF(Firmy2!G19<>"",IF('Wyk2i3-Tab1 (Nauka2)'!G19="",Firmy2!G19,""),"") ->  | H19: =IF(Firmy2!H19<>"",IF('Wyk2i3-Tab1 (Nauka2)'!H19="",Firmy2!H19,""),"") ->  | I19: =IF(Firmy2!I19<>"",IF('Wyk2i3-Tab1 (Nauka2)'!I19="",Firmy2!I19,""),"") ->  | J19: =IF(Firmy2!J19<>"",IF('Wyk2i3-Tab1 (Nauka2)'!J19="",Firmy2!J19,""),"") ->  | K19: =IF(Firmy2!K19<>"",IF('Wyk2i3-Tab1 (Nauka2)'!K19="",Firmy2!K19,""),"") ->  | L19: =IF(Firmy2!L19<>"",IF('Wyk2i3-Tab1 (Nauka2)'!L19="",Firmy2!L19,""),"") ->  | M19: =IF(Firmy2!M19<>"",IF('Wyk2i3-Tab1 (Nauka2)'!M19="",Firmy2!M19,""),"") ->  | N19: =IF(Firmy2!N19<>"",IF('Wyk2i3-Tab1 (Nauka2)'!N19="",Firmy2!N19,""),"") ->  | O19: =IF(Firmy2!O19<>"",IF('Wyk2i3-Tab1 (Nauka2)'!O19="",Firmy2!O19,""),"") ->  | P19: =IF(Firmy2!P19<>"",IF('Wyk2i3-Tab1 (Nauka2)'!P19="",Firmy2!P19,""),"") ->  | Q19: =IF(Firmy2!Q19<>"",IF('Wyk2i3-Tab1 (Nauka2)'!Q19="",Firmy2!Q19,""),"") ->  | R19: =IF(Firmy2!R19<>"",IF('Wyk2i3-Tab1 (Nauka2)'!R19="",Firmy2!R19,""),"") -> 1
B20: R. Usługi internetowe (dostępowe ISP) | C20: =IF(Firmy2!C20<>"",IF('Wyk2i3-Tab1 (Nauka2)'!C20="",Firmy2!C20,""),"") ->  | D20: =IF(Firmy2!D20<>"",IF('Wyk2i3-Tab1 (Nauka2)'!D20="",Firmy2!D20,""),"") ->  | E20: =IF(Firmy2!E20<>"",IF('Wyk2i3-Tab1 (Nauka2)'!E20="",Firmy2!E20,""),"") ->  | F20: =IF(Firmy2!F20<>"",IF('Wyk2i3-Tab1 (Nauka2)'!F20="",Firmy2!F20,""),"") ->  | G20: =IF(Firmy2!G20<>"",IF('Wyk2i3-Tab1 (Nauka2)'!G20="",Firmy2!G20,""),"") ->  | H20: =IF(Firmy2!H20<>"",IF('Wyk2i3-Tab1 (Nauka2)'!H20="",Firmy2!H20,""),"") ->  | I20: =IF(Firmy2!I20<>"",IF('Wyk2i3-Tab1 (Nauka2)'!I20="",Firmy2!I20,""),"") -> 2 | J20: =IF(Firmy2!J20<>"",IF('Wyk2i3-Tab1 (Nauka2)'!J20="",Firmy2!J20,""),"") ->  | K20: =IF(Firmy2!K20<>"",IF('Wyk2i3-Tab1 (Nauka2)'!K20="",Firmy2!K20,""),"") ->  | L20: =IF(Firmy2!L20<>"",IF('Wyk2i3-Tab1 (Nauka2)'!L20="",Firmy2!L20,""),"") ->  | M20: =IF(Firmy2!M20<>"",IF('Wyk2i3-Tab1 (Nauka2)'!M20="",Firmy2!M20,""),"") ->  | N20: =IF(Firmy2!N20<>"",IF('Wyk2i3-Tab1 (Nauka2)'!N20="",Firmy2!N20,""),"") ->  | O20: =IF(Firmy2!O20<>"",IF('Wyk2i3-Tab1 (Nauka2)'!O20="",Firmy2!O20,""),"") ->  | P20: =IF(Firmy2!P20<>"",IF('Wyk2i3-Tab1 (Nauka2)'!P20="",Firmy2!P20,""),"") ->  | Q20: =IF(Firmy2!Q20<>"",IF('Wyk2i3-Tab1 (Nauka2)'!Q20="",Firmy2!Q20,""),"") ->  | R20: =IF(Firmy2!R20<>"",IF('Wyk2i3-Tab1 (Nauka2)'!R20="",Firmy2!R20,""),"") -> 
B21: S. Outsourcing telekomunikacyjny | C21: =IF(Firmy2!C21<>"",IF('Wyk2i3-Tab1 (Nauka2)'!C21="",Firmy2!C21,""),"") -> 5 | D21: =IF(Firmy2!D21<>"",IF('Wyk2i3-Tab1 (Nauka2)'!D21="",Firmy2!D21,""),"") -> 1 | E21: =IF(Firmy2!E21<>"",IF('Wyk2i3-Tab1 (Nauka2)'!E21="",Firmy2!E21,""),"") ->  | F21: =IF(Firmy2!F21<>"",IF('Wyk2i3-Tab1 (Nauka2)'!F21="",Firmy2!F21,""),"") ->  | G21: =IF(Firmy2!G21<>"",IF('Wyk2i3-Tab1 (Nauka2)'!G21="",Firmy2!G21,""),"") ->  | H21: =IF(Firmy2!H21<>"",IF('Wyk2i3-Tab1 (Nauka2)'!H21="",Firmy2!H21,""),"") ->  | I21: =IF(Firmy2!I21<>"",IF('Wyk2i3-Tab1 (Nauka2)'!I21="",Firmy2!I21,""),"") ->  | J21: =IF(Firmy2!J21<>"",IF('Wyk2i3-Tab1 (Nauka2)'!J21="",Firmy2!J21,""),"") ->  | K21: =IF(Firmy2!K21<>"",IF('Wyk2i3-Tab1 (Nauka2)'!K21="",Firmy2!K21,""),"") ->  | L21: =IF(Firmy2!L21<>"",IF('Wyk2i3-Tab1 (Nauka2)'!L21="",Firmy2!L21,""),"") ->  | M21: =IF(Firmy2!M21<>"",IF('Wyk2i3-Tab1 (Nauka2)'!M21="",Firmy2!M21,""),"") ->  | N21: =IF(Firmy2!N21<>"",IF('Wyk2i3-Tab1 (Nauka2)'!N21="",Firmy2!N21,""),"") ->  | O21: =IF(Firmy2!O21<>"",IF('Wyk2i3-Tab1 (Nauka2)'!O21="",Firmy2!O21,""),"") ->  | P21: =IF(Firmy2!P21<>"",IF('Wyk2i3-Tab1 (Nauka2)'!P21="",Firmy2!P21,""),"") ->  | Q21: =IF(Firmy2!Q21<>"",IF('Wyk2i3-Tab1 (Nauka2)'!Q21="",Firmy2!Q21,""),"") ->  | R21: =IF(Firmy2!R21<>"",IF('Wyk2i3-Tab1 (Nauka2)'!R21="",Firmy2!R21,""),"") -> 
B22: T. Usługi serwisowe telekomunikacyjne | C22: =IF(Firmy2!C22<>"",IF('Wyk2i3-Tab1 (Nauka2)'!C22="",Firmy2!C22,""),"") ->  | D22: =IF(Firmy2!D22<>"",IF('Wyk2i3-Tab1 (Nauka2)'!D22="",Firmy2!D22,""),"") ->  | E22: =IF(Firmy2!E22<>"",IF('Wyk2i3-Tab1 (Nauka2)'!E22="",Firmy2!E22,""),"") ->  | F22: =IF(Firmy2!F22<>"",IF('Wyk2i3-Tab1 (Nauka2)'!F22="",Firmy2!F22,""),"") ->  | G22: =IF(Firmy2!G22<>"",IF('Wyk2i3-Tab1 (Nauka2)'!G22="",Firmy2!G22,""),"") ->  | H22: =IF(Firmy2!H22<>"",IF('Wyk2i3-Tab1 (Nauka2)'!H22="",Firmy2!H22,""),"") ->  | I22: =IF(Firmy2!I22<>"",IF('Wyk2i3-Tab1 (Nauka2)'!I22="",Firmy2!I22,""),"") ->  | J22: =IF(Firmy2!J22<>"",IF('Wyk2i3-Tab1 (Nauka2)'!J22="",Firmy2!J22,""),"") ->  | K22: =IF(Firmy2!K22<>"",IF('Wyk2i3-Tab1 (Nauka2)'!K22="",Firmy2!K22,""),"") ->  | L22: =IF(Firmy2!L22<>"",IF('Wyk2i3-Tab1 (Nauka2)'!L22="",Firmy2!L22,""),"") ->  | M22: =IF(Firmy2!M22<>"",IF('Wyk2i3-Tab1 (Nauka2)'!M22="",Firmy2!M22,""),"") ->  | N22: =IF(Firmy2!N22<>"",IF('Wyk2i3-Tab1 (Nauka2)'!N22="",Firmy2!N22,""),"") -> 1 | O22: =IF(Firmy2!O22<>"",IF('Wyk2i3-Tab1 (Nauka2)'!O22="",Firmy2!O22,""),"") ->  | P22: =IF(Firmy2!P22<>"",IF('Wyk2i3-Tab1 (Nauka2)'!P22="",Firmy2!P22,""),"") ->  | Q22: =IF(Firmy2!Q22<>"",IF('Wyk2i3-Tab1 (Nauka2)'!Q22="",Firmy2!Q22,""),"") ->  | R22: =IF(Firmy2!R22<>"",IF('Wyk2i3-Tab1 (Nauka2)'!R22="",Firmy2!R22,""),"") -> 
B23: U. Inne usługi telekomunikacyjne | C23: =IF(Firmy2!C23<>"",IF('Wyk2i3-Tab1 (Nauka2)'!C23="",Firmy2!C23,""),"") ->  | D23: =IF(Firmy2!D23<>"",IF('Wyk2i3-Tab1 (Nauka2)'!D23="",Firmy2!D23,""),"") ->  | E23: =IF(Firmy2!E23<>"",IF('Wyk2i3-Tab1 (Nauka2)'!E23="",Firmy2!E23,""),"") ->  | F23: =IF(Firmy2!F23<>"",IF('Wyk2i3-Tab1 (Nauka2)'!F23="",Firmy2!F23,""),"") ->  | G23: =IF(Firmy2!G23<>"",IF('Wyk2i3-Tab1 (Nauka2)'!G23="",Firmy2!G23,""),"") -> 1 | H23: =IF(Firmy2!H23<>"",IF('Wyk2i3-Tab1 (Nauka2)'!H23="",Firmy2!H23,""),"") ->  | I23: =IF(Firmy2!I23<>"",IF('Wyk2i3-Tab1 (Nauka2)'!I23="",Firmy2!I23,""),"") ->  | J23: =IF(Firmy2!J23<>"",IF('Wyk2i3-Tab1 (Nauka2)'!J23="",Firmy2!J23,""),"") ->  | K23: =IF(Firmy2!K23<>"",IF('Wyk2i3-Tab1 (Nauka2)'!K23="",Firmy2!K23,""),"") ->  | L23: =IF(Firmy2!L23<>"",IF('Wyk2i3-Tab1 (Nauka2)'!L23="",Firmy2!L23,""),"") ->  | M23: =IF(Firmy2!M23<>"",IF('Wyk2i3-Tab1 (Nauka2)'!M23="",Firmy2!M23,""),"") ->  | N23: =IF(Firmy2!N23<>"",IF('Wyk2i3-Tab1 (Nauka2)'!N23="",Firmy2!N23,""),"") ->  | O23: =IF(Firmy2!O23<>"",IF('Wyk2i3-Tab1 (Nauka2)'!O23="",Firmy2!O23,""),"") ->  | P23: =IF(Firmy2!P23<>"",IF('Wyk2i3-Tab1 (Nauka2)'!P23="",Firmy2!P23,""),"") ->  | Q23: =IF(Firmy2!Q23<>"",IF('Wyk2i3-Tab1 (Nauka2)'!Q23="",Firmy2!Q23,""),"") ->  | R23: =IF(Firmy2!R23<>"",IF('Wyk2i3-Tab1 (Nauka2)'!R23="",Firmy2!R23,""),"") -> 
B24: V. Dystrybucja IT (sprzedaż do dalszej odsprzedaży) | C24: =IF(Firmy2!C24<>"",IF('Wyk2i3-Tab1 (Nauka2)'!C24="",Firmy2!C24,""),"") ->  | D24: =IF(Firmy2!D24<>"",IF('Wyk2i3-Tab1 (Nauka2)'!D24="",Firmy2!D24,""),"") -> 1 | E24: =IF(Firmy2!E24<>"",IF('Wyk2i3-Tab1 (Nauka2)'!E24="",Firmy2!E24,""),"") ->  | F24: =IF(Firmy2!F24<>"",IF('Wyk2i3-Tab1 (Nauka2)'!F24="",Firmy2!F24,""),"") -> 1 | G24: =IF(Firmy2!G24<>"",IF('Wyk2i3-Tab1 (Nauka2)'!G24="",Firmy2!G24,""),"") ->  | H24: =IF(Firmy2!H24<>"",IF('Wyk2i3-Tab1 (Nauka2)'!H24="",Firmy2!H24,""),"") -> 1 | I24: =IF(Firmy2!I24<>"",IF('Wyk2i3-Tab1 (Nauka2)'!I24="",Firmy2!I24,""),"") ->  | J24: =IF(Firmy2!J24<>"",IF('Wyk2i3-Tab1 (Nauka2)'!J24="",Firmy2!J24,""),"") -> 2 | K24: =IF(Firmy2!K24<>"",IF('Wyk2i3-Tab1 (Nauka2)'!K24="",Firmy2!K24,""),"") ->  | L24: =IF(Firmy2!L24<>"",IF('Wyk2i3-Tab1 (Nauka2)'!L24="",Firmy2!L24,""),"") -> 1 | M24: =IF(Firmy2!M24<>"",IF('Wyk2i3-Tab1 (Nauka2)'!M24="",Firmy2!M24,""),"") ->  | N24: =IF(Firmy2!N24<>"",IF('Wyk2i3-Tab1 (Nauka2)'!N24="",Firmy2!N24,""),"") -> 1 | O24: =IF(Firmy2!O24<>"",IF('Wyk2i3-Tab1 (Nauka2)'!O24="",Firmy2!O24,""),"") -> 1 | P24: =IF(Firmy2!P24<>"",IF('Wyk2i3-Tab1 (Nauka2)'!P24="",Firmy2!P24,""),"") -> 1 | Q24: =IF(Firmy2!Q24<>"",IF('Wyk2i3-Tab1 (Nauka2)'!Q24="",Firmy2!Q24,""),"") -> 2 | R24: =IF(Firmy2!R24<>"",IF('Wyk2i3-Tab1 (Nauka2)'!R24="",Firmy2!R24,""),"") -> 1
B25: W. Dystryb. telekomunik. (sprzedaż do dalszej odsprzedaży) | C25: =IF(Firmy2!C25<>"",IF('Wyk2i3-Tab1 (Nauka2)'!C25="",Firmy2!C25,""),"") -> 4 | D25: =IF(Firmy2!D25<>"",IF('Wyk2i3-Tab1 (Nauka2)'!D25="",Firmy2!D25,""),"") ->  | E25: =IF(Firmy2!E25<>"",IF('Wyk2i3-Tab1 (Nauka2)'!E25="",Firmy2!E25,""),"") ->  | F25: =IF(Firmy2!F25<>"",IF('Wyk2i3-Tab1 (Nauka2)'!F25="",Firmy2!F25,""),"") ->  | G25: =IF(Firmy2!G25<>"",IF('Wyk2i3-Tab1 (Nauka2)'!G25="",Firmy2!G25,""),"") ->  | H25: =IF(Firmy2!H25<>"",IF('Wyk2i3-Tab1 (Nauka2)'!H25="",Firmy2!H25,""),"") ->  | I25: =IF(Firmy2!I25<>"",IF('Wyk2i3-Tab1 (Nauka2)'!I25="",Firmy2!I25,""),"") ->  | J25: =IF(Firmy2!J25<>"",IF('Wyk2i3-Tab1 (Nauka2)'!J25="",Firmy2!J25,""),"") ->  | K25: =IF(Firmy2!K25<>"",IF('Wyk2i3-Tab1 (Nauka2)'!K25="",Firmy2!K25,""),"") ->  | L25: =IF(Firmy2!L25<>"",IF('Wyk2i3-Tab1 (Nauka2)'!L25="",Firmy2!L25,""),"") ->  | M25: =IF(Firmy2!M25<>"",IF('Wyk2i3-Tab1 (Nauka2)'!M25="",Firmy2!M25,""),"") ->  | N25: =IF(Firmy2!N25<>"",IF('Wyk2i3-Tab1 (Nauka2)'!N25="",Firmy2!N25,""),"") ->  | O25: =IF(Firmy2!O25<>"",IF('Wyk2i3-Tab1 (Nauka2)'!O25="",Firmy2!O25,""),"") -> 2 | P25: =IF(Firmy2!P25<>"",IF('Wyk2i3-Tab1 (Nauka2)'!P25="",Firmy2!P25,""),"") ->  | Q25: =IF(Firmy2!Q25<>"",IF('Wyk2i3-Tab1 (Nauka2)'!Q25="",Firmy2!Q25,""),"") ->  | R25: =IF(Firmy2!R25<>"",IF('Wyk2i3-Tab1 (Nauka2)'!R25="",Firmy2!R25,""),"") -> 
B26: X. Sprzedaż IT i telekomunikacyjna (do klienta końcowego) | C26: =IF(Firmy2!C26<>"",IF('Wyk2i3-Tab1 (Nauka2)'!C26="",Firmy2!C26,""),"") -> 18 | D26: =IF(Firmy2!D26<>"",IF('Wyk2i3-Tab1 (Nauka2)'!D26="",Firmy2!D26,""),"") -> 1 | E26: =IF(Firmy2!E26<>"",IF('Wyk2i3-Tab1 (Nauka2)'!E26="",Firmy2!E26,""),"") -> 2 | F26: =IF(Firmy2!F26<>"",IF('Wyk2i3-Tab1 (Nauka2)'!F26="",Firmy2!F26,""),"") ->  | G26: =IF(Firmy2!G26<>"",IF('Wyk2i3-Tab1 (Nauka2)'!G26="",Firmy2!G26,""),"") -> 1 | H26: =IF(Firmy2!H26<>"",IF('Wyk2i3-Tab1 (Nauka2)'!H26="",Firmy2!H26,""),"") -> 1 | I26: =IF(Firmy2!I26<>"",IF('Wyk2i3-Tab1 (Nauka2)'!I26="",Firmy2!I26,""),"") -> 1 | J26: =IF(Firmy2!J26<>"",IF('Wyk2i3-Tab1 (Nauka2)'!J26="",Firmy2!J26,""),"") -> 2 | K26: =IF(Firmy2!K26<>"",IF('Wyk2i3-Tab1 (Nauka2)'!K26="",Firmy2!K26,""),"") ->  | L26: =IF(Firmy2!L26<>"",IF('Wyk2i3-Tab1 (Nauka2)'!L26="",Firmy2!L26,""),"") -> 1 | M26: =IF(Firmy2!M26<>"",IF('Wyk2i3-Tab1 (Nauka2)'!M26="",Firmy2!M26,""),"") ->  | N26: =IF(Firmy2!N26<>"",IF('Wyk2i3-Tab1 (Nauka2)'!N26="",Firmy2!N26,""),"") -> 1 | O26: =IF(Firmy2!O26<>"",IF('Wyk2i3-Tab1 (Nauka2)'!O26="",Firmy2!O26,""),"") ->  | P26: =IF(Firmy2!P26<>"",IF('Wyk2i3-Tab1 (Nauka2)'!P26="",Firmy2!P26,""),"") ->  | Q26: =IF(Firmy2!Q26<>"",IF('Wyk2i3-Tab1 (Nauka2)'!Q26="",Firmy2!Q26,""),"") -> 1 | R26: =IF(Firmy2!R26<>"",IF('Wyk2i3-Tab1 (Nauka2)'!R26="",Firmy2!R26,""),"") -> 

Sheet Wyk1-Ilosc projektow
C5: Politechnika Poznańska | D5: 126
C6: Poznańskie Centrum Superkomputerowo-Sieciowe | D6: =25+8 -> 33
C7: Telcordia Poland | D7: 6
C8: Uniwersytet Ekonomiczny w Poznaniu - Katedra Informatyki Ekonomicznej | D8: 6
C9: ITTI sp. z o.o. | D9: 3
C10: Uczelniane Centrum Innowacji i Transferu Technologii UAM | D10: 3
C11: Uniwersytet Artystyczny w Poznaniu | D11: 2
C12: Instytut Logistyki i Magazynowania | D12: 1
C13: Uniwersytet Przyrodniczy w Poznaniu | D13: 1
C14: Wyższa Szkoła Bankowa w Poznaniu | D14: 1 | E14: =SUM(D7:D14) -> 23

Sheet Wyk2i3-Tab1 (Nauka2)
B1: Jednostki naukowe
B2: Branża odbiorcy Rodzaj działalności odbiorcy . | C2: 1. Wszystkie sektory lub sektor nieistotny | D2: 2. Administracja państwowa, w tym służby mundurowe | E2: 3. Bankowość, ubezpieczenia, inne usługi finansowe | F2: 4. Budownictwo | G2: 5. Dostawy elektryczności, gazu, ciepła i wody | H2: 6. Edukacja | I2: 7. Gospodarstwa domowe | J2: 8. Handel | K2: 9. Media | L2: 10. Produkcja przemysłowa | M2: 11. Rolnictwo | N2: 12. Służba zdrowia | O2: 13. Telekomunikacja, IT | P2: 14. Transport | Q2: 15. Usługi | R2: 16. Inni odbiorcy końcowi | S2: Dla 182 projektów
B3: A. Produkcja sprzętu IT | D3: 1 | G3: 3 | H3: 7 | K3: 2 | L3: 5 | N3: 2 | O3: 13 | P3: 1 | Q3: 2 | R3: 2 | S3: 38 | T3: 0.06099518459 | V3: =COUNTIF(D3:R3,"<>") -> 15 | X3: =152-135 -> 17
B4: B. Produkcja sprzętu telekomunikacyjnego | C4: 5 | D4: 1 | H4: 4 | K4: 3 | L4: 6 | N4: 2 | O4: 11 | P4: 1 | R4: 1 | S4: 34 | T4: 0.05457463884 | V4: =COUNTIF(D4:R4,"<>") -> 15
B5: C. Produkcja oprogramowania, w tym na zamówienie | C5: 9 | D5: 13 | E5: 8 | G5: 2 | H5: 18 | I5: 1 | J5: 8 | K5: 7 | L5: 6 | M5: 2 | N5: 7 | O5: 26 | P5: 5 | Q5: 7 | R5: 4 | S5: 123 | T5: 0.1974317817 | V5: 15
B6: D. Instalacje sprzętu | C6: 1 | D6: 3 | G6: 1 | H6: 6 | I6: 1 | L6: 1 | M6: 1 | N6: 1 | O6: 7 | S6: 22 | T6: 0.03531300161 | V6: 15
B7: E. Integracja systemów IT | C7: 2 | D7: 2 | G7: 1 | H7: 7 | I7: 1 | J7: 1 | L7: 1 | M7: 1 | N7: 2 | O7: 6 | P7: 1 | Q7: 2 | S7: 27 | T7: 0.04333868379 | V7: 15
B8: F. Wdrożenia oprogramowania | C8: 5 | D8: 3 | E8: 2 | G8: 1 | H8: 8 | I8: 1 | J8: 1 | L8: 1 | M8: 2 | N8: 2 | O8: 7 | P8: 2 | Q8: 3 | R8: 6 | S8: 44 | T8: 0.07062600321 | V8: 15
B9: G. Projektowanie, budowa i instalacje sieci IT | C9: 5 | D9: 6 | E9: 4 | G9: 1 | H9: 9 | I9: 1 | K9: 3 | L9: 1 | M9: 1 | N9: 2 | O9: 13 | P9: 1 | Q9: 3 | S9: 50 | T9: 0.08025682183 | V9: 15
B10: H. Szkolenia IT | C10: 4 | D10: 1 | H10: 9 | I10: 1 | L10: 1 | N10: 1 | O10: 5 | Q10: 1 | S10: 23 | T10: 0.03691813804 | V10: 15
B11: I. Doradztwo IT | C11: 9 | D11: 12 | E11: 11 | F11: 2 | G11: 2 | H11: 13 | J11: 12 | K11: 5 | L11: 6 | M11: 1 | N11: 7 | O11: 13 | P11: 1 | Q11: 2 | S11: 96 | T11: 0.1540930979 | V11: 15
B12: J. Outsourcing IT, wyłączając przetwarzanie danych | D12: 3 | E12: 3 | G12: 1 | H12: 1 | L12: 1 | O12: 4 | S12: 13 | T12: 0.02086677368 | V12: 15
B13: K. Outsourcing przetwarzania danych | C13: 3 | D13: 1 | E13: 1 | H13: 2 | L13: 1 | O13: 3 | Q13: 1 | S13: 12 | T13: 0.01926163724 | V13: 15
B14: L. Usługi serwisowe IT | H14: 2 | O14: 1 | S14: 3 | T14: 0.00481540931 | V14: 15
B15: M. Inne usługi IT | C15: 4 | D15: 1 | E15: 1 | H15: 5 | N15: 1 | O15: 9 | Q15: 9 | S15: 30 | T15: 0.0481540931 | V15: 15 | X15: =24*16 -> 384 | Y15: =V27/X15 -> 0.9375
B16: N. Instalacje i uruchamianie central telekomunikacyjnych | S16: 0 | T16: 0 | V16: 15
B17: O. Projekt., budowa, uruchamianie i utrzym. sieci telekom. | C17: 2 | D17: 2 | H17: 2 | N17: 1 | O17: 6 | P17: 1 | Q17: 1 | S17: 15 | T17: 0.02407704655 | V17: 15
B18: P. Usługi operatorskie TV kablowych | C18: 1 | O18: 2 | S18: 3 | T18: 0.00481540931 | V18: 15
B19: Q. Usługi operatorskie transmisji danych | C19: 3 | D19: 3 | G19: 2 | H19: 2 | I19: 1 | M19: 1 | N19: 1 | O19: 7 | P19: 1 | Q19: 1 | S19: 22 | T19: 0.03531300161 | V19: 15
B20: R. Usługi internetowe (dostępowe ISP) | C20: 2 | D20: 2 | H20: 1 | M20: 1 | O20: 4 | R20: 1 | S20: 11 | T20: 0.0176565008 | V20: 15
B21: S. Outsourcing telekomunikacyjny | O21: 1 | S21: 1 | T21: 0.001605136437 | V21: 15
B22: T. Usługi serwisowe telekomunikacyjne | C22: 1 | H22: 1 | O22: 1 | S22: 3 | T22: 0.00481540931 | V22: 15
B23: U. Inne usługi telekomunikacyjne | C23: 2 | D23: 1 | H23: 9 | L23: 1 | M23: 1 | N23: 19 | O23: 1 | Q23: 16 | R23: 2 | S23: 52 | T23: 0.0834670947 | V23: 15
B24: V. Dystrybucja IT (sprzedaż do dalszej odsprzedaży) | C24: 1 | S24: 1 | T24: 0.001605136437 | V24: 15
B25: W. Dystryb. telekomunik. (sprzedaż do dalszej odsprzedaży) | S25: 0 | T25: 0 | V25: 15
B26: X. Sprzedaż IT i telekomunikacyjna (do klienta końcowego) | S26: 0 | T26: 0 | V26: 15
B27: Dla 182 projektów | C27: 59 | D27: 55 | E27: 30 | F27: 2 | G27: 14 | H27: 106 | I27: 7 | J27: 22 | K27: 20 | L27: 31 | M27: 11 | N27: 48 | O27: 140 | P27: 14 | Q27: 48 | R27: 16 | S27: 623 | V27: =SUM(V3:V26) -> 360
C28: 0.09470304976 | D28: 0.08828250401 | E28: 0.0481540931 | F28: 0.003210272873 | G28: 0.02247191011 | H28: 0.1701444623 | I28: 0.01123595506 | J28: 0.03531300161 | K28: 0.03210272873 | L28: 0.04975922953 | M28: 0.0176565008 | N28: 0.07704654896 | O28: 0.2247191011 | P28: 0.02247191011 | Q28: 0.07704654896 | R28: 0.02568218299
A29: =24*15 -> 360
A30: =B30/360 -> 0.4111111111 | B30: =SUM(C30:R30) -> 148 | D30: =COUNTIF(D3:D26,">0") -> 16 | E30: 7 | F30: 1 | G30: 9 | H30: 18 | I30: 7 | J30: 4 | K30: 5 | L30: 12 | M30: 9 | N30: 13 | O30: 20 | P30: 9 | Q30: 12 | R30: 6
C32: =24*15 -> 360
C34: 13. Telekomunikacja, IT | D34: =TRIM(MID(C34, 4,999)) -> Telekomunikacja, IT | E34: 140
C35: 6. Edukacja | D35: Edukacja | E35: 106
C36: 1. Wszystkie sektory lub sektor nieistotny | D36: Wszystkie sektory lub sektor nieistotny | E36: 59
C37: 2. Administracja państwowa, w tym służby mundurowe | D37: Administracja państwowa, w tym służby mundurowe | E37: 55
C38: 12. Służba zdrowia | D38: Służba zdrowia | E38: 48
C39: 15. Usługi | D39: Usługi | E39: 48
C40: 10. Produkcja przemysłowa | D40: Produkcja przemysłowa | E40: 31
C41: 3. Bankowość, ubezpieczenia, inne usługi finansowe | D41: Bankowość, ubezpieczenia, inne usługi finansowe | E41: 30
C42: 8. Handel | D42: Handel | E42: 22
C43: 9. Media | D43: Media | E43: 20
C44: 16. Inni odbiorcy końcowi | D44: Inni odbiorcy końcowi | E44: 16
C45: 5. Dostawy elektryczności, gazu, ciepła i wody | D45: Dostawy elektryczności, gazu, ciepła i wody | E45: 14
C46: 14. Transport | D46: Transport | E46: 14
C47: 11. Rolnictwo | D47: Rolnictwo | E47: 11
C48: 7. Gospodarstwa domowe | D48: Gospodarstwa domowe | E48: 7
C49: 4. Budownictwo | D49: Budownictwo | E49: 2
C54: A | D54: B | E54: C
C55: C. Produkcja oprogramowania, w tym na zamówienie | D55: =TRIM(MID(C55, 4,999)) -> Produkcja oprogramowania, w tym na zamówienie | E55: 123
C56: I. Doradztwo IT | D56: Doradztwo IT | E56: 96
C57: U. Inne usługi telekomunikacyjne | D57: Inne usługi telekomunikacyjne | E57: 52
C58: G. Projektowanie, budowa i instalacje sieci IT | D58: Projektowanie, budowa i instalacje sieci IT | E58: 50
C59: F. Wdrożenia oprogramowania | D59: Wdrożenia oprogramowania | E59: 44
C60: A. Produkcja sprzętu IT | D60: Produkcja sprzętu IT | E60: 38
C61: B. Produkcja sprzętu telekomunikacyjnego | D61: Produkcja sprzętu telekomunikacyjnego | E61: 34
C62: M. Inne usługi IT | D62: Inne usługi IT | E62: 30
C63: E. Integracja systemów IT | D63: Integracja systemów IT | E63: 27
C64: H. Szkolenia IT | D64: Szkolenia IT | E64: 23
C65: D. Instalacje sprzętu | D65: Instalacje sprzętu | E65: 22
C66: Q. Usługi operatorskie transmisji danych | D66: Usługi operatorskie transmisji danych | E66: 22
C67: O. Projekt., budowa, uruchamianie i utrzym. sieci telekom. | D67: Projekt., budowa, uruchamianie i utrzym. sieci telekom. | E67: 15
C68: J. Outsourcing IT, wyłączając przetwarzanie danych | D68: Outsourcing IT, wyłączając przetwarzanie danych | E68: 13
C69: K. Outsourcing przetwarzania danych | D69: Outsourcing przetwarzania danych | E69: 12
C70: R. Usługi internetowe (dostępowe ISP) | D70: Usługi internetowe (dostępowe ISP) | E70: 11
C71: L. Usługi serwisowe IT | D71: Usługi serwisowe IT | E71: 3
C72: P. Usługi operatorskie TV kablowych | D72: Usługi operatorskie TV kablowych | E72: 3
C73: T. Usługi serwisowe telekomunikacyjne | D73: Usługi serwisowe telekomunikacyjne | E73: 3
C74: S. Outsourcing telekomunikacyjny | D74: Outsourcing telekomunikacyjny | E74: 1
C75: V. Dystrybucja IT (sprzedaż do dalszej odsprzedaży) | D75: Dystrybucja IT (sprzedaż do dalszej odsprzedaży) | E75: 1
C76: N. Instalacje i uruchamianie central telekomunikacyjnych | D76: Instalacje i uruchamianie central telekomunikacyjnych | E76: 0
C77: W. Dystryb. telekomunik. (sprzedaż do dalszej odsprzedaży) | D77: Dystryb. telekomunik. (sprzedaż do dalszej odsprzedaży) | E77: 0
C78: X. Sprzedaż IT i telekomunikacyjna (do klienta końcowego) | D78: Sprzedaż IT i telekomunikacyjna (do klienta końcowego) | E78: 0

Sheet Tab2
B1: Jednostki naukowe
B2: Branża odbiorcy Rodzaj działalności odbiorcy . | C2: 1. Wszystkie sektory lub sektor nieistotny | D2: 2. Administracja państwowa, w tym służby mundurowe | E2: 3. Bankowość, ubezpieczenia, inne usługi finansowe | F2: 4. Budownictwo | G2: 5. Dostawy elektryczności, gazu, ciepła i wody | H2: 6. Edukacja | I2: 7. Gospodarstwa domowe | J2: 8. Handel | K2: 9. Media | L2: 10. Produkcja przemysłowa | M2: 11. Rolnictwo | N2: 12. Służba zdrowia | O2: 13. Telekomunikacja, IT | P2: 14. Transport | Q2: 15. Usługi | R2: 16. Inni odbiorcy końcowi | S2: Łącznie 233 przedsięb.
B3: A. Produkcja sprzętu IT | C3: 4 | D3: 1 | E3: 2 | H3: 1 | I3: 1 | J3: 1 | L3: 1 | N3: 1 | O3: 1 | Q3: 1 | S3: 14 | T3: 0.01325757576 | V3: =COUNTIF(D3:R3,">0") -> 9 | W3: =COUNTIF(C3,"<>") -> 1
B4: B. Produkcja sprzętu telekomunikacyjnego | C4: 5 | D4: 1 | E4: 1 | G4: 1 | H4: 1 | I4: 1 | J4: 1 | L4: 1 | N4: 1 | O4: 2 | Q4: 1 | R4: 1 | S4: 17 | T4: 0.01609848485 | V4: =COUNTIF(D4:R4,">0") -> 11 | W4: 1
B5: C. Produkcja oprogramowania, w tym na zamówienie | C5: 61 | D5: 3 | E5: 8 | F5: 4 | G5: 4 | H5: 4 | J5: 10 | K5: 4 | L5: 7 | N5: 1 | O5: 6 | P5: 3 | Q5: 6 | R5: 4 | S5: 125 | T5: 0.1183712121 | V5: 13 | W5: 1
B6: D. Instalacje sprzętu | C6: 24 | D6: 3 | E6: 4 | F6: 3 | G6: 1 | H6: 5 | I6: 2 | J6: 5 | L6: 3 | N6: 3 | O6: 3 | P6: 2 | Q6: 5 | R6: 2 | S6: 65 | T6: 0.0615530303 | V6: 13 | W6: 1
B7: E. Integracja systemów IT | C7: 29 | D7: 3 | E7: 5 | F7: 5 | H7: 3 | J7: 5 | K7: 2 | L7: 6 | N7: 2 | O7: 4 | P7: 2 | Q7: 7 | R7: 3 | S7: 76 | T7: 0.07196969697 | V7: 12 | W7: 1
B8: F. Wdrożenia oprogramowania | C8: 51 | D8: 4 | E8: 8 | F8: 6 | G8: 2 | H8: 4 | J8: 11 | K8: 3 | L8: 10 | N8: 2 | O8: 6 | P8: 4 | Q8: 10 | R8: 6 | S8: 127 | T8: 0.1202651515 | V8: =COUNTIF(D8:R8,">0") -> 13 | W8: 1
B9: G. Projektowanie, budowa i instalacje sieci IT | C9: 28 | D9: 3 | E9: 5 | F9: 4 | H9: 3 | I9: 1 | J9: 5 | L9: 2 | N9: 3 | O9: 4 | P9: 1 | Q9: 4 | R9: 1 | S9: 64 | T9: 0.06060606061 | V9: 12 | W9: 1
B10: H. Szkolenia IT | C10: 28 | D10: 1 | E10: 4 | F10: 2 | H10: 3 | I10: 1 | J10: 4 | K10: 1 | L10: 2 | M10: 1 | N10: 1 | O10: 3 | P10: 1 | Q10: 3 | R10: 2 | S10: 57 | T10: 0.05397727273 | V10: =COUNTIF(D10:R10,">0") -> 14 | W10: 1
B11: I. Doradztwo IT | C11: 33 | D11: 3 | E11: 6 | F11: 3 | G11: 3 | H11: 5 | I11: 1 | J11: 7 | K11: 2 | L11: 2 | M11: 1 | N11: 2 | O11: 4 | P11: 3 | Q11: 5 | R11: 3 | S11: 83 | T11: 0.07859848485 | V11: 15 | W11: 1
B12: J. Outsourcing IT, wyłączając przetwarzanie danych | C12: 23 | D12: 2 | E12: 4 | F12: 1 | G12: 1 | H12: 2 | I12: 1 | J12: 4 | L12: 2 | N12: 1 | O12: 2 | P12: 1 | Q12: 3 | R12: 3 | S12: 50 | T12: 0.04734848485 | V12: 13 | W12: 1
B13: K. Outsourcing przetwarzania danych | C13: 8 | D13: 2 | E13: 3 | F13: 2 | H13: 3 | I13: 1 | J13: 4 | L13: 3 | N13: 1 | O13: 2 | P13: 2 | Q13: 4 | R13: 1 | S13: 36 | T13: 0.03409090909 | V13: 12 | W13: 1
